Workbook

Sheet Title
B1: WUFFF DA
B2: Windows User-Friendly Feed Formulation
C3: Version 1.02 | H3: September 10, 2004
B5: Gene Pesti, The University of Georgia, Athens GA USA
B6: Evan Thomson, The University of New England, Armidale NSW Australia
B7: Remzi Bakalli, The University of Georgia, Athens GA USA
B8: Bernard Leclercq, Recherches Avicoles INRA 37380 Nouzilly, France
B9: Anshan Shan, Northwest Agricultural University, Harbin, China
B10: Anel Atencio, The University of Georgia, Athens GA USA
B11: John Driver, The University of Georgia, Athens GA USA
B12: Cathy Zier, The University of Georgia, Athens GA USA
B13: Michael Azain, The University of Georgia, Athens GA USA
B14: Marina Pavlak, The University of Zagreb, Croatia
B15: Dmitry Vedenov, The University of Georgia, Athens GA USA
B16: Francois van de Vyver, University of Pretoria, Pretoria, South Africa
B17: Jose Fernando Menten, ESALQ –USP, Piracicaba SP Brasil
B18: Jose Otavio Sorbara, ESALQ –USP, Piracicaba SP Brasil
B19: Nizameddin Senkoylu, Trakya University, Tekirdag, Turkey
B20: Marisa Chamruspollert, NOVUS International, Bangkok, Thailand
B21: Ryu Kyoung Seon, Chonbuk National University, Chonbuk, South Korea
B25: This program was developed from ideas and designs found in the
B26: UNEform program authored by Evan Thomson of the University of New England
C27: For Instructions, Please see the files WUFFDA.doc and WUFFDA.ppt
B47: WELCOME TO WUFFDA
B52: WINDOWS-BASED USER-FRIENDLY
B53: FEED FORMULATION WORKBOOK
B65: THE WUFFDA WORKBOOK CONSISTS OF
B66: SEVEN SPREADSHEETS
B71: TITLE
C72: INGREDIENTS
D73: NUTRIENTS
E74: FORMULATE
F75: FEED SPECIFICATION
G76: MIXING SHEET
H77: GRAPHS
B85: WUFFDA AND EXCEL ARE A POWERFUL TEAM
B87: BUT YOU ONLY NEED TO KNOW HOW TO :
C89: POINT
D90: CLICK
E91: COPY
F92: PASTE
G93: TYPE NUMBERS
H94: TYPE LETTERS

Sheet Ingredients
D1: WUFFF DA | M1: Instructions
C2: Cost | D2: Min. | E2: Max. | F2: Weight | G2: Dry Matter | H2: M.E. | I2: Protein | J2: E.E. | K2: C18:2 | L2: C.F | M2: Calcium | N2: Total Phos. | O2: Avail. Phos. | P2: Ca:P= | Q2: 1 | T2: Na | U2: 1 | X2: ARG | Y2: GLY | Z2: SER | AA2: GLY & SER | AB2: HIS | AC2: ILE | AD2: LEU | AE2: LYS | AF2: MET | AG2: CYS | AH2: TSAA | AI2: PHE | AJ2: TYR | AK2: TAAA | AL2: THR | AM2: TRP | AN2: VAL | AR2: Biotin
P3: 2 | Q3: Corn P | R3: High | S3: Low | U3: SBM P | V3: High | W3: Low
C4: ACTIVE INGREDIENT COMPOSITION MATRIX | N4: ACTIVE INGREDIENT COMPOSITION MATRIX | X4: ACTIVE INGREDIENT COMPOSITION MATRIX
B5: LOW CP CORN | C5: 16 | D5: 0 | E5: 100 | F5: 1 | G5: 89 | H5: 3.35 | I5: 6.41 | J5: 3.8 | K5: 2.2 | L5: 2.2 | M5: 0.02 | N5: 0.28 | O5: 0.1 | P5: =O5-(1/P$3*M5) -> 0.09 | Q5: =R5-(1/Q$2*S5) -> -1 | R5: 0 | S5: 1 | T5: 0.02 | U5: =V5-(1/U$2*W5) -> 0 | V5: 0 | W5: 0 | X5: =0.134*(I5/6.25)+0.173 -> 0.3104304 | Y5: =0.129*(I5/6.25)+0.132 -> 0.2643024 | Z5: =0.292*(I5/6.25) -> 0.2994752 | AA5: 0.7 | AB5: =0.174*(I5/6.25) -> 0.1784544 | AC5: =0.21*(I5/6.25) -> 0.215376 | AD5: =0.954*(I5/6.25)- 0.266 -> 0.7124224 | AE5: =0.183*(I5/6.25) -> 0.1876848 | AF5: =0.081*(I5/6.25)+0.05 -> 0.1330736 | AG5: =0.086*(I5/6.25)+0.055 -> 0.1432016 | AH5: =AF5+AG5 -> 0.2762752 | AI5: =0.297*(I5/6.25) -> 0.3046032 | AJ5: =0.209*(I5/6.25) -> 0.2143504 | AK5: =AI5+AJ5 -> 0.5189536 | AL5: =0.22*(I5/6.25) -> 0.225632 | AM5: =0.016*(I5/6.25)+0.04 -> 0.0564096 | AN5: =0.293*(I5/6.25) -> 0.3005008
B6: HIGH CP CORN | C6: 16 | D6: 0 | E6: 100 | F6: 1 | G6: 89 | H6: 3.35 | I6: 7.37 | J6: 3.8 | K6: 2.2 | L6: 2.2 | M6: 0.02 | N6: 0.28 | O6: 0.1 | P6: =O6-(1/P$3*M6) -> 0.09 | Q6: =R6-(1/Q$2*S6) -> 1 | R6: 1 | S6: 0 | T6: 0.02 | U6: =V6-(1/U$2*W6) -> 0 | V6: 0 | W6: 0 | X6: =0.134*(I6/6.25)+0.173 -> 0.3310128 | Y6: =0.129*(I6/6.25)+0.132 -> 0.2841168 | Z6: =0.292*(I6/6.25) -> 0.3443264 | AA6: 0.7 | AB6: =0.174*(I6/6.25) -> 0.2051808 | AC6: =0.21*(I6/6.25) -> 0.247632 | AD6: =0.954*(I6/6.25)- 0.266 -> 0.8589568 | AE6: =0.183*(I6/6.25) -> 0.2157936 | AF6: =0.081*(I6/6.25)+0.05 -> 0.1455152 | AG6: =0.086*(I6/6.25)+0.055 -> 0.1564112 | AH6: =AF6+AG6 -> 0.3019264 | AI6: =0.297*(I6/6.25) -> 0.3502224 | AJ6: =0.209*(I6/6.25) -> 0.2464528 | AK6: =AI6+AJ6 -> 0.5966752 | AL6: =0.22*(I6/6.25) -> 0.259424 | AM6: =0.016*(I6/6.25)+0.04 -> 0.0588672 | AN6: =0.293*(I6/6.25) -> 0.3455056
B7: LOW CP SBM | C7: 28 | D7: 0 | E7: 100 | F7: 1 | G7: 90 | H7: 2.44 | I7: 46.38 | J7: 1 | K7: 0.4 | L7: 3.9 | M7: 0.27 | N7: 0.62 | O7: 0.24 | P7: =O7-(1/P$3*M7) -> 0.105 | Q7: 0 | R7: 0 | S7: 0 | T7: 0.03 | U7: -1 | V7: 0 | W7: 1 | X7: =0.447*(I7/6.25) -> 3.3170976 | Y7: =0.218*(I7/6.25)+0.325 -> 1.9427344 | Z7: =0.309*(I7/6.25) -> 2.2930272 | AA7: 5.53 | AB7: =0.157*(I7/6.25) -> 1.1650656 | AC7: =0.282*(I7/6.25) -> 2.0926656 | AD7: =0.473*(I7/6.25) -> 3.5100384 | AE7: =0.379*(I7/6.25) -> 2.8124832 | AF7: =0.082*(I7/6.25) -> 0.6085056 | AG7: =0.086*(I7/6.25) -> 0.6381888 | AH7: =AF7+AG7 -> 1.2466944 | AI7: =0.316*(I7/6.25) -> 2.3449728 | AJ7: =0.231*(I7/6.25) -> 1.7142048 | AK7: =AI7+AJ7 -> 4.0591776 | AL7: =0.241*(I7/6.25) -> 1.7884128 | AM7: =0.084*(I7/6.25) -> 0.6233472 | AN7: =0.296*(I7/6.25) -> 2.1965568
B8: HIGH CP SBM | C8: 28 | D8: 0 | E8: 100 | F8: 1 | G8: 90 | H8: 2.44 | I8: 48.69 | J8: 1 | K8: 0.4 | L8: 3.9 | M8: 0.27 | N8: 0.62 | O8: 0.24 | P8: =O8-(1/P$3*M8) -> 0.105 | Q8: 0 | R8: 0 | S8: 0 | T8: 0.03 | U8: 1 | V8: 1 | W8: 0 | X8: =0.447*(I8/6.25) -> 3.4823088 | Y8: =0.218*(I8/6.25)+0.325 -> 2.0233072 | Z8: =0.309*(I8/6.25) -> 2.4072336 | AA8: 5.53 | AB8: =0.157*(I8/6.25) -> 1.2230928 | AC8: =0.282*(I8/6.25) -> 2.1968928 | AD8: =0.473*(I8/6.25) -> 3.6848592 | AE8: =0.379*(I8/6.25) -> 2.9525616 | AF8: =0.082*(I8/6.25) -> 0.6388128 | AG8: =0.086*(I8/6.25) -> 0.6699744 | AH8: =AF8+AG8 -> 1.3087872 | AI8: =0.316*(I8/6.25) -> 2.4617664 | AJ8: =0.231*(I8/6.25) -> 1.7995824 | AK8: =AI8+AJ8 -> 4.2613488 | AL8: =0.241*(I8/6.25) -> 1.8774864 | AM8: =0.084*(I8/6.25) -> 0.6543936 | AN8: =0.296*(I8/6.25) -> 2.3059584
Q9: 0 | R9: 0 | S9: 0 | U9: 0 | V9: 0 | W9: 0
Q10: 0 | R10: 0 | S10: 0 | U10: 0 | V10: 0 | W10: 0 | AR10: 0.06
B11: Poultry Fat | C11: 34 | D11: 0 | E11: 100 | F11: 1 | G11: 100 | H11: 8.2 | I11: 0 | J11: 100 | K11: 19.5 | L11: 0 | M11: 0 | N11: 0 | O11: 0 | P11: =O11-(1/P$3*M11) -> 0 | Q11: 0 | R11: 0 | S11: 0 | T11: 0 | U11: 0 | V11: 0 | W11: 0 | X11: 0 | Y11: 0 | Z11: 0 | AA11: 0 | AB11: 0 | AC11: 0 | AD11: 0 | AE11: 0 | AF11: 0 | AG11: 0 | AH11: 0 | AI11: 0 | AJ11: 0 | AK11: 0 | AL11: 0 | AM11: 0 | AN11: 0
Q12: 0 | R12: 0 | S12: 0 | U12: 0 | V12: 0 | W12: 0
Q13: 0 | R13: 0 | U13: 0
Q14: 0 | R14: 0 | U14: 0
Q15: 0 | R15: 0 | S15: 0 | U15: 0 | V15: 0 | W15: 0
Q16: 0 | R16: 0 | U16: 0 | AR16: 1.05
Q17: 0 | R17: 0 | S17: 0 | U17: 0 | V17: 0 | W17: 0
B18: Limestone | C18: 3 | D18: 0 | E18: 100 | F18: 1 | G18: 0 | H18: 0 | I18: 0 | J18: 0 | K18: 0 | L18: 0 | M18: 38 | N18: 0 | O18: 0 | P18: =O18-(1/P$3*M18) -> -19 | Q18: 0 | R18: 0 | S18: 0 | T18: 0.05 | U18: 0 | V18: 0 | W18: 0 | X18: 0 | Y18: 0 | Z18: 0 | AA18: 0 | AB18: 0 | AC18: 0 | AD18: 0 | AE18: 0 | AF18: 0 | AG18: 0 | AH18: 0 | AI18: 0 | AJ18: 0 | AK18: 0 | AL18: 0 | AM18: 0 | AN18: 0
Q19: 0 | R19: 0 | S19: 0 | U19: 0 | V19: 0 | W19: 0
B20: Dical. Phos. | C20: 20 | D20: 0 | E20: 100 | F20: 1 | G20: 0 | H20: 0 | I20: 0 | J20: 0 | K20: 0 | L20: 0 | M20: 21.3 | N20: 18.7 | O20: 18.7 | P20: =O20-(1/P$3*M20) -> 8.05 | Q20: 0 | R20: 0 | S20: 0 | T20: 0.06 | U20: 0 | V20: 0 | W20: 0 | X20: 0 | Y20: 0 | Z20: 0 | AA20: 0 | AB20: 0 | AC20: 0 | AD20: 0 | AE20: 0 | AF20: 0 | AG20: 0 | AH20: 0 | AI20: 0 | AJ20: 0 | AK20: 0 | AL20: 0 | AM20: 0 | AN20: 0 | AR20: 0
B21: Common Salt | C21: 2.775 | D21: 0 | E21: 100 | F21: 1 | G21: 0 | H21: 0 | I21: 0 | J21: 0 | K21: 0 | L21: 0 | M21: 0.3 | N21: 0 | O21: 0 | P21: =O21-(1/P$3*M21) -> -0.15 | Q21: 0 | R21: 0 | S21: 0 | T21: 39 | U21: 0 | V21: 0 | W21: 0 | X21: 0 | Y21: 0 | Z21: 0 | AA21: 0 | AB21: 0 | AC21: 0 | AD21: 0 | AE21: 0 | AF21: 0 | AG21: 0 | AH21: 0 | AI21: 0 | AJ21: 0 | AK21: 0 | AL21: 0 | AM21: 0 | AN21: 0
B22: Vitamin Premix | C22: 370 | D22: 0.25 | E22: 0.25 | F22: 1 | G22: 100 | H22: 0 | I22: 0 | J22: 0 | K22: 0 | L22: 0 | M22: 0 | N22: 0 | O22: 0 | P22: =O22-(1/P$3*M22) -> 0 | Q22: 0 | R22: 0 | S22: 0 | T22: 0 | U22: 0 | V22: 0 | W22: 0 | X22: 0 | Y22: 0 | Z22: 0 | AA22: 0 | AB22: 0 | AC22: 0 | AD22: 0 | AE22: 0 | AF22: 0 | AG22: 0 | AH22: 0 | AI22: 0 | AJ22: 0 | AK22: 0 | AL22: 0 | AM22: 0 | AN22: 0
B23: Mineral Premix | C23: 57 | D23: 0.15 | E23: 0.15 | F23: 1 | G23: 100 | H23: 0 | I23: 0 | J23: 0 | K23: 0 | L23: 0 | M23: 0 | N23: 0 | O23: 0 | P23: =O23-(1/P$3*M23) -> 0 | Q23: 0 | R23: 0 | S23: 0 | T23: 0 | U23: 0 | V23: 0 | W23: 0 | X23: 0 | Y23: 0 | Z23: 0 | AA23: 0 | AB23: 0 | AC23: 0 | AD23: 0 | AE23: 0 | AF23: 0 | AG23: 0 | AH23: 0 | AI23: 0 | AJ23: 0 | AK23: 0 | AL23: 0 | AM23: 0 | AN23: 0
B24: DL-Methionine | C24: 220 | D24: 0 | E24: 100 | F24: 1 | G24: 100 | H24: 3.606 | I24: 57.52 | J24: 0 | K24: 0 | L24: 0 | M24: 0 | N24: 0 | O24: 0 | P24: =O24-(1/P$3*M24) -> 0 | Q24: 0 | R24: 0 | S24: 0 | T24: 0 | U24: 0 | V24: 0 | W24: 0 | X24: 0 | Y24: 0 | Z24: 0 | AA24: 0 | AB24: 0 | AC24: 0 | AD24: 0 | AE24: 0 | AF24: 98 | AG24: 0 | AH24: 98 | AI24: 0 | AJ24: 0 | AK24: 0 | AL24: 0 | AM24: 0 | AN24: 0
Q25: 0 | R25: 0 | S25: 0 | U25: 0 | V25: 0 | W25: 0
Q26: 0 | R26: 0 | S26: 0 | U26: 0 | V26: 0 | W26: 0
Q27: 0 | R27: 0 | S27: 0 | U27: 0 | V27: 0 | W27: 0
C31: STORAGE INGREDIENT COMPOSITION MATRIX | N31: STORAGE INGREDIENT COMPOSITION MATRIX | X31: STORAGE INGREDIENT COMPOSITION MATRIX
AR32: 0.33
B33: Alfalfa Meal-20 | C33: 4.87 | E33: 100 | F33: 1 | G33: 92 | H33: 1.63 | I33: 20 | J33: 3.6 | K33: 0.58 | L33: 20.2 | M33: 1.67 | N33: 0.28 | O33: 0.084 | P33: =O33-(1/P$3*M33) -> -0.751 | Q33: 2.21 | R33: 0.47 | S33: 42 | T33: 0.13 | U33: 25 | V33: 1.419 | W33: 3.3 | X33: 0.92 | Y33: 0.97 | Z33: 0.89 | AA33: 1.86 | AB33: 0.34 | AC33: 0.88 | AD33: 1.3 | AE33: 0.87 | AF33: 0.31 | AG33: 0.25 | AH33: 0.56 | AI33: 0.85 | AJ33: 0.59 | AK33: 1.44 | AL33: 0.59 | AM33: 0.76 | AN33: 0.97 | AR33: 0.07
B34: Bakery Waste | C34: 8 | E34: 100 | F34: 1 | G34: 92 | H34: 3.862 | I34: 9.8 | J34: 11.7 | K34: 0 | L34: 1.2 | M34: 0.13 | N34: 0.24 | O34: 0.072 | P34: 0.007 | Q34: 0.49 | R34: 1.48 | S34: 65 | T34: 1.14 | U34: 15 | V34: 0.923 | W34: 0.2 | X34: 0.47 | Y34: 0.82 | Z34: 0.65 | AA34: 1.47 | AB34: 0.13 | AC34: 0.45 | AD34: 0.73 | AE34: 0.31 | AF34: 0.17 | AG34: 0.17 | AH34: 0.34 | AI34: 0.4 | AJ34: 0.41 | AK34: 0.81 | AL34: 0.49 | AM34: 0.1 | AN34: 0.42 | AR34: 0.15
B35: Barley | C35: 6.1 | E35: 100 | F35: 1 | G35: 89 | H35: 2.64 | I35: 11.6 | J35: 1.8 | K35: 0.83 | L35: 5.1 | M35: 0.03 | N35: 0.36 | O35: 0.16 | P35: 0.145 | Q35: 0.48 | R35: 0.15 | S35: 16 | T35: 0.04 | U35: 17 | V35: 0.99 | W35: 0.7 | X35: 0.59 | Y35: 0.4 | Z35: 0.42 | AA35: 0.82 | AB35: 0.29 | AC35: 0.49 | AD35: 0.8 | AE35: 0.4 | AF35: 0.17 | AG35: 0.19 | AH35: 0.36 | AI35: 0.64 | AJ35: 0.33 | AK35: 0.97 | AL35: 0.42 | AM35: 0.14 | AN35: 0.62 | AR35: 0.15
B36: Barley, Pacific | C36: 5.94 | E36: 100 | F36: 1 | G36: 89 | H36: 2.62 | I36: 9 | J36: 2 | K36: 0.85 | L36: 6.4 | M36: 0.05 | N36: 0.32 | O36: 0.096 | P36: 0.071 | Q36: 0.53 | R36: 0.15 | S36: 16 | T36: 0.02 | U36: 15 | V36: 1.034 | W36: 0.5 | X36: 0.48 | Y36: 0.36 | Z36: 0.32 | AA36: 0.68 | AB36: 0.21 | AC36: 0.4 | AD36: 0.6 | AE36: 0.29 | AF36: 0.13 | AG36: 0.18 | AH36: 0.33 | AI36: 0.48 | AJ36: 0.31 | AK36: 0.79 | AL36: 0.3 | AM36: 0.12 | AN36: 0.46 | AR36: 0.2
B37: Blood, Ring | C37: 12.9 | E37: 100 | F37: 1 | G37: 93 | H37: 3.42 | I37: 88.9 | J37: 1 | K37: 0.1 | L37: 0.6 | M37: 0.06 | N37: 0.09 | O37: 0.0027 | P37: -0.0273 | Q37: 0.41 | R37: 0.27 | S37: 6 | T37: 0.33 | U37: 0.306 | V37: 0.28 | W37: 0.4 | X37: 3.81 | Y37: 4 | Z37: 3.86 | AA37: 7.86 | AB37: 5.26 | AC37: 0.88 | AD37: 11.82 | AE37: 8.85 | AF37: 0.75 | AG37: 0.86 | AH37: 1.61 | AI37: 6.55 | AJ37: 2.49 | AK37: 9.04 | AL37: 3.94 | AM37: 1.34 | AN37: 8.6 | AR37: 0.96
B38: Dry Brewers Grains | C38: 6.05 | E38: 100 | F38: 1 | G38: 92 | H38: 2.08 | I38: 25.3 | J38: 6.2 | K38: 2.94 | L38: 15.3 | M38: 0.29 | N38: 0.52 | O38: 0.156 | P38: 0.011 | Q38: 0.09 | R38: 0.12 | S38: 38 | T38: 0.15 | U38: 98 | V38: 1.723 | W38: 7.1 | X38: 1.28 | Y38: 1.09 | Z38: 0.8 | AA38: 1.89 | AB38: 0.57 | AC38: 1.44 | AD38: 2.48 | AE38: 0.9 | AF38: 0.57 | AG38: 0.39 | AH38: 0.96 | AI38: 1.45 | AJ38: 1.19 | AK38: 2.64 | AL38: 0.98 | AM38: 0.34 | AN38: 1.66 | AR38: 0.9
B39: Canola | C39: 6.96 | E39: 100 | F39: 1 | G39: 93 | H39: 2 | I39: 38 | J39: 3.8 | K39: 0 | L39: 11.1 | M39: 0.68 | N39: 1.17 | O39: 0.3 | P39: -0.04 | Q39: 1.29 | R39: 0 | S39: 54 | T39: 0 | U39: 71 | V39: 6.7 | W39: 2.3 | X39: 2.32 | Y39: 1.88 | Z39: 1.67 | AA39: 3.65 | AB39: 1.07 | AC39: 1.51 | AD39: 2.65 | AE39: 2.45 | AF39: 0.68 | AG39: 0.47 | AH39: 1.15 | AI39: 1.52 | AJ39: 0.93 | AK39: 2.45 | AL39: 1.71 | AM39: 0.44 | AN39: 1.94 | AR39: 0.05
B40: Casein | C40: 250 | E40: 100 | F40: 1 | G40: 93 | H40: 4.13 | I40: 87.2 | J40: 0.8 | K40: 0 | L40: 0.2 | M40: 0.61 | N40: 1 | O40: 1 | P40: 0.695 | Q40: 0.01 | R40: 0 | S40: 4 | T40: 0.01 | U40: 33 | V40: 0.205 | W40: 0.5 | X40: 3.61 | Y40: 1.79 | Z40: 5.81 | AA40: 7.6 | AB40: 2.78 | AC40: 4.82 | AD40: 9 | AE40: 7.99 | AF40: 2.65 | AG40: 0.21 | AH40: 2.86 | AI40: 4.96 | AJ40: 5.37 | AK40: 10.33 | AL40: 4.29 | AM40: 1.05 | AN40: 6.46 | AR40: 0.49
B41: Dstllrs Grains | C41: 5.51 | E41: 100 | F41: 1 | G41: 94 | H41: 1.972 | I41: 27.8 | J41: 9.2 | K41: 0 | L41: 11.3 | M41: 0.1 | N41: 0.4 | O41: 0.12 | P41: 0.07 | Q41: 0.17 | R41: 0.07 | S41: 22 | T41: 0.09 | U41: 33 | V41: 1.18 | W41: 0.9 | X41: 0.97 | Y41: 0.49 | Z41: 0.7 | AA41: 1.19 | AB41: 0.62 | AC41: 0.99 | AD41: 3.01 | AE41: 0.78 | AF41: 0.4 | AG41: 0.24 | AH41: 0.64 | AI41: 0.94 | AJ41: 0.84 | AK41: 1.78 | AL41: 0.49 | AM41: 0.2 | AN41: 1.18 | AR41: 0.78
B42: Dstllrs Grn/Sol | C42: 6.81 | E42: 100 | F42: 1 | G42: 93 | H42: 2.48 | I42: 27.4 | J42: 9 | K42: 4.55 | L42: 9.1 | M42: 0.17 | N42: 0.72 | O42: 0.41 | P42: 0.325 | Q42: 0.65 | R42: 0.17 | S42: 24 | T42: 0.48 | U42: 80 | V42: 2.637 | W42: 0.9 | X42: 0.98 | Y42: 0.57 | Z42: 1.61 | AA42: 2.18 | AB42: 0.66 | AC42: 1 | AD42: 2.2 | AE42: 0.75 | AF42: 0.6 | AG42: 0.4 | AH42: 1 | AI42: 1.2 | AJ42: 0.74 | AK42: 1.94 | AL42: 0.92 | AM42: 0.19 | AN42: 1.3 | AR42: 1.1
B43: Dstllrs Sols | C43: 7.9 | E43: 100 | F43: 1 | G43: 92 | H43: 2.93 | I43: 28.5 | J43: 9 | K43: 4.55 | L43: 4 | M43: 0.35 | N43: 1.33 | O43: 1.24 | P43: 1.065 | Q43: 1.75 | R43: 0.26 | S43: 74 | T43: 0.26 | U43: 85 | V43: 4.842 | W43: 1.1 | X43: 1.05 | Y43: 1.1 | Z43: 1.3 | AA43: 2.4 | AB43: 0.7 | AC43: 1.25 | AD43: 2.11 | AE43: 0.9 | AF43: 0.5 | AG43: 0.4 | AH43: 0.9 | AI43: 1.3 | AJ43: 0.95 | AK43: 2.25 | AL43: 1 | AM43: 0.3 | AN43: 1.39 | AR43: 0.15
B44: Gluten Meal | C44: 10.39 | E44: 100 | F44: 1 | G44: 90 | H44: 3.72 | I44: 62 | J44: 2.5 | K44: 0 | L44: 1.3 | M44: 0 | N44: 0.5 | O44: 0.19 | P44: 0.19 | Q44: 0.35 | R44: 0.05 | S44: 4 | T44: 0.02 | U44: 33 | V44: 0.33 | W44: 0.2 | X44: 1.93 | Y44: 1.64 | Z44: 3.07 | AA44: 4.71 | AB44: 1.22 | AC44: 2.29 | AD44: 10.11 | AE44: 1 | AF44: 1.91 | AG44: 1.11 | AH44: 3.02 | AI44: 3.77 | AJ44: 2.94 | AK44: 6.71 | AL44: 1.97 | AM44: 0.25 | AN44: 2.74 | AR44: 0.06
B45: Corn, Grain | C45: 5.25 | E45: 100 | F45: 1 | G45: 89 | H45: 3.35 | I45: 8.8 | J45: 3.8 | K45: 2.2 | L45: 2.2 | M45: 0.02 | N45: 0.28 | O45: 0.1 | P45: 0.09 | Q45: 0.3 | R45: 0.04 | S45: 5 | T45: 0.02 | U45: 10 | V45: 0.62 | W45: 0.4 | X45: 0.38 | Y45: 0.33 | Z45: 0.37 | AA45: 0.7 | AB45: 0.23 | AC45: 0.29 | AD45: 1 | AE45: 0.26 | AF45: 0.18 | AG45: 0.18 | AH45: 0.36 | AI45: 0.38 | AJ45: 0.3 | AK45: 0.68 | AL45: 0.29 | AM45: 0.06 | AN45: 0.4 | AR45: 0
B46: CSM - Slvnt 44% | C46: 6.44 | E46: 100 | F46: 1 | G46: 91 | H46: 1.857 | I46: 44.7 | J46: 1.6 | K46: 0 | L46: 11.1 | M46: 0.15 | N46: 0.91 | O46: 0.273 | P46: 0.198 | Q46: 0 | R46: 0 | S46: 0 | T46: 0 | U46: 0 | V46: 2.685 | W46: 0.9 | X46: 4.77 | Y46: 1.8 | Z46: 2.17 | AA46: 3.97 | AB46: 1.48 | AC46: 1.36 | AD46: 2.44 | AE46: 1.73 | AF46: 0.61 | AG46: 1.12 | AH46: 1.73 | AI46: 1.55 | AJ46: 1.45 | AK46: 3 | AL46: 1.49 | AM46: 0.55 | AN46: 1.91 | AR46: 0.18
B47: Fish Sols, Cond | C47: 5.05 | E47: 100 | F47: 1 | G47: 51 | H47: 1.46 | I47: 31.5 | J47: 7.8 | K47: 0 | L47: 0.2 | M47: 0.3 | N47: 0.76 | O47: 0.76 | P47: 0.61 | Q47: 1.74 | R47: 2.65 | S47: 14 | T47: 2.62 | U47: 38 | V47: 3.519 | W47: 169 | X47: 1.61 | Y47: 3.41 | Z47: 0.83 | AA47: 4.24 | AB47: 1.56 | AC47: 1.06 | AD47: 1.86 | AE47: 1.73 | AF47: 0.5 | AG47: 0.3 | AH47: 0.8 | AI47: 0.93 | AJ47: 0.4 | AK47: 1.33 | AL47: 0.86 | AM47: 0.31 | AN47: 1.16 | AR47: 0.2
B48: Menhaden Meal | C48: 12.5 | E48: 100 | F48: 1 | G48: 92 | H48: 2.82 | I48: 60.5 | J48: 9.4 | K48: 0.12 | L48: 0.7 | M48: 5.11 | N48: 2.88 | O48: 2.88 | P48: 0.325 | Q48: 0.77 | R48: 0.6 | S48: 33 | T48: 0.41 | U48: 147 | V48: 3.056 | W48: 0.6 | X48: 3.79 | Y48: 4.19 | Z48: 2.25 | AA48: 6.44 | AB48: 1.46 | AC48: 2.85 | AD48: 4.5 | AE48: 4.83 | AF48: 1.78 | AG48: 0.56 | AH48: 2.34 | AI48: 2.48 | AJ48: 1.98 | AK48: 4.46 | AL48: 2.5 | AM48: 0.68 | AN48: 3.23 | AR48: 0
B49: Gelatin By-Prod | C49: 7.85 | E49: 100 | F49: 1 | G49: 91 | H49: 2.36 | I49: 88 | J49: 0 | K49: 0 | L49: 0.5 | M49: 0 | N49: 0 | O49: 0 | P49: 0 | Q49: 0 | R49: 0 | S49: 0 | T49: 0 | U49: 0 | V49: 0 | W49: 0 | X49: 7.4 | Y49: 20 | Z49: 2.8 | AA49: 22.8 | AB49: 0.85 | AC49: 1.4 | AD49: 3.1 | AE49: 3.7 | AF49: 0.68 | AG49: 0.09 | AH49: 0.77 | AI49: 1.7 | AJ49: 0.26 | AK49: 1.96 | AL49: 1.3 | AM49: 0.09 | AN49: 1.8 | AR49: 0.17
B50: Meat Meal | C50: 9.36 | E50: 100 | F50: 1 | G50: 92 | H50: 2 | I50: 54.4 | J50: 7.1 | K50: 0.28 | L50: 8.7 | M50: 8.27 | N50: 4.1 | O50: 4.1 | P50: -0.035 | Q50: 0.6 | R50: 0.91 | S50: 10 | T50: 1.15 | U50: 103 | V50: 2.077 | W50: 0.3 | X50: 3.73 | Y50: 6.3 | Z50: 1.6 | AA50: 7.9 | AB50: 1.3 | AC50: 1.6 | AD50: 3.32 | AE50: 3 | AF50: 0.75 | AG50: 0.66 | AH50: 1.41 | AI50: 1.7 | AJ50: 0.84 | AK50: 2.54 | AL50: 1.74 | AM50: 0.36 | AN50: 2.3 | AR50: 0.64
B51: Meat+Bone | C51: 9 | E51: 100 | F51: 1 | G51: 93 | H51: 1.96 | I51: 50.4 | J51: 8.6 | K51: 0.36 | L51: 2.8 | M51: 10.3 | N51: 5.1 | O51: 5.1 | P51: -0.05 | Q51: 1.02 | R51: 0.74 | S51: 14 | T51: 0.72 | U51: 93 | V51: 1.996 | W51: 0.3 | X51: 3.62 | Y51: 6.79 | Z51: 1.85 | AA51: 8.64 | AB51: 0.9 | AC51: 1.4 | AD51: 2.8 | AE51: 2.6 | AF51: 0.65 | AG51: 0.25 | AH51: 0.9 | AI51: 1.5 | AJ51: 0.76 | AK51: 2.26 | AL51: 1.5 | AM51: 0.28 | AN51: 2 | AR51: 0
B52: Pearl Millet | C52: 5.41 | E52: 100 | F52: 1 | G52: 91 | H52: 2.554 | I52: 13.1 | J52: 4.3 | K52: 0.84 | L52: 4.3 | M52: 0.05 | N52: 0.32 | O52: 0.096 | P52: 0.071 | Q52: 0.43 | R52: 0.14 | S52: 31 | T52: 0.04 | U52: 13 | V52: 0.793 | W52: 0 | X52: 0.74 | Y52: 0.47 | Z52: 0.74 | AA52: 1.21 | AB52: 0.31 | AC52: 0.37 | AD52: 1.14 | AE52: 0.45 | AF52: 0.25 | AG52: 0.24 | AH52: 0.49 | AI52: 0.56 | AJ52: 0.35 | AK52: 0.91 | AL52: 0.48 | AM52: 0.08 | AN52: 0.49 | AR52: 0.11
B53: Oats | C53: 5.9 | E53: 100 | F53: 1 | G53: 89 | H53: 2.55 | I53: 11.4 | J53: 4.2 | K53: 1.47 | L53: 10.8 | M53: 0.06 | N53: 0.27 | O53: 0.12 | P53: 0.09 | Q53: 0.45 | R53: 0.11 | S53: 43 | T53: 0.08 | U53: 17 | V53: 0.946 | W53: 0.3 | X53: 0.79 | Y53: 0.5 | Z53: 0.4 | AA53: 0.9 | AB53: 0.24 | AC53: 0.52 | AD53: 0.89 | AE53: 0.5 | AF53: 0.18 | AG53: 0.22 | AH53: 0.3 | AI53: 0.59 | AJ53: 0.53 | AK53: 1.12 | AL53: 0.43 | AM53: 0.16 | AN53: 0.68 | AR53: 0
B54: Oat Hulls | C54: 1.85 | E54: 100 | F54: 1 | G54: 92 | H54: 0.4 | I54: 4.6 | J54: 1.4 | K54: 0 | L54: 28.7 | M54: 0.13 | N54: 0.1 | O54: 0.03 | P54: -0.035 | Q54: 0.53 | R54: 0.1 | S54: 14 | T54: 0.04 | U54: 0.1 | V54: 0.284 | W54: 1 | X54: 0.14 | Y54: 0.14 | Z54: 0.14 | AA54: 0.28 | AB54: 0.07 | AC54: 0.14 | AD54: 0.25 | AE54: 0.14 | AF54: 0.07 | AG54: 0.06 | AH54: 0.13 | AI54: 0.13 | AJ54: 0.14 | AK54: 0.27 | AL54: 0.13 | AM54: 0.07 | AN54: 0.2 | AR54: 0.39
B55: Peanut Meal-Slv | C55: 7.33 | E55: 100 | F55: 1 | G55: 92 | H55: 2.2 | I55: 49 | J55: 1.2 | K55: 0.24 | L55: 11.9 | M55: 0.2 | N55: 0.63 | O55: 0.36 | P55: 0.26 | Q55: 1.19 | R55: 0.03 | S55: 29 | T55: 0.07 | U55: 20 | V55: 2.396 | W55: 0.4 | X55: 5.33 | Y55: 2.67 | Z55: 2.25 | AA55: 4.92 | AB55: 1.07 | AC55: 1.55 | AD55: 2.97 | AE55: 1.54 | AF55: 0.54 | AG55: 0.64 | AH55: 1.18 | AI55: 2.41 | AJ55: 1.8 | AK55: 4.21 | AL55: 1.24 | AM55: 0.48 | AN55: 1.87 | AR55: 0.3
B56: Poultry BP Meal | C56: 10 | E56: 100 | F56: 1 | G56: 93 | H56: 2.67 | I56: 58 | J56: 13 | K56: 2.54 | L56: 2 | M56: 3 | N56: 1.7 | O56: 1.7 | P56: 0.2 | Q56: 0.3 | R56: 0.54 | S56: 11 | T56: 0.4 | U56: 120 | V56: 5.952 | W56: 1 | X56: 4 | Y56: 5.9 | Z56: 3.68 | AA56: 9.58 | AB56: 1.5 | AC56: 2 | AD56: 3.7 | AE56: 2.7 | AF56: 1 | AG56: 0.69 | AH56: 1.69 | AI56: 2.1 | AJ56: 0.54 | AK56: 2.64 | AL56: 2 | AM56: 0.53 | AN56: 2.6 | AR56: 0.44
B57: Feather Meal | C57: 10.87 | E57: 100 | F57: 1 | G57: 93 | H57: 2.36 | I57: 86.4 | J57: 3.3 | K57: 0 | L57: 1 | M57: 0.33 | N57: 0.55 | O57: 0.55 | P57: 0.385 | Q57: 0.31 | R57: 0.28 | S57: 21 | T57: 0.71 | U57: 54 | V57: 0.891 | W57: 0.2 | X57: 5.42 | Y57: 6.31 | Z57: 9.26 | AA57: 15.57 | AB57: 0.34 | AC57: 3.26 | AD57: 6.72 | AE57: 1.67 | AF57: 0.42 | AG57: 4 | AH57: 4.42 | AI57: 3.26 | AJ57: 6.31 | AK57: 9.57 | AL57: 3.43 | AM57: 0.5 | AN57: 5.57 | AR57: 0.42
B58: Rice Bran | C58: 4.51 | E58: 100 | F58: 1 | G58: 91 | H58: 2.1 | I58: 12.9 | J58: 13 | K58: 3.57 | L58: 11.4 | M58: 0.07 | N58: 1.5 | O58: 0.21 | P58: 0.175 | Q58: 1.73 | R58: 0.07 | S58: 324 | T58: 0.07 | U58: 30 | V58: 1.135 | W58: 2.2 | X58: 0.89 | Y58: 0.8 | Z58: 0.32 | AA58: 1.12 | AB58: 0.33 | AC58: 0.52 | AD58: 0.9 | AE58: 0.59 | AF58: 0.2 | AG58: 0.1 | AH58: 0.3 | AI58: 0.58 | AJ58: 0.68 | AK58: 1.26 | AL58: 0.48 | AM58: 0.15 | AN58: 0.75 | AR58: 1.67
B59: Safflower Ml-43 | C59: 6.07 | E59: 100 | F59: 1 | G59: 92 | H59: 1.921 | I59: 43 | J59: 1.3 | K59: 0 | L59: 13.5 | M59: 0.35 | N59: 1.29 | O59: 0.4 | P59: 0.225 | Q59: 1.1 | R59: 0.16 | S59: 39 | T59: 0.04 | U59: 33 | V59: 3.248 | W59: 1.6 | X59: 3.65 | Y59: 2.32 | Z59: 0 | AA59: 2.32 | AB59: 1.07 | AC59: 1.56 | AD59: 2.46 | AE59: 1.27 | AF59: 0.68 | AG59: 0.7 | AH59: 1.38 | AI59: 1.75 | AJ59: 1.07 | AK59: 2.82 | AL59: 1.3 | AM59: 0.59 | AN59: 2.33 | AR59: 0.34
B60: Sesame Meal | C60: 7.11 | E60: 100 | F60: 1 | G60: 93 | H60: 2.21 | I60: 43.8 | J60: 8.6 | K60: 1.9 | L60: 9.7 | M60: 1.99 | N60: 1.37 | O60: 0.26 | P60: -0.735 | Q60: 1.2 | R60: 0.06 | S60: 48 | T60: 0.04 | U60: 100 | V60: 1.536 | W60: 0 | X60: 4.93 | Y60: 4.22 | Z60: 2.96 | AA60: 7.18 | AB60: 1.09 | AC60: 2.12 | AD60: 3.33 | AE60: 1.3 | AF60: 1.2 | AG60: 0.59 | AH60: 1.79 | AI60: 2.22 | AJ60: 2 | AK60: 4.22 | AL60: 1.65 | AM60: 0.8 | AN60: 2.41 | AR60: 0
B61: Milo, >10% Prot | C61: 6.16 | E61: 100 | F61: 1 | G61: 88 | H61: 3.212 | I61: 11 | J61: 2.1 | K61: 0.82 | L61: 2.3 | M61: 0.04 | N61: 0.32 | O61: 0.096 | P61: 0.076 | Q61: 0.33 | R61: 0 | S61: 0 | T61: 0.01 | U61: 0 | V61: 0 | W61: 0 | X61: 0.35 | Y61: 0.32 | Z61: 0.45 | AA61: 0.77 | AB61: 0.23 | AC61: 0.43 | AD61: 1.37 | AE61: 0.22 | AF61: 0.15 | AG61: 0.11 | AH61: 0.26 | AI61: 0.52 | AJ61: 0.17 | AK61: 0.69 | AL61: 0.33 | AM61: 0.09 | AN61: 0.54 | AR61: 0.22
B62: Soybean Mill Fd | C62: 1.9 | E62: 100 | F62: 1 | G62: 89 | H62: 0.72 | I62: 13.3 | J62: 1.6 | K62: 0 | L62: 33 | M62: 0.37 | N62: 0.19 | O62: 0.057 | P62: -0.128 | Q62: 1.5 | R62: 0 | S62: 29 | T62: 0.25 | U62: 0 | V62: 0.64 | W62: 0.3 | X62: 0.94 | Y62: 0.4 | Z62: 0 | AA62: 0.4 | AB62: 0.18 | AC62: 0.4 | AD62: 0.57 | AE62: 0.48 | AF62: 0.1 | AG62: 0.21 | AH62: 0.31 | AI62: 0.37 | AJ62: 0.23 | AK62: 0.3 | AL62: 0.1 | AM62: 0.1 | AN62: 0.37 | AR62: 0.3
B63: Isolated Soy Prot. | C63: 50 | E63: 100 | F63: 1 | G63: 93 | H63: 3.5 | I63: 84.1 | J63: 0.4 | K63: 0 | L63: 0.2 | M63: 0.02 | N63: 0.8 | O63: 0.32 | P63: 0.31 | Q63: 0.18 | R63: 0.02 | S63: 1 | T63: 0.07 | U63: 23 | V63: 0.002 | W63: 2.5 | X63: 6.7 | Y63: 3.3 | Z63: 5.3 | AA63: 8.6 | AB63: 2.1 | AC63: 4.6 | AD63: 6.6 | AE63: 5.5 | AF63: 0.81 | AG63: 0.49 | AH63: 1.3 | AI63: 4.3 | AJ63: 3.1 | AK63: 7.4 | AL63: 3.3 | AM63: 0.81 | AN63: 4.4 | AR63: 0.27
B64: Heated Soybeans | C64: 8.97 | E64: 100 | F64: 1 | G64: 90 | H64: 3.3 | I64: 37 | J64: 18 | K64: 8.46 | L64: 5.5 | M64: 0.25 | N64: 0.58 | O64: 0.174 | P64: 0.049 | Q64: 1.61 | R64: 0.03 | S64: 30 | T64: 0.03 | U64: 16 | V64: 2.86 | W64: 4.2 | X64: 2.8 | Y64: 2 | Z64: 2.17 | AA64: 4.17 | AB64: 0.89 | AC64: 2 | AD64: 2.8 | AE64: 2.4 | AF64: 0.51 | AG64: 0.64 | AH64: 1.15 | AI64: 1.8 | AJ64: 1.2 | AK64: 3 | AL64: 1.5 | AM64: 0.55 | AN64: 1.8 | AR64: 0.32
B65: Soybean Meal -48% | C65: 8.35 | E65: 100 | F65: 1 | G65: 90 | H65: 2.44 | I65: 48.5 | J65: 1 | K65: 0.4 | L65: 3.9 | M65: 0.27 | N65: 0.62 | O65: 0.24 | P65: =O65-(1/P$3*M65) -> 0.105 | Q65: 2.02 | R65: 0.05 | S65: 43 | T65: 0.03 | U65: 45 | V65: 2.731 | W65: 3.6 | X65: 3.48 | Y65: 2.05 | Z65: 2.48 | AA65: 5.53 | AB65: 1.28 | AC65: 2.12 | AD65: 3.74 | AE65: 2.96 | AF65: 0.67 | AG65: 0.72 | AH65: 1.39 | AI65: 2.34 | AJ65: 1.95 | AK65: 4.29 | AL65: 1.87 | AM65: 0.74 | AN65: 2.22 | AR65: 1.45
B66: Sunflower Ml-45% | C66: 7.1 | E66: 100 | F66: 1 | G66: 93 | H66: 2.32 | I66: 45.4 | J66: 2.9 | K66: 1.59 | L66: 12.2 | M66: 0.37 | N66: 1 | O66: 0.3 | P66: 0.115 | Q66: 1 | R66: 0.1 | S66: 23 | T66: 2 | U66: 0 | V66: 2.894 | W66: 0 | X66: 3.5 | Y66: 2.69 | Z66: 1.75 | AA66: 4.44 | AB66: 1.39 | AC66: 2.78 | AD66: 3.88 | AE66: 1.7 | AF66: 0.72 | AG66: 0.71 | AH66: 1.43 | AI66: 2.93 | AJ66: 1.19 | AK66: 4.12 | AL66: 2.13 | AM66: 0.71 | AN66: 3.24 | AR66: 0.48
B67: Wheat Bran | C67: 3.32 | E67: 100 | F67: 1 | G67: 89 | H67: 1.3 | I67: 15.7 | J67: 3 | K67: 1.7 | L67: 11 | M67: 0.14 | N67: 1.15 | O67: 0.34 | P67: 0.27 | Q67: 1.19 | R67: 0.06 | S67: 113 | T67: 0.05 | U67: 133 | V67: 1.88 | W67: 1.2 | X67: 0.98 | Y67: 0.9 | Z67: 0.9 | AA67: 1.8 | AB67: 0.34 | AC67: 0.59 | AD67: 0.91 | AE67: 0.59 | AF67: 0.17 | AG67: 0.25 | AH67: 0.42 | AI67: 0.49 | AJ67: 0.4 | AK67: 0.89 | AL67: 0.42 | AM67: 0.3 | AN67: 0.73 | AR67: 0.37
B68: Wheat Middlings | C68: 4.35 | E68: 100 | F68: 1 | G68: 88 | H68: 1.8 | I68: 16 | J68: 3 | K68: 1.87 | L68: 7.5 | M68: 0.12 | N68: 0.9 | O68: 0.23 | P68: 0.17 | Q68: 0.99 | R68: 0.03 | S68: 118 | T68: 0.12 | U68: 150 | V68: 1.439 | W68: 0.8 | X68: 1.15 | Y68: 0.63 | Z68: 0.75 | AA68: 1.38 | AB68: 0.37 | AC68: 0.58 | AD68: 1.07 | AE68: 0.69 | AF68: 0.21 | AG68: 0.32 | AH68: 0.53 | AI68: 0.64 | AJ68: 0.45 | AK68: 1.09 | AL68: 0.49 | AM68: 0.2 | AN68: 0.71 | AR68: 0.11
B69: Wheat, Red W. | C69: 5.78 | E69: 100 | F69: 1 | G69: 87 | H69: 2.8 | I69: 14.1 | J69: 1.9 | K69: 0.59 | L69: 2.4 | M69: 0.05 | N69: 0.37 | O69: 0.11 | P69: 0.085 | Q69: 0.45 | R69: 0.05 | S69: 32 | T69: 0.04 | U69: 31 | V69: 1.09 | W69: 0.4 | X69: 0.58 | Y69: 0.72 | Z69: 0.63 | AA69: 1.35 | AB69: 0.22 | AC69: 0.58 | AD69: 0.94 | AE69: 0.4 | AF69: 0.19 | AG69: 0.26 | AH69: 0.45 | AI69: 0.71 | AJ69: 0.43 | AK69: 1.14 | AL69: 0.37 | AM69: 0.18 | AN69: 0.63 | AR69: 0.11
B70: Wheat, White | C70: 6.2 | E70: 100 | F70: 1 | G70: 89 | H70: 3.12 | I70: 10.2 | J70: 1.8 | K70: 0 | L70: 2.4 | M70: 0.05 | N70: 0.31 | O70: 0.093 | P70: 0.068 | Q70: 0.4 | R70: 0.08 | S70: 24 | T70: 0.04 | U70: 28 | V70: 1.002 | W70: 0.4 | X70: 0.4 | Y70: 0.49 | Z70: 0.55 | AA70: 1.04 | AB70: 0.2 | AC70: 0.42 | AD70: 0.59 | AE70: 0.31 | AF70: 0.15 | AG70: 0.22 | AH70: 0.37 | AI70: 0.45 | AJ70: 0.39 | AK70: 0.84 | AL70: 0.32 | AM70: 0.12 | AN70: 0.44 | AR70: 0.34
B71: Whey, Dehydrated | C71: 4.71 | E71: 100 | F71: 1 | G71: 93 | H71: 1.9 | I71: 12 | J71: 0.8 | K71: 0.01 | L71: 0.2 | M71: 0.97 | N71: 0.76 | O71: 0.228 | P71: -0.257 | Q71: 1.05 | R71: 0.07 | S71: 6 | T71: 0.48 | U71: 3 | V71: 1.369 | W71: 0.8 | X71: 0.34 | Y71: 0.3 | Z71: 0.32 | AA71: 0.62 | AB71: 0.18 | AC71: 0.82 | AD71: 1.19 | AE71: 0.97 | AF71: 0.19 | AG71: 0.3 | AH71: 0.49 | AI71: 0.33 | AJ71: 0.25 | AK71: 0.58 | AL71: 0.89 | AM71: 0.19 | AN71: 0.68 | AR71: 1.05
B72: Dried Brewers Yeast | C72: 7.42 | E72: 100 | F72: 1 | G72: 93 | H72: 1.99 | I72: 44.4 | J72: 1 | K72: 0 | L72: 2.7 | M72: 0.12 | N72: 1.4 | O72: 0.42 | P72: 0.36 | Q72: 1.7 | R72: 0.12 | S72: 5 | T72: 0.07 | U72: 39 | V72: 3.984 | W72: 9.9 | X72: 2.19 | Y72: 2.09 | Z72: 0 | AA72: 2.09 | AB72: 1.07 | AC72: 2.14 | AD72: 3.19 | AE72: 3.23 | AF72: 0.7 | AG72: 0.5 | AH72: 1.2 | AI72: 1.81 | AJ72: 1.49 | AK72: 3.3 | AL72: 2.06 | AM72: 0.49 | AN72: 2.32 | AR72: 0
B73: Anml-Pltry Fat | C73: 14.75 | E73: 100 | F73: 1 | G73: 100 | H73: 8.25 | I73: 0 | J73: 100 | K73: 11.8 | L73: 0 | M73: 0 | N73: 0 | O73: 0 | P73: 0 | Q73: 0 | R73: 0 | S73: 0 | T73: 0 | U73: 0 | V73: 0 | W73: 0 | X73: 0 | Y73: 0 | Z73: 0 | AA73: 0 | AB73: 0 | AC73: 0 | AD73: 0 | AE73: 0 | AF73: 0 | AG73: 0 | AH73: 0 | AI73: 0 | AJ73: 0 | AK73: 0 | AL73: 0 | AM73: 0 | AN73: 0 | AR73: 0
B74: Tallow | C74: 13.94 | E74: 100 | F74: 1 | G74: 100 | H74: 7.8 | I74: 0 | J74: 100 | K74: 3.1 | L74: 0 | M74: 0 | N74: 0 | O74: 0 | P74: 0 | Q74: 0 | R74: 0 | S74: 0 | T74: 0 | U74: 0 | V74: 0 | W74: 0 | X74: 0 | Y74: 0 | Z74: 0 | AA74: 0 | AB74: 0 | AC74: 0 | AD74: 0 | AE74: 0 | AF74: 0 | AG74: 0 | AH74: 0 | AI74: 0 | AJ74: 0 | AK74: 0 | AL74: 0 | AM74: 0 | AN74: 0 | AR74: 0
B75: Anml-Veg Fat | C75: 15.11 | E75: 100 | F75: 1 | G75: 100 | H75: 8.45 | I75: 0 | J75: 100 | K75: 20.6 | L75: 0 | M75: 0 | N75: 0 | O75: 0 | P75: 0 | Q75: 0 | R75: 0 | S75: 0 | T75: 0 | U75: 0 | V75: 0 | W75: 0 | X75: 0 | Y75: 0 | Z75: 0 | AA75: 0 | AB75: 0 | AC75: 0 | AD75: 0 | AE75: 0 | AF75: 0 | AG75: 0 | AH75: 0 | AI75: 0 | AJ75: 0 | AK75: 0 | AL75: 0 | AM75: 0 | AN75: 0 | AR75: 0
B76: Canola Oil | C76: 15.74 | E76: 100 | F76: 1 | G76: 100 | H76: 8.8 | I76: 0 | J76: 100 | K76: 22.1 | L76: 0 | M76: 0 | N76: 0 | O76: 0 | P76: 0 | Q76: 0 | R76: 0 | S76: 0 | T76: 0 | U76: 0 | V76: 0 | W76: 0 | X76: 0 | Y76: 0 | Z76: 0 | AA76: 0 | AB76: 0 | AC76: 0 | AD76: 0 | AE76: 0 | AF76: 0 | AG76: 0 | AH76: 0 | AI76: 0 | AJ76: 0 | AK76: 0 | AL76: 0 | AM76: 0 | AN76: 0 | AR76: 0
B77: Coconut Oil | C77: 12.65 | E77: 100 | F77: 1 | G77: 100 | H77: 0 | I77: 0 | J77: 100 | K77: 1.8 | L77: 0 | M77: 0 | N77: 0 | O77: 0 | P77: 0 | Q77: 0 | R77: 0 | S77: 0 | T77: 0 | U77: 0 | V77: 0 | W77: 0 | X77: 0 | Y77: 0 | Z77: 0 | AA77: 0 | AB77: 0 | AC77: 0 | AD77: 0 | AE77: 0 | AF77: 0 | AG77: 0 | AH77: 0 | AI77: 0 | AJ77: 0 | AK77: 0 | AL77: 0 | AM77: 0 | AN77: 0 | AR77: 0
B78: Corn Oil | C78: 15.74 | E78: 100 | F78: 1 | G78: 100 | H78: 8.8 | I78: 0 | J78: 100 | K78: 58 | L78: 0 | M78: 0 | N78: 0 | O78: 0 | P78: 0 | Q78: 0 | R78: 0 | S78: 0 | T78: 0 | U78: 0 | V78: 0 | W78: 0 | X78: 0 | Y78: 0 | Z78: 0 | AA78: 0 | AB78: 0 | AC78: 0 | AD78: 0 | AE78: 0 | AF78: 0 | AG78: 0 | AH78: 0 | AI78: 0 | AJ78: 0 | AK78: 0 | AL78: 0 | AM78: 0 | AN78: 0 | AR78: 0
B79: Cottonseed Oil | C79: 15.74 | E79: 100 | F79: 1 | G79: 100 | H79: 8.8 | I79: 0 | J79: 100 | K79: 51.5 | L79: 0 | M79: 0 | N79: 0 | O79: 0 | P79: 0 | Q79: 0 | R79: 0 | S79: 0 | T79: 0 | U79: 0 | V79: 0 | W79: 0 | X79: 0 | Y79: 0 | Z79: 0 | AA79: 0 | AB79: 0 | AC79: 0 | AD79: 0 | AE79: 0 | AF79: 0 | AG79: 0 | AH79: 0 | AI79: 0 | AJ79: 0 | AK79: 0 | AL79: 0 | AM79: 0 | AN79: 0 | AR79: 0
B80: Palm Oil | C80: 14.84 | E80: 100 | F80: 1 | G80: 100 | H80: 8.3 | I80: 0 | J80: 100 | K80: 9.1 | L80: 0 | M80: 0 | N80: 0 | O80: 0 | P80: 0 | Q80: 0 | R80: 0 | S80: 0 | T80: 0 | U80: 0 | V80: 0 | W80: 0 | X80: 0 | Y80: 0 | Z80: 0 | AA80: 0 | AB80: 0 | AC80: 0 | AD80: 0 | AE80: 0 | AF80: 0 | AG80: 0 | AH80: 0 | AI80: 0 | AJ80: 0 | AK80: 0 | AL80: 0 | AM80: 0 | AN80: 0 | AR80: 0
B81: Peanut Oil | C81: 15.74 | E81: 100 | F81: 1 | G81: 100 | H81: 8.8 | I81: 0 | J81: 100 | K81: 32 | L81: 0 | M81: 0 | N81: 0 | O81: 0 | P81: 0 | Q81: 0 | R81: 0 | S81: 0 | T81: 0 | U81: 0 | V81: 0 | W81: 0 | X81: 0 | Y81: 0 | Z81: 0 | AA81: 0 | AB81: 0 | AC81: 0 | AD81: 0 | AE81: 0 | AF81: 0 | AG81: 0 | AH81: 0 | AI81: 0 | AJ81: 0 | AK81: 0 | AL81: 0 | AM81: 0 | AN81: 0 | AR81: 0
B82: Poultry Fat | C82: 14.66 | E82: 100 | F82: 1 | G82: 100 | H82: 8.2 | I82: 0 | J82: 100 | K82: 19.5 | L82: 0 | M82: 0 | N82: 0 | O82: 0 | P82: 0 | Q82: 0 | R82: 0 | S82: 0 | T82: 0 | U82: 0 | V82: 0 | W82: 0 | X82: 0 | Y82: 0 | Z82: 0 | AA82: 0 | AB82: 0 | AC82: 0 | AD82: 0 | AE82: 0 | AF82: 0 | AG82: 0 | AH82: 0 | AI82: 0 | AJ82: 0 | AK82: 0 | AL82: 0 | AM82: 0 | AN82: 0 | AR82: 0
B83: Safflower Oil | C83: 15.74 | E83: 100 | F83: 1 | G83: 100 | H83: 8.8 | I83: 0 | J83: 100 | K83: 74.1 | L83: 0 | M83: 0 | N83: 0 | O83: 0 | P83: 0 | Q83: 0 | R83: 0 | S83: 0 | T83: 0 | U83: 0 | V83: 0 | W83: 0 | X83: 0 | Y83: 0 | Z83: 0 | AA83: 0 | AB83: 0 | AC83: 0 | AD83: 0 | AE83: 0 | AF83: 0 | AG83: 0 | AH83: 0 | AI83: 0 | AJ83: 0 | AK83: 0 | AL83: 0 | AM83: 0 | AN83: 0 | AR83: 0
B84: Soybean OiL | C84: 74 | E84: 100 | F84: 1 | G84: 100 | H84: 8.8 | I84: 0 | J84: 100 | K84: 51 | L84: 0 | M84: 0 | N84: 0 | O84: 0 | P84: 0 | Q84: 0 | R84: 0 | S84: 0 | T84: 0 | U84: 0 | V84: 0 | W84: 0 | X84: 0 | Y84: 0 | Z84: 0 | AA84: 0 | AB84: 0 | AC84: 0 | AD84: 0 | AE84: 0 | AF84: 0 | AG84: 0 | AH84: 0 | AI84: 0 | AJ84: 0 | AK84: 0 | AL84: 0 | AM84: 0 | AN84: 0 | AR84: 0
B85: Sunflower oiL | C85: 15.74 | E85: 100 | F85: 1 | G85: 100 | H85: 8.8 | I85: 0 | J85: 100 | K85: 65.7 | L85: 0 | M85: 0 | N85: 0 | O85: 0 | P85: 0 | Q85: 0 | R85: 0 | S85: 0 | T85: 0 | U85: 0 | V85: 0 | W85: 0 | X85: 0 | Y85: 0 | Z85: 0 | AA85: 0 | AB85: 0 | AC85: 0 | AD85: 0 | AE85: 0 | AF85: 0 | AG85: 0 | AH85: 0 | AI85: 0 | AJ85: 0 | AK85: 0 | AL85: 0 | AM85: 0 | AN85: 0 | AR85: 0
B86: Corn Starch | C86: 18 | E86: 100 | F86: 1 | G86: 100 | H86: 3.65 | I86: 0 | J86: 0.1 | K86: 0 | L86: 0 | M86: 0 | N86: 0 | O86: 0 | P86: 0 | Q86: 0 | R86: 0 | S86: 0 | T86: 0 | U86: 0 | V86: 0 | W86: 0 | X86: 0 | Y86: 0 | Z86: 0 | AA86: 0 | AB86: 0 | AC86: 0 | AD86: 0 | AE86: 0 | AF86: 0 | AG86: 0 | AH86: 0 | AI86: 0 | AJ86: 0 | AK86: 0 | AL86: 0 | AM86: 0 | AN86: 0 | AR86: 0
B87: Glucose | C87: 20 | E87: 100 | F87: 1 | G87: 100 | H87: 3.63 | I87: 0 | J87: 0 | K87: 0 | L87: 0 | M87: 0 | N87: 0 | O87: 0 | P87: 0 | Q87: 0 | R87: 0 | S87: 0 | T87: 0 | U87: 0 | V87: 0 | W87: 0 | X87: 0 | Y87: 0 | Z87: 0 | AA87: 0 | AB87: 0 | AC87: 0 | AD87: 0 | AE87: 0 | AF87: 0 | AG87: 0 | AH87: 0 | AI87: 0 | AJ87: 0 | AK87: 0 | AL87: 0 | AM87: 0 | AN87: 0 | AR87: 0
B88: Bone Meal | C88: 1.19 | E88: 100 | F88: 1 | G88: 0 | H88: 0 | I88: 0 | J88: 0 | K88: 0 | L88: 0 | M88: 29.8 | N88: 12.5 | O88: 0 | P88: -14.9 | Q88: 0.2 | R88: 0 | S88: 0 | T88: 0.04 | U88: 100 | V88: 0 | W88: 0 | X88: 0 | Y88: 0 | Z88: 0 | AA88: 0 | AB88: 0 | AC88: 0 | AD88: 0 | AE88: 0 | AF88: 0 | AG88: 0 | AH88: 0 | AI88: 0 | AJ88: 0 | AK88: 0 | AL88: 0 | AM88: 0 | AN88: 0 | AR88: 0
B89: Calcium CO3 | C89: 1.53 | E89: 100 | F89: 1 | G89: 0 | H89: 0 | I89: 0 | J89: 0 | K89: 0 | L89: 0 | M89: 38 | N89: 0 | O89: 0 | P89: -19 | Q89: 0.06 | R89: 0 | S89: 300 | T89: 0.02 | U89: 0 | V89: 0 | W89: 0 | X89: 0 | Y89: 0 | Z89: 0 | AA89: 0 | AB89: 0 | AC89: 0 | AD89: 0 | AE89: 0 | AF89: 0 | AG89: 0 | AH89: 0 | AI89: 0 | AJ89: 0 | AK89: 0 | AL89: 0 | AM89: 0 | AN89: 0 | AR89: 0
B90: Dical. Phos. | C90: 11.75 | E90: 100 | F90: 1 | G90: 0 | H90: 0 | I90: 0 | J90: 0 | K90: 0 | L90: 0 | M90: 21.3 | N90: 18.7 | O90: 0 | P90: -10.65 | Q90: 0.1 | R90: 0.013 | S90: 300 | T90: 0.06 | U90: 100 | V90: 0 | W90: 0 | X90: 0 | Y90: 0 | Z90: 0 | AA90: 0 | AB90: 0 | AC90: 0 | AD90: 0 | AE90: 0 | AF90: 0 | AG90: 0 | AH90: 0 | AI90: 0 | AJ90: 0 | AK90: 0 | AL90: 0 | AM90: 0 | AN90: 0 | AR90: 0
B91: Limestone | C91: 1.525 | E91: 100 | F91: 1 | G91: 0 | H91: 0 | I91: 0 | J91: 0 | K91: 0 | L91: 0 | M91: 38 | N91: 0 | O91: 0 | P91: -19 | Q91: 0.1 | R91: 0.03 | S91: 0 | T91: 0.05 | U91: 0 | V91: 0 | W91: 0 | X91: 0 | Y91: 0 | Z91: 0 | AA91: 0 | AB91: 0 | AC91: 0 | AD91: 0 | AE91: 0 | AF91: 0 | AG91: 0 | AH91: 0 | AI91: 0 | AJ91: 0 | AK91: 0 | AL91: 0 | AM91: 0 | AN91: 0 | AR91: 0
B92: Oyster Shells | C92: 1.6 | E92: 100 | F92: 1 | G92: 0 | H92: 0 | I92: 0 | J92: 0 | K92: 0 | L92: 0 | M92: 38 | N92: 0.1 | O92: 0 | P92: -19 | Q92: 0.1 | R92: 0.01 | S92: 100 | T92: 0.2 | U92: 0 | V92: 0 | W92: 0 | X92: 0 | Y92: 0 | Z92: 0 | AA92: 0 | AB92: 0 | AC92: 0 | AD92: 0 | AE92: 0 | AF92: 0 | AG92: 0 | AH92: 0 | AI92: 0 | AJ92: 0 | AK92: 0 | AL92: 0 | AM92: 0 | AN92: 0 | AR92: 0
B93: Defluor. Phos. | C93: 12.75 | E93: 100 | F93: 1 | G93: 0 | H93: 0 | I93: 0 | J93: 0 | K93: 0 | L93: 0 | M93: 32 | N93: 18 | O93: 0 | P93: -16 | Q93: 0.1 | R93: 0 | S93: 200 | T93: 4.9 | U93: 60 | V93: 0 | W93: 0 | X93: 0 | Y93: 0 | Z93: 0 | AA93: 0 | AB93: 0 | AC93: 0 | AD93: 0 | AE93: 0 | AF93: 0 | AG93: 0 | AH93: 0 | AI93: 0 | AJ93: 0 | AK93: 0 | AL93: 0 | AM93: 0 | AN93: 0 | AR93: 0
B94: Rock Phosphate | C94: 14.43 | E94: 100 | F94: 1 | G94: 0 | H94: 0 | I94: 0 | J94: 0 | K94: 0 | L94: 0 | M94: 36 | N94: 14 | O94: 0 | P94: -18 | Q94: 0 | R94: 0 | S94: 0 | T94: 0.3 | U94: 0 | V94: 0 | W94: 0 | X94: 0 | Y94: 0 | Z94: 0 | AA94: 0 | AB94: 0 | AC94: 0 | AD94: 0 | AE94: 0 | AF94: 0 | AG94: 0 | AH94: 0 | AI94: 0 | AJ94: 0 | AK94: 0 | AL94: 0 | AM94: 0 | AN94: 0 | AR94: 0
B95: Soft Rock Phos. | C95: 13.75 | E95: 100 | F95: 1 | G95: 0 | H95: 0 | I95: 0 | J95: 0 | K95: 0 | L95: 0 | M95: 17.5 | N95: 9.5 | O95: 0 | P95: -8.75 | Q95: 0.3 | R95: 0.007 | S95: 39 | T95: 0.15 | U95: 90 | V95: 0 | W95: 0 | X95: 0 | Y95: 0 | Z95: 0 | AA95: 0 | AB95: 0 | AC95: 0 | AD95: 0 | AE95: 0 | AF95: 0 | AG95: 0 | AH95: 0 | AI95: 0 | AJ95: 0 | AK95: 0 | AL95: 0 | AM95: 0 | AN95: 0 | AR95: 0
B96: Common Salt | C96: 2.775 | E96: 100 | F96: 1 | G96: 0 | H96: 0 | I96: 0 | J96: 0 | K96: 0 | L96: 0 | M96: 0.3 | N96: 0 | O96: 0 | P96: -0.15 | Q96: 0 | R96: 60 | S96: 0 | T96: 39 | U96: 0 | V96: 0 | W96: 0 | X96: 0 | Y96: 0 | Z96: 0 | AA96: 0 | AB96: 0 | AC96: 0 | AD96: 0 | AE96: 0 | AF96: 0 | AG96: 0 | AH96: 0 | AI96: 0 | AJ96: 0 | AK96: 0 | AL96: 0 | AM96: 0 | AN96: 0 | AR96: 44
B97: Vitamin Premix | C97: 168 | E97: 100 | F97: 1 | G97: 100 | H97: 0 | I97: 0 | J97: 0 | K97: 0 | L97: 0 | M97: 0 | N97: 0 | O97: 0 | P97: =O97-(1/P$3*M97) -> 0 | Q97: 0 | R97: 0 | V97: 88 | W97: 220 | X97: 0 | Y97: 0 | Z97: 0 | AA97: 0 | AB97: 0 | AC97: 0 | AD97: 0 | AE97: 0 | AF97: 0 | AG97: 0 | AH97: 0 | AI97: 0 | AJ97: 0 | AK97: 0 | AL97: 0 | AM97: 0 | AN97: 0 | AR97: 0
B98: Mineral Premix | C98: 26 | E98: 100 | F98: 1 | G98: 100 | H98: 0 | I98: 0 | J98: 0 | K98: 0 | L98: 0 | M98: 0 | N98: 0 | O98: 0 | P98: 0 | Q98: 0 | R98: 0 | S98: 150000 | T98: 0 | U98: 120000 | V98: 0 | W98: 0 | X98: 0 | Y98: 0 | Z98: 0 | AA98: 0 | AB98: 0 | AC98: 0 | AD98: 0 | AE98: 0 | AF98: 0 | AG98: 0 | AH98: 0 | AI98: 0 | AJ98: 0 | AK98: 0 | AL98: 0 | AM98: 0 | AN98: 0 | AR98: 0
B99: DL-Methionine | C99: 100 | E99: 100 | F99: 1 | G99: 100 | H99: 3.606 | I99: 57.52 | J99: 0 | K99: 0 | L99: 0 | M99: 0 | N99: 0 | O99: 0 | P99: 0 | Q99: 0 | R99: 0 | S99: 0 | T99: 0 | U99: 0 | V99: 0 | W99: 0 | X99: 0 | Y99: 0 | Z99: 0 | AA99: 0 | AB99: 0 | AC99: 0 | AD99: 0 | AE99: 0 | AF99: 98 | AG99: 0 | AH99: 98 | AI99: 0 | AJ99: 0 | AK99: 0 | AL99: 0 | AM99: 0 | AN99: 0 | AR99: 0
B100: Methionine MHA | C100: 88 | E100: 100 | F100: 1 | G100: 0 | H100: 3.17 | I100: 0 | J100: 0 | K100: 0 | L100: 0 | M100: 0 | N100: 0 | O100: 0 | P100: 0 | Q100: 0 | R100: 0 | S100: 0 | T100: 0 | U100: 0 | V100: 0 | W100: 0 | X100: 0 | Y100: 0 | Z100: 0 | AA100: 0 | AB100: 0 | AC100: 0 | AD100: 0 | AE100: 0 | AF100: 86.24 | AG100: 0 | AH100: 86.24 | AI100: 0 | AJ100: 0 | AK100: 0 | AL100: 0 | AM100: 0 | AN100: 0 | AR100: 0
B101: L-Lysine HCl | C101: 110 | E101: 100 | F101: 1 | G101: 0 | H101: 3.607 | I101: 94.4 | J101: 0 | K101: 0 | L101: 0 | M101: 0 | N101: 0 | O101: 0 | P101: 0 | Q101: 0 | R101: 19.43 | S101: 0 | T101: 0 | U101: 0 | V101: 0 | W101: 0 | X101: 0 | Y101: 0 | Z101: 0 | AA101: 0 | AB101: 0 | AC101: 0 | AD101: 0 | AE101: 74.42 | AF101: 0 | AG101: 0 | AH101: 0 | AI101: 0 | AJ101: 0 | AK101: 0 | AL101: 0 | AM101: 0 | AN101: 0 | AR101: 0
B102: Choline Cl -70% | C102: 90 | E102: 100 | F102: 1 | G102: 0 | H102: 0 | I102: 0 | J102: 0 | K102: 0 | L102: 0 | M102: 0 | N102: 0 | O102: 0 | P102: 0 | Q102: 0 | R102: 0 | S102: 0 | T102: 0 | U102: 0 | V102: 607.5 | W102: 0 | X102: 0 | Y102: 0 | Z102: 0 | AA102: 0 | AB102: 0 | AC102: 0 | AD102: 0 | AE102: 0 | AF102: 0 | AG102: 0 | AH102: 0 | AI102: 0 | AJ102: 0 | AK102: 0 | AL102: 0 | AM102: 0 | AN102: 0 | AR102: 0
B103: CuSO4 | C103: 320 | E103: 100 | F103: 1 | G103: 0 | H103: 0 | I103: 0 | J103: 0 | K103: 0 | L103: 0 | M103: 0 | N103: 0 | O103: 0 | P103: 0 | Q103: 0 | R103: 0 | S103: 0 | T103: 0 | U103: 0 | V103: 0 | W103: 0 | X103: 0 | Y103: 0 | Z103: 0 | AA103: 0 | AB103: 0 | AC103: 0 | AD103: 0 | AE103: 0 | AF103: 0 | AG103: 0 | AH103: 0 | AI103: 0 | AJ103: 0 | AK103: 0 | AL103: 0 | AM103: 0 | AN103: 0 | AR103: 0
B104: Coccidiostat | C104: 320 | E104: 100 | F104: 1 | G104: 0 | H104: 0 | I104: 0 | J104: 0 | K104: 0 | L104: 0 | M104: 0 | N104: 0 | O104: 0 | P104: 0 | Q104: 0 | R104: 0 | S104: 0 | T104: 0 | U104: 0 | V104: 0 | W104: 0 | X104: 0 | Y104: 0 | Z104: 0 | AA104: 0 | AB104: 0 | AC104: 0 | AD104: 0 | AE104: 0 | AF104: 0 | AG104: 0 | AH104: 0 | AI104: 0 | AJ104: 0 | AK104: 0 | AL104: 0 | AM104: 0 | AN104: 0 | AR104: 0
B105: Antibiotic | C105: 320 | E105: 100 | F105: 1 | G105: 0 | H105: 0 | I105: 0 | J105: 0 | K105: 0 | L105: 0 | M105: 0 | N105: 0 | O105: 0 | P105: 0 | Q105: 0 | R105: 0 | S105: 0 | T105: 0 | U105: 0 | V105: 0 | W105: 0 | X105: 0 | Y105: 0 | Z105: 0 | AA105: 0 | AB105: 0 | AC105: 0 | AD105: 0 | AE105: 0 | AF105: 0 | AG105: 0 | AH105: 0 | AI105: 0 | AJ105: 0 | AK105: 0 | AL105: 0 | AM105: 0 | AN105: 0

Sheet Nutrients
B1: WUFFF DA
C2: Current | G2: Stored
C3: Specification | G3: Specidications
C4: Broiler Starter | F4: Broiler Starter | H4: Broiler Grower | J4: Broiler Finisher | L4: Pullet 0-6 wks | N4: Pullet 6-12 wks | P4: Pullet 12-18 wks | R4: Pullet 18 wks-first egg | T4: Layer 80g/day | V4: Layer 100g/day | X4: Layer 120g/day | Z4: Turkeys 0-3 wks | AB4: Turkeys 3-6 wks | AD4: Turkeys 6-9 wks | AF4: Turkeys 9-12 wks | AH4: Turkeys 12-15 wks (males) | AJ4: Turkeys 12-14 wks (females) | AL4: Turkeys 15-18 wks (males) | AN4: Turkeys 14-16 wks (females) | AP4: Turkey-Breeders-Holding | AR4: Turkey Breeders-Laying | AT4: Japanese Quail-Starting/Growing | AV4: Japanese Quail-Breeding | AX4: Ducks 0-2 wks | AZ4: Ducks 2-7 wks | BB4: Ducks-Breeding | BD4: Grower Pig 3-5kg | BF4: Grower Pig 5-10kg | BH4: Grower Pig 10-20kg | BJ4: Grower Pig 20-50 kg | BL4: Grower Pig 50-80 kg | BN4: Finisher Pig 80-120 kg | BP4: Phase I Starter Pig | BR4: Phase II Starter Pig | BT4: Phase III Starter Pig | BV4: Sow Gestation | BX4: Sow Lactation | BZ4: M Ducks | CA4: (0-28d) | CB4: M Ducks | CC4: (56-84d) | CD4: Guineas | CE4: (0-28d) | CF4: Guineas | CG4: (28-56d) | CH4: Guineas | CI4: (56-84d) | CJ4: Goslings | CK4: (0-21d) | CL4: Goslings | CM4: (21-42d)
C5: Min. | D5: Max. | E5: Units | F5: Min. | G5: Max. | H5: Min. | I5: Max. | J5: Min. | K5: Max. | L5: Min. | M5: Max. | N5: Min. | O5: Max. | P5: Min. | Q5: Max. | R5: Min. | S5: Max. | T5: Min. | U5: Max. | V5: Min. | W5: Max. | X5: Min. | Y5: Max. | Z5: Min. | AA5: Max. | AB5: Min. | AC5: Max. | AD5: Min. | AE5: Max. | AF5: Min. | AG5: Max. | AH5: Min. | AI5: Max. | AJ5: Min. | AK5: Max. | AL5: Min. | AM5: Max. | AN5: Min. | AO5: Max. | AP5: Min. | AQ5: Max. | AR5: Min. | AS5: Max. | AT5: Min. | AU5: Max. | AV5: Min. | AW5: Max. | AX5: Min. | AY5: Max. | AZ5: Min. | BA5: Max. | BB5: Min. | BC5: Max. | BD5: Min. | BE5: Max. | BF5: Min. | BG5: Max. | BH5: Min. | BI5: Max. | BJ5: Min. | BK5: Max. | BL5: Min. | BM5: Max. | BN5: Min. | BO5: Max. | BP5: Min. | BQ5: Max. | BR5: Min. | BS5: Max. | BT5: Min. | BU5: Max. | BV5: Min. | BW5: Max. | BX5: Min. | BY5: Max. | BZ5: Min. | CA5: Max. | CB5: Min. | CC5: Max. | CD5: Min. | CE5: Max. | CF5: Min. | CG5: Max. | CH5: Min. | CI5: Max. | CJ5: Min. | CK5: Max. | CL5: Min. | CM5: Max.
B6: =Ingredients!G2 -> Dry Matter | C6: 0 | D6: 100 | E6: % | F6: 0 | G6: 100 | H6: 0 | I6: 100 | J6: 0 | K6: 100 | L6: 0 | M6: 100 | N6: 0 | O6: 100 | P6: 0 | Q6: 100 | R6: 0 | S6: 100 | T6: 0 | U6: 100 | V6: 0 | W6: 100 | X6: 0 | Y6: 100 | Z6: 0 | AA6: 100 | AB6: 0 | AC6: 100 | AD6: 0 | AE6: 100 | AF6: 0 | AG6: 100 | AH6: 0 | AI6: 100 | AJ6: 0 | AK6: 100 | AL6: 0 | AM6: 100 | AN6: 0 | AO6: 100 | AP6: 0 | AQ6: 100 | AR6: 0 | AS6: 100 | AT6: 0 | AU6: 100 | AV6: 0 | AW6: 100 | AX6: 0 | AY6: 100 | AZ6: 0 | BA6: 100 | BB6: 0 | BC6: 100 | BD6: 0 | BE6: 100 | BF6: 0 | BG6: 100 | BH6: 0 | BI6: 100 | BJ6: 0 | BK6: 100 | BL6: 0 | BM6: 100 | BN6: 0 | BO6: 100 | BP6: 0 | BQ6: 100 | BR6: 0 | BS6: 100 | BT6: 0 | BU6: 100 | BV6: 0 | BW6: 100 | BX6: 0 | BY6: 100 | BZ6: 0 | CA6: 100 | CB6: 0 | CC6: 100 | CD6: 0 | CE6: 100 | CF6: 0 | CG6: 100 | CH6: 0 | CI6: 100 | CJ6: 0 | CK6: 100 | CL6: 0 | CM6: 100
B7: =Ingredients!H$2 -> M.E. | C7: 3.2 | D7: 100 | E7: Kcal/g | F7: 3.2 | G7: 100 | H7: 3.2 | I7: 100 | J7: 3.2 | K7: 100 | L7: 2.85 | M7: 100 | N7: 2.85 | O7: 100 | P7: 2.9 | Q7: 100 | R7: 2.9 | S7: 100 | T7: 2.9 | U7: 100 | V7: 2.9 | W7: 100 | X7: 2.9 | Y7: 100 | Z7: 2.8 | AA7: 100 | AB7: 2.9 | AC7: 100 | AD7: 3 | AE7: 100 | AF7: 3.1 | AG7: 100 | AH7: 3.2 | AI7: 100 | AJ7: 3.2 | AK7: 100 | AL7: 3.3 | AM7: 100 | AN7: 3.3 | AO7: 100 | AP7: 2.9 | AQ7: 100 | AR7: 2.9 | AS7: 100 | AT7: 2.9 | AU7: 100 | AV7: 2.9 | AW7: 100 | AX7: 2.9 | AY7: 100 | AZ7: 3 | BA7: 100 | BB7: 2.9 | BC7: 100 | BD7: 3.265 | BE7: 100 | BF7: 3.265 | BG7: 100 | BH7: 3.265 | BI7: 100 | BJ7: 3.265 | BK7: 100 | BL7: 3.265 | BM7: 100 | BN7: 3.265 | BO7: 100 | BP7: 3.31 | BQ7: 100 | BR7: 3.31 | BS7: 100 | BT7: 3.42 | BU7: 100 | BV7: 3.27 | BW7: 100 | BX7: 3.265 | BY7: 100 | BZ7: 3.1 | CA7: 100 | CB7: 3.1 | CC7: 100 | CD7: 3.1 | CE7: 100 | CF7: 3.1 | CG7: 100 | CH7: 3.1 | CI7: 100 | CJ7: 2.8 | CK7: 100 | CL7: 2.8 | CM7: 100
B8: =Ingredients!I$2 -> Protein | C8: 23 | D8: 100 | E8: % | F8: 23 | G8: 100 | H8: 20 | I8: 100 | J8: 18 | K8: 100 | L8: 18 | M8: 100 | N8: 16 | O8: 100 | P8: 15 | Q8: 100 | R8: 17 | S8: 100 | T8: 18.8 | U8: 100 | V8: 15 | W8: 100 | X8: 12.5 | Y8: 100 | Z8: 28 | AA8: 100 | AB8: 26 | AC8: 100 | AD8: 22 | AE8: 100 | AF8: 19 | AG8: 100 | AH8: 16.5 | AI8: 100 | AJ8: 16.5 | AK8: 100 | AL8: 14 | AM8: 100 | AN8: 14 | AO8: 100 | AP8: 12 | AQ8: 100 | AR8: 14 | AS8: 100 | AT8: 24 | AU8: 100 | AV8: 20 | AW8: 100 | AX8: 22 | AY8: 100 | AZ8: 16 | BA8: 100 | BB8: 15 | BC8: 100 | BD8: 26 | BE8: 100 | BF8: 23.7 | BG8: 100 | BH8: 20.9 | BI8: 100 | BJ8: 18 | BK8: 100 | BL8: 15.5 | BM8: 100 | BN8: 13.2 | BO8: 100 | BP8: 21.7 | BQ8: 100 | BR8: 20.56 | BS8: 100 | BT8: 19.86 | BU8: 100 | BV8: 12.4 | BW8: 100 | BX8: 18.4 | BY8: 100 | BZ8: 18 | CA8: 100 | CB8: 15 | CC8: 100 | CD8: 23 | CE8: 100 | CF8: 18 | CG8: 100 | CH8: 14 | CI8: 100 | CJ8: 17 | CK8: 100 | CL8: 13 | CM8: 100
B9: =Ingredients!J$2 -> E.E. | C9: 0 | D9: 100 | E9: % | F9: 0 | G9: 100 | H9: 0 | I9: 100 | J9: 0 | K9: 100 | L9: 0 | M9: 100 | N9: 0 | O9: 100 | P9: 0 | Q9: 100 | R9: 0 | S9: 100 | T9: 0 | U9: 100 | V9: 0 | W9: 100 | X9: 0 | Y9: 100 | Z9: 0 | AA9: 100 | AB9: 0 | AC9: 100 | AD9: 0 | AE9: 100 | AF9: 0 | AG9: 100 | AH9: 0 | AI9: 100 | AJ9: 0 | AK9: 100 | AL9: 0 | AM9: 100 | AN9: 0 | AO9: 100 | AP9: 0 | AQ9: 100 | AR9: 0 | AS9: 100 | AT9: 0 | AU9: 100 | AV9: 0 | AW9: 100 | AX9: 0 | AY9: 100 | AZ9: 0 | BA9: 100 | BB9: 0 | BC9: 100 | BD9: 0 | BE9: 100 | BF9: 0 | BG9: 100 | BH9: 0 | BI9: 100 | BJ9: 0 | BK9: 100 | BL9: 0 | BM9: 100 | BN9: 0 | BO9: 100 | BP9: 0 | BQ9: 100 | BR9: 0 | BS9: 100 | BT9: 0 | BU9: 100 | BV9: 0 | BW9: 100 | BX9: 0 | BY9: 100 | BZ9: 0 | CA9: 100 | CB9: 0 | CC9: 100 | CD9: 0 | CE9: 100 | CF9: 1 | CG9: 100 | CH9: 1 | CI9: 100 | CJ9: 1 | CK9: 100 | CL9: 1 | CM9: 100
B10: =Ingredients!K$2 -> C18:2 | C10: 1 | D10: 100 | E10: % | F10: 1 | G10: 100 | H10: 1 | I10: 100 | J10: 1 | K10: 100 | L10: 1 | M10: 100 | N10: 1 | O10: 100 | P10: 1 | Q10: 100 | R10: 1 | S10: 100 | T10: 1.25 | U10: 100 | V10: 1 | W10: 100 | X10: 0.83 | Y10: 100 | Z10: 1 | AA10: 100 | AB10: 1 | AC10: 100 | AD10: 0.8 | AE10: 100 | AF10: 0.8 | AG10: 100 | AH10: 0.8 | AI10: 100 | AJ10: 0.8 | AK10: 100 | AL10: 0.8 | AM10: 100 | AN10: 0.8 | AO10: 100 | AP10: 0.8 | AQ10: 100 | AR10: 1.1 | AS10: 100 | AT10: 1 | AU10: 100 | AV10: 1 | AW10: 100 | AX10: 0 | AY10: 100 | AZ10: 0 | BA10: 100 | BB10: 0 | BC10: 100 | BD10: 0.1 | BE10: 100 | BF10: 0.1 | BG10: 100 | BH10: 0.1 | BI10: 100 | BJ10: 0.1 | BK10: 100 | BL10: 0.1 | BM10: 100 | BN10: 0.1 | BO10: 100 | BP10: 0.1 | BQ10: 100 | BR10: 0.1 | BS10: 100 | BT10: 0.1 | BU10: 100 | BV10: 0.1 | BW10: 100 | BX10: 0.1 | BY10: 100 | BZ10: 1 | CA10: 100 | CB10: 1 | CC10: 100 | CD10: 1 | CE10: 100 | CF10: 1 | CG10: 100 | CH10: 1 | CI10: 100 | CJ10: 1 | CK10: 100 | CL10: 1 | CM10: 100
B11: =Ingredients!L$2 -> C.F | C11: 0 | D11: 100 | E11: % | F11: 0 | G11: 100 | H11: 0 | I11: 100 | J11: 0 | K11: 100 | L11: 0 | M11: 100 | N11: 0 | O11: 100 | P11: 0 | Q11: 100 | R11: 0 | S11: 100 | T11: 0 | U11: 100 | V11: 0 | W11: 100 | X11: 0 | Y11: 100 | Z11: 0 | AA11: 100 | AB11: 0 | AC11: 100 | AD11: 0 | AE11: 100 | AF11: 0 | AG11: 100 | AH11: 0 | AI11: 100 | AJ11: 0 | AK11: 100 | AL11: 0 | AM11: 100 | AN11: 0 | AO11: 100 | AP11: 0 | AQ11: 100 | AR11: 0 | AS11: 100 | AT11: 0 | AU11: 100 | AV11: 0 | AW11: 100 | AX11: 0 | AY11: 100 | AZ11: 0 | BA11: 100 | BB11: 0 | BC11: 100 | BD11: 0 | BE11: 100 | BF11: 0 | BG11: 100 | BH11: 0 | BI11: 100 | BJ11: 0 | BK11: 100 | BL11: 0 | BM11: 100 | BN11: 0 | BO11: 100 | BP11: 0 | BQ11: 100 | BR11: 0 | BS11: 100 | BT11: 0 | BU11: 100 | BV11: 0 | BW11: 100 | BX11: 0 | BY11: 100 | BZ11: 0 | CA11: 100 | CB11: 0 | CC11: 100 | CD11: 0 | CE11: 100 | CF11: 0 | CG11: 100 | CH11: 0 | CI11: 100 | CJ11: 3 | CK11: 100 | CL11: 3 | CM11: 100
B12: =Ingredients!M$2 -> Calcium | C12: 1 | D12: 100 | E12: % | F12: 1 | G12: 100 | H12: 0.9 | I12: 100 | J12: 0.8 | K12: 100 | L12: 0.9 | M12: 100 | N12: 0.8 | O12: 100 | P12: 0.8 | Q12: 100 | R12: 2 | S12: 100 | T12: 4.06 | U12: 100 | V12: 3.25 | W12: 100 | X12: 2.71 | Y12: 100 | Z12: 1.2 | AA12: 100 | AB12: 1 | AC12: 100 | AD12: 0.85 | AE12: 100 | AF12: 0.75 | AG12: 100 | AH12: 0.65 | AI12: 100 | AJ12: 0.65 | AK12: 100 | AL12: 0.55 | AM12: 100 | AN12: 0.55 | AO12: 100 | AP12: 0.5 | AQ12: 100 | AR12: 2.25 | AS12: 100 | AT12: 0.8 | AU12: 100 | AV12: 2.5 | AW12: 100 | AX12: 0.65 | AY12: 100 | AZ12: 0.6 | BA12: 100 | BB12: 2.75 | BC12: 100 | BD12: 0.9 | BE12: 100 | BF12: 0.8 | BG12: 100 | BH12: 0.7 | BI12: 100 | BJ12: 0.6 | BK12: 100 | BL12: 0.5 | BM12: 100 | BN12: 0.45 | BO12: 100 | BP12: 0.9 | BQ12: 100 | BR12: 0.9 | BS12: 100 | BT12: 0.75 | BU12: 100 | BV12: 0.75 | BW12: 100 | BX12: 0.75 | BY12: 100 | BZ12: 0.9 | CA12: 100 | CB12: 0.7 | CC12: 100 | CD12: 1 | CE12: 100 | CF12: 0.9 | CG12: 100 | CH12: 0.8 | CI12: 100 | CJ12: 0.8 | CK12: 100 | CL12: 0.8 | CM12: 100
B13: =Ingredients!N$2 -> Total Phos. | C13: 0 | D13: 100 | E13: % | F13: 0 | G13: 100 | H13: 0 | I13: 100 | J13: 0 | K13: 100 | L13: 0 | M13: 100 | N13: 0 | O13: 100 | P13: 0 | Q13: 100 | R13: 0 | S13: 100 | T13: 0 | U13: 100 | V13: 0 | W13: 100 | X13: 0 | Y13: 100 | Z13: 0 | AA13: 100 | AB13: 0 | AC13: 100 | AD13: 0 | AE13: 100 | AF13: 0 | AG13: 100 | AH13: 0 | AI13: 100 | AJ13: 0 | AL13: 0 | AM13: 100 | AN13: 0 | AO13: 100 | AP13: 0 | AQ13: 100 | AR13: 0 | AS13: 100 | AT13: 0 | AU13: 100 | AV13: 0 | AW13: 100 | AX13: 0 | AY13: 100 | AZ13: 0 | BA13: 100 | BB13: 0 | BC13: 100 | BD13: 0.7 | BE13: 100 | BF13: 0.65 | BG13: 100 | BH13: 0.6 | BI13: 100 | BJ13: 0.5 | BK13: 100 | BL13: 0.45 | BM13: 100 | BN13: 0.4 | BO13: 100 | BP13: 0.8 | BQ13: 100 | BR13: 0.8 | BS13: 100 | BT13: 0.7 | BU13: 100 | BV13: 0.6 | BW13: 100 | BX13: 0.6 | BY13: 100 | BZ13: 0 | CA13: 100 | CB13: 0 | CC13: 100 | CD13: 0 | CE13: 100 | CF13: 0 | CG13: 100 | CH13: 0 | CI13: 100 | CJ13: 0 | CK13: 100 | CL13: 0 | CM13: 100
B14: =Ingredients!O$2 -> Avail. Phos. | C14: =0.45*C12 -> 0.45 | D14: 100 | E14: % | F14: =0.45*F12 -> 0.45 | G14: 100 | H14: =0.3888889*H12 -> 0.35000001 | I14: 100 | J14: =0.375*J12 -> 0.3 | K14: 100 | L14: 0.4 | M14: 100 | N14: 0.35 | O14: 100 | P14: 0.3 | Q14: 100 | R14: 0.32 | S14: 100 | T14: 0.31 | U14: 100 | V14: 0.25 | W14: 100 | X14: 0.21 | Y14: 100 | Z14: 0.6 | AA14: 100 | AB14: 0.5 | AC14: 100 | AD14: 0.42 | AE14: 100 | AF14: 0.38 | AG14: 100 | AH14: 0.32 | AI14: 100 | AJ14: 0.32 | AK14: 100 | AL14: 0.28 | AM14: 100 | AN14: 0.28 | AO14: 100 | AP14: 0.25 | AQ14: 100 | AR14: 0.35 | AS14: 100 | AT14: 0.3 | AU14: 100 | AV14: 0.35 | AW14: 100 | AX14: 0.4 | AY14: 100 | AZ14: 0.3 | BA14: 100 | BB14: 0 | BC14: 100 | BD14: 0.55 | BE14: 100 | BF14: 0.4 | BG14: 100 | BH14: 0.32 | BI14: 100 | BJ14: 0.23 | BK14: 100 | BL14: 0.19 | BM14: 100 | BN14: 0.15 | BO14: 100 | BP14: 0.61 | BQ14: 100 | BR14: 0.56 | BS14: 100 | BT14: 0.41 | BU14: 100 | BV14: 0.35 | BW14: 100 | BX14: 0.35 | BY14: 100 | BZ14: 0 | CA14: 100 | CB14: 0 | CC14: 100 | CD14: 0 | CE14: 100 | CF14: 0 | CG14: 100 | CH14: 0 | CI14: 100 | CJ14: 0 | CK14: 100 | CL14: 0 | CM14: 100
B15: =Ingredients!P$2 -> Ca:P= | C15: -100 | D15: 100 | E15: - | F15: 0 | G15: 0 | H15: 0 | I15: 0 | J15: 0 | K15: 0 | L15: 0 | M15: 0 | N15: 0 | O15: 100 | P15: 0 | Q15: 100 | R15: 0 | S15: 100 | T15: 0 | U15: 100 | V15: 0 | W15: 100 | X15: 0 | Y15: 100 | Z15: 0 | AA15: 100 | AB15: 0 | AC15: 100 | AD15: 0 | AE15: 100 | AF15: 0 | AG15: 100 | AH15: 0 | AI15: 100 | AJ15: 0 | AK15: 100 | AL15: 0 | AM15: 100 | AN15: 0 | AO15: 100 | AP15: 0 | AQ15: 100 | AR15: 0 | AS15: 100 | AT15: 0 | AU15: 100 | AV15: 0 | AW15: 100 | AX15: 0 | AY15: 100 | AZ15: 0 | BA15: 100 | BB15: 0 | BC15: 100 | BD15: 0 | BE15: 0 | BF15: 0 | BG15: 0 | BH15: 0 | BI15: 0 | BJ15: 0 | BK15: 0 | BL15: 0 | BM15: 0 | BN15: 0 | BO15: 0 | BP15: 0 | BQ15: 0 | BR15: 0 | BS15: 0 | BT15: 0 | BU15: 0 | BV15: 0 | BW15: 0 | BX15: 0 | BY15: 0 | BZ15: 0 | CA15: 0 | CB15: 0 | CC15: 0 | CD15: 0 | CE15: 0 | CF15: 0 | CG15: 0 | CH15: 0 | CI15: 0 | CJ15: 0 | CK15: 0 | CL15: 0 | CM15: 0
B16: =Ingredients!Q3 -> Corn P | C16: 0 | D16: 0 | E16: % | F16: 0.3 | G16: 100 | H16: 0.3 | I16: 100 | J16: 0.3 | K16: 100 | L16: 0.25 | M16: 100 | N16: 0.25 | O16: 100 | P16: 0.25 | Q16: 100 | R16: 0.25 | S16: 100 | T16: 0.19 | U16: 100 | V16: 0.15 | W16: 100 | X16: 0.13 | Y16: 100 | Z16: 0.7 | AA16: 100 | AB16: 0.6 | AC16: 100 | AD16: 0.5 | AE16: 100 | AF16: 0.5 | AG16: 100 | AH16: 0.4 | AI16: 100 | AJ16: 0.4 | AK16: 100 | AL16: 0.4 | AM16: 100 | AN16: 0.4 | AO16: 100 | AP16: 0.4 | AQ16: 100 | AR16: 0.6 | AS16: 100 | AT16: 0.4 | AU16: 100 | AV16: 0.4 | AW16: 100 | AX16: 0 | AY16: 100 | AZ16: 0 | BA16: 100 | BB16: 0 | BC16: 100 | BD16: 0.3 | BE16: 100 | BF16: 0.28 | BG16: 100 | BH16: 0.26 | BI16: 100 | BJ16: 0.23 | BK16: 100 | BL16: 0.19 | BM16: 100 | BN16: 0.17 | BO16: 100 | BP16: 0.28 | BQ16: 100 | BR16: 0.26 | BS16: 100 | BT16: 0 | BU16: 100 | BV16: 0.2 | BW16: 100 | BX16: 0.2 | BY16: 100 | BZ16: 0.3 | CA16: 100 | CB16: 0.3 | CC16: 100 | CD16: 0.3 | CE16: 100 | CF16: 0.3 | CG16: 100 | CH16: 0.3 | CI16: 100 | CJ16: 0.3 | CK16: 100 | CL16: 0.3 | CM16: 100
B17: =Ingredients!R$2 -> 0 | C17: 0 | D17: 100 | E17: % | F17: 0.2 | G17: 100 | H17: 0.15 | I17: 100 | J17: 0.12 | K17: 100 | L17: 0.15 | M17: 100 | N17: 0.12 | O17: 100 | P17: 0.12 | Q17: 100 | R17: 0.15 | S17: 100 | T17: 0.16 | U17: 100 | V17: 0.13 | W17: 100 | X17: 0.11 | Y17: 100 | Z17: 0.15 | AA17: 100 | AB17: 0.14 | AC17: 100 | AD17: 0.14 | AE17: 100 | AF17: 0.12 | AG17: 100 | AH17: 0.12 | AI17: 100 | AJ17: 0.12 | AK17: 100 | AL17: 0.12 | AM17: 100 | AN17: 0.12 | AO17: 100 | AP17: 0.12 | AQ17: 100 | AR17: 0.12 | AS17: 100 | AT17: 0.14 | AU17: 100 | AV17: 0.14 | AW17: 100 | AX17: 0.12 | AY17: 100 | AZ17: 0.12 | BA17: 100 | BB17: 0.12 | BC17: 100 | BD17: 0.25 | BE17: 100 | BF17: 0.2 | BG17: 100 | BH17: 0.15 | BI17: 100 | BJ17: 0.08 | BK17: 100 | BL17: 0.08 | BM17: 100 | BN17: 0.08 | BO17: 100 | BP17: 0.2 | BQ17: 100 | BR17: 0.15 | BS17: 100 | BT17: 0 | BU17: 100 | BV17: 0.12 | BW17: 100 | BX17: 0.16 | BY17: 100 | BZ17: 0.12 | CA17: 100 | CB17: 0.12 | CC17: 100 | CD17: 0.15 | CE17: 100 | CF17: 0.15 | CG17: 100 | CH17: 0.15 | CI17: 100 | CJ17: 0.12 | CK17: 100 | CL17: 0.12 | CM17: 100
B18: =Ingredients!S$2 -> 0 | C18: 0 | D18: 1000 | E18: mg/kg | F18: 60 | G18: 1000 | H18: 60 | I18: 1000 | J18: 60 | K18: 1000 | L18: 60 | M18: 100 | N18: 30 | O18: 100 | P18: 30 | Q18: 100 | R18: 30 | S18: 100 | T18: 25 | U18: 100 | V18: 20 | W18: 100 | X18: 17 | Y18: 100 | Z18: 60 | AA18: 100 | AB18: 60 | AC18: 100 | AD18: 60 | AE18: 100 | AF18: 60 | AG18: 100 | AH18: 60 | AI18: 100 | AJ18: 60 | AK18: 100 | AL18: 60 | AM18: 100 | AN18: 60 | AO18: 100 | AP18: 60 | AQ18: 100 | AR18: 60 | AS18: 100 | AT18: 60 | AU18: 100 | AV18: 60 | AW18: 100 | AX18: 50 | AY18: 100 | AZ18: 0 | BA18: 100 | BB18: 0 | BC18: 100 | BD18: 4 | BE18: 100 | BF18: 4 | BG18: 1000 | BH18: 3 | BI18: 1000 | BJ18: 2 | BK18: 1000 | BL18: 2 | BM18: 100 | BN18: 2 | BO18: 100 | BP18: 4 | BQ18: 100 | BR18: 3 | BS18: 100 | BT18: 3 | BU18: 100 | BV18: 20 | BW18: 100 | BX18: 20 | BY18: 100 | BZ18: 55 | CA18: 100 | CB18: 50 | CC18: 100 | CD18: 60 | CE18: 100 | CF18: 50 | CG18: 100 | CH18: 40 | CI18: 100 | CJ18: 50 | CK18: 100 | CL18: 40 | CM18: 100
B19: =Ingredients!T$2 -> Na | C19: 0.2 | D19: 100 | E19: % | F19: 0.2 | G19: 100 | H19: 0.15 | I19: 100 | J19: 0.12 | K19: 100 | L19: 0.15 | M19: 100 | N19: 0.15 | O19: 100 | P19: 0.15 | Q19: 100 | R19: 0.15 | S19: 100 | T19: 0.19 | U19: 100 | V19: 0.15 | W19: 100 | X19: 0.13 | Y19: 100 | Z19: 0.17 | AA19: 100 | AB19: 0.15 | AC19: 100 | AD19: 0.12 | AE19: 100 | AF19: 0.12 | AG19: 100 | AH19: 0.12 | AI19: 100 | AJ19: 0.12 | AK19: 100 | AL19: 0.12 | AM19: 100 | AN19: 0.12 | AO19: 100 | AP19: 0.12 | AQ19: 100 | AR19: 0.12 | AS19: 100 | AT19: 0.15 | AU19: 100 | AV19: 0.15 | AW19: 100 | AX19: 0.15 | AY19: 100 | AZ19: 0.15 | BA19: 100 | BB19: 0.15 | BC19: 100 | BD19: 0.25 | BE19: 100 | BF19: 0.2 | BG19: 100 | BH19: 0.15 | BI19: 100 | BJ19: 0.1 | BK19: 100 | BL19: 0.1 | BM19: 100 | BN19: 0.1 | BO19: 100 | BP19: 0.2 | BQ19: 100 | BR19: 0.15 | BS19: 100 | BT19: 0 | BU19: 100 | BV19: 0.15 | BW19: 100 | BX19: 0.2 | BY19: 100 | BZ19: 0.14 | CA19: 100 | CB19: 0.14 | CC19: 100 | CD19: 0.15 | CE19: 100 | CF19: 0.15 | CG19: 100 | CH19: 0.15 | CI19: 100 | CJ19: 0.13 | CK19: 100 | CL19: 0.13 | CM19: 100
B20: =Ingredients!U3 -> SBM P | C20: 0 | D20: 0 | E20: =$E$18 -> mg/kg | F20: 40 | G20: 1000 | H20: 40 | I20: 1000 | J20: 40 | K20: 1000 | L20: 40 | M20: 100 | N20: 0.35 | O20: 100 | P20: 35 | Q20: 100 | R20: 35 | S20: 100 | T20: 44 | U20: 100 | V20: 35 | W20: 100 | X20: 29 | Y20: 100 | Z20: 70 | AA20: 100 | AB20: 65 | AC20: 100 | AD20: 50 | AE20: 100 | AF20: 40 | AG20: 100 | AH20: 40 | AI20: 100 | AJ20: 40 | AK20: 100 | AL20: 40 | AM20: 100 | AN20: 40 | AO20: 100 | AP20: 40 | AQ20: 100 | AR20: 65 | AS20: 100 | AT20: 25 | AU20: 100 | AV20: 50 | AW20: 100 | AX20: 60 | AY20: 100 | AZ20: 0 | BA20: 100 | BB20: 0 | BC20: 100 | BD20: 100 | BE20: 100 | BF20: 100 | BG20: 1000 | BH20: 80 | BI20: 1000 | BJ20: 60 | BK20: 1000 | BL20: 50 | BM20: 100 | BN20: 50 | BO20: 100 | BP20: 100 | BQ20: 100 | BR20: 80 | BS20: 100 | BT20: 0 | BU20: 100 | BV20: 50 | BW20: 100 | BX20: 50 | BY20: 100 | BZ20: 36 | CA20: 100 | CB20: 33 | CC20: 100 | CD20: 40 | CE20: 100 | CF20: 35 | CG20: 100 | CH20: 30 | CI20: 100 | CJ20: 30 | CK20: 100 | CL20: 25 | CM20: 100
B21: =Ingredients!V$2 -> 0 | C21: 0 | D21: 100 | E21: mg/g | F21: 1.3 | G21: 100 | H21: 1 | I21: 100 | J21: 0.75 | K21: 100 | L21: 1.3 | M21: 100 | N21: 0.9 | O21: 100 | P21: 0.5 | Q21: 100 | R21: 0.5 | S21: 100 | T21: 1.31 | U21: 100 | V21: 1.05 | W21: 100 | X21: 0.875 | Y21: 100 | Z21: 1.6 | AA21: 100 | AB21: 1.4 | AC21: 100 | AD21: 1.1 | AE21: 100 | AF21: 1.1 | AG21: 100 | AH21: 0.8 | AI21: 100 | AJ21: 0.8 | AK21: 100 | AL21: 0.8 | AM21: 100 | AN21: 0.8 | AO21: 100 | AP21: 0.8 | AQ21: 100 | AR21: 1 | AS21: 100 | AT21: 2 | AU21: 100 | AV21: 1.5 | AW21: 100 | AX21: 0 | AY21: 100 | AZ21: 0 | BA21: 100 | BB21: 0 | BC21: 100 | BD21: 0.6 | BE21: 100 | BF21: 0.5 | BG21: 100 | BH21: 0.4 | BI21: 100 | BJ21: 0.3 | BK21: 100 | BL21: 0.3 | BM21: 1000 | BN21: 0.3 | BO21: 1000 | BP21: 0.5 | BQ21: 1000 | BR21: 0.4 | BS21: 1000 | BT21: 0 | BU21: 1000 | BV21: 1.25 | BW21: 1000 | BX21: 1 | BY21: 1000 | BZ21: 0.8 | CA21: 100 | CB21: 0.6 | CC21: 100 | CD21: 1 | CE21: 100 | CF21: 0.9 | CG21: 100 | CH21: 0.8 | CI21: 100 | CJ21: 0.9 | CK21: 100 | CL21: 0.8 | CM21: 100
B22: =Ingredients!W$2 -> 0 | C22: 0 | D22: 100 | E22: mg/kg | F22: 0.55 | G22: 100 | H22: 0.55 | I22: 100 | J22: 0.55 | K22: 100 | L22: 0.55 | M22: 100 | N22: 0.25 | O22: 100 | P22: 0.25 | Q22: 100 | R22: 0.25 | S22: 100 | T22: 0.31 | U22: 100 | V22: 0.25 | W22: 100 | X22: 0.21 | Y22: 100 | Z22: 1 | AA22: 100 | AB22: 1 | AC22: 100 | AD22: 0.8 | AE22: 100 | AF22: 0.8 | AG22: 100 | AH22: 0.7 | AI22: 100 | AJ22: 0.7 | AK22: 100 | AL22: 0.7 | AM22: 100 | AN22: 0.7 | AO22: 100 | AP22: 0.7 | AQ22: 100 | AR22: 1 | AS22: 100 | AT22: 1 | AU22: 100 | AV22: 1 | AW22: 100 | AX22: 0 | AY22: 100 | AZ22: 0 | BA22: 100 | BB22: 0 | BC22: 100 | BD22: 0.3 | BE22: 100 | BF22: 0.3 | BG22: 100 | BH22: 0.3 | BI22: 100 | BJ22: 0.3 | BK22: 100 | BL22: 0.3 | BM22: 100 | BN22: 0.3 | BO22: 100 | BP22: 0.3 | BQ22: 100 | BR22: 0.3 | BS22: 100 | BT22: 0 | BU22: 100 | BV22: 1.3 | BW22: 100 | BX22: 1.3 | BY22: 100 | BZ22: 0.5 | CA22: 100 | CB22: 0.4 | CC22: 100 | CD22: 0.55 | CE22: 100 | CF22: 0.5 | CG22: 100 | CH22: 0.45 | CI22: 100 | CJ22: 0.45 | CK22: 100 | CL22: 0.4 | CM22: 100
B23: =Ingredients!X$2 -> ARG | C23: 1.25 | D23: 100 | E23: % | F23: 1.25 | G23: 100 | H23: 1.1 | I23: 100 | J23: 1 | K23: 100 | L23: 1 | M23: 100 | N23: 0.83 | O23: 100 | P23: 0.67 | Q23: 100 | R23: 0.75 | S23: 100 | T23: 0.88 | U23: 100 | V23: 0.7 | W23: 100 | X23: 0.58 | Y23: 100 | Z23: 1.6 | AA23: 100 | AB23: 1.4 | AC23: 100 | AD23: 1.1 | AE23: 100 | AF23: 0.9 | AG23: 100 | AH23: 0.75 | AI23: 100 | AJ23: 0.75 | AK23: 100 | AL23: 0.6 | AM23: 100 | AN23: 0.6 | AO23: 100 | AP23: 0.5 | AQ23: 100 | AR23: 0.6 | AS23: 100 | AT23: 1.25 | AU23: 100 | AV23: 1.26 | AW23: 100 | AX23: 1.1 | AY23: 100 | AZ23: 1 | BA23: 100 | BB23: 0 | BC23: 100 | BD23: 0.54 | BE23: 100 | BF23: 0.49 | BG23: 100 | BH23: 0.42 | BI23: 100 | BJ23: 0.33 | BK23: 100 | BL23: 0.24 | BM23: 1000 | BN23: 0.16 | BO23: 1000 | BP23: 0.49 | BQ23: 1000 | BR23: 0.42 | BS23: 1000 | BT23: 0 | BU23: 1000 | BV23: 0 | BW23: 1000 | BX23: 0.49 | BY23: 1000 | BZ23: 0.89 | CA23: 100 | CB23: 0.78 | CC23: 100 | CD23: 1.31 | CE23: 100 | CF23: 1.07 | CG23: 100 | CH23: 0.67 | CI23: 100 | CJ23: 0.98 | CK23: 100 | CL23: 0.63 | CM23: 100
B24: =Ingredients!Y$2 -> GLY | C24: 0 | D24: 100 | E24: % | F24: 0 | G24: 100 | H24: 0 | I24: 100 | J24: 0 | K24: 100 | L24: 0 | M24: 100 | N24: 0 | O24: 100 | P24: 0 | Q24: 100 | R24: 0 | S24: 100 | T24: 0 | U24: 100 | V24: 0 | W24: 100 | X24: 0 | Y24: 100 | Z24: 0 | AA24: 100 | AB24: 0 | AC24: 100 | AD24: 0 | AE24: 100 | AF24: 0 | AG24: 100 | AH24: 0 | AI24: 100 | AJ24: 0 | AK24: 100 | AL24: 0 | AM24: 100 | AN24: 0 | AO24: 100 | AP24: 0 | AQ24: 100 | AR24: 0 | AS24: 100 | AT24: 0 | AU24: 100 | AV24: 0 | AW24: 100 | AX24: 0 | AY24: 100 | AZ24: 0 | BA24: 100 | BB24: 0 | BC24: 100 | BD24: 0 | BE24: 100 | BF24: 0 | BG24: 100 | BH24: 0 | BI24: 100 | BJ24: 0 | BK24: 100 | BL24: 0 | BM24: 100 | BN24: 0 | BO24: 100 | BP24: 0 | BQ24: 100 | BR24: 0 | BS24: 100 | BT24: 0 | BU24: 100 | BV24: 0 | BW24: 100 | BX24: 0 | BY24: 100 | BZ24: 0 | CA24: 100 | CB24: 0 | CC24: 100 | CD24: 0 | CE24: 100 | CF24: 0 | CG24: 100 | CH24: 0 | CI24: 100 | CJ24: 0 | CK24: 100 | CL24: 0 | CM24: 100
B25: =Ingredients!Z$2 -> SER | C25: 0 | D25: 100 | E25: % | F25: 0 | G25: 100 | H25: 0 | I25: 100 | J25: 0 | K25: 100 | L25: 0 | M25: 100 | N25: 0 | O25: 100 | P25: 0 | Q25: 100 | R25: 0 | S25: 100 | T25: 0 | U25: 100 | V25: 0 | W25: 100 | X25: 0 | Y25: 100 | Z25: 0 | AA25: 100 | AB25: 0 | AC25: 100 | AD25: 0 | AE25: 100 | AF25: 0 | AG25: 100 | AH25: 0 | AI25: 100 | AJ25: 0 | AK25: 100 | AL25: 0 | AM25: 100 | AN25: 0 | AO25: 100 | AP25: 0 | AQ25: 100 | AR25: 0 | AS25: 100 | AT25: 0 | AU25: 100 | AV25: 0 | AW25: 100 | AX25: 0 | AY25: 100 | AZ25: 0 | BA25: 100 | BB25: 0 | BC25: 100 | BD25: 0 | BE25: 100 | BF25: 0 | BG25: 100 | BH25: 0 | BI25: 100 | BJ25: 0 | BK25: 100 | BL25: 0 | BM25: 100 | BN25: 0 | BO25: 100 | BP25: 0 | BQ25: 100 | BR25: 0 | BS25: 100 | BT25: 0 | BU25: 100 | BV25: 0 | BW25: 100 | BX25: 0 | BY25: 100 | BZ25: 0 | CA25: 100 | CB25: 0 | CC25: 100 | CD25: 0 | CE25: 100 | CF25: 0 | CG25: 100 | CH25: 0 | CI25: 100 | CJ25: 0 | CK25: 100 | CL25: 0 | CM25: 100
B26: =Ingredients!AA$2 -> GLY & SER | C26: 1.25 | D26: 100 | E26: % | F26: 1.25 | G26: 100 | H26: 1.14 | I26: 100 | J26: 0.97 | K26: 100 | L26: 0.7 | M26: 100 | N26: 0.58 | O26: 100 | P26: 0.47 | Q26: 100 | R26: 0.53 | S26: 100 | T26: 0 | U26: 100 | V26: 0 | W26: 100 | X26: 0 | Y26: 100 | Z26: 1 | AA26: 100 | AB26: 0.9 | AC26: 100 | AD26: 0.8 | AE26: 100 | AF26: 0.7 | AG26: 100 | AH26: 0.6 | AI26: 100 | AJ26: 0.6 | AK26: 100 | AL26: 0.5 | AM26: 100 | AN26: 0.5 | AO26: 100 | AP26: 0.4 | AQ26: 100 | AR26: 0.5 | AS26: 100 | AT26: 1.15 | AU26: 100 | AV26: 1.17 | AW26: 100 | AX26: 0 | AY26: 100 | AZ26: 0 | BA26: 100 | BB26: 0 | BC26: 100 | BD26: 0 | BE26: 100 | BF26: 0 | BG26: 100 | BH26: 0 | BI26: 100 | BJ26: 0 | BK26: 100 | BL26: 0 | BM26: 100 | BN26: 0 | BO26: 100 | BP26: 0 | BQ26: 100 | BR26: 0 | BS26: 100 | BT26: 0 | BU26: 100 | BV26: 0 | BW26: 100 | BX26: 0 | BY26: 100 | BZ26: 1 | CA26: 100 | CB26: 0.83 | CC26: 100 | CD26: 1.35 | CE26: 100 | CF26: 1.06 | CG26: 100 | CH26: 0.68 | CI26: 100 | CJ26: 1.02 | CK26: 100 | CL26: 0.82 | CM26: 100
B27: =Ingredients!AB$2 -> HIS | C27: 0.35 | D27: 100 | E27: % | F27: 0.35 | G27: 100 | H27: 0.32 | I27: 100 | J27: 0.27 | K27: 100 | L27: 0.26 | M27: 100 | N27: 0.22 | O27: 100 | P27: 0.17 | Q27: 100 | R27: 0.2 | S27: 100 | T27: 0.21 | U27: 100 | V27: 0.17 | W27: 100 | X27: 0.14 | Y27: 100 | Z27: 0.58 | AA27: 100 | AB27: 0.5 | AC27: 100 | AD27: 0.4 | AE27: 100 | AF27: 0.3 | AG27: 100 | AH27: 0.25 | AI27: 100 | AJ27: 0.25 | AK27: 100 | AL27: 0.2 | AM27: 100 | AN27: 0.2 | AO27: 100 | AP27: 0.2 | AQ27: 100 | AR27: 0.3 | AS27: 100 | AT27: 0.36 | AU27: 100 | AV27: 0.42 | AW27: 100 | AX27: 0 | AY27: 100 | AZ27: 0 | BA27: 100 | BB27: 0 | BC27: 100 | BD27: 0.43 | BE27: 100 | BF27: 0.38 | BG27: 100 | BH27: 0.32 | BI27: 100 | BJ27: 0.26 | BK27: 100 | BL27: 0.21 | BM27: 100 | BN27: 0.16 | BO27: 100 | BP27: 0.38 | BQ27: 100 | BR27: 0.32 | BS27: 100 | BT27: 0 | BU27: 100 | BV27: 0.15 | BW27: 100 | BX27: 0.34 | BY27: 100 | BZ27: 0.32 | CA27: 100 | CB27: 0.28 | CC27: 100 | CD27: 0.47 | CE27: 100 | CF27: 0.38 | CG27: 100 | CH27: 0.24 | CI27: 100 | CJ27: 0.39 | CK27: 100 | CL27: 0.25 | CM27: 100
B28: =Ingredients!AC$2 -> ILE | C28: 0.8 | D28: 100 | E28: % | F28: 0.8 | G28: 100 | H28: 0.73 | I28: 100 | J28: 0.62 | K28: 100 | L28: 0.6 | M28: 100 | N28: 0.5 | O28: 100 | P28: 0.4 | Q28: 100 | R28: 0.45 | S28: 100 | T28: 0.81 | U28: 100 | V28: 0.65 | W28: 100 | X28: 0.54 | Y28: 100 | Z28: 1.1 | AA28: 100 | AB28: 1 | AC28: 100 | AD28: 0.8 | AE28: 100 | AF28: 0.6 | AG28: 100 | AH28: 0.5 | AI28: 100 | AJ28: 0.5 | AK28: 100 | AL28: 0.45 | AM28: 100 | AN28: 0.45 | AO28: 100 | AP28: 0.4 | AQ28: 100 | AR28: 0.5 | AS28: 100 | AT28: 0.98 | AU28: 100 | AV28: 0.9 | AW28: 100 | AX28: 0.63 | AY28: 100 | AZ28: 0.46 | BA28: 100 | BB28: 0.38 | BC28: 100 | BD28: 0.73 | BE28: 100 | BF28: 0.65 | BG28: 100 | BH28: 0.55 | BI28: 100 | BJ28: 0.45 | BK28: 100 | BL28: 0.37 | BM28: 100 | BN28: 0.29 | BO28: 100 | BP28: 0.65 | BQ28: 100 | BR28: 0.55 | BS28: 100 | BT28: 0 | BU28: 100 | BV28: 0.27 | BW28: 100 | BX28: 0.47 | BY28: 100 | BZ28: 0.58 | CA28: 100 | CB28: 0.51 | CC28: 100 | CD28: 0.85 | CE28: 100 | CF28: 0.69 | CG28: 100 | CH28: 0.43 | CI28: 100 | CJ28: 0.5 | CK28: 100 | CL28: 0.32 | CM28: 100
B29: =Ingredients!AA$2 -> GLY & SER | C29: 1.2 | D29: 100 | E29: % | F29: 1.2 | G29: 100 | H29: 1.09 | I29: 100 | J29: 0.93 | K29: 100 | L29: 1.1 | M29: 100 | N29: 0.85 | O29: 100 | P29: 0.7 | Q29: 100 | R29: 0.8 | S29: 100 | T29: 1.03 | U29: 100 | V29: 0.82 | W29: 100 | X29: 0.68 | Y29: 100 | Z29: 1.9 | AA29: 100 | AB29: 1.75 | AC29: 100 | AD29: 1.5 | AE29: 100 | AF29: 1.25 | AG29: 100 | AH29: 1 | AI29: 100 | AJ29: 1 | AK29: 100 | AL29: 0.8 | AM29: 100 | AN29: 0.8 | AO29: 100 | AP29: 0.5 | AQ29: 100 | AR29: 0.5 | AS29: 100 | AT29: 1.69 | AU29: 100 | AV29: 1.42 | AW29: 100 | AX29: 1.26 | AY29: 100 | AZ29: 0.91 | BA29: 100 | BB29: 0.76 | BC29: 100 | BD29: 1.35 | BE29: 100 | BF29: 1.2 | BG29: 100 | BH29: 1.02 | BI29: 100 | BJ29: 0.83 | BK29: 100 | BL29: 0.67 | BM29: 100 | BN29: 0.51 | BO29: 100 | BP29: 1.2 | BQ29: 100 | BR29: 1.02 | BS29: 100 | BT29: 0 | BU29: 100 | BV29: 0.44 | BW29: 100 | BX29: 0.96 | BY29: 100 | BZ29: 1 | CA29: 100 | CB29: 0.88 | CC29: 100 | CD29: 1.47 | CE29: 100 | CF29: 1.2 | CG29: 100 | CH29: 0.75 | CI29: 100 | CJ29: 0.95 | CK29: 100 | CL29: 0.6 | CM29: 100
B30: =Ingredients!AE$2 -> LYS | C30: 1.1 | D30: 100 | E30: % | F30: 1.1 | G30: 100 | H30: 1 | I30: 100 | J30: 0.85 | K30: 100 | L30: 0.85 | M30: 100 | N30: 0.6 | O30: 100 | P30: 0.45 | Q30: 100 | R30: 0.52 | S30: 100 | T30: 0.86 | U30: 100 | V30: 0.69 | W30: 100 | X30: 0.58 | Y30: 100 | Z30: 1.6 | AA30: 100 | AB30: 1.5 | AC30: 100 | AD30: 1.3 | AE30: 100 | AF30: 1 | AG30: 100 | AH30: 0.8 | AI30: 100 | AJ30: 0.8 | AK30: 100 | AL30: 0.65 | AM30: 100 | AN30: 0.65 | AO30: 100 | AP30: 0.5 | AQ30: 100 | AR30: 0.6 | AS30: 100 | AT30: 1.3 | AU30: 100 | AV30: 1 | AW30: 100 | AX30: 0.9 | AY30: 100 | AZ30: 0.65 | BA30: 100 | BB30: 0.6 | BC30: 100 | BD30: 1.34 | BE30: 100 | BF30: 1.19 | BG30: 100 | BH30: 1.01 | BI30: 100 | BJ30: 0.83 | BK30: 100 | BL30: 0.66 | BM30: 100 | BN30: 0.52 | BO30: 100 | BP30: 1.5 | BQ30: 100 | BR30: 1.37 | BS30: 100 | BT30: 1.25 | BU30: 100 | BV30: 0.46 | BW30: 100 | BX30: 0.85 | BY30: 100 | BZ30: 0.85 | CA30: 100 | CB30: 0.7 | CC30: 100 | CD30: 1.18 | CE30: 100 | CF30: 0.96 | CG30: 100 | CH30: 0.6 | CI30: 100 | CJ30: 0.95 | CK30: 100 | CL30: 0.61 | CM30: 100
B31: =Ingredients!AF$2 -> MET | C31: 0.5 | D31: 100 | E31: % | F31: 0.5 | G31: 100 | H31: 0.38 | I31: 100 | J31: 0.32 | K31: 100 | L31: 0.3 | M31: 100 | N31: 0.25 | O31: 100 | P31: 0.2 | Q31: 100 | R31: 0.22 | S31: 100 | T31: 0.38 | U31: 100 | V31: 0.3 | W31: 100 | X31: 0.25 | Y31: 100 | Z31: 0.55 | AA31: 100 | AB31: 0.45 | AC31: 100 | AD31: 0.4 | AE31: 100 | AF31: 0.35 | AG31: 100 | AH31: 0.25 | AI31: 100 | AJ31: 0.25 | AK31: 100 | AL31: 0.25 | AM31: 100 | AN31: 0.25 | AO31: 100 | AP31: 0.2 | AQ31: 100 | AR31: 0.2 | AS31: 100 | AT31: 0.5 | AU31: 100 | AV31: 0.45 | AW31: 100 | AX31: 0.4 | AY31: 100 | AZ31: 0.3 | BA31: 100 | BB31: 0.27 | BC31: 100 | BD31: 0.36 | BE31: 100 | BF31: 0.32 | BG31: 100 | BH31: 0.27 | BI31: 100 | BJ31: 0.22 | BK31: 100 | BL31: 0.18 | BM31: 100 | BN31: 0.14 | BO31: 100 | BP31: 0.32 | BQ31: 100 | BR31: 0.27 | BS31: 100 | BT31: 0.27 | BU31: 100 | BV31: 0.13 | BW31: 100 | BX31: 0.22 | BY31: 100 | BZ31: 0.35 | CA31: 100 | CB31: 0.3 | CC31: 100 | CD31: 0.4 | CE31: 100 | CF31: 0.35 | CG31: 100 | CH31: 0.22 | CI31: 100 | CJ31: 0.35 | CK31: 100 | CL31: 0.25 | CM31: 100
B32: =Ingredients!AG$2 -> CYS | C32: 0 | D32: 100 | E32: % | F32: 0 | G32: 100 | H32: 0 | I32: 100 | J32: 0 | K32: 100 | L32: 0.32 | M32: 100 | N32: 0.27 | O32: 100 | P32: 0.22 | Q32: 100 | R32: 0.25 | S32: 100 | T32: 0.35 | U32: 100 | V32: 0.28 | W32: 100 | X32: 0.23 | Y32: 100 | Z32: 0.5 | AA32: 100 | AB32: 0.5 | AC32: 100 | AD32: 0.4 | AE32: 100 | AF32: 0.3 | AG32: 100 | AH32: 0.3 | AI32: 100 | AJ32: 0.3 | AK32: 100 | AL32: 0.2 | AM32: 100 | AN32: 0.2 | AO32: 100 | AP32: 0.2 | AQ32: 100 | AR32: 0.2 | AS32: 100 | AT32: 0.25 | AU32: 100 | AV32: 0.25 | AW32: 100 | AX32: 0.3 | AY32: 100 | AZ32: 0.25 | BA32: 100 | BB32: 0.23 | BC32: 100 | BD32: 0 | BE32: 100 | BF32: 0 | BG32: 100 | BH32: 0 | BI32: 100 | BJ32: 0 | BK32: 100 | BL32: 0 | BM32: 100 | BN32: 0 | BO32: 100 | BP32: 0 | BQ32: 100 | BR32: 0 | BS32: 100 | BT32: 0 | BU32: 100 | BV32: 0 | BW32: 100 | BX32: 0 | BY32: 100 | BZ32: 0 | CA32: 100 | CB32: 0 | CC32: 100 | CD32: 0 | CE32: 100 | CF32: 0 | CG32: 100 | CH32: 0 | CI32: 100 | CJ32: 0 | CK32: 100 | CL32: 0 | CM32: 100
B33: =Ingredients!AH$2 -> TSAA | C33: 0.9 | D33: 100 | E33: % | F33: 0.9 | G33: 100 | H33: 0.72 | I33: 100 | J33: 0.6 | K33: 100 | L33: 0.62 | M33: 100 | N33: 0.52 | O33: 100 | P33: 0.42 | Q33: 100 | R33: 0.47 | S33: 100 | T33: 0.73 | U33: 100 | V33: 0.58 | W33: 100 | X33: 0.48 | Y33: 100 | Z33: 1.05 | AA33: 100 | AB33: 0.95 | AC33: 100 | AD33: 0.8 | AE33: 100 | AF33: 0.65 | AG33: 100 | AH33: 0.55 | AI33: 100 | AJ33: 0.55 | AK33: 100 | AL33: 0.45 | AM33: 100 | AN33: 0.45 | AO33: 100 | AP33: 0.4 | AQ33: 100 | AR33: 0.4 | AS33: 100 | AT33: 0.75 | AU33: 100 | AV33: 0.7 | AW33: 100 | AX33: 0.7 | AY33: 100 | AZ33: 0.55 | BA33: 100 | BB33: 0.5 | BC33: 100 | BD33: 0.76 | BE33: 100 | BF33: 0.68 | BG33: 100 | BH33: 0.58 | BI33: 100 | BJ33: 0.47 | BK33: 100 | BL33: 0.39 | BM33: 100 | BN33: 0.31 | BO33: 100 | BP33: 0.9 | BQ33: 100 | BR33: 0.81 | BS33: 100 | BT33: 0.75 | BU33: 100 | BV33: 0.332 | BW33: 100 | BX33: 0.41 | BY33: 100 | BZ33: 0.7 | CA33: 100 | CB33: 0.65 | CC33: 100 | CD33: 0.88 | CE33: 100 | CF33: 0.72 | CG33: 100 | CH33: 0.45 | CI33: 100 | CJ33: 0.85 | CK33: 100 | CL33: 0.6 | CM33: 100
B34: =Ingredients!AI$2 -> PHE | C34: 0.72 | D34: 100 | E34: % | F34: 0.72 | G34: 100 | H34: 0.65 | I34: 100 | J34: 0.56 | K34: 100 | L34: 0.54 | M34: 100 | N34: 0.45 | O34: 100 | P34: 0.36 | Q34: 100 | R34: 0.4 | S34: 100 | T34: 0.59 | U34: 100 | V34: 0.47 | W34: 100 | X34: 0.39 | Y34: 100 | Z34: 1 | AA34: 100 | AB34: 0.9 | AC34: 100 | AD34: 0.8 | AE34: 100 | AF34: 0.7 | AG34: 100 | AH34: 0.6 | AI34: 100 | AJ34: 0.6 | AK34: 100 | AL34: 0.5 | AM34: 100 | AN34: 0.5 | AO34: 100 | AP34: 0.4 | AQ34: 100 | AR34: 0.55 | AS34: 100 | AT34: 0.96 | AU34: 100 | AV34: 0.78 | AW34: 100 | AX34: 0 | AY34: 100 | AZ34: 0 | BA34: 100 | BB34: 0 | BC34: 100 | BD34: 0.8 | BE34: 100 | BF34: 0.71 | BG34: 100 | BH34: 0.61 | BI34: 100 | BJ34: 0.49 | BK34: 100 | BL34: 0.4 | BM34: 100 | BN34: 0.31 | BO34: 100 | BP34: 0.71 | BQ34: 100 | BR34: 0.61 | BS34: 100 | BT34: 0 | BU34: 100 | BV34: 0.27 | BW34: 100 | BX34: 0.46 | BY34: 100 | BZ34: 0.55 | CA34: 100 | CB34: 0.5 | CC34: 100 | CD34: 0.76 | CE34: 100 | CF34: 0.65 | CG34: 100 | CH34: 0.4 | CI34: 100 | CJ34: 0.6 | CK34: 100 | CL34: 0.43 | CM34: 100
B35: =Ingredients!AJ$2 -> TYR | C35: 0 | D35: 100 | E35: % | F35: 0 | G35: 100 | H35: 0 | I35: 100 | J35: 0 | K35: 100 | L35: 0.46 | M35: 100 | N35: 0.38 | O35: 100 | P35: 0.31 | Q35: 100 | R35: 0.35 | S35: 100 | T35: 0.45 | U35: 100 | V35: 0.36 | W35: 100 | X35: 0.3 | Y35: 100 | Z35: 0.8 | AA35: 100 | AB35: 0.7 | AC35: 100 | AD35: 0.4 | AE35: 100 | AF35: 0.3 | AG35: 100 | AH35: 0.3 | AI35: 100 | AJ35: 0.3 | AK35: 100 | AL35: 0.4 | AM35: 100 | AN35: 0.4 | AO35: 100 | AP35: 0.4 | AQ35: 100 | AR35: 0.45 | AS35: 100 | AT35: 0.84 | AU35: 100 | AV35: 0.62 | AW35: 100 | AX35: 0 | AY35: 100 | AZ35: 0 | BA35: 100 | BB35: 0 | BC35: 100 | BD35: 0 | BE35: 100 | BF35: 0 | BG35: 100 | BH35: 0 | BI35: 100 | BJ35: 0 | BK35: 100 | BL35: 0 | BM35: 100 | BN35: 0 | BO35: 100 | BP35: 0 | BQ35: 100 | BR35: 0 | BS35: 100 | BT35: 0 | BU35: 100 | BV35: 0 | BW35: 100 | BX35: 0 | BY35: 100 | BZ35: 0 | CA35: 100 | CB35: 0 | CC35: 100 | CD35: 0 | CE35: 100 | CF35: 0 | CG35: 100 | CH35: 0 | CI35: 100 | CJ35: 0 | CK35: 100 | CL35: 0 | CM35: 100
B36: =Ingredients!AK$2 -> TAAA | C36: 1.34 | D36: 100 | E36: % | F36: 1.34 | G36: 100 | H36: 1.22 | I36: 100 | J36: 1.04 | K36: 100 | L36: 1 | M36: 100 | N36: 0.83 | O36: 100 | P36: 0.67 | Q36: 100 | R36: 0.75 | S36: 100 | T36: 1.04 | U36: 100 | V36: 0.83 | W36: 100 | X36: 0.69 | Y36: 100 | Z36: 1.8 | AA36: 100 | AB36: 1.6 | AC36: 100 | AD36: 1.2 | AE36: 100 | AF36: 1 | AG36: 100 | AH36: 0.9 | AI36: 100 | AJ36: 0.9 | AK36: 100 | AL36: 0.9 | AM36: 100 | AN36: 0.9 | AO36: 100 | AP36: 0.8 | AQ36: 100 | AR36: 1 | AS36: 100 | AT36: 1.8 | AU36: 100 | AV36: 1.4 | AW36: 100 | AX36: 0 | AY36: 100 | AZ36: 0 | BA36: 100 | BB36: 0 | BC36: 100 | BD36: 1.26 | BE36: 100 | BF36: 1.12 | BG36: 100 | BH36: 0.95 | BI36: 100 | BJ36: 0.78 | BK36: 100 | BL36: 0.63 | BM36: 100 | BN36: 0.49 | BO36: 100 | BP36: 1.12 | BQ36: 100 | BR36: 0.95 | BS36: 100 | BT36: 0.95 | BU36: 100 | BV36: 0 | BW36: 100 | BX36: 0 | BY36: 100 | BZ36: 1.04 | CA36: 100 | CB36: 0.91 | CC36: 100 | CD36: 1.53 | CE36: 100 | CF36: 1.25 | CG36: 100 | CH36: 0.78 | CI36: 100 | CJ36: 1.29 | CK36: 100 | CL36: 0.83 | CM36: 100
B37: =Ingredients!AL$2 -> THR | C37: 0.8 | D37: 100 | E37: % | F37: 0.8 | G37: 100 | H37: 0.74 | I37: 100 | J37: 0.68 | K37: 100 | L37: 0.68 | M37: 100 | N37: 0.57 | O37: 100 | P37: 0.37 | Q37: 100 | R37: 0.47 | S37: 100 | T37: 0.59 | U37: 100 | V37: 0.47 | W37: 100 | X37: 0.39 | Y37: 100 | Z37: 1 | AA37: 100 | AB37: 0.95 | AC37: 100 | AD37: 0.8 | AE37: 100 | AF37: 0.75 | AG37: 100 | AH37: 0.6 | AI37: 100 | AJ37: 0.6 | AK37: 100 | AL37: 0.5 | AM37: 100 | AN37: 0.5 | AO37: 100 | AP37: 0.4 | AQ37: 100 | AR37: 0.45 | AS37: 100 | AT37: 1.02 | AU37: 100 | AV37: 0.74 | AW37: 100 | AX37: 0 | AY37: 100 | AZ37: 0 | BA37: 100 | BB37: 0 | BC37: 100 | BD37: 0.84 | BE37: 100 | BF37: 0.74 | BG37: 100 | BH37: 0.63 | BI37: 100 | BJ37: 0.52 | BK37: 100 | BL37: 0.43 | BM37: 100 | BN37: 0.34 | BO37: 100 | BP37: 0.74 | BQ37: 100 | BR37: 0.63 | BS37: 100 | BT37: 0.63 | BU37: 100 | BV37: 0.37 | BW37: 100 | BX37: 0.52 | BY37: 100 | BZ37: 0.55 | CA37: 100 | CB37: 0.48 | CC37: 100 | CD37: 0.81 | CE37: 100 | CF37: 0.66 | CG37: 100 | CH37: 0.41 | CI37: 100 | CJ37: 0.62 | CK37: 100 | CL37: 0.5 | CM37: 100
B38: =Ingredients!AM$2 -> TRP | C38: 0.2 | D38: 100 | E38: % | F38: 0.2 | G38: 100 | H38: 0.18 | I38: 100 | J38: 0.16 | K38: 100 | L38: 0.17 | M38: 100 | N38: 0.14 | O38: 100 | P38: 0.11 | Q38: 100 | R38: 0.12 | S38: 100 | T38: 0.2 | U38: 100 | V38: 0.16 | W38: 100 | X38: 0.13 | Y38: 100 | Z38: 0.26 | AA38: 100 | AB38: 0.4 | AC38: 100 | AD38: 0.2 | AE38: 100 | AF38: 0.18 | AG38: 100 | AH38: 0.15 | AI38: 100 | AJ38: 0.15 | AK38: 100 | AL38: 0.13 | AM38: 100 | AN38: 0.13 | AO38: 100 | AP38: 0.1 | AQ38: 100 | AR38: 0.13 | AS38: 100 | AT38: 0.22 | AU38: 100 | AV38: 0.19 | AW38: 100 | AX38: 0.23 | AY38: 100 | AZ38: 0.17 | BA38: 100 | BB38: 0.14 | BC38: 100 | BD38: 0.24 | BE38: 100 | BF38: 0.22 | BG38: 100 | BH38: 0.18 | BI38: 100 | BJ38: 0.15 | BK38: 100 | BL38: 0.12 | BM38: 100 | BN38: 0.1 | BO38: 100 | BP38: 0.28 | BQ38: 100 | BR38: 0.25 | BS38: 100 | BT38: 0.24 | BU38: 100 | BV38: 0.09 | BW38: 100 | BX38: 0.15 | BY38: 100 | BZ38: 0.14 | CA38: 100 | CB38: 0.12 | CC38: 100 | CD38: 0.21 | CE38: 100 | CF38: 0.17 | CG38: 100 | CH38: 0.11 | CI38: 100 | CJ38: 0.18 | CK38: 100 | CL38: 0.145 | CM38: 100
B39: =Ingredients!AN$2 -> VAL | C39: 0.9 | D39: 100 | E39: % | F39: 0.9 | G39: 100 | H39: 0.7 | I39: 100 | J39: 0 | K39: 100 | L39: 0.62 | M39: 100 | N39: 0.52 | O39: 100 | P39: 0.41 | Q39: 100 | R39: 0.46 | S39: 100 | T39: 0.88 | U39: 100 | V39: 0.7 | W39: 100 | X39: 0.58 | Y39: 100 | Z39: 1.2 | AA39: 100 | AB39: 1.1 | AC39: 100 | AD39: 0.9 | AE39: 100 | AF39: 0.8 | AG39: 100 | AH39: 0.7 | AI39: 100 | AJ39: 0.7 | AK39: 100 | AL39: 0.6 | AM39: 100 | AN39: 0.6 | AO39: 100 | AP39: 0.5 | AQ39: 100 | AR39: 0.58 | AS39: 100 | AT39: 0.95 | AU39: 100 | AV39: 0.92 | AW39: 100 | AX39: 0.78 | AY39: 100 | AZ39: 0.56 | BA39: 100 | BB39: 0.47 | BC39: 100 | BD39: 0.91 | BE39: 100 | BF39: 0.81 | BG39: 100 | BH39: 0.69 | BI39: 100 | BJ39: 0.56 | BK39: 100 | BL39: 0.45 | BM39: 100 | BN39: 0.35 | BO39: 100 | BP39: 0.81 | BQ39: 100 | BR39: 0.69 | BS39: 100 | BT39: 0 | BU39: 100 | BV39: 0.31 | BW39: 100 | BX39: 0.72 | BY39: 100 | BZ39: 0.68 | CA39: 100 | CB39: 0.55 | CC39: 100 | CD39: 0.94 | CE39: 100 | CF39: 0.77 | CG39: 100 | CH39: 0.48 | CI39: 100 | CJ39: 0.76 | CK39: 100 | CL39: 0.45 | CM39: 100

Sheet Formulate
B1: WUFFF DA | H1: Formula Cost = | J1: =K1/100 -> 23.52479092 | K1: =SUMPRODUCT($E$8:$E$32,AD7:AD31) -> 2352.479092
B3: !!! MAKE NO CHANGES IN THIS WINDOW !!!
B4: Feed Name: | D4: Example Feed | AF4: =Ingredients!#REF! ->  | AM4: =Ingredients!#REF! ->  | AN4: =Ingredients!#REF! ->  | AZ4: =Ingredients!#REF! -> 
AB5: $/Ingred. | AD5: =Ingredients!C2 -> Cost | AE5: =Ingredients!F2 -> Weight | AF5: =Ingredients!G2 -> Dry Matter | AG5: =Ingredients!H2 -> M.E. | AH5: =Ingredients!I2 -> Protein | AI5: =Ingredients!J2 -> E.E. | AJ5: =Ingredients!K2 -> C18:2 | AK5: =Ingredients!L2 -> C.F | AL5: =Ingredients!M2 -> Calcium | AM5: =Ingredients!N2 -> Total Phos. | AN5: =Ingredients!O2 -> Avail. Phos. | AO5: =Ingredients!P3 -> 2 | AP5: =Ingredients!Q2 -> 1 | AQ5: =Ingredients!R2 -> 0 | AR5: =Ingredients!S2 -> 0 | AS5: =Ingredients!T2 -> Na | AT5: =Ingredients!U2 -> 1 | AU5: =Ingredients!V2 -> 0 | AV5: =Ingredients!W2 -> 0 | AW5: =Ingredients!X2 -> ARG | AX5: =Ingredients!Y2 -> GLY | AY5: =Ingredients!Z2 -> SER | AZ5: =Ingredients!AA2 -> GLY & SER | BA5: =Ingredients!AB2 -> HIS | BB5: =Ingredients!AC2 -> ILE | BC5: =Ingredients!AD2 -> LEU | BD5: =Ingredients!AE2 -> LYS | BE5: =Ingredients!AF2 -> MET | BF5: =Ingredients!AG2 -> CYS | BG5: =Ingredients!AH2 -> TSAA | BH5: =Ingredients!AI2 -> PHE | BI5: =Ingredients!AJ2 -> TYR | BJ5: =Ingredients!AK2 -> TAAA | BK5: =Ingredients!AL2 -> THR | BL5: =Ingredients!AM2 -> TRP | BM5: =Ingredients!AN2 -> VAL
B6: Ingredient | C6: Cost | D6: Min. | E6: Amount | F6: Max. | H6: Nutrient | I6: Required | J6: Supplied | K6: Max. | L6: Units
C7: $/cwt | D7: % | E7: % | F7: % | AB7: =E8*AD7 -> 378.7421438 | AC7: =Ingredients!B5 -> LOW CP CORN | AD7: =Ingredients!C5 -> 16 | AE7: =Ingredients!F5 -> 1 | AF7: =Ingredients!G5/100 -> 0.89 | AG7: =Ingredients!H5/100 -> 0.0335 | AH7: =Ingredients!I5/100 -> 0.0641 | AI7: =Ingredients!J5/100 -> 0.038 | AJ7: =Ingredients!K5/100 -> 0.022 | AK7: =Ingredients!L5/100 -> 0.022 | AL7: =Ingredients!M5/100 -> 0.0002 | AM7: =Ingredients!N5/100 -> 0.0028 | AN7: =Ingredients!O5/100 -> 0.001 | AO7: =Ingredients!P5/100 -> 0.0009 | AP7: =Ingredients!Q5/100 -> -0.01 | AQ7: =Ingredients!R5/100 -> 0 | AR7: =Ingredients!S5/100 -> 0.01 | AS7: =Ingredients!T5/100 -> 0.0002 | AT7: =Ingredients!U5/100 -> 0 | AU7: =Ingredients!V5/100 -> 0 | AV7: =Ingredients!W5/100 -> 0 | AW7: =Ingredients!X5/100 -> 0.003104304 | AX7: =Ingredients!Y5/100 -> 0.002643024 | AY7: =Ingredients!Z5/100 -> 0.002994752 | AZ7: =Ingredients!AA5/100 -> 0.007 | BA7: =Ingredients!AB5/100 -> 0.001784544 | BB7: =Ingredients!AC5/100 -> 0.00215376 | BC7: =Ingredients!AD5/100 -> 0.007124224 | BD7: =Ingredients!AE5/100 -> 0.001876848 | BE7: =Ingredients!AF5/100 -> 0.001330736 | BF7: =Ingredients!AG5/100 -> 0.001432016 | BG7: =Ingredients!AH5/100 -> 0.002762752 | BH7: =Ingredients!AI5/100 -> 0.003046032 | BI7: =Ingredients!AJ5/100 -> 0.002143504 | BJ7: =Ingredients!AK5/100 -> 0.005189536 | BK7: =Ingredients!AL5/100 -> 0.00225632 | BL7: =Ingredients!AM5/100 -> 0.000564096 | BM7: =Ingredients!AN5/100 -> 0.003005008
B8: =Ingredients!B5 -> LOW CP CORN | C8: =Ingredients!C5 -> 16 | D8: =Ingredients!D5 -> 0 | E8: 23.67138399 | F8: =Ingredients!E5 -> 100 | H8: =Nutrients!B6 -> Dry Matter | I8: =Nutrients!C6 -> 0 | J8: =SUMPRODUCT($E$8:$E$32,AF7:AF31) -> 87.19274807 | K8: =Nutrients!D6 -> 100 | L8: =Nutrients!E6 -> % | AB8: 378.7421438 | AC8: =Ingredients!B6 -> HIGH CP CORN | AD8: =Ingredients!C6 -> 16 | AE8: =Ingredients!F6 -> 1 | AF8: =Ingredients!G6/100 -> 0.89 | AG8: =Ingredients!H6/100 -> 0.0335 | AH8: =Ingredients!I6/100 -> 0.0737 | AI8: =Ingredients!J6/100 -> 0.038 | AJ8: =Ingredients!K6/100 -> 0.022 | AK8: =Ingredients!L6/100 -> 0.022 | AL8: =Ingredients!M6/100 -> 0.0002 | AM8: =Ingredients!N6/100 -> 0.0028 | AN8: =Ingredients!O6/100 -> 0.001 | AO8: =Ingredients!P6/100 -> 0.0009 | AP8: =Ingredients!Q6/100 -> 0.01 | AQ8: =Ingredients!R6/100 -> 0.01 | AR8: =Ingredients!S6/100 -> 0 | AS8: =Ingredients!T6/100 -> 0.0002 | AT8: =Ingredients!U6/100 -> 0 | AU8: =Ingredients!V6/100 -> 0 | AV8: =Ingredients!W6/100 -> 0 | AW8: =Ingredients!X6/100 -> 0.003310128 | AX8: =Ingredients!Y6/100 -> 0.002841168 | AY8: =Ingredients!Z6/100 -> 0.003443264 | AZ8: =Ingredients!AA6/100 -> 0.007 | BA8: =Ingredients!AB6/100 -> 0.002051808 | BB8: =Ingredients!AC6/100 -> 0.00247632 | BC8: =Ingredients!AD6/100 -> 0.008589568 | BD8: =Ingredients!AE6/100 -> 0.002157936 | BE8: =Ingredients!AF6/100 -> 0.001455152 | BF8: =Ingredients!AG6/100 -> 0.001564112 | BG8: =Ingredients!AH6/100 -> 0.003019264 | BH8: =Ingredients!AI6/100 -> 0.003502224 | BI8: =Ingredients!AJ6/100 -> 0.002464528 | BJ8: =Ingredients!AK6/100 -> 0.005966752 | BK8: =Ingredients!AL6/100 -> 0.00259424 | BL8: =Ingredients!AM6/100 -> 0.000588672 | BM8: =Ingredients!AN6/100 -> 0.003455056
B9: =Ingredients!B6 -> HIGH CP CORN | C9: =Ingredients!C6 -> 16 | D9: =Ingredients!D6 -> 0 | E9: 23.67138399 | F9: =Ingredients!E6 -> 100 | H9: =Nutrients!B7 -> M.E. | I9: =Nutrients!C7 -> 3.2 | J9: =SUMPRODUCT($E$8:$E$32,AG7:AG31) -> 3.2 | K9: =Nutrients!D7 -> 100 | L9: =Nutrients!E7 -> Kcal/g | AB9: 577.2408845 | AC9: =Ingredients!B7 -> LOW CP SBM | AD9: =Ingredients!C7 -> 28 | AE9: =Ingredients!F7 -> 1 | AF9: =Ingredients!G7/100 -> 0.9 | AG9: =Ingredients!H7/100 -> 0.0244 | AH9: =Ingredients!I7/100 -> 0.4638 | AI9: =Ingredients!J7/100 -> 0.01 | AJ9: =Ingredients!K7/100 -> 0.004 | AK9: =Ingredients!L7/100 -> 0.039 | AL9: =Ingredients!M7/100 -> 0.0027 | AM9: =Ingredients!N7/100 -> 0.0062 | AN9: =Ingredients!O7/100 -> 0.0024 | AO9: =Ingredients!P7/100 -> 0.00105 | AP9: =Ingredients!Q7/100 -> 0 | AQ9: =Ingredients!R7/100 -> 0 | AR9: =Ingredients!S7/100 -> 0 | AS9: =Ingredients!T7/100 -> 0.0003 | AT9: =Ingredients!U7/100 -> -0.01 | AU9: =Ingredients!V7/100 -> 0 | AV9: =Ingredients!W7/100 -> 0.01 | AW9: =Ingredients!X7/100 -> 0.033170976 | AX9: =Ingredients!Y7/100 -> 0.019427344 | AY9: =Ingredients!Z7/100 -> 0.022930272 | AZ9: =Ingredients!AA7/100 -> 0.0553 | BA9: =Ingredients!AB7/100 -> 0.011650656 | BB9: =Ingredients!AC7/100 -> 0.020926656 | BC9: =Ingredients!AD7/100 -> 0.035100384 | BD9: =Ingredients!AE7/100 -> 0.028124832 | BE9: =Ingredients!AF7/100 -> 0.006085056 | BF9: =Ingredients!AG7/100 -> 0.006381888 | BG9: =Ingredients!AH7/100 -> 0.012466944 | BH9: =Ingredients!AI7/100 -> 0.023449728 | BI9: =Ingredients!AJ7/100 -> 0.017142048 | BJ9: =Ingredients!AK7/100 -> 0.040591776 | BK9: =Ingredients!AL7/100 -> 0.017884128 | BL9: =Ingredients!AM7/100 -> 0.006233472 | BM9: =Ingredients!AN7/100 -> 0.021965568
B10: =Ingredients!B7 -> LOW CP SBM | C10: =Ingredients!C7 -> 28 | D10: =Ingredients!D7 -> 0 | E10: 20.61574587 | F10: =Ingredients!E7 -> 100 | H10: =Nutrients!B8 -> Protein | I10: =Nutrients!C8 -> 23 | J10: =SUMPRODUCT($E$8:$E$32,AH7:AH31) -> 23 | K10: =Nutrients!D8 -> 100 | L10: =Nutrients!E8 -> % | AB10: 577.2408845 | AC10: =Ingredients!B8 -> HIGH CP SBM | AD10: =Ingredients!C8 -> 28 | AE10: =Ingredients!F8 -> 1 | AF10: =Ingredients!G8/100 -> 0.9 | AG10: =Ingredients!H8/100 -> 0.0244 | AH10: =Ingredients!I8/100 -> 0.4869 | AI10: =Ingredients!J8/100 -> 0.01 | AJ10: =Ingredients!K8/100 -> 0.004 | AK10: =Ingredients!L8/100 -> 0.039 | AL10: =Ingredients!M8/100 -> 0.0027 | AM10: =Ingredients!N8/100 -> 0.0062 | AN10: =Ingredients!O8/100 -> 0.0024 | AO10: =Ingredients!P8/100 -> 0.00105 | AP10: =Ingredients!Q8/100 -> 0 | AQ10: =Ingredients!R8/100 -> 0 | AR10: =Ingredients!S8/100 -> 0 | AS10: =Ingredients!T8/100 -> 0.0003 | AT10: =Ingredients!U8/100 -> 0.01 | AU10: =Ingredients!V8/100 -> 0.01 | AV10: =Ingredients!W8/100 -> 0 | AW10: =Ingredients!X8/100 -> 0.034823088 | AX10: =Ingredients!Y8/100 -> 0.020233072 | AY10: =Ingredients!Z8/100 -> 0.024072336 | AZ10: =Ingredients!AA8/100 -> 0.0553 | BA10: =Ingredients!AB8/100 -> 0.012230928 | BB10: =Ingredients!AC8/100 -> 0.021968928 | BC10: =Ingredients!AD8/100 -> 0.036848592 | BD10: =Ingredients!AE8/100 -> 0.029525616 | BE10: =Ingredients!AF8/100 -> 0.006388128 | BF10: =Ingredients!AG8/100 -> 0.006699744 | BG10: =Ingredients!AH8/100 -> 0.013087872 | BH10: =Ingredients!AI8/100 -> 0.024617664 | BI10: =Ingredients!AJ8/100 -> 0.017995824 | BJ10: =Ingredients!AK8/100 -> 0.042613488 | BK10: =Ingredients!AL8/100 -> 0.018774864 | BL10: =Ingredients!AM8/100 -> 0.006543936 | BM10: =Ingredients!AN8/100 -> 0.023059584
B11: =Ingredients!B8 -> HIGH CP SBM | C11: =Ingredients!C8 -> 28 | D11: =Ingredients!D8 -> 0 | E11: 20.61574587 | F11: =Ingredients!E8 -> 100 | H11: =Nutrients!B9 -> E.E. | I11: =Nutrients!C9 -> 0 | J11: =SUMPRODUCT($E$8:$E$32,AI7:AI31) -> 9.519559558 | K11: =Nutrients!D9 -> 100 | L11: =Nutrients!E9 -> % | AB11: 0 | AC11: =Ingredients!B9 -> 0 | AD11: =Ingredients!C9 -> 0 | AE11: =Ingredients!F9 -> 0 | AF11: =Ingredients!G9/100 -> 0 | AG11: =Ingredients!H9/100 -> 0 | AH11: =Ingredients!I9/100 -> 0 | AI11: =Ingredients!J9/100 -> 0 | AJ11: =Ingredients!K9/100 -> 0 | AK11: =Ingredients!L9/100 -> 0 | AL11: =Ingredients!M9/100 -> 0 | AM11: =Ingredients!N9/100 -> 0 | AN11: =Ingredients!O9/100 -> 0 | AO11: =Ingredients!P9/100 -> 0 | AP11: =Ingredients!Q9/100 -> 0 | AQ11: =Ingredients!R9/100 -> 0 | AR11: =Ingredients!S9/100 -> 0 | AS11: =Ingredients!T9/100 -> 0 | AT11: =Ingredients!U9/100 -> 0 | AU11: =Ingredients!V9/100 -> 0 | AV11: =Ingredients!W9/100 -> 0 | AW11: =Ingredients!X9/100 -> 0 | AX11: =Ingredients!Y9/100 -> 0 | AY11: =Ingredients!Z9/100 -> 0 | AZ11: =Ingredients!AA9/100 -> 0 | BA11: =Ingredients!AB9/100 -> 0 | BB11: =Ingredients!AC9/100 -> 0 | BC11: =Ingredients!AD9/100 -> 0 | BD11: =Ingredients!AE9/100 -> 0 | BE11: =Ingredients!AF9/100 -> 0 | BF11: =Ingredients!AG9/100 -> 0 | BG11: =Ingredients!AH9/100 -> 0 | BH11: =Ingredients!AI9/100 -> 0 | BI11: =Ingredients!AJ9/100 -> 0 | BJ11: =Ingredients!AK9/100 -> 0 | BK11: =Ingredients!AL9/100 -> 0 | BL11: =Ingredients!AM9/100 -> 0 | BM11: =Ingredients!AN9/100 -> 0
B12: =Ingredients!B9 -> 0 | C12: =Ingredients!C9 -> 0 | D12: =Ingredients!D9 -> 0 | E12: 0 | F12: =Ingredients!E9 -> 0 | H12: =Nutrients!B10 -> C18:2 | I12: =Nutrients!C10 -> 1 | J12: =SUMPRODUCT($E$8:$E$32,AJ7:AJ31) -> 2.631569657 | K12: =Nutrients!D10 -> 100 | L12: =Nutrients!E10 -> % | AB12: 0 | AC12: =Ingredients!B10 -> 0 | AD12: =Ingredients!C10 -> 0 | AE12: =Ingredients!F10 -> 0 | AF12: =Ingredients!G10/100 -> 0 | AG12: =Ingredients!H10/100 -> 0 | AH12: =Ingredients!I10/100 -> 0 | AI12: =Ingredients!J10/100 -> 0 | AJ12: =Ingredients!K10/100 -> 0 | AK12: =Ingredients!L10/100 -> 0 | AL12: =Ingredients!M10/100 -> 0 | AM12: =Ingredients!N10/100 -> 0 | AN12: =Ingredients!O10/100 -> 0 | AO12: =Ingredients!P10/100 -> 0 | AP12: =Ingredients!Q10/100 -> 0 | AQ12: =Ingredients!R10/100 -> 0 | AR12: =Ingredients!S10/100 -> 0 | AS12: =Ingredients!T10/100 -> 0 | AT12: =Ingredients!U10/100 -> 0 | AU12: =Ingredients!V10/100 -> 0 | AV12: =Ingredients!W10/100 -> 0 | AW12: =Ingredients!X10/100 -> 0 | AX12: =Ingredients!Y10/100 -> 0 | AY12: =Ingredients!Z10/100 -> 0 | AZ12: =Ingredients!AA10/100 -> 0 | BA12: =Ingredients!AB10/100 -> 0 | BB12: =Ingredients!AC10/100 -> 0 | BC12: =Ingredients!AD10/100 -> 0 | BD12: =Ingredients!AE10/100 -> 0 | BE12: =Ingredients!AF10/100 -> 0 | BF12: =Ingredients!AG10/100 -> 0 | BG12: =Ingredients!AH10/100 -> 0 | BH12: =Ingredients!AI10/100 -> 0 | BI12: =Ingredients!AJ10/100 -> 0 | BJ12: =Ingredients!AK10/100 -> 0 | BK12: =Ingredients!AL10/100 -> 0 | BL12: =Ingredients!AM10/100 -> 0 | BM12: =Ingredients!AN10/100 -> 0
B13: =Ingredients!B10 -> 0 | C13: =Ingredients!C10 -> 0 | D13: =Ingredients!D10 -> 0 | E13: 0 | F13: =Ingredients!E10 -> 0 | H13: =Nutrients!B11 -> C.F | I13: =Nutrients!C11 -> 0 | J13: =SUMPRODUCT($E$8:$E$32,AK7:AK31) -> 2.649569074 | K13: =Nutrients!D11 -> 100 | L13: =Nutrients!E11 -> % | AB13: 248.4794615 | AC13: =Ingredients!B11 -> Poultry Fat | AD13: =Ingredients!C11 -> 34 | AE13: =Ingredients!F11 -> 1 | AF13: =Ingredients!G11/100 -> 1 | AG13: =Ingredients!H11/100 -> 0.082 | AH13: =Ingredients!I11/100 -> 0 | AI13: =Ingredients!J11/100 -> 1 | AJ13: =Ingredients!K11/100 -> 0.195 | AK13: =Ingredients!L11/100 -> 0 | AL13: =Ingredients!M11/100 -> 0 | AM13: =Ingredients!N11/100 -> 0 | AN13: =Ingredients!O11/100 -> 0 | AO13: =Ingredients!P11/100 -> 0 | AP13: =Ingredients!Q11/100 -> 0 | AQ13: =Ingredients!R11/100 -> 0 | AR13: =Ingredients!S11/100 -> 0 | AS13: =Ingredients!T11/100 -> 0 | AT13: =Ingredients!U11/100 -> 0 | AU13: =Ingredients!V11/100 -> 0 | AV13: =Ingredients!W11/100 -> 0 | AW13: =Ingredients!X11/100 -> 0 | AX13: =Ingredients!Y11/100 -> 0 | AY13: =Ingredients!Z11/100 -> 0 | AZ13: =Ingredients!AA11/100 -> 0 | BA13: =Ingredients!AB11/100 -> 0 | BB13: =Ingredients!AC11/100 -> 0 | BC13: =Ingredients!AD11/100 -> 0 | BD13: =Ingredients!AE11/100 -> 0 | BE13: =Ingredients!AF11/100 -> 0 | BF13: =Ingredients!AG11/100 -> 0 | BG13: =Ingredients!AH11/100 -> 0 | BH13: =Ingredients!AI11/100 -> 0 | BI13: =Ingredients!AJ11/100 -> 0 | BJ13: =Ingredients!AK11/100 -> 0 | BK13: =Ingredients!AL11/100 -> 0 | BL13: =Ingredients!AM11/100 -> 0 | BM13: =Ingredients!AN11/100 -> 0
B14: =Ingredients!B11 -> Poultry Fat | C14: =Ingredients!C11 -> 34 | D14: =Ingredients!D11 -> 0 | E14: 7.308219457 | F14: =Ingredients!E11 -> 100 | H14: =Nutrients!B12 -> Calcium | I14: =Nutrients!C12 -> 1 | J14: =SUMPRODUCT($E$8:$E$32,AL7:AL31) -> 1 | K14: =Nutrients!D12 -> 100 | L14: =Nutrients!E12 -> % | AB14: 0 | AC14: =Ingredients!B12 -> 0 | AD14: =Ingredients!C12 -> 0 | AE14: =Ingredients!F12 -> 0 | AF14: =Ingredients!G12/100 -> 0 | AG14: =Ingredients!H12/100 -> 0 | AH14: =Ingredients!I12/100 -> 0 | AI14: =Ingredients!J12/100 -> 0 | AJ14: =Ingredients!K12/100 -> 0 | AK14: =Ingredients!L12/100 -> 0 | AL14: =Ingredients!M12/100 -> 0 | AM14: =Ingredients!N12/100 -> 0 | AN14: =Ingredients!O12/100 -> 0 | AO14: =Ingredients!P12/100 -> 0 | AP14: =Ingredients!Q12/100 -> 0 | AQ14: =Ingredients!R12/100 -> 0 | AR14: =Ingredients!S12/100 -> 0 | AS14: =Ingredients!T12/100 -> 0 | AT14: =Ingredients!U12/100 -> 0 | AU14: =Ingredients!V12/100 -> 0 | AV14: =Ingredients!W12/100 -> 0 | AW14: =Ingredients!X12/100 -> 0 | AX14: =Ingredients!Y12/100 -> 0 | AY14: =Ingredients!Z12/100 -> 0 | AZ14: =Ingredients!AA12/100 -> 0 | BA14: =Ingredients!AB12/100 -> 0 | BB14: =Ingredients!AC12/100 -> 0 | BC14: =Ingredients!AD12/100 -> 0 | BD14: =Ingredients!AE12/100 -> 0 | BE14: =Ingredients!AF12/100 -> 0 | BF14: =Ingredients!AG12/100 -> 0 | BG14: =Ingredients!AH12/100 -> 0 | BH14: =Ingredients!AI12/100 -> 0 | BI14: =Ingredients!AJ12/100 -> 0 | BJ14: =Ingredients!AK12/100 -> 0 | BK14: =Ingredients!AL12/100 -> 0 | BL14: =Ingredients!AM12/100 -> 0 | BM14: =Ingredients!AN12/100 -> 0
B15: =Ingredients!B12 -> 0 | C15: =Ingredients!C12 -> 0 | D15: =Ingredients!D12 -> 0 | E15: 0 | F15: =Ingredients!E12 -> 0 | H15: =Nutrients!B13 -> Total Phos. | I15: =Nutrients!C13 -> 0 | J15: =SUMPRODUCT($E$8:$E$32,AM7:AM31) -> 0.691896651 | K15: =Nutrients!D13 -> 100 | L15: =Nutrients!E13 -> % | AB15: 0 | AC15: =Ingredients!B13 -> 0 | AD15: =Ingredients!C13 -> 0 | AE15: =Ingredients!F13 -> 0 | AF15: =Ingredients!G13/100 -> 0 | AG15: =Ingredients!H13/100 -> 0 | AH15: =Ingredients!I13/100 -> 0 | AI15: =Ingredients!J13/100 -> 0 | AJ15: =Ingredients!K13/100 -> 0 | AK15: =Ingredients!L13/100 -> 0 | AL15: =Ingredients!M13/100 -> 0 | AM15: =Ingredients!N13/100 -> 0 | AN15: =Ingredients!O13/100 -> 0 | AO15: =Ingredients!P13/100 -> 0 | AP15: =Ingredients!Q13/100 -> 0 | AQ15: =Ingredients!R13/100 -> 0 | AR15: =Ingredients!S13/100 -> 0 | AS15: =Ingredients!T13/100 -> 0 | AT15: =Ingredients!U13/100 -> 0 | AU15: =Ingredients!V13/100 -> 0 | AV15: =Ingredients!W13/100 -> 0 | AW15: =Ingredients!X13/100 -> 0 | AX15: =Ingredients!Y13/100 -> 0 | AY15: =Ingredients!Z13/100 -> 0 | AZ15: =Ingredients!AA13/100 -> 0 | BA15: =Ingredients!AB13/100 -> 0 | BB15: =Ingredients!AC13/100 -> 0 | BC15: =Ingredients!AD13/100 -> 0 | BD15: =Ingredients!AE13/100 -> 0 | BE15: =Ingredients!AF13/100 -> 0 | BF15: =Ingredients!AG13/100 -> 0 | BG15: =Ingredients!AH13/100 -> 0 | BH15: =Ingredients!AI13/100 -> 0 | BI15: =Ingredients!AJ13/100 -> 0 | BJ15: =Ingredients!AK13/100 -> 0 | BK15: =Ingredients!AL13/100 -> 0 | BL15: =Ingredients!AM13/100 -> 0 | BM15: =Ingredients!AN13/100 -> 0
B16: =Ingredients!B13 -> 0 | C16: =Ingredients!C13 -> 0 | D16: =Ingredients!D13 -> 0 | E16: 0 | F16: =Ingredients!E13 -> 0 | H16: =Nutrients!B14 -> Avail. Phos. | I16: =Nutrients!C14 -> 0.45 | J16: =SUMPRODUCT($E$8:$E$32,AN7:AN31) -> 0.45 | K16: =Nutrients!D14 -> 100 | L16: =Nutrients!E14 -> % | AB16: 0 | AC16: =Ingredients!B14 -> 0 | AD16: =Ingredients!C14 -> 0 | AE16: =Ingredients!F14 -> 0 | AF16: =Ingredients!G14/100 -> 0 | AG16: =Ingredients!H14/100 -> 0 | AH16: =Ingredients!I14/100 -> 0 | AI16: =Ingredients!J14/100 -> 0 | AJ16: =Ingredients!K14/100 -> 0 | AK16: =Ingredients!L14/100 -> 0 | AL16: =Ingredients!M14/100 -> 0 | AM16: =Ingredients!N14/100 -> 0 | AN16: =Ingredients!O14/100 -> 0 | AO16: =Ingredients!P14/100 -> 0 | AP16: =Ingredients!Q14/100 -> 0 | AQ16: =Ingredients!R14/100 -> 0 | AR16: =Ingredients!S14/100 -> 0 | AS16: =Ingredients!T14/100 -> 0 | AT16: =Ingredients!U14/100 -> 0 | AU16: =Ingredients!V14/100 -> 0 | AV16: =Ingredients!W14/100 -> 0 | AW16: =Ingredients!X14/100 -> 0 | AX16: =Ingredients!Y14/100 -> 0 | AY16: =Ingredients!Z14/100 -> 0 | AZ16: =Ingredients!AA14/100 -> 0 | BA16: =Ingredients!AB14/100 -> 0 | BB16: =Ingredients!AC14/100 -> 0 | BC16: =Ingredients!AD14/100 -> 0 | BD16: =Ingredients!AE14/100 -> 0 | BE16: =Ingredients!AF14/100 -> 0 | BF16: =Ingredients!AG14/100 -> 0 | BG16: =Ingredients!AH14/100 -> 0 | BH16: =Ingredients!AI14/100 -> 0 | BI16: =Ingredients!AJ14/100 -> 0 | BJ16: =Ingredients!AK14/100 -> 0 | BK16: =Ingredients!AL14/100 -> 0 | BL16: =Ingredients!AM14/100 -> 0 | BM16: =Ingredients!AN14/100 -> 0
B17: =Ingredients!B14 -> 0 | C17: =Ingredients!C14 -> 0 | D17: =Ingredients!D14 -> 0 | E17: 0 | F17: =Ingredients!E14 -> 0 | H17: =Nutrients!B15 -> Ca:P= | I17: =Nutrients!C15 -> -100 | J17: =SUMPRODUCT($E$8:$E$32,AO7:AO31) -> -0.05 | K17: =Nutrients!D15 -> 100 | L17: =Nutrients!E15 -> - | AB17: 0 | AC17: =Ingredients!B15 -> 0 | AD17: =Ingredients!C15 -> 0 | AE17: =Ingredients!F15 -> 0 | AF17: =Ingredients!G15/100 -> 0 | AG17: =Ingredients!H15/100 -> 0 | AH17: =Ingredients!I15/100 -> 0 | AI17: =Ingredients!J15/100 -> 0 | AJ17: =Ingredients!K15/100 -> 0 | AK17: =Ingredients!L15/100 -> 0 | AL17: =Ingredients!M15/100 -> 0 | AM17: =Ingredients!N15/100 -> 0 | AN17: =Ingredients!O15/100 -> 0 | AO17: =Ingredients!P15/100 -> 0 | AP17: =Ingredients!Q15/100 -> 0 | AQ17: =Ingredients!R15/100 -> 0 | AR17: =Ingredients!S15/100 -> 0 | AS17: =Ingredients!T15/100 -> 0 | AT17: =Ingredients!U15/100 -> 0 | AU17: =Ingredients!V15/100 -> 0 | AV17: =Ingredients!W15/100 -> 0 | AW17: =Ingredients!X15/100 -> 0 | AX17: =Ingredients!Y15/100 -> 0 | AY17: =Ingredients!Z15/100 -> 0 | AZ17: =Ingredients!AA15/100 -> 0 | BA17: =Ingredients!AB15/100 -> 0 | BB17: =Ingredients!AC15/100 -> 0 | BC17: =Ingredients!AD15/100 -> 0 | BD17: =Ingredients!AE15/100 -> 0 | BE17: =Ingredients!AF15/100 -> 0 | BF17: =Ingredients!AG15/100 -> 0 | BG17: =Ingredients!AH15/100 -> 0 | BH17: =Ingredients!AI15/100 -> 0 | BI17: =Ingredients!AJ15/100 -> 0 | BJ17: =Ingredients!AK15/100 -> 0 | BK17: =Ingredients!AL15/100 -> 0 | BL17: =Ingredients!AM15/100 -> 0 | BM17: =Ingredients!AN15/100 -> 0
B18: =Ingredients!B15 -> 0 | C18: =Ingredients!C15 -> 0 | D18: =Ingredients!D15 -> 0 | E18: 0 | F18: =Ingredients!E15 -> 0 | H18: =Nutrients!B16 -> Corn P | I18: =Nutrients!C16 -> 0 | J18: =SUMPRODUCT($E$8:$E$32,AP7:AP31) -> -1.110223025e-16 | K18: =Nutrients!D16 -> 0 | L18: =Nutrients!E16 -> % | AB18: 0 | AC18: =Ingredients!B16 -> 0 | AD18: =Ingredients!C16 -> 0 | AE18: =Ingredients!F16 -> 0 | AF18: =Ingredients!G16/100 -> 0 | AG18: =Ingredients!H16/100 -> 0 | AH18: =Ingredients!I16/100 -> 0 | AI18: =Ingredients!J16/100 -> 0 | AJ18: =Ingredients!K16/100 -> 0 | AK18: =Ingredients!L16/100 -> 0 | AL18: =Ingredients!M16/100 -> 0 | AM18: =Ingredients!N16/100 -> 0 | AN18: =Ingredients!O16/100 -> 0 | AO18: =Ingredients!P16/100 -> 0 | AP18: =Ingredients!Q16/100 -> 0 | AQ18: =Ingredients!R16/100 -> 0 | AR18: =Ingredients!S16/100 -> 0 | AS18: =Ingredients!T16/100 -> 0 | AT18: =Ingredients!U16/100 -> 0 | AU18: =Ingredients!V16/100 -> 0 | AV18: =Ingredients!W16/100 -> 0 | AW18: =Ingredients!X16/100 -> 0 | AX18: =Ingredients!Y16/100 -> 0 | AY18: =Ingredients!Z16/100 -> 0 | AZ18: =Ingredients!AA16/100 -> 0 | BA18: =Ingredients!AB16/100 -> 0 | BB18: =Ingredients!AC16/100 -> 0 | BC18: =Ingredients!AD16/100 -> 0 | BD18: =Ingredients!AE16/100 -> 0 | BE18: =Ingredients!AF16/100 -> 0 | BF18: =Ingredients!AG16/100 -> 0 | BG18: =Ingredients!AH16/100 -> 0 | BH18: =Ingredients!AI16/100 -> 0 | BI18: =Ingredients!AJ16/100 -> 0 | BJ18: =Ingredients!AK16/100 -> 0 | BK18: =Ingredients!AL16/100 -> 0 | BL18: =Ingredients!AM16/100 -> 0 | BM18: =Ingredients!AN16/100 -> 0
B19: =Ingredients!B16 -> 0 | C19: =Ingredients!C16 -> 0 | D19: =Ingredients!D16 -> 0 | E19: 0 | F19: =Ingredients!E16 -> 0 | H19: =Nutrients!B17 -> 0 | I19: =Nutrients!C17 -> 0 | J19: =SUMPRODUCT($E$8:$E$32,AQ7:AQ31) -> 0.2367138399 | K19: =Nutrients!D17 -> 100 | L19: =Nutrients!E17 -> % | AB19: 0 | AC19: =Ingredients!B17 -> 0 | AD19: =Ingredients!C17 -> 0 | AE19: =Ingredients!F17 -> 0 | AF19: =Ingredients!G17/100 -> 0 | AG19: =Ingredients!H17/100 -> 0 | AH19: =Ingredients!I17/100 -> 0 | AI19: =Ingredients!J17/100 -> 0 | AJ19: =Ingredients!K17/100 -> 0 | AK19: =Ingredients!L17/100 -> 0 | AL19: =Ingredients!M17/100 -> 0 | AM19: =Ingredients!N17/100 -> 0 | AN19: =Ingredients!O17/100 -> 0 | AO19: =Ingredients!P17/100 -> 0 | AP19: =Ingredients!Q17/100 -> 0 | AQ19: =Ingredients!R17/100 -> 0 | AR19: =Ingredients!S17/100 -> 0 | AS19: =Ingredients!T17/100 -> 0 | AT19: =Ingredients!U17/100 -> 0 | AU19: =Ingredients!V17/100 -> 0 | AV19: =Ingredients!W17/100 -> 0 | AW19: =Ingredients!X17/100 -> 0 | AX19: =Ingredients!Y17/100 -> 0 | AY19: =Ingredients!Z17/100 -> 0 | AZ19: =Ingredients!AA17/100 -> 0 | BA19: =Ingredients!AB17/100 -> 0 | BB19: =Ingredients!AC17/100 -> 0 | BC19: =Ingredients!AD17/100 -> 0 | BD19: =Ingredients!AE17/100 -> 0 | BE19: =Ingredients!AF17/100 -> 0 | BF19: =Ingredients!AG17/100 -> 0 | BG19: =Ingredients!AH17/100 -> 0 | BH19: =Ingredients!AI17/100 -> 0 | BI19: =Ingredients!AJ17/100 -> 0 | BJ19: =Ingredients!AK17/100 -> 0 | BK19: =Ingredients!AL17/100 -> 0 | BL19: =Ingredients!AM17/100 -> 0 | BM19: =Ingredients!AN17/100 -> 0
B20: =Ingredients!B17 -> 0 | C20: =Ingredients!C17 -> 0 | D20: =Ingredients!D17 -> 0 | E20: 0 | F20: =Ingredients!E17 -> 0 | H20: =Nutrients!B18 -> 0 | I20: =Nutrients!C18 -> 0 | J20: =SUMPRODUCT($E$8:$E$32,AR7:AR31) -> 0.2367138399 | K20: =Nutrients!D18 -> 1000 | L20: =Nutrients!E18 -> mg/kg | AB20: 4.199378458 | AC20: =Ingredients!B18 -> Limestone | AD20: =Ingredients!C18 -> 3 | AE20: =Ingredients!F18 -> 1 | AF20: =Ingredients!G18/100 -> 0 | AG20: =Ingredients!H18/100 -> 0 | AH20: =Ingredients!I18/100 -> 0 | AI20: =Ingredients!J18/100 -> 0 | AJ20: =Ingredients!K18/100 -> 0 | AK20: =Ingredients!L18/100 -> 0 | AL20: =Ingredients!M18/100 -> 0.38 | AM20: =Ingredients!N18/100 -> 0 | AN20: =Ingredients!O18/100 -> 0 | AO20: =Ingredients!P18/100 -> -0.19 | AP20: =Ingredients!Q18/100 -> 0 | AQ20: =Ingredients!R18/100 -> 0 | AR20: =Ingredients!S18/100 -> 0 | AS20: =Ingredients!T18/100 -> 0.0005 | AT20: =Ingredients!U18/100 -> 0 | AU20: =Ingredients!V18/100 -> 0 | AV20: =Ingredients!W18/100 -> 0 | AW20: =Ingredients!X18/100 -> 0 | AX20: =Ingredients!Y18/100 -> 0 | AY20: =Ingredients!Z18/100 -> 0 | AZ20: =Ingredients!AA18/100 -> 0 | BA20: =Ingredients!AB18/100 -> 0 | BB20: =Ingredients!AC18/100 -> 0 | BC20: =Ingredients!AD18/100 -> 0 | BD20: =Ingredients!AE18/100 -> 0 | BE20: =Ingredients!AF18/100 -> 0 | BF20: =Ingredients!AG18/100 -> 0 | BG20: =Ingredients!AH18/100 -> 0 | BH20: =Ingredients!AI18/100 -> 0 | BI20: =Ingredients!AJ18/100 -> 0 | BJ20: =Ingredients!AK18/100 -> 0 | BK20: =Ingredients!AL18/100 -> 0 | BL20: =Ingredients!AM18/100 -> 0 | BM20: =Ingredients!AN18/100 -> 0
B21: =Ingredients!B18 -> Limestone | C21: =Ingredients!C18 -> 3 | D21: =Ingredients!D18 -> 0 | E21: 1.399792819 | F21: =Ingredients!E18 -> 100 | H21: =Nutrients!B19 -> Na | I21: =Nutrients!C19 -> 0.2 | J21: =SUMPRODUCT($E$8:$E$32,AS7:AS31) -> 0.2 | K21: =Nutrients!D19 -> 100 | L21: =Nutrients!E19 -> % | AB21: 0 | AC21: =Ingredients!B19 -> 0 | AD21: =Ingredients!C19 -> 0 | AE21: =Ingredients!F19 -> 0 | AF21: =Ingredients!G19/100 -> 0 | AG21: =Ingredients!H19/100 -> 0 | AH21: =Ingredients!I19/100 -> 0 | AI21: =Ingredients!J19/100 -> 0 | AJ21: =Ingredients!K19/100 -> 0 | AK21: =Ingredients!L19/100 -> 0 | AL21: =Ingredients!M19/100 -> 0 | AM21: =Ingredients!N19/100 -> 0 | AN21: =Ingredients!O19/100 -> 0 | AO21: =Ingredients!P19/100 -> 0 | AP21: =Ingredients!Q19/100 -> 0 | AQ21: =Ingredients!R19/100 -> 0 | AR21: =Ingredients!S19/100 -> 0 | AS21: =Ingredients!T19/100 -> 0 | AT21: =Ingredients!U19/100 -> 0 | AU21: =Ingredients!V19/100 -> 0 | AV21: =Ingredients!W19/100 -> 0 | AW21: =Ingredients!X19/100 -> 0 | AX21: =Ingredients!Y19/100 -> 0 | AY21: =Ingredients!Z19/100 -> 0 | AZ21: =Ingredients!AA19/100 -> 0 | BA21: =Ingredients!AB19/100 -> 0 | BB21: =Ingredients!AC19/100 -> 0 | BC21: =Ingredients!AD19/100 -> 0 | BD21: =Ingredients!AE19/100 -> 0 | BE21: =Ingredients!AF19/100 -> 0 | BF21: =Ingredients!AG19/100 -> 0 | BG21: =Ingredients!AH19/100 -> 0 | BH21: =Ingredients!AI19/100 -> 0 | BI21: =Ingredients!AJ19/100 -> 0 | BJ21: =Ingredients!AK19/100 -> 0 | BK21: =Ingredients!AL19/100 -> 0 | BL21: =Ingredients!AM19/100 -> 0 | BM21: =Ingredients!AN19/100 -> 0
B22: =Ingredients!B19 -> 0 | C22: =Ingredients!C19 -> 0 | D22: =Ingredients!D19 -> 0 | E22: 0 | F22: =Ingredients!E19 -> 0 | H22: =Nutrients!B20 -> SBM P | I22: =Nutrients!C20 -> 0 | J22: =SUMPRODUCT($E$8:$E$32,AT7:AT31) -> -2.498001805e-16 | K22: =Nutrients!D20 -> 0 | L22: =Nutrients!E20 -> mg/kg | AB22: 32.48146009 | AC22: =Ingredients!B20 -> Dical. Phos. | AD22: =Ingredients!C20 -> 20 | AE22: =Ingredients!F20 -> 1 | AF22: =Ingredients!G20/100 -> 0 | AG22: =Ingredients!H20/100 -> 0 | AH22: =Ingredients!I20/100 -> 0 | AI22: =Ingredients!J20/100 -> 0 | AJ22: =Ingredients!K20/100 -> 0 | AK22: =Ingredients!L20/100 -> 0 | AL22: =Ingredients!M20/100 -> 0.213 | AM22: =Ingredients!N20/100 -> 0.187 | AN22: =Ingredients!O20/100 -> 0.187 | AO22: =Ingredients!P20/100 -> 0.0805 | AP22: =Ingredients!Q20/100 -> 0 | AQ22: =Ingredients!R20/100 -> 0 | AR22: =Ingredients!S20/100 -> 0 | AS22: =Ingredients!T20/100 -> 0.0006 | AT22: =Ingredients!U20/100 -> 0 | AU22: =Ingredients!V20/100 -> 0 | AV22: =Ingredients!W20/100 -> 0 | AW22: =Ingredients!X20/100 -> 0 | AX22: =Ingredients!Y20/100 -> 0 | AY22: =Ingredients!Z20/100 -> 0 | AZ22: =Ingredients!AA20/100 -> 0 | BA22: =Ingredients!AB20/100 -> 0 | BB22: =Ingredients!AC20/100 -> 0 | BC22: =Ingredients!AD20/100 -> 0 | BD22: =Ingredients!AE20/100 -> 0 | BE22: =Ingredients!AF20/100 -> 0 | BF22: =Ingredients!AG20/100 -> 0 | BG22: =Ingredients!AH20/100 -> 0 | BH22: =Ingredients!AI20/100 -> 0 | BI22: =Ingredients!AJ20/100 -> 0 | BJ22: =Ingredients!AK20/100 -> 0 | BK22: =Ingredients!AL20/100 -> 0 | BL22: =Ingredients!AM20/100 -> 0 | BM22: =Ingredients!AN20/100 -> 0
B23: =Ingredients!B20 -> Dical. Phos. | C23: =Ingredients!C20 -> 20 | D23: =Ingredients!D20 -> 0 | E23: 1.624073004 | F23: =Ingredients!E20 -> 100 | H23: =Nutrients!B21 -> 0 | I23: =Nutrients!C21 -> 0 | J23: =SUMPRODUCT($E$8:$E$32,AU7:AU31) -> 0.2061574587 | K23: =Nutrients!D21 -> 100 | L23: =Nutrients!E21 -> mg/g | AB23: 1.255777571 | AC23: =Ingredients!B21 -> Common Salt | AD23: =Ingredients!C21 -> 2.775 | AE23: =Ingredients!F21 -> 1 | AF23: =Ingredients!G21/100 -> 0 | AG23: =Ingredients!H21/100 -> 0 | AH23: =Ingredients!I21/100 -> 0 | AI23: =Ingredients!J21/100 -> 0 | AJ23: =Ingredients!K21/100 -> 0 | AK23: =Ingredients!L21/100 -> 0 | AL23: =Ingredients!M21/100 -> 0.003 | AM23: =Ingredients!N21/100 -> 0 | AN23: =Ingredients!O21/100 -> 0 | AO23: =Ingredients!P21/100 -> -0.0015 | AP23: =Ingredients!Q21/100 -> 0 | AQ23: =Ingredients!R21/100 -> 0 | AR23: =Ingredients!S21/100 -> 0 | AS23: =Ingredients!T21/100 -> 0.39 | AT23: =Ingredients!U21/100 -> 0 | AU23: =Ingredients!V21/100 -> 0 | AV23: =Ingredients!W21/100 -> 0 | AW23: =Ingredients!X21/100 -> 0 | AX23: =Ingredients!Y21/100 -> 0 | AY23: =Ingredients!Z21/100 -> 0 | AZ23: =Ingredients!AA21/100 -> 0 | BA23: =Ingredients!AB21/100 -> 0 | BB23: =Ingredients!AC21/100 -> 0 | BC23: =Ingredients!AD21/100 -> 0 | BD23: =Ingredients!AE21/100 -> 0 | BE23: =Ingredients!AF21/100 -> 0 | BF23: =Ingredients!AG21/100 -> 0 | BG23: =Ingredients!AH21/100 -> 0 | BH23: =Ingredients!AI21/100 -> 0 | BI23: =Ingredients!AJ21/100 -> 0 | BJ23: =Ingredients!AK21/100 -> 0 | BK23: =Ingredients!AL21/100 -> 0 | BL23: =Ingredients!AM21/100 -> 0 | BM23: =Ingredients!AN21/100 -> 0
B24: =Ingredients!B21 -> Common Salt | C24: =Ingredients!C21 -> 2.775 | D24: =Ingredients!D21 -> 0 | E24: 0.4525324581 | F24: =Ingredients!E21 -> 100 | H24: =Nutrients!B22 -> 0 | I24: =Nutrients!C22 -> 0 | J24: =SUMPRODUCT($E$8:$E$32,AV7:AV31) -> 0.2061574587 | K24: =Nutrients!D22 -> 100 | L24: =Nutrients!E22 -> mg/kg | AB24: 92.5 | AC24: =Ingredients!B22 -> Vitamin Premix | AD24: =Ingredients!C22 -> 370 | AE24: =Ingredients!F22 -> 1 | AF24: =Ingredients!G22/100 -> 1 | AG24: =Ingredients!H22/100 -> 0 | AH24: =Ingredients!I22/100 -> 0 | AI24: =Ingredients!J22/100 -> 0 | AJ24: =Ingredients!K22/100 -> 0 | AK24: =Ingredients!L22/100 -> 0 | AL24: =Ingredients!M22/100 -> 0 | AM24: =Ingredients!N22/100 -> 0 | AN24: =Ingredients!O22/100 -> 0 | AO24: =Ingredients!P22/100 -> 0 | AP24: =Ingredients!Q22/100 -> 0 | AQ24: =Ingredients!R22/100 -> 0 | AR24: =Ingredients!S22/100 -> 0 | AS24: =Ingredients!T22/100 -> 0 | AT24: =Ingredients!U22/100 -> 0 | AU24: =Ingredients!V22/100 -> 0 | AV24: =Ingredients!W22/100 -> 0 | AW24: =Ingredients!X22/100 -> 0 | AX24: =Ingredients!Y22/100 -> 0 | AY24: =Ingredients!Z22/100 -> 0 | AZ24: =Ingredients!AA22/100 -> 0 | BA24: =Ingredients!AB22/100 -> 0 | BB24: =Ingredients!AC22/100 -> 0 | BC24: =Ingredients!AD22/100 -> 0 | BD24: =Ingredients!AE22/100 -> 0 | BE24: =Ingredients!AF22/100 -> 0 | BF24: =Ingredients!AG22/100 -> 0 | BG24: =Ingredients!AH22/100 -> 0 | BH24: =Ingredients!AI22/100 -> 0 | BI24: =Ingredients!AJ22/100 -> 0 | BJ24: =Ingredients!AK22/100 -> 0 | BK24: =Ingredients!AL22/100 -> 0 | BL24: =Ingredients!AM22/100 -> 0 | BM24: =Ingredients!AN22/100 -> 0
B25: =Ingredients!B22 -> Vitamin Premix | C25: =Ingredients!C22 -> 370 | D25: =Ingredients!D22 -> 0.25 | E25: 0.25 | F25: =Ingredients!E22 -> 0.25 | H25: =Nutrients!B23 -> ARG | I25: =Nutrients!C23 -> 1.25 | J25: =SUMPRODUCT($E$8:$E$32,AW7:AW31) -> 1.553586827 | K25: =Nutrients!D23 -> 100 | L25: =Nutrients!E23 -> % | AB25: 8.55 | AC25: =Ingredients!B23 -> Mineral Premix | AD25: =Ingredients!C23 -> 57 | AE25: =Ingredients!F23 -> 1 | AF25: =Ingredients!G23/100 -> 1 | AG25: =Ingredients!H23/100 -> 0 | AH25: =Ingredients!I23/100 -> 0 | AI25: =Ingredients!J23/100 -> 0 | AJ25: =Ingredients!K23/100 -> 0 | AK25: =Ingredients!L23/100 -> 0 | AL25: =Ingredients!M23/100 -> 0 | AM25: =Ingredients!N23/100 -> 0 | AN25: =Ingredients!O23/100 -> 0 | AO25: =Ingredients!P23/100 -> 0 | AP25: =Ingredients!Q23/100 -> 0 | AQ25: =Ingredients!R23/100 -> 0 | AR25: =Ingredients!S23/100 -> 0 | AS25: =Ingredients!T23/100 -> 0 | AT25: =Ingredients!U23/100 -> 0 | AU25: =Ingredients!V23/100 -> 0 | AV25: =Ingredients!W23/100 -> 0 | AW25: =Ingredients!X23/100 -> 0 | AX25: =Ingredients!Y23/100 -> 0 | AY25: =Ingredients!Z23/100 -> 0 | AZ25: =Ingredients!AA23/100 -> 0 | BA25: =Ingredients!AB23/100 -> 0 | BB25: =Ingredients!AC23/100 -> 0 | BC25: =Ingredients!AD23/100 -> 0 | BD25: =Ingredients!AE23/100 -> 0 | BE25: =Ingredients!AF23/100 -> 0 | BF25: =Ingredients!AG23/100 -> 0 | BG25: =Ingredients!AH23/100 -> 0 | BH25: =Ingredients!AI23/100 -> 0 | BI25: =Ingredients!AJ23/100 -> 0 | BJ25: =Ingredients!AK23/100 -> 0 | BK25: =Ingredients!AL23/100 -> 0 | BL25: =Ingredients!AM23/100 -> 0 | BM25: =Ingredients!AN23/100 -> 0
B26: =Ingredients!B23 -> Mineral Premix | C26: =Ingredients!C23 -> 57 | D26: =Ingredients!D23 -> 0.15 | E26: 0.15 | F26: =Ingredients!E23 -> 0.15 | H26: =Nutrients!B24 -> GLY | I26: =Nutrients!C24 -> 0 | J26: =SUMPRODUCT($E$8:$E$32,AX7:AX31) -> 0.9474474722 | K26: =Nutrients!D24 -> 100 | L26: =Nutrients!E24 -> % | AB26: 53.0469582 | AC26: =Ingredients!B24 -> DL-Methionine | AD26: =Ingredients!C24 -> 220 | AE26: =Ingredients!F24 -> 1 | AF26: =Ingredients!G24/100 -> 1 | AG26: =Ingredients!H24/100 -> 0.03606 | AH26: =Ingredients!I24/100 -> 0.5752 | AI26: =Ingredients!J24/100 -> 0 | AJ26: =Ingredients!K24/100 -> 0 | AK26: =Ingredients!L24/100 -> 0 | AL26: =Ingredients!M24/100 -> 0 | AM26: =Ingredients!N24/100 -> 0 | AN26: =Ingredients!O24/100 -> 0 | AO26: =Ingredients!P24/100 -> 0 | AP26: =Ingredients!Q24/100 -> 0 | AQ26: =Ingredients!R24/100 -> 0 | AR26: =Ingredients!S24/100 -> 0 | AS26: =Ingredients!T24/100 -> 0 | AT26: =Ingredients!U24/100 -> 0 | AU26: =Ingredients!V24/100 -> 0 | AV26: =Ingredients!W24/100 -> 0 | AW26: =Ingredients!X24/100 -> 0 | AX26: =Ingredients!Y24/100 -> 0 | AY26: =Ingredients!Z24/100 -> 0 | AZ26: =Ingredients!AA24/100 -> 0 | BA26: =Ingredients!AB24/100 -> 0 | BB26: =Ingredients!AC24/100 -> 0 | BC26: =Ingredients!AD24/100 -> 0 | BD26: =Ingredients!AE24/100 -> 0 | BE26: =Ingredients!AF24/100 -> 0.98 | BF26: =Ingredients!AG24/100 -> 0 | BG26: =Ingredients!AH24/100 -> 0.98 | BH26: =Ingredients!AI24/100 -> 0 | BI26: =Ingredients!AJ24/100 -> 0 | BJ26: =Ingredients!AK24/100 -> 0 | BK26: =Ingredients!AL24/100 -> 0 | BL26: =Ingredients!AM24/100 -> 0 | BM26: =Ingredients!AN24/100 -> 0
B27: =Ingredients!B24 -> DL-Methionine | C27: =Ingredients!C24 -> 220 | D27: =Ingredients!D24 -> 0 | E27: 0.2411225373 | F27: =Ingredients!E24 -> 100 | H27: =Nutrients!B25 -> SER | I27: =Nutrients!C25 -> 0 | J27: =SUMPRODUCT($E$8:$E$32,AY7:AY31) -> 1.121390571 | K27: =Nutrients!D25 -> 100 | L27: =Nutrients!E25 -> % | AB27: 0 | AC27: =Ingredients!B25 -> 0 | AD27: =Ingredients!C25 -> 0 | AE27: =Ingredients!F25 -> 0 | AF27: =Ingredients!G25/100 -> 0 | AG27: =Ingredients!H25/100 -> 0 | AH27: =Ingredients!I25/100 -> 0 | AI27: =Ingredients!J25/100 -> 0 | AJ27: =Ingredients!K25/100 -> 0 | AK27: =Ingredients!L25/100 -> 0 | AL27: =Ingredients!M25/100 -> 0 | AM27: =Ingredients!N25/100 -> 0 | AN27: =Ingredients!O25/100 -> 0 | AO27: =Ingredients!P25/100 -> 0 | AP27: =Ingredients!Q25/100 -> 0 | AQ27: =Ingredients!R25/100 -> 0 | AR27: =Ingredients!S25/100 -> 0 | AS27: =Ingredients!T25/100 -> 0 | AT27: =Ingredients!U25/100 -> 0 | AU27: =Ingredients!V25/100 -> 0 | AV27: =Ingredients!W25/100 -> 0 | AW27: =Ingredients!X25/100 -> 0 | AX27: =Ingredients!Y25/100 -> 0 | AY27: =Ingredients!Z25/100 -> 0 | AZ27: =Ingredients!AA25/100 -> 0 | BA27: =Ingredients!AB25/100 -> 0 | BB27: =Ingredients!AC25/100 -> 0 | BC27: =Ingredients!AD25/100 -> 0 | BD27: =Ingredients!AE25/100 -> 0 | BE27: =Ingredients!AF25/100 -> 0 | BF27: =Ingredients!AG25/100 -> 0 | BG27: =Ingredients!AH25/100 -> 0 | BH27: =Ingredients!AI25/100 -> 0 | BI27: =Ingredients!AJ25/100 -> 0 | BJ27: =Ingredients!AK25/100 -> 0 | BK27: =Ingredients!AL25/100 -> 0 | BL27: =Ingredients!AM25/100 -> 0 | BM27: =Ingredients!AN25/100 -> 0
B28: =Ingredients!B25 -> 0 | C28: =Ingredients!C25 -> 0 | D28: =Ingredients!D25 -> 0 | E28: 0 | F28: =Ingredients!E25 -> 0 | H28: =Nutrients!B26 -> GLY & SER | I28: =Nutrients!C26 -> 1.25 | J28: =SUMPRODUCT($E$8:$E$32,AZ7:AZ31) -> 2.61150087 | K28: =Nutrients!D26 -> 100 | L28: =Nutrients!E26 -> % | AB28: 0 | AC28: =Ingredients!B26 -> 0 | AD28: =Ingredients!C26 -> 0 | AE28: =Ingredients!F26 -> 0 | AF28: =Ingredients!G26/100 -> 0 | AG28: =Ingredients!H26/100 -> 0 | AH28: =Ingredients!I26/100 -> 0 | AI28: =Ingredients!J26/100 -> 0 | AJ28: =Ingredients!K26/100 -> 0 | AK28: =Ingredients!L26/100 -> 0 | AL28: =Ingredients!M26/100 -> 0 | AM28: =Ingredients!N26/100 -> 0 | AN28: =Ingredients!O26/100 -> 0 | AO28: =Ingredients!P26/100 -> 0 | AP28: =Ingredients!Q26/100 -> 0 | AQ28: =Ingredients!R26/100 -> 0 | AR28: =Ingredients!S26/100 -> 0 | AS28: =Ingredients!T26/100 -> 0 | AT28: =Ingredients!U26/100 -> 0 | AU28: =Ingredients!V26/100 -> 0 | AV28: =Ingredients!W26/100 -> 0 | AW28: =Ingredients!X26/100 -> 0 | AX28: =Ingredients!Y26/100 -> 0 | AY28: =Ingredients!Z26/100 -> 0 | AZ28: =Ingredients!AA26/100 -> 0 | BA28: =Ingredients!AB26/100 -> 0 | BB28: =Ingredients!AC26/100 -> 0 | BC28: =Ingredients!AD26/100 -> 0 | BD28: =Ingredients!AE26/100 -> 0 | BE28: =Ingredients!AF26/100 -> 0 | BF28: =Ingredients!AG26/100 -> 0 | BG28: =Ingredients!AH26/100 -> 0 | BH28: =Ingredients!AI26/100 -> 0 | BI28: =Ingredients!AJ26/100 -> 0 | BJ28: =Ingredients!AK26/100 -> 0 | BK28: =Ingredients!AL26/100 -> 0 | BL28: =Ingredients!AM26/100 -> 0 | BM28: =Ingredients!AN26/100 -> 0
B29: =Ingredients!B26 -> 0 | C29: =Ingredients!C26 -> 0 | D29: =Ingredients!D26 -> 0 | E29: 0 | F29: =Ingredients!E26 -> 0 | H29: =Nutrients!B27 -> HIS | I29: =Nutrients!C27 -> 0.35 | J29: =SUMPRODUCT($E$8:$E$32,BA7:BA31) -> 0.5831484281 | K29: =Nutrients!D27 -> 100 | L29: =Nutrients!E27 -> % | AB29: 0 | AC29: =Ingredients!B27 -> 0 | AD29: =Ingredients!C27 -> 0 | AE29: =Ingredients!F27 -> 0 | AF29: =Ingredients!G27/100 -> 0 | AG29: =Ingredients!H27/100 -> 0 | AH29: =Ingredients!I27/100 -> 0 | AI29: =Ingredients!J27/100 -> 0 | AJ29: =Ingredients!K27/100 -> 0 | AK29: =Ingredients!L27/100 -> 0 | AL29: =Ingredients!M27/100 -> 0 | AM29: =Ingredients!N27/100 -> 0 | AN29: =Ingredients!O27/100 -> 0 | AO29: =Ingredients!P27/100 -> 0 | AP29: =Ingredients!Q27/100 -> 0 | AQ29: =Ingredients!R27/100 -> 0 | AR29: =Ingredients!S27/100 -> 0 | AS29: =Ingredients!T27/100 -> 0 | AT29: =Ingredients!U27/100 -> 0 | AU29: =Ingredients!V27/100 -> 0 | AV29: =Ingredients!W27/100 -> 0 | AW29: =Ingredients!X27/100 -> 0 | AX29: =Ingredients!Y27/100 -> 0 | AY29: =Ingredients!Z27/100 -> 0 | AZ29: =Ingredients!AA27/100 -> 0 | BA29: =Ingredients!AB27/100 -> 0 | BB29: =Ingredients!AC27/100 -> 0 | BC29: =Ingredients!AD27/100 -> 0 | BD29: =Ingredients!AE27/100 -> 0 | BE29: =Ingredients!AF27/100 -> 0 | BF29: =Ingredients!AG27/100 -> 0 | BG29: =Ingredients!AH27/100 -> 0 | BH29: =Ingredients!AI27/100 -> 0 | BI29: =Ingredients!AJ27/100 -> 0 | BJ29: =Ingredients!AK27/100 -> 0 | BK29: =Ingredients!AL27/100 -> 0 | BL29: =Ingredients!AM27/100 -> 0 | BM29: =Ingredients!AN27/100 -> 0
B30: =Ingredients!B27 -> 0 | C30: =Ingredients!C27 -> 0 | D30: =Ingredients!D27 -> 0 | E30: 0 | F30: =Ingredients!E27 -> 0 | H30: =Nutrients!B28 -> ILE | I30: =Nutrients!C28 -> 0.8 | J30: =SUMPRODUCT($E$8:$E$32,BB7:BB31) -> 0.9939248605 | K30: =Nutrients!D28 -> 100 | L30: =Nutrients!E28 -> % | AB30: 0 | AC30: =Ingredients!B28 -> 0 | AD30: =Ingredients!C28 -> 0 | AE30: =Ingredients!F28 -> 0 | AF30: =Ingredients!G28/100 -> 0 | AG30: =Ingredients!H28/100 -> 0 | AH30: =Ingredients!I28/100 -> 0 | AI30: =Ingredients!J28/100 -> 0 | AJ30: =Ingredients!K28/100 -> 0 | AK30: =Ingredients!L28/100 -> 0 | AL30: =Ingredients!M28/100 -> 0 | AM30: =Ingredients!N28/100 -> 0 | AN30: =Ingredients!O28/100 -> 0 | AO30: =Ingredients!P28/100 -> 0 | AP30: =Ingredients!Q28/100 -> 0 | AQ30: =Ingredients!R28/100 -> 0 | AR30: =Ingredients!S28/100 -> 0 | AS30: =Ingredients!T28/100 -> 0 | AT30: =Ingredients!U28/100 -> 0 | AU30: =Ingredients!V28/100 -> 0 | AV30: =Ingredients!W28/100 -> 0 | AW30: =Ingredients!X28/100 -> 0 | AX30: =Ingredients!Y28/100 -> 0 | AY30: =Ingredients!Z28/100 -> 0 | AZ30: =Ingredients!AA28/100 -> 0 | BA30: =Ingredients!AB28/100 -> 0 | BB30: =Ingredients!AC28/100 -> 0 | BC30: =Ingredients!AD28/100 -> 0 | BD30: =Ingredients!AE28/100 -> 0 | BE30: =Ingredients!AF28/100 -> 0 | BF30: =Ingredients!AG28/100 -> 0 | BG30: =Ingredients!AH28/100 -> 0 | BH30: =Ingredients!AI28/100 -> 0 | BI30: =Ingredients!AJ28/100 -> 0 | BJ30: =Ingredients!AK28/100 -> 0 | BK30: =Ingredients!AL28/100 -> 0 | BL30: =Ingredients!AM28/100 -> 0 | BM30: =Ingredients!AN28/100 -> 0
B31: =Ingredients!B28 -> 0 | C31: =Ingredients!C28 -> 0 | D31: =Ingredients!D28 -> 0 | E31: 0 | F31: =Ingredients!E28 -> 0 | H31: =Nutrients!B29 -> GLY & SER | I31: =Nutrients!C29 -> 1.2 | J31: =SUMPRODUCT($E$8:$E$32,BC7:BC31) -> 1.855249009 | K31: =Nutrients!D29 -> 100 | L31: =Nutrients!E29 -> % | AB31: 0 | AC31: =Ingredients!B29 -> 0 | AD31: =Ingredients!C29 -> 0 | AE31: =Ingredients!F29 -> 0 | AF31: =Ingredients!G29/100 -> 0 | AG31: =Ingredients!H29/100 -> 0 | AH31: =Ingredients!I29/100 -> 0 | AI31: =Ingredients!J29/100 -> 0 | AJ31: =Ingredients!K29/100 -> 0 | AK31: =Ingredients!L29/100 -> 0 | AL31: =Ingredients!M29/100 -> 0 | AM31: =Ingredients!N29/100 -> 0 | AN31: =Ingredients!O29/100 -> 0 | AO31: =Ingredients!P29/100 -> 0 | AP31: =Ingredients!Q29/100 -> 0 | AQ31: =Ingredients!R29/100 -> 0 | AR31: =Ingredients!S29/100 -> 0 | AS31: =Ingredients!T29/100 -> 0 | AT31: =Ingredients!U29/100 -> 0 | AU31: =Ingredients!V29/100 -> 0 | AV31: =Ingredients!W29/100 -> 0 | AW31: =Ingredients!X29/100 -> 0 | AX31: =Ingredients!Y29/100 -> 0 | AY31: =Ingredients!Z29/100 -> 0 | AZ31: =Ingredients!AA29/100 -> 0 | BA31: =Ingredients!AB29/100 -> 0 | BB31: =Ingredients!AC29/100 -> 0 | BC31: =Ingredients!AD29/100 -> 0 | BD31: =Ingredients!AE29/100 -> 0 | BE31: =Ingredients!AF29/100 -> 0 | BF31: =Ingredients!AG29/100 -> 0 | BG31: =Ingredients!AH29/100 -> 0 | BH31: =Ingredients!AI29/100 -> 0 | BI31: =Ingredients!AJ29/100 -> 0 | BJ31: =Ingredients!AK29/100 -> 0 | BK31: =Ingredients!AL29/100 -> 0 | BL31: =Ingredients!AM29/100 -> 0 | BM31: =Ingredients!AN29/100 -> 0
B32: =Ingredients!B29 -> 0 | C32: =Ingredients!C29 -> 0 | D32: =Ingredients!D29 -> 0 | E32: 0 | F32: =Ingredients!E29 -> 0 | H32: =Nutrients!B30 -> LYS | I32: =Nutrients!C30 -> 1.1 | J32: =SUMPRODUCT($E$8:$E$32,BD7:BD31) -> 1.284015907 | K32: =Nutrients!D30 -> 100 | L32: =Nutrients!E30 -> %
H33: =Nutrients!B31 -> MET | I33: =Nutrients!C31 -> 0.5 | J33: =SUMPRODUCT($E$8:$E$32,BE7:BE31) -> 0.5593899027 | K33: =Nutrients!D31 -> 100 | L33: =Nutrients!E31 -> % | AC33: Final Value | AE33: =SUMPRODUCT($E$8:$E$32,AE7:AE31) -> 100
B34: TOTAL | E34: =SUM(E8:E32) -> 100 | H34: =Nutrients!B32 -> CYS | I34: =Nutrients!C32 -> 0 | J34: =SUMPRODUCT($E$8:$E$32,BF7:BF31) -> 0.3406100973 | K34: =Nutrients!D32 -> 100 | L34: =Nutrients!E32 -> %
H35: =Nutrients!B33 -> TSAA | I35: =Nutrients!C33 -> 0.9 | J35: =SUMPRODUCT($E$8:$E$32,BG7:BG31) -> 0.9 | K35: =Nutrients!D33 -> 100 | L35: =Nutrients!E33 -> %
H36: =Nutrients!B34 -> PHE | I36: =Nutrients!C34 -> 0.72 | J36: =SUMPRODUCT($E$8:$E$32,BH7:BH31) -> 1.145951421 | K36: =Nutrients!D34 -> 100 | L36: =Nutrients!E34 -> %
H37: =Nutrients!B35 -> TYR | I37: =Nutrients!C35 -> 0 | J37: =SUMPRODUCT($E$8:$E$32,BI7:BI31) -> 0.8334719346 | K37: =Nutrients!D35 -> 100 | L37: =Nutrients!E35 -> % | AC37: COST= | AD37: =SUM(AB7:AB31) -> 2352.479092
H38: =Nutrients!B36 -> TAAA | I38: =Nutrients!C36 -> 1.34 | J38: =SUMPRODUCT($E$8:$E$32,BJ7:BJ31) -> 1.979423355 | K38: =Nutrients!D36 -> 100 | L38: =Nutrients!E36 -> %
H39: =Nutrients!B37 -> THR | I39: =Nutrients!C37 -> 0.8 | J39: =SUMPRODUCT($E$8:$E$32,BK7:BK31) -> 0.8705719314 | K39: =Nutrients!D37 -> 100 | L39: =Nutrients!E37 -> %
H40: =Nutrients!B38 -> TRP | I40: =Nutrients!C38 -> 0.2 | J40: =SUMPRODUCT($E$8:$E$32,BL7:BL31) -> 0.2907034102 | K40: =Nutrients!D38 -> 100 | L40: =Nutrients!E38 -> %
H41: =Nutrients!B39 -> VAL | I41: =Nutrients!C39 -> 0.9 | J41: =SUMPRODUCT($E$8:$E$32,BM7:BM31) -> 1.081145747 | K41: =Nutrients!D39 -> 100 | L41: =Nutrients!E39 -> %

Sheet Simulations
I1: max | J1: max | K1: max | L1: max | M1: min | R1: Random Truncated Nomral Distributions | W1: Mixed Distribution
I2: =MAX(I4:I50003) -> 24934 | J2: =MAX(J4:J50003) -> 25066 | K2: =MAX(K4:K50003) -> 24931 | L2: =MAX(L4:L50003) -> 25069 | N2: NORMSINV(RAND()) | O2: NORMSINV(RAND())
A3: POPULATION CHARACTERISTICS | B3: CP (%) | D3: ID of Simulated Value | E3: COUNTER 1 | F3: COUNTER 2 | G3: COUNTER 3 | H3: COUNTER 4 | I3: SUM Counter1 | J3: SUM Counter2 | K3: SUM Counter3 | L3: SUM Counter4 | N3: Random Standard Normal for Corn | O3: Random Standard Normal for SBM | P3: Corn Population Distribution | Q3: SBM Population Distribution | R3: Corn Bin 1 (less than mean) | S3: Corn Bin 2 (Greater than Mean) | T3: SBM Bin 1 (less than mean) | U3: SBM Bin 2 (Greater than Mean) | V3: DL-Metionine in Finished Feed | W3: Mixture Proten Content (Corn 1+Corn 2+SBM1+SBM2+ Met )
A4: Corn Population Mean | B4: 6.9 | D4: 1 | E4: =IF(P4<$B$4,1,0) -> 1 | F4: =1-E4 -> 0 | G4: =IF(Q4<$B$7,1,0) -> 0 | H4: =1-G4 -> 1 | I4: =E4 -> 1 | J4: =F4 -> 0 | K4: =G4 -> 0 | L4: =H4 -> 1 | N4: =NORMSINV(RAND()) -> -0.08273210572 | O4: 1.157492435 | P4: =$B$4+N4*$B$5 -> 6.850857165 | Q4: =$B$7+O4*$B$8 -> 49.15278271 | R4: =IF($D4>$B$48,"",VLOOKUP($D4,I$4:$Q$50003,8,FALSE)) -> 6.521598654 | S4: =IF($D4>$B$48,"",VLOOKUP($D4,J$4:$Q$50003,7,FALSE)) -> 7.27930757 | T4: =IF($D4>$B$48,"",VLOOKUP($D4,K$4:$Q$50003,7,FALSE)) -> 43.65936191 | U4: =IF($D4>$B$48,"",VLOOKUP($D4,L$4:$Q$50003,6,FALSE)) -> 49.15278271 | V4: =Formulate!$E$27 -> 0.2411225373 | W4: =IF($D4>$B$48,"",(($B$12/100)*R4+($B$13/100)*S4+($B$14/100)*T4+($B$15/100)*U4+57.52*V4/100)) -> 22.8630241
A5: Corn Population Stdev. | B5: 0.59399957 | D5: 2 | E5: 0 | F5: 1 | G5: 0 | H5: 1 | I5: =I4+E5 -> 1 | J5: =J4+F5 -> 1 | K5: =K4+G5 -> 0 | L5: =L4+H5 -> 2 | N5: 1.675453115 | O5: 0.2217060009 | P5: 7.89521843 | Q5: 47.82465846 | R5: =IF($D5>$B$48,"",VLOOKUP($D5,I$4:$Q$50003,8,FALSE)) -> 6.253827131 | S5: =IF($D5>$B$48,"",VLOOKUP($D5,J$4:$Q$50003,7,FALSE)) -> 6.959613894 | T5: =IF($D5>$B$48,"",VLOOKUP($D5,K$4:$Q$50003,7,FALSE)) -> 46.33673202 | U5: =IF($D5>$B$48,"",VLOOKUP($D5,L$4:$Q$50003,6,FALSE)) -> 47.82465846 | V5: =Formulate!$E$27 -> 0.2411225373 | W5: 23.0639999
D6: 3 | E6: 1 | F6: 0 | G6: 0 | H6: 1 | I6: 2 | J6: 1 | K6: 0 | L6: 3 | N6: -0.5970740041 | O6: 0.1310431518 | P6: 6.545338298 | Q6: 47.6959843 | R6: =IF($D6>$B$48,"",VLOOKUP($D6,I$4:$Q$50003,8,FALSE)) -> 6.772959938 | S6: =IF($D6>$B$48,"",VLOOKUP($D6,J$4:$Q$50003,7,FALSE)) -> 7.157163551 | T6: =IF($D6>$B$48,"",VLOOKUP($D6,K$4:$Q$50003,7,FALSE)) -> 44.88392095 | U6: =IF($D6>$B$48,"",VLOOKUP($D6,L$4:$Q$50003,6,FALSE)) -> 47.6959843 | V6: =Formulate!$E$27 -> 0.2411225373 | W6: 22.94804998
A7: SBM Population Mean | B7: 47.51 | D7: 4 | E7: 0 | F7: 1 | G7: 0 | H7: 1 | I7: 2 | J7: 2 | K7: 0 | L7: 4 | N7: 0.6993776667 | O7: 0.9579261402 | P7: 7.315430033 | Q7: 48.86954625 | R7: =IF($D7>$B$48,"",VLOOKUP($D7,I$4:$Q$50003,8,FALSE)) -> 6.877205715 | S7: =IF($D7>$B$48,"",VLOOKUP($D7,J$4:$Q$50003,7,FALSE)) -> 7.717785154 | T7: =IF($D7>$B$48,"",VLOOKUP($D7,K$4:$Q$50003,7,FALSE)) -> 46.0760409 | U7: =IF($D7>$B$48,"",VLOOKUP($D7,L$4:$Q$50003,6,FALSE)) -> 48.86954625 | V7: =Formulate!$E$27 -> 0.2411225373 | W7: 23.00827484
A8: SBM Population Stdev. | B8: 1.41926 | D8: 5 | E8: 1 | F8: 0 | G8: 0 | H8: 1 | I8: 3 | J8: 2 | K8: 0 | L8: 5 | N8: -0.2918522821 | O8: 0.951294087 | P8: 6.72663987 | Q8: 48.86013365 | R8: =IF($D8>$B$48,"",VLOOKUP($D8,I$4:$Q$50003,8,FALSE)) -> 6.040363702 | S8: =IF($D8>$B$48,"",VLOOKUP($D8,J$4:$Q$50003,7,FALSE)) -> 7.079340881 | T8: =IF($D8>$B$48,"",VLOOKUP($D8,K$4:$Q$50003,7,FALSE)) -> 45.99583701 | U8: =IF($D8>$B$48,"",VLOOKUP($D8,L$4:$Q$50003,6,FALSE)) -> 48.86013365 | V8: =Formulate!$E$27 -> 0.2411225373 | W8: 22.65699975
A9: Probability | B9: 0.5 | D9: 6 | E9: 1 | F9: 0 | G9: 0 | H9: 1 | I9: 4 | J9: 2 | K9: 0 | L9: 6 | N9: -0.5908971187 | O9: 1.313011729 | P9: 6.549007366 | Q9: 49.37350503 | R9: =IF($D9>$B$48,"",VLOOKUP($D9,I$4:$Q$50003,8,FALSE)) -> 5.634518317 | S9: =IF($D9>$B$48,"",VLOOKUP($D9,J$4:$Q$50003,7,FALSE)) -> 7.792150927 | T9: =IF($D9>$B$48,"",VLOOKUP($D9,K$4:$Q$50003,7,FALSE)) -> 47.45641915 | U9: =IF($D9>$B$48,"",VLOOKUP($D9,L$4:$Q$50003,6,FALSE)) -> 49.37350503 | V9: =Formulate!$E$27 -> 0.2411225373 | W9: 22.78212591
D10: 7 | E10: 1 | F10: 0 | G10: 0 | H10: 1 | I10: 5 | J10: 2 | K10: 0 | L10: 7 | N10: -0.2639551156 | O10: 0.9083794164 | P10: 6.743210775 | Q10: 48.79922657 | R10: =IF($D10>$B$48,"",VLOOKUP($D10,I$4:$Q$50003,8,FALSE)) -> 6.28690376 | S10: =IF($D10>$B$48,"",VLOOKUP($D10,J$4:$Q$50003,7,FALSE)) -> 7.005765085 | T10: =IF($D10>$B$48,"",VLOOKUP($D10,K$4:$Q$50003,7,FALSE)) -> 46.1571223 | U10: =IF($D10>$B$48,"",VLOOKUP($D10,L$4:$Q$50003,6,FALSE)) -> 48.79922657 | V10: =Formulate!$E$27 -> 0.2411225373 | W10: 23.31075693
A11: OPTIMIZATION | D11: 8 | E11: 0 | F11: 1 | G11: 1 | H11: 0 | I11: 5 | J11: 3 | K11: 1 | L11: 7 | N11: 0.7422278078 | O11: -2.71313085 | P11: 7.340882999 | Q11: 43.65936191 | R11: =IF($D11>$B$48,"",VLOOKUP($D11,I$4:$Q$50003,8,FALSE)) -> 6.381821765 | S11: =IF($D11>$B$48,"",VLOOKUP($D11,J$4:$Q$50003,7,FALSE)) -> 7.681206995 | T11: =IF($D11>$B$48,"",VLOOKUP($D11,K$4:$Q$50003,7,FALSE)) -> 46.36570388 | U11: =IF($D11>$B$48,"",VLOOKUP($D11,L$4:$Q$50003,6,FALSE)) -> 47.53405428 | V11: =Formulate!$E$27 -> 0.2411225373 | W11: 23.09695766
A12: LBS of Corn from Bin 1 (low CP corn) in Mixture | B12: =Formulate!E8 -> 23.67138399 | D12: 9 | E12: 0 | F12: 1 | G12: 1 | H12: 0 | I12: 5 | J12: 4 | K12: 2 | L12: 7 | N12: 0.752506079 | O12: -0.826675859 | P12: 7.346988287 | Q12: 46.33673202 | R12: =IF($D12>$B$48,"",VLOOKUP($D12,I$4:$Q$50003,8,FALSE)) -> 6.086339734 | S12: =IF($D12>$B$48,"",VLOOKUP($D12,J$4:$Q$50003,7,FALSE)) -> 7.411772782 | T12: =IF($D12>$B$48,"",VLOOKUP($D12,K$4:$Q$50003,7,FALSE)) -> 47.42984143 | U12: =IF($D12>$B$48,"",VLOOKUP($D12,L$4:$Q$50003,6,FALSE)) -> 49.06962204 | V12: =Formulate!$E$27 -> 0.2411225373 | W12: 22.51307725
A13: LBS of Corn from Bin 2 (high CP corn) in Mixture | B13: =Formulate!E9 -> 23.67138399 | D13: 10 | E13: 1 | F13: 0 | G13: 1 | H13: 0 | I13: 6 | J13: 4 | K13: 3 | L13: 7 | N13: -0.7606483607 | O13: -1.850315693 | P13: 6.448175201 | Q13: 44.88392095 | R13: =IF($D13>$B$48,"",VLOOKUP($D13,I$4:$Q$50003,8,FALSE)) -> 5.975033845 | S13: =IF($D13>$B$48,"",VLOOKUP($D13,J$4:$Q$50003,7,FALSE)) -> 7.225334455 | T13: =IF($D13>$B$48,"",VLOOKUP($D13,K$4:$Q$50003,7,FALSE)) -> 45.93188615 | U13: =IF($D13>$B$48,"",VLOOKUP($D13,L$4:$Q$50003,6,FALSE)) -> 49.58884155 | V13: =Formulate!$E$27 -> 0.2411225373 | W13: 23.1001657
A14: LBS of SBM from Bin 1 (low CP SBM) in Mixture | B14: =Formulate!E10 -> 20.61574587 | D14: 11 | E14: 0 | F14: 1 | G14: 1 | H14: 0 | I14: 6 | J14: 5 | K14: 4 | L14: 7 | N14: 1.708559868 | O14: -1.010356874 | P14: 7.914883827 | Q14: 46.0760409 | R14: =IF($D14>$B$48,"",VLOOKUP($D14,I$4:$Q$50003,8,FALSE)) -> 6.823853285 | S14: =IF($D14>$B$48,"",VLOOKUP($D14,J$4:$Q$50003,7,FALSE)) -> 6.95680221 | T14: =IF($D14>$B$48,"",VLOOKUP($D14,K$4:$Q$50003,7,FALSE)) -> 47.26945816 | U14: =IF($D14>$B$48,"",VLOOKUP($D14,L$4:$Q$50003,6,FALSE)) -> 47.97553753 | V14: =Formulate!$E$27 -> 0.2411225373 | W14: 23.06828351
A15: LBS of SBM from Bin 2 (high CP SBM) in Mixture | B15: =Formulate!E11 -> 20.61574587 | D15: 12 | E15: 1 | F15: 0 | G15: 0 | H15: 1 | I15: 7 | J15: 5 | K15: 4 | L15: 8 | N15: -0.713208913 | O15: 0.01694846762 | P15: 6.476354212 | Q15: 47.53405428 | R15: =IF($D15>$B$48,"",VLOOKUP($D15,I$4:$Q$50003,8,FALSE)) -> 5.95891597 | S15: =IF($D15>$B$48,"",VLOOKUP($D15,J$4:$Q$50003,7,FALSE)) -> 7.087919863 | T15: =IF($D15>$B$48,"",VLOOKUP($D15,K$4:$Q$50003,7,FALSE)) -> 46.0458497 | U15: =IF($D15>$B$48,"",VLOOKUP($D15,L$4:$Q$50003,6,FALSE)) -> 48.57015522 | V15: =Formulate!$E$27 -> 0.2411225373 | W15: 22.65707205
D16: 13 | E16: 1 | F16: 0 | G16: 1 | H16: 0 | I16: 8 | J16: 5 | K16: 5 | L16: 8 | N16: -0.7873242222 | O16: -1.066867937 | P16: 6.432329751 | Q16: 45.99583701 | R16: =IF($D16>$B$48,"",VLOOKUP($D16,I$4:$Q$50003,8,FALSE)) -> 6.839359922 | S16: =IF($D16>$B$48,"",VLOOKUP($D16,J$4:$Q$50003,7,FALSE)) -> 7.245903127 | T16: =IF($D16>$B$48,"",VLOOKUP($D16,K$4:$Q$50003,7,FALSE)) -> 47.4509301 | U16: =IF($D16>$B$48,"",VLOOKUP($D16,L$4:$Q$50003,6,FALSE)) -> 48.74717672 | V16: =Formulate!$E$27 -> 0.2411225373 | W16: 23.01059729
D17: 14 | E17: 0 | F17: 1 | G17: 0 | H17: 1 | I17: 8 | J17: 6 | K17: 5 | L17: 9 | N17: 1.959259766 | O17: 1.098898046 | P17: 8.063799459 | Q17: 49.06962204 | R17: =IF($D17>$B$48,"",VLOOKUP($D17,I$4:$Q$50003,8,FALSE)) -> 6.650770129 | S17: =IF($D17>$B$48,"",VLOOKUP($D17,J$4:$Q$50003,7,FALSE)) -> 8.192049642 | T17: =IF($D17>$B$48,"",VLOOKUP($D17,K$4:$Q$50003,7,FALSE)) -> 45.98476232 | U17: =IF($D17>$B$48,"",VLOOKUP($D17,L$4:$Q$50003,6,FALSE)) -> 49.45288477 | V17: =Formulate!$E$27 -> 0.2411225373 | W17: 23.06189481
A18: RESULTING MIXTURE | D18: 15 | E18: 1 | F18: 0 | G18: 1 | H18: 0 | I18: 9 | J18: 6 | K18: 6 | L18: 9 | N18: -0.3725726948 | O18: -0.03775266834 | P18: 6.678691979 | Q18: 47.45641915 | R18: =IF($D18>$B$48,"",VLOOKUP($D18,I$4:$Q$50003,8,FALSE)) -> 5.255809899 | S18: =IF($D18>$B$48,"",VLOOKUP($D18,J$4:$Q$50003,7,FALSE)) -> 7.027374276 | T18: =IF($D18>$B$48,"",VLOOKUP($D18,K$4:$Q$50003,7,FALSE)) -> 46.07324015 | U18: =IF($D18>$B$48,"",VLOOKUP($D18,L$4:$Q$50003,6,FALSE)) -> 48.49141335 | V18: =Formulate!$E$27 -> 0.2411225373 | W18: 22.62307714
A19: Expected Protein Content | B19: =AVERAGE(W4:W24880) -> 22.99287399 | D19: 16 | E19: 1 | F19: 0 | G19: 0 | H19: 1 | I19: 10 | J19: 6 | K19: 6 | L19: 10 | N19: -0.5904114449 | O19: 1.464736236 | P19: 6.549295856 | Q19: 49.58884155 | R19: =IF($D19>$B$48,"",VLOOKUP($D19,I$4:$Q$50003,8,FALSE)) -> 6.173153275 | S19: =IF($D19>$B$48,"",VLOOKUP($D19,J$4:$Q$50003,7,FALSE)) -> 6.930586191 | T19: =IF($D19>$B$48,"",VLOOKUP($D19,K$4:$Q$50003,7,FALSE)) -> 45.43244706 | U19: =IF($D19>$B$48,"",VLOOKUP($D19,L$4:$Q$50003,6,FALSE)) -> 49.35000176 | V19: =Formulate!$E$27 -> 0.2411225373 | W19: 22.52886526
A20: Standard Deviation | B20: =STDEV(W4:W24880) -> 0.2778535515 | D20: 17 | E20: 1 | F20: 0 | G20: 1 | H20: 0 | I20: 11 | J20: 6 | K20: 7 | L20: 10 | N20: -0.5552354306 | O20: -0.9532275272 | P20: 6.570190393 | Q20: 46.1571223 | R20: =IF($D20>$B$48,"",VLOOKUP($D20,I$4:$Q$50003,8,FALSE)) -> 6.222294125 | S20: =IF($D20>$B$48,"",VLOOKUP($D20,J$4:$Q$50003,7,FALSE)) -> 7.600007168 | T20: =IF($D20>$B$48,"",VLOOKUP($D20,K$4:$Q$50003,7,FALSE)) -> 45.20634871 | U20: =IF($D20>$B$48,"",VLOOKUP($D20,L$4:$Q$50003,6,FALSE)) -> 48.07976678 | V20: =Formulate!$E$27 -> 0.2411225373 | W20: 22.99093086
D21: 18 | E21: 0 | F21: 1 | G21: 1 | H21: 0 | I21: 11 | J21: 7 | K21: 8 | L21: 10 | N21: 0.1946321949 | O21: -0.806262501 | P21: 7.01561144 | Q21: 46.36570388 | R21: =IF($D21>$B$48,"",VLOOKUP($D21,I$4:$Q$50003,8,FALSE)) -> 6.026745899 | S21: =IF($D21>$B$48,"",VLOOKUP($D21,J$4:$Q$50003,7,FALSE)) -> 7.351189647 | T21: =IF($D21>$B$48,"",VLOOKUP($D21,K$4:$Q$50003,7,FALSE)) -> 46.8495631 | U21: =IF($D21>$B$48,"",VLOOKUP($D21,L$4:$Q$50003,6,FALSE)) -> 49.53408557 | V21: =Formulate!$E$27 -> 0.2411225373 | W21: 22.8679657
A22: Protein Content at threshold probability | B22: =SMALL(W4:W24880,(100-(B9*100))/100*B48) -> 22.9951649 | D22: 19 | E22: 1 | F22: 0 | G22: 1 | H22: 0 | I22: 12 | J22: 7 | K22: 9 | L22: 10 | N22: -1.539753664 | O22: -0.05647913101 | P22: 5.985386985 | Q22: 47.42984143 | R22: =IF($D22>$B$48,"",VLOOKUP($D22,I$4:$Q$50003,8,FALSE)) -> 6.823355745 | S22: =IF($D22>$B$48,"",VLOOKUP($D22,J$4:$Q$50003,7,FALSE)) -> 7.008874533 | T22: =IF($D22>$B$48,"",VLOOKUP($D22,K$4:$Q$50003,7,FALSE)) -> 45.8815216 | U22: =IF($D22>$B$48,"",VLOOKUP($D22,L$4:$Q$50003,6,FALSE)) -> 49.18625823 | V22: =Formulate!$E$27 -> 0.2411225373 | W22: 23.39234048
D23: 20 | E23: 0 | F23: 1 | G23: 1 | H23: 0 | I23: 12 | J23: 8 | K23: 10 | L23: 10 | N23: 1.727286345 | O23: -1.111927238 | P23: 7.926007346 | Q23: 45.93188615 | R23: =IF($D23>$B$48,"",VLOOKUP($D23,I$4:$Q$50003,8,FALSE)) -> 6.834370748 | S23: =IF($D23>$B$48,"",VLOOKUP($D23,J$4:$Q$50003,7,FALSE)) -> 7.267351755 | T23: =IF($D23>$B$48,"",VLOOKUP($D23,K$4:$Q$50003,7,FALSE)) -> 45.91511797 | U23: =IF($D23>$B$48,"",VLOOKUP($D23,L$4:$Q$50003,6,FALSE)) -> 48.35371032 | V23: =Formulate!$E$27 -> 0.2411225373 | W23: 23.09430512
D24: 21 | E24: 0 | F24: 1 | G24: 0 | H24: 1 | I24: 12 | J24: 9 | K24: 10 | L24: 11 | N24: =NORMSINV(RAND()) -> 1.468365856 | O24: 0.3280142677 | P24: 7.772208687 | Q24: 47.97553753 | R24: =IF($D24>$B$48,"",VLOOKUP($D24,I$4:$Q$50003,8,FALSE)) -> 6.229046315 | S24: =IF($D24>$B$48,"",VLOOKUP($D24,J$4:$Q$50003,7,FALSE)) -> 7.593641873 | T24: =IF($D24>$B$48,"",VLOOKUP($D24,K$4:$Q$50003,7,FALSE)) -> 43.40934669 | U24: =IF($D24>$B$48,"",VLOOKUP($D24,L$4:$Q$50003,6,FALSE)) -> 48.48336113 | V24: =Formulate!$E$27 -> 0.2411225373 | W24: 23.10970738
D25: 22 | E25: 1 | F25: 0 | G25: 0 | H25: 1 | I25: 13 | J25: 9 | K25: 10 | L25: 12 | N25: -0.02693812351 | O25: 0.7469774513 | P25: 6.883998766 | Q25: 48.57015522 | R25: =IF($D25>$B$48,"",VLOOKUP($D25,I$4:$Q$50003,8,FALSE)) -> 6.71535944 | S25: =IF($D25>$B$48,"",VLOOKUP($D25,J$4:$Q$50003,7,FALSE)) -> 7.494865892 | T25: =IF($D25>$B$48,"",VLOOKUP($D25,K$4:$Q$50003,7,FALSE)) -> 46.28973264 | U25: =IF($D25>$B$48,"",VLOOKUP($D25,L$4:$Q$50003,6,FALSE)) -> 49.05182179 | V25: =Formulate!$E$27 -> 0.2411225373 | W25: 23.19824747
D26: 23 | E26: 0 | F26: 1 | G26: 1 | H26: 0 | I26: 13 | J26: 10 | K26: 11 | L26: 12 | N26: 0.3799675982 | O26: -0.1694839845 | P26: 7.12570059 | Q26: 47.26945816 | R26: =IF($D26>$B$48,"",VLOOKUP($D26,I$4:$Q$50003,8,FALSE)) -> 5.671501841 | S26: =IF($D26>$B$48,"",VLOOKUP($D26,J$4:$Q$50003,7,FALSE)) -> 7.384418283 | T26: =IF($D26>$B$48,"",VLOOKUP($D26,K$4:$Q$50003,7,FALSE)) -> 46.54317662 | U26: =IF($D26>$B$48,"",VLOOKUP($D26,L$4:$Q$50003,6,FALSE)) -> 48.14946051 | V26: =Formulate!$E$27 -> 0.2411225373 | W26: 22.52424704
A27: CP Classification | B27: % | D27: 24 | E27: 0 | F27: 1 | G27: 1 | H27: 0 | I27: 13 | J27: 11 | K27: 12 | L27: 12 | N27: 0.6388914492 | O27: -1.03162937 | P27: 7.279501246 | Q27: 46.0458497 | R27: =IF($D27>$B$48,"",VLOOKUP($D27,I$4:$Q$50003,8,FALSE)) -> 6.238133419 | S27: =IF($D27>$B$48,"",VLOOKUP($D27,J$4:$Q$50003,7,FALSE)) -> 7.215200861 | T27: =IF($D27>$B$48,"",VLOOKUP($D27,K$4:$Q$50003,7,FALSE)) -> 46.35938161 | U27: =IF($D27>$B$48,"",VLOOKUP($D27,L$4:$Q$50003,6,FALSE)) -> 49.72798258 | V27: =Formulate!$E$27 -> 0.2411225373 | W27: 22.75793752
A28: Average low corn CP | B28: =AVERAGE(R4:R50003) -> 6.425750799 | D28: 25 | E28: 0 | F28: 1 | G28: 1 | H28: 0 | I28: 13 | J28: 12 | K28: 13 | L28: 12 | N28: 0.9523937386 | O28: -0.04162020793 | P28: 7.465721471 | Q28: 47.4509301 | R28: =IF($D28>$B$48,"",VLOOKUP($D28,I$4:$Q$50003,8,FALSE)) -> 5.354625232 | S28: =IF($D28>$B$48,"",VLOOKUP($D28,J$4:$Q$50003,7,FALSE)) -> 8.768101886 | T28: =IF($D28>$B$48,"",VLOOKUP($D28,K$4:$Q$50003,7,FALSE)) -> 47.32548174 | U28: =IF($D28>$B$48,"",VLOOKUP($D28,L$4:$Q$50003,6,FALSE)) -> 47.78064497 | V28: =Formulate!$E$27 -> 0.2411225373 | W28: 23.18866653
A29: Average high corn CP | B29: =AVERAGE(S4:S50003) -> 7.372938172 | D29: 26 | E29: 0 | F29: 1 | G29: 1 | H29: 0 | I29: 13 | J29: 13 | K29: 14 | L29: 12 | N29: 0.4756043302 | O29: -1.074671083 | P29: 7.182508768 | Q29: 45.98476232 | R29: =IF($D29>$B$48,"",VLOOKUP($D29,I$4:$Q$50003,8,FALSE)) -> 6.003581505 | S29: =IF($D29>$B$48,"",VLOOKUP($D29,J$4:$Q$50003,7,FALSE)) -> 7.68548214 | T29: =IF($D29>$B$48,"",VLOOKUP($D29,K$4:$Q$50003,7,FALSE)) -> 45.76371455 | U29: =IF($D29>$B$48,"",VLOOKUP($D29,L$4:$Q$50003,6,FALSE)) -> 48.28070264 | V29: =Formulate!$E$27 -> 0.2411225373 | W29: 23.03865766
A30: Average low SBM CP | B30: =AVERAGE(T4:T50003) -> 46.37644148 | D30: 27 | E30: 0 | F30: 1 | G30: 1 | H30: 0 | I30: 13 | J30: 14 | K30: 15 | L30: 12 | N30: 0.25421499 | O30: -1.012330261 | P30: 7.051003595 | Q30: 46.07324015 | R30: =IF($D30>$B$48,"",VLOOKUP($D30,I$4:$Q$50003,8,FALSE)) -> 6.394737151 | S30: =IF($D30>$B$48,"",VLOOKUP($D30,J$4:$Q$50003,7,FALSE)) -> 7.41407771 | T30: =IF($D30>$B$48,"",VLOOKUP($D30,K$4:$Q$50003,7,FALSE)) -> 45.9836164 | U30: =IF($D30>$B$48,"",VLOOKUP($D30,L$4:$Q$50003,6,FALSE)) -> 47.65221079 | V30: =Formulate!$E$27 -> 0.2411225373 | W30: 23.3340756
A31: Average high SBM CP | B31: =AVERAGE(U4:U50003) -> 48.63654609 | D31: 28 | E31: 1 | F31: 0 | G31: 1 | H31: 0 | I31: 14 | J31: 14 | K31: 16 | L31: 12 | N31: -0.6301077926 | O31: -1.463828294 | P31: 6.525716242 | Q31: 45.43244706 | R31: =IF($D31>$B$48,"",VLOOKUP($D31,I$4:$Q$50003,8,FALSE)) -> 6.667124265 | S31: =IF($D31>$B$48,"",VLOOKUP($D31,J$4:$Q$50003,7,FALSE)) -> 7.060192181 | T31: =IF($D31>$B$48,"",VLOOKUP($D31,K$4:$Q$50003,7,FALSE)) -> 47.005391 | U31: =IF($D31>$B$48,"",VLOOKUP($D31,L$4:$Q$50003,6,FALSE)) -> 50.31755778 | V31: =Formulate!$E$27 -> 0.2411225373 | W31: 23.14378231
D32: 29 | E32: 1 | F32: 0 | G32: 0 | H32: 1 | I32: 15 | J32: 14 | K32: 16 | L32: 13 | N32: -0.3295303988 | O32: 0.8717054815 | P32: 6.704259085 | Q32: 48.74717672 | R32: =IF($D32>$B$48,"",VLOOKUP($D32,I$4:$Q$50003,8,FALSE)) -> 6.297907744 | S32: =IF($D32>$B$48,"",VLOOKUP($D32,J$4:$Q$50003,7,FALSE)) -> 7.665708222 | T32: =IF($D32>$B$48,"",VLOOKUP($D32,K$4:$Q$50003,7,FALSE)) -> 47.42222641 | U32: =IF($D32>$B$48,"",VLOOKUP($D32,L$4:$Q$50003,6,FALSE)) -> 48.2313399 | V32: =Formulate!$E$27 -> 0.2411225373 | W32: 23.14041547
D33: 30 | E33: 1 | F33: 0 | G33: 1 | H33: 0 | I33: 16 | J33: 14 | K33: 17 | L33: 13 | N33: -0.7837303923 | O33: -1.623135498 | P33: 6.434464484 | Q33: 45.20634871 | R33: =IF($D33>$B$48,"",VLOOKUP($D33,I$4:$Q$50003,8,FALSE)) -> 6.398348835 | S33: =IF($D33>$B$48,"",VLOOKUP($D33,J$4:$Q$50003,7,FALSE)) -> 7.050205371 | T33: =IF($D33>$B$48,"",VLOOKUP($D33,K$4:$Q$50003,7,FALSE)) -> 47.34081113 | U33: =IF($D33>$B$48,"",VLOOKUP($D33,L$4:$Q$50003,6,FALSE)) -> 48.13226824 | V33: =Formulate!$E$27 -> 0.2411225373 | W33: 23.03106592
D34: 31 | E34: 0 | F34: 1 | G34: 1 | H34: 0 | I34: 16 | J34: 15 | K34: 18 | L34: 13 | N34: 1.522078452 | O34: -0.4653389095 | P34: 7.804113946 | Q34: 46.8495631 | R34: =IF($D34>$B$48,"",VLOOKUP($D34,I$4:$Q$50003,8,FALSE)) -> 6.712450077 | S34: =IF($D34>$B$48,"",VLOOKUP($D34,J$4:$Q$50003,7,FALSE)) -> 7.275541884 | T34: =IF($D34>$B$48,"",VLOOKUP($D34,K$4:$Q$50003,7,FALSE)) -> 46.93622152 | U34: =IF($D34>$B$48,"",VLOOKUP($D34,L$4:$Q$50003,6,FALSE)) -> 48.06418334 | V34: =Formulate!$E$27 -> 0.2411225373 | W34: 23.01975536
D35: 32 | E35: 0 | F35: 1 | G35: 1 | H35: 0 | I35: 16 | J35: 16 | K35: 19 | L35: 13 | N35: 1.481937423 | O35: -1.147413723 | P35: 7.780270192 | Q35: 45.8815216 | R35: =IF($D35>$B$48,"",VLOOKUP($D35,I$4:$Q$50003,8,FALSE)) -> 6.501667891 | S35: =IF($D35>$B$48,"",VLOOKUP($D35,J$4:$Q$50003,7,FALSE)) -> 7.007729501 | T35: =IF($D35>$B$48,"",VLOOKUP($D35,K$4:$Q$50003,7,FALSE)) -> 46.34274133 | U35: =IF($D35>$B$48,"",VLOOKUP($D35,L$4:$Q$50003,6,FALSE)) -> 47.54200381 | V35: =Formulate!$E$27 -> 0.2411225373 | W35: 22.79533291
D36: 33 | E36: 1 | F36: 0 | G36: 0 | H36: 1 | I36: 17 | J36: 16 | K36: 19 | L36: 14 | N36: -1.10955627 | O36: 1.368942101 | P36: 6.240924053 | Q36: 49.45288477 | R36: =IF($D36>$B$48,"",VLOOKUP($D36,I$4:$Q$50003,8,FALSE)) -> 6.292836773 | S36: =IF($D36>$B$48,"",VLOOKUP($D36,J$4:$Q$50003,7,FALSE)) -> 7.487302984 | T36: =IF($D36>$B$48,"",VLOOKUP($D36,K$4:$Q$50003,7,FALSE)) -> 46.61968731 | U36: =IF($D36>$B$48,"",VLOOKUP($D36,L$4:$Q$50003,6,FALSE)) -> 47.73164119 | V36: =Formulate!$E$27 -> 0.2411225373 | W36: 22.97524996
D37: 34 | E37: 0 | F37: 1 | G37: 1 | H37: 0 | I37: 17 | J37: 17 | K37: 20 | L37: 14 | N37: 0.01736769622 | O37: -1.12374197 | P37: 6.910316404 | Q37: 45.91511797 | R37: =IF($D37>$B$48,"",VLOOKUP($D37,I$4:$Q$50003,8,FALSE)) -> 6.441770273 | S37: =IF($D37>$B$48,"",VLOOKUP($D37,J$4:$Q$50003,7,FALSE)) -> 7.397424712 | T37: =IF($D37>$B$48,"",VLOOKUP($D37,K$4:$Q$50003,7,FALSE)) -> 46.96086005 | U37: =IF($D37>$B$48,"",VLOOKUP($D37,L$4:$Q$50003,6,FALSE)) -> 49.38796918 | V37: =Formulate!$E$27 -> 0.2411225373 | W37: 23.40512135
D38: 35 | E38: 1 | F38: 0 | G38: 0 | H38: 1 | I38: 18 | J38: 17 | K38: 20 | L38: 15 | N38: -0.8879916405 | O38: 0.6914965167 | P38: 6.372533347 | Q38: 48.49141335 | R38: =IF($D38>$B$48,"",VLOOKUP($D38,I$4:$Q$50003,8,FALSE)) -> 6.671817032 | S38: =IF($D38>$B$48,"",VLOOKUP($D38,J$4:$Q$50003,7,FALSE)) -> 7.812010883 | T38: =IF($D38>$B$48,"",VLOOKUP($D38,K$4:$Q$50003,7,FALSE)) -> 47.17887763 | U38: =IF($D38>$B$48,"",VLOOKUP($D38,L$4:$Q$50003,6,FALSE)) -> 48.29758457 | V38: =Formulate!$E$27 -> 0.2411225373 | W38: 23.09776208
A39: NUM SIMULATIONS | B39: 50000 | D39: 36 | E39: 0 | F39: 1 | G39: 0 | H39: 1 | I39: 18 | J39: 18 | K39: 20 | L39: 16 | N39: 0.6047329922 | O39: 1.2964515 | P39: 7.259211137 | Q39: 49.35000176 | R39: =IF($D39>$B$48,"",VLOOKUP($D39,I$4:$Q$50003,8,FALSE)) -> 6.781110108 | S39: =IF($D39>$B$48,"",VLOOKUP($D39,J$4:$Q$50003,7,FALSE)) -> 7.861023901 | T39: =IF($D39>$B$48,"",VLOOKUP($D39,K$4:$Q$50003,7,FALSE)) -> 45.66600928 | U39: =IF($D39>$B$48,"",VLOOKUP($D39,L$4:$Q$50003,6,FALSE)) -> 48.35442552 | V39: =Formulate!$E$27 -> 0.2411225373 | W39: 23.05204706
D40: 37 | E40: 0 | F40: 1 | G40: 1 | H40: 0 | I40: 18 | J40: 19 | K40: 21 | L40: 16 | N40: 0.2624488911 | O40: -2.889289711 | P40: 7.055894528 | Q40: 43.40934669 | R40: =IF($D40>$B$48,"",VLOOKUP($D40,I$4:$Q$50003,8,FALSE)) -> 5.967732029 | S40: =IF($D40>$B$48,"",VLOOKUP($D40,J$4:$Q$50003,7,FALSE)) -> 6.958321557 | T40: =IF($D40>$B$48,"",VLOOKUP($D40,K$4:$Q$50003,7,FALSE)) -> 47.4551936 | U40: =IF($D40>$B$48,"",VLOOKUP($D40,L$4:$Q$50003,6,FALSE)) -> 48.09087515 | V40: =Formulate!$E$27 -> 0.2411225373 | W40: 22.67205611
A41: Lower bound (a) | B41: -99999999 | D41: 38 | E41: 1 | F41: 0 | G41: 1 | H41: 0 | I41: 19 | J41: 19 | K41: 22 | L41: 16 | N41: -1.070884044 | O41: -0.8597912741 | P41: 6.263895338 | Q41: 46.28973264 | R41: =IF($D41>$B$48,"",VLOOKUP($D41,I$4:$Q$50003,8,FALSE)) -> 6.869217733 | S41: =IF($D41>$B$48,"",VLOOKUP($D41,J$4:$Q$50003,7,FALSE)) -> 7.762626842 | T41: =IF($D41>$B$48,"",VLOOKUP($D41,K$4:$Q$50003,7,FALSE)) -> 47.14455442 | U41: =IF($D41>$B$48,"",VLOOKUP($D41,L$4:$Q$50003,6,FALSE)) -> 47.78918456 | V41: =Formulate!$E$27 -> 0.2411225373 | W41: 23.66696856
A42: Upper bound (b) | B42: 99999999 | D42: 39 | E42: 0 | F42: 1 | G42: 1 | H42: 0 | I42: 19 | J42: 20 | K42: 23 | L42: 16 | N42: 0.5441261203 | O42: -0.6812165334 | P42: 7.223210682 | Q42: 46.54317662 | R42: =IF($D42>$B$48,"",VLOOKUP($D42,I$4:$Q$50003,8,FALSE)) -> 6.320627259 | S42: =IF($D42>$B$48,"",VLOOKUP($D42,J$4:$Q$50003,7,FALSE)) -> 7.031974489 | T42: =IF($D42>$B$48,"",VLOOKUP($D42,K$4:$Q$50003,7,FALSE)) -> 46.75088934 | U42: =IF($D42>$B$48,"",VLOOKUP($D42,L$4:$Q$50003,6,FALSE)) -> 47.65061635 | V42: =Formulate!$E$27 -> 0.2411225373 | W42: 22.48804964
D43: 40 | E43: 0 | F43: 1 | G43: 0 | H43: 1 | I43: 19 | J43: 21 | K43: 23 | L43: 17 | N43: 0.02956790181 | O43: 0.4014534197 | P43: 6.917563321 | Q43: 48.07976678 | R43: =IF($D43>$B$48,"",VLOOKUP($D43,I$4:$Q$50003,8,FALSE)) -> 6.873251867 | S43: =IF($D43>$B$48,"",VLOOKUP($D43,J$4:$Q$50003,7,FALSE)) -> 7.131189808 | T43: =IF($D43>$B$48,"",VLOOKUP($D43,K$4:$Q$50003,7,FALSE)) -> 47.04048561 | U43: =IF($D43>$B$48,"",VLOOKUP($D43,L$4:$Q$50003,6,FALSE)) -> 48.93373372 | V43: =Formulate!$E$27 -> 0.2411225373 | W43: 22.57518655
A44: Normal CDF at Lower PHI(a) | B44: 0 | D44: 41 | E44: 1 | F44: 0 | G44: 1 | H44: 0 | I44: 20 | J44: 21 | K44: 24 | L44: 17 | N44: =NORMSINV(RAND()) -> -1.324472137 | O44: -0.8107171299 | P44: 6.11326412 | Q44: 46.35938161 | R44: =IF($D44>$B$48,"",VLOOKUP($D44,I$4:$Q$50003,8,FALSE)) -> 6.020740764 | S44: =IF($D44>$B$48,"",VLOOKUP($D44,J$4:$Q$50003,7,FALSE)) -> 6.999986754 | T44: =IF($D44>$B$48,"",VLOOKUP($D44,K$4:$Q$50003,7,FALSE)) -> 46.84646012 | U44: =IF($D44>$B$48,"",VLOOKUP($D44,L$4:$Q$50003,6,FALSE)) -> 49.17697291 | V44: =Formulate!$E$27 -> 0.2411225373 | W44: 22.97861128
A45: Normal CDF at Mean (PHI(mu)) | B45: 0.5 | D45: 42 | E45: 0 | F45: 1 | G45: 1 | H45: 0 | I45: 20 | J45: 22 | K45: 25 | L45: 17 | N45: 1.129225855 | O45: -0.1300101909 | P45: 7.570759673 | Q45: 47.32548174 | R45: =IF($D45>$B$48,"",VLOOKUP($D45,I$4:$Q$50003,8,FALSE)) -> 5.591699012 | S45: =IF($D45>$B$48,"",VLOOKUP($D45,J$4:$Q$50003,7,FALSE)) -> 7.339621754 | T45: =IF($D45>$B$48,"",VLOOKUP($D45,K$4:$Q$50003,7,FALSE)) -> 45.24462919 | U45: =IF($D45>$B$48,"",VLOOKUP($D45,L$4:$Q$50003,6,FALSE)) -> 48.11156468 | V45: =Formulate!$E$27 -> 0.2411225373 | W45: 23.05189827
A46: Normal CDF at Upper (PHI(b)) | B46: 1 | D46: 43 | E46: 0 | F46: 1 | G46: 1 | H46: 0 | I46: 20 | J46: 23 | K46: 26 | L46: 17 | N46: 0.005710958534 | O46: -1.230419692 | P46: 6.903392307 | Q46: 45.76371455 | R46: =IF($D46>$B$48,"",VLOOKUP($D46,I$4:$Q$50003,8,FALSE)) -> 6.091982451 | S46: =IF($D46>$B$48,"",VLOOKUP($D46,J$4:$Q$50003,7,FALSE)) -> 6.963842591 | T46: =IF($D46>$B$48,"",VLOOKUP($D46,K$4:$Q$50003,7,FALSE)) -> 47.32492087 | U46: =IF($D46>$B$48,"",VLOOKUP($D46,L$4:$Q$50003,6,FALSE)) -> 47.98756986 | V46: =Formulate!$E$27 -> 0.2411225373 | W46: 22.82519082
D47: 44 | E47: 1 | F47: 0 | G47: 1 | H47: 0 | I47: 21 | J47: 23 | K47: 27 | L47: 17 | N47: -0.4412397811 | O47: -1.075478492 | P47: 6.63790376 | Q47: 45.9836164 | R47: =IF($D47>$B$48,"",VLOOKUP($D47,I$4:$Q$50003,8,FALSE)) -> 6.051754005 | S47: =IF($D47>$B$48,"",VLOOKUP($D47,J$4:$Q$50003,7,FALSE)) -> 6.995772512 | T47: =IF($D47>$B$48,"",VLOOKUP($D47,K$4:$Q$50003,7,FALSE)) -> 46.7615983 | U47: =IF($D47>$B$48,"",VLOOKUP($D47,L$4:$Q$50003,6,FALSE)) -> 50.10496143 | V47: =Formulate!$E$27 -> 0.2411225373 | W47: 22.39192768
A48: Number of Simulations of the Mixture Distribution Actually Generated | B48: =MIN(I2:L2) -> 24931 | D48: 45 | E48: 0 | F48: 1 | G48: 1 | H48: 0 | I48: 21 | J48: 24 | K48: 28 | L48: 17 | N48: 1.496188641 | O48: -0.355543733 | P48: 7.78873541 | Q48: 47.005391 | R48: =IF($D48>$B$48,"",VLOOKUP($D48,I$4:$Q$50003,8,FALSE)) -> 6.195965045 | S48: =IF($D48>$B$48,"",VLOOKUP($D48,J$4:$Q$50003,7,FALSE)) -> 7.406251534 | T48: =IF($D48>$B$48,"",VLOOKUP($D48,K$4:$Q$50003,7,FALSE)) -> 45.76842994 | U48: =IF($D48>$B$48,"",VLOOKUP($D48,L$4:$Q$50003,6,FALSE)) -> 48.51752254 | V48: =Formulate!$E$27 -> 0.2411225373 | W48: 22.76830893
D49: 46 | E49: 0 | F49: 1 | G49: 0 | H49: 1 | I49: 21 | J49: 25 | K49: 28 | L49: 18 | N49: 0.0539561297 | O49: 1.426155582 | P49: 6.932049918 | Q49: 49.53408557 | R49: =IF($D49>$B$48,"",VLOOKUP($D49,I$4:$Q$50003,8,FALSE)) -> 6.530082373 | S49: =IF($D49>$B$48,"",VLOOKUP($D49,J$4:$Q$50003,7,FALSE)) -> 7.917482012 | T49: =IF($D49>$B$48,"",VLOOKUP($D49,K$4:$Q$50003,7,FALSE)) -> 47.31569981 | U49: =IF($D49>$B$48,"",VLOOKUP($D49,L$4:$Q$50003,6,FALSE)) -> 48.50021741 | V49: =Formulate!$E$27 -> 0.2411225373 | W49: 22.85361817
D50: 47 | E50: 1 | F50: 0 | G50: 0 | H50: 1 | I50: 22 | J50: 25 | K50: 28 | L50: 19 | N50: -0.3531646335 | O50: 1.181079034 | P50: 6.69022036 | Q50: 49.18625823 | R50: =IF($D50>$B$48,"",VLOOKUP($D50,I$4:$Q$50003,8,FALSE)) -> 6.511962178 | S50: =IF($D50>$B$48,"",VLOOKUP($D50,J$4:$Q$50003,7,FALSE)) -> 7.481503334 | T50: =IF($D50>$B$48,"",VLOOKUP($D50,K$4:$Q$50003,7,FALSE)) -> 44.84035475 | U50: =IF($D50>$B$48,"",VLOOKUP($D50,L$4:$Q$50003,6,FALSE)) -> 48.43850854 | V50: =Formulate!$E$27 -> 0.2411225373 | W50: 22.65084233
D51: 48 | E51: 0 | F51: 1 | G51: 1 | H51: 0 | I51: 22 | J51: 26 | K51: 29 | L51: 19 | N51: 1.165020747 | O51: -0.06184461682 | P51: 7.592021823 | Q51: 47.42222641 | R51: =IF($D51>$B$48,"",VLOOKUP($D51,I$4:$Q$50003,8,FALSE)) -> 6.793336986 | S51: =IF($D51>$B$48,"",VLOOKUP($D51,J$4:$Q$50003,7,FALSE)) -> 8.247793866 | T51: =IF($D51>$B$48,"",VLOOKUP($D51,K$4:$Q$50003,7,FALSE)) -> 47.02653564 | U51: =IF($D51>$B$48,"",VLOOKUP($D51,L$4:$Q$50003,6,FALSE)) -> 48.74587517 | V51: =Formulate!$E$27 -> 0.2411225373 | W51: 23.29509949
D52: 49 | E52: 0 | F52: 1 | G52: 1 | H52: 0 | I52: 22 | J52: 27 | K52: 30 | L52: 19 | N52: 0.9395455928 | O52: -0.1192092146 | P52: 7.458089678 | Q52: 47.34081113 | R52: =IF($D52>$B$48,"",VLOOKUP($D52,I$4:$Q$50003,8,FALSE)) -> 6.660574943 | S52: =IF($D52>$B$48,"",VLOOKUP($D52,J$4:$Q$50003,7,FALSE)) -> 7.094846864 | T52: =IF($D52>$B$48,"",VLOOKUP($D52,K$4:$Q$50003,7,FALSE)) -> 45.21976753 | U52: =IF($D52>$B$48,"",VLOOKUP($D52,L$4:$Q$50003,6,FALSE)) -> 49.11699915 | V52: =Formulate!$E$27 -> 0.2411225373 | W52: 22.96679166
D53: 50 | E53: 1 | F53: 0 | G53: 0 | H53: 1 | I53: 23 | J53: 27 | K53: 30 | L53: 20 | N53: -0.7188632667 | O53: 0.5944719958 | P53: 6.472995529 | Q53: 48.35371032 | R53: =IF($D53>$B$48,"",VLOOKUP($D53,I$4:$Q$50003,8,FALSE)) -> 6.155410629 | S53: =IF($D53>$B$48,"",VLOOKUP($D53,J$4:$Q$50003,7,FALSE)) -> 7.329861618 | T53: =IF($D53>$B$48,"",VLOOKUP($D53,K$4:$Q$50003,7,FALSE)) -> 47.25857617 | U53: =IF($D53>$B$48,"",VLOOKUP($D53,L$4:$Q$50003,6,FALSE)) -> 49.19918835 | V53: =Formulate!$E$27 -> 0.2411225373 | W53: 22.64091095
D54: 51 | E54: 1 | F54: 0 | G54: 1 | H54: 0 | I54: 24 | J54: 27 | K54: 31 | L54: 20 | N54: -0.296260737 | O54: -0.4042800345 | P54: 6.72402125 | Q54: 46.93622152 | R54: =IF($D54>$B$48,"",VLOOKUP($D54,I$4:$Q$50003,8,FALSE)) -> 6.194561434 | S54: =IF($D54>$B$48,"",VLOOKUP($D54,J$4:$Q$50003,7,FALSE)) -> 7.593857517 | T54: =IF($D54>$B$48,"",VLOOKUP($D54,K$4:$Q$50003,7,FALSE)) -> 46.1716933 | U54: =IF($D54>$B$48,"",VLOOKUP($D54,L$4:$Q$50003,6,FALSE)) -> 47.68319947 | V54: =Formulate!$E$27 -> 0.2411225373 | W54: 22.92278388
D55: 52 | E55: 0 | F55: 1 | G55: 0 | H55: 1 | I55: 24 | J55: 28 | K55: 31 | L55: 21 | N55: 1.266288938 | O55: 0.685822982 | P55: 7.652175084 | Q55: 48.48336113 | R55: =IF($D55>$B$48,"",VLOOKUP($D55,I$4:$Q$50003,8,FALSE)) -> 6.793810704 | S55: =IF($D55>$B$48,"",VLOOKUP($D55,J$4:$Q$50003,7,FALSE)) -> 7.409698965 | T55: =IF($D55>$B$48,"",VLOOKUP($D55,K$4:$Q$50003,7,FALSE)) -> 45.36362043 | U55: =IF($D55>$B$48,"",VLOOKUP($D55,L$4:$Q$50003,6,FALSE)) -> 50.05405662 | V55: =Formulate!$E$27 -> 0.2411225373 | W55: 23.38152186
D56: 53 | E56: 1 | F56: 0 | G56: 0 | H56: 1 | I56: 25 | J56: 28 | K56: 31 | L56: 22 | N56: -0.8085065096 | O56: 1.086356125 | P56: 6.419747481 | Q56: 49.05182179 | R56: =IF($D56>$B$48,"",VLOOKUP($D56,I$4:$Q$50003,8,FALSE)) -> 6.675200405 | S56: =IF($D56>$B$48,"",VLOOKUP($D56,J$4:$Q$50003,7,FALSE)) -> 7.943831485 | T56: =IF($D56>$B$48,"",VLOOKUP($D56,K$4:$Q$50003,7,FALSE)) -> 46.57269795 | U56: =IF($D56>$B$48,"",VLOOKUP($D56,L$4:$Q$50003,6,FALSE)) -> 48.53640194 | V56: =Formulate!$E$27 -> 0.2411225373 | W56: 23.36344521
D57: 54 | E57: 1 | F57: 0 | G57: 0 | H57: 1 | I57: 26 | J57: 28 | K57: 31 | L57: 23 | N57: -0.3263165543 | O57: 0.4505590995 | P57: 6.706168107 | Q57: 48.14946051 | R57: =IF($D57>$B$48,"",VLOOKUP($D57,I$4:$Q$50003,8,FALSE)) -> 6.001875196 | S57: =IF($D57>$B$48,"",VLOOKUP($D57,J$4:$Q$50003,7,FALSE)) -> 6.962923814 | T57: =IF($D57>$B$48,"",VLOOKUP($D57,K$4:$Q$50003,7,FALSE)) -> 46.37193358 | U57: =IF($D57>$B$48,"",VLOOKUP($D57,L$4:$Q$50003,6,FALSE)) -> 49.13003265 | V57: =Formulate!$E$27 -> 0.2411225373 | W57: 23.01290888
D58: 55 | E58: 0 | F58: 1 | G58: 0 | H58: 1 | I58: 26 | J58: 29 | K58: 31 | L58: 24 | N58: 1.565508577 | O58: 1.562773965 | P58: 7.829911422 | Q58: 49.72798258 | R58: =IF($D58>$B$48,"",VLOOKUP($D58,I$4:$Q$50003,8,FALSE)) -> 5.793826191 | S58: =IF($D58>$B$48,"",VLOOKUP($D58,J$4:$Q$50003,7,FALSE)) -> 6.950462184 | T58: =IF($D58>$B$48,"",VLOOKUP($D58,K$4:$Q$50003,7,FALSE)) -> 47.48018022 | U58: =IF($D58>$B$48,"",VLOOKUP($D58,L$4:$Q$50003,6,FALSE)) -> 50.61165144 | V58: =Formulate!$E$27 -> 0.2411225373 | W58: 23.20542246
D59: 56 | E59: 1 | F59: 0 | G59: 0 | H59: 1 | I59: 27 | J59: 29 | K59: 31 | L59: 25 | N59: -1.509071124 | O59: 0.190694425 | P59: 6.003612401 | Q59: 47.78064497 | R59: =IF($D59>$B$48,"",VLOOKUP($D59,I$4:$Q$50003,8,FALSE)) -> 6.815791025 | S59: =IF($D59>$B$48,"",VLOOKUP($D59,J$4:$Q$50003,7,FALSE)) -> 7.148525834 | T59: =IF($D59>$B$48,"",VLOOKUP($D59,K$4:$Q$50003,7,FALSE)) -> 46.00139217 | U59: =IF($D59>$B$48,"",VLOOKUP($D59,L$4:$Q$50003,6,FALSE)) -> 49.78929111 | V59: =Formulate!$E$27 -> 0.2411225373 | W59: 22.84964203
D60: 57 | E60: 1 | F60: 0 | G60: 1 | H60: 0 | I60: 28 | J60: 29 | K60: 32 | L60: 25 | N60: -0.285660231 | O60: -0.8224417444 | P60: 6.730317946 | Q60: 46.34274133 | R60: =IF($D60>$B$48,"",VLOOKUP($D60,I$4:$Q$50003,8,FALSE)) -> 6.840163744 | S60: =IF($D60>$B$48,"",VLOOKUP($D60,J$4:$Q$50003,7,FALSE)) -> 7.724496268 | T60: =IF($D60>$B$48,"",VLOOKUP($D60,K$4:$Q$50003,7,FALSE)) -> 46.42041127 | U60: =IF($D60>$B$48,"",VLOOKUP($D60,L$4:$Q$50003,6,FALSE)) -> 49.1185797 | V60: =Formulate!$E$27 -> 0.2411225373 | W60: 23.29162876
D61: 58 | E61: 1 | F61: 0 | G61: 1 | H61: 0 | I61: 29 | J61: 29 | K61: 33 | L61: 25 | N61: -1.990711506 | O61: -0.6273076758 | P61: 5.717518221 | Q61: 46.61968731 | R61: =IF($D61>$B$48,"",VLOOKUP($D61,I$4:$Q$50003,8,FALSE)) -> 6.754327421 | S61: =IF($D61>$B$48,"",VLOOKUP($D61,J$4:$Q$50003,7,FALSE)) -> 7.482148702 | T61: =IF($D61>$B$48,"",VLOOKUP($D61,K$4:$Q$50003,7,FALSE)) -> 46.60690956 | U61: =IF($D61>$B$48,"",VLOOKUP($D61,L$4:$Q$50003,6,FALSE)) -> 47.9952673 | V61: =Formulate!$E$27 -> 0.2411225373 | W61: 22.96857903
D62: 59 | E62: 0 | F62: 1 | G62: 1 | H62: 0 | I62: 29 | J62: 30 | K62: 34 | L62: 25 | N62: 0.00554244697 | O62: -0.3869199108 | P62: 6.903292211 | Q62: 46.96086005 | R62: =IF($D62>$B$48,"",VLOOKUP($D62,I$4:$Q$50003,8,FALSE)) -> 6.039289858 | S62: =IF($D62>$B$48,"",VLOOKUP($D62,J$4:$Q$50003,7,FALSE)) -> 7.396170411 | T62: =IF($D62>$B$48,"",VLOOKUP($D62,K$4:$Q$50003,7,FALSE)) -> 46.59424825 | U62: =IF($D62>$B$48,"",VLOOKUP($D62,L$4:$Q$50003,6,FALSE)) -> 47.66746851 | V62: =Formulate!$E$27 -> 0.2411225373 | W62: 23.21960477
D63: 60 | E63: 0 | F63: 1 | G63: 1 | H63: 0 | I63: 29 | J63: 31 | K63: 35 | L63: 25 | N63: 0.5033952338 | O63: -0.23330635 | P63: 7.199016552 | Q63: 47.17887763 | R63: =IF($D63>$B$48,"",VLOOKUP($D63,I$4:$Q$50003,8,FALSE)) -> 6.503269662 | S63: =IF($D63>$B$48,"",VLOOKUP($D63,J$4:$Q$50003,7,FALSE)) -> 7.591970979 | T63: =IF($D63>$B$48,"",VLOOKUP($D63,K$4:$Q$50003,7,FALSE)) -> 45.40568123 | U63: =IF($D63>$B$48,"",VLOOKUP($D63,L$4:$Q$50003,6,FALSE)) -> 48.09893736 | V63: =Formulate!$E$27 -> 0.2411225373 | W63: 22.56302412
D64: 61 | E64: 1 | F64: 0 | G64: 1 | H64: 0 | I64: 30 | J64: 31 | K64: 36 | L64: 25 | N64: =NORMSINV(RAND()) -> -2.264738886 | O64: -1.299262092 | P64: 5.554746076 | Q64: 45.66600928 | R64: =IF($D64>$B$48,"",VLOOKUP($D64,I$4:$Q$50003,8,FALSE)) -> 5.934281593 | S64: =IF($D64>$B$48,"",VLOOKUP($D64,J$4:$Q$50003,7,FALSE)) -> 7.077967265 | T64: =IF($D64>$B$48,"",VLOOKUP($D64,K$4:$Q$50003,7,FALSE)) -> 47.38341083 | U64: =IF($D64>$B$48,"",VLOOKUP($D64,L$4:$Q$50003,6,FALSE)) -> 48.50829294 | V64: =Formulate!$E$27 -> 0.2411225373 | W64: 22.66810342
D65: 62 | E65: 1 | F65: 0 | G65: 0 | H65: 1 | I65: 31 | J65: 31 | K65: 36 | L65: 26 | N65: -0.2324921285 | O65: 0.5430313231 | P65: 6.761899776 | Q65: 48.28070264 | R65: =IF($D65>$B$48,"",VLOOKUP($D65,I$4:$Q$50003,8,FALSE)) -> 6.54554621 | S65: =IF($D65>$B$48,"",VLOOKUP($D65,J$4:$Q$50003,7,FALSE)) -> 7.182624359 | T65: =IF($D65>$B$48,"",VLOOKUP($D65,K$4:$Q$50003,7,FALSE)) -> 46.81597746 | U65: =IF($D65>$B$48,"",VLOOKUP($D65,L$4:$Q$50003,6,FALSE)) -> 49.40285553 | V65: =Formulate!$E$27 -> 0.2411225373 | W65: 23.05429856
D66: 63 | E66: 0 | F66: 1 | G66: 0 | H66: 1 | I66: 31 | J66: 32 | K66: 36 | L66: 27 | N66: 1.212617506 | O66: 0.1002006605 | P66: 7.620294277 | Q66: 47.65221079 | R66: =IF($D66>$B$48,"",VLOOKUP($D66,I$4:$Q$50003,8,FALSE)) -> 6.733955747 | S66: =IF($D66>$B$48,"",VLOOKUP($D66,J$4:$Q$50003,7,FALSE)) -> 6.918957891 | T66: =IF($D66>$B$48,"",VLOOKUP($D66,K$4:$Q$50003,7,FALSE)) -> 46.30052319 | U66: =IF($D66>$B$48,"",VLOOKUP($D66,L$4:$Q$50003,6,FALSE)) -> 47.51490698 | V66: =Formulate!$E$27 -> 0.2411225373 | W66: 22.91237191
D67: 64 | E67: 0 | F67: 1 | G67: 1 | H67: 0 | I67: 31 | J67: 33 | K67: 37 | L67: 27 | N67: 0.2550526648 | O67: -0.03861617989 | P67: 7.051501173 | Q67: 47.4551936 | R67: =IF($D67>$B$48,"",VLOOKUP($D67,I$4:$Q$50003,8,FALSE)) -> 6.224189225 | S67: =IF($D67>$B$48,"",VLOOKUP($D67,J$4:$Q$50003,7,FALSE)) -> 6.963143356 | T67: =IF($D67>$B$48,"",VLOOKUP($D67,K$4:$Q$50003,7,FALSE)) -> 47.4128965 | U67: =IF($D67>$B$48,"",VLOOKUP($D67,L$4:$Q$50003,6,FALSE)) -> 51.73541556 | V67: =Formulate!$E$27 -> 0.2411225373 | W67: 22.8564721
D68: 65 | E68: =IF(P68<$B$4,1,0) -> 1 | F68: =1-E68 -> 0 | G68: =IF(Q68<$B$7,1,0) -> 1 | H68: =1-G68 -> 0 | I68: 32 | J68: 33 | K68: 38 | L68: 27 | N68: -1.3307872 | O68: -0.2574902268 | P68: =$B$4+N68*$B$5 -> 6.109512975 | Q68: =$B$7+O68*$B$8 -> 47.14455442 | R68: =IF($D68>$B$48,"",VLOOKUP($D68,I$4:$Q$50003,8,FALSE)) -> 5.955955165 | S68: =IF($D68>$B$48,"",VLOOKUP($D68,J$4:$Q$50003,7,FALSE)) -> 6.968939474 | T68: =IF($D68>$B$48,"",VLOOKUP($D68,K$4:$Q$50003,7,FALSE)) -> 46.88126568 | U68: =IF($D68>$B$48,"",VLOOKUP($D68,L$4:$Q$50003,6,FALSE)) -> 48.79327549 | V68: =Formulate!$E$27 -> 0.2411225373 | W68: =IF($D68>$B$48,"",(($B$12/100)*R68+($B$13/100)*S68+($B$14/100)*T68+($B$15/100)*U68+57.52*V68/100)) -> 22.62156035
D69: 66 | E69: 0 | F69: 1 | G69: 1 | H69: 0 | I69: =I68+E69 -> 32 | J69: =J68+F69 -> 34 | K69: =K68+G69 -> 39 | L69: =L68+H69 -> 27 | N69: 0.04489345688 | O69: -0.5348637036 | P69: 6.926666694 | Q69: 46.75088934 | R69: =IF($D69>$B$48,"",VLOOKUP($D69,I$4:$Q$50003,8,FALSE)) -> 6.154393962 | S69: =IF($D69>$B$48,"",VLOOKUP($D69,J$4:$Q$50003,7,FALSE)) -> 7.365111048 | T69: =IF($D69>$B$48,"",VLOOKUP($D69,K$4:$Q$50003,7,FALSE)) -> 46.95851587 | U69: =IF($D69>$B$48,"",VLOOKUP($D69,L$4:$Q$50003,6,FALSE)) -> 50.51364437 | V69: =Formulate!$E$27 -> 0.2411225373 | W69: 22.91915103
D70: 67 | E70: 1 | F70: 0 | G70: 1 | H70: 0 | I70: 33 | J70: 34 | K70: 40 | L70: 27 | N70: -1.310111209 | O70: -0.3308163368 | P70: 6.121794505 | Q70: 47.04048561 | R70: =IF($D70>$B$48,"",VLOOKUP($D70,I$4:$Q$50003,8,FALSE)) -> 6.78371763 | S70: =IF($D70>$B$48,"",VLOOKUP($D70,J$4:$Q$50003,7,FALSE)) -> 7.711963553 | T70: =IF($D70>$B$48,"",VLOOKUP($D70,K$4:$Q$50003,7,FALSE)) -> 47.013647 | U70: =IF($D70>$B$48,"",VLOOKUP($D70,L$4:$Q$50003,6,FALSE)) -> 48.39303018 | V70: =Formulate!$E$27 -> 0.2411225373 | W70: 23.24782917
D71: 68 | E71: 1 | F71: 0 | G71: 1 | H71: 0 | I71: 34 | J71: 34 | K71: 41 | L71: 27 | N71: -1.475013582 | O71: -0.4675252475 | P71: 6.023842566 | Q71: 46.84646012 | R71: =IF($D71>$B$48,"",VLOOKUP($D71,I$4:$Q$50003,8,FALSE)) -> 6.826547748 | S71: =IF($D71>$B$48,"",VLOOKUP($D71,J$4:$Q$50003,7,FALSE)) -> 7.434653098 | T71: =IF($D71>$B$48,"",VLOOKUP($D71,K$4:$Q$50003,7,FALSE)) -> 47.1494792 | U71: =IF($D71>$B$48,"",VLOOKUP($D71,L$4:$Q$50003,6,FALSE)) -> 48.01250318 | V71: =Formulate!$E$27 -> 0.2411225373 | W71: 23.14154896
D72: 69 | E72: 0 | F72: 1 | G72: 0 | H72: 1 | I72: 34 | J72: 35 | K72: 41 | L72: 28 | N72: 0.7201531935 | O72: 1.978184251 | P72: 7.327770687 | Q72: 50.31755778 | R72: =IF($D72>$B$48,"",VLOOKUP($D72,I$4:$Q$50003,8,FALSE)) -> 6.488755621 | S72: =IF($D72>$B$48,"",VLOOKUP($D72,J$4:$Q$50003,7,FALSE)) -> 7.350980866 | T72: =IF($D72>$B$48,"",VLOOKUP($D72,K$4:$Q$50003,7,FALSE)) -> 46.15085746 | U72: =IF($D72>$B$48,"",VLOOKUP($D72,L$4:$Q$50003,6,FALSE)) -> 47.57938265 | V72: =Formulate!$E$27 -> 0.2411225373 | W72: 23.39208836
D73: 70 | E73: 0 | F73: 1 | G73: 1 | H73: 0 | I73: 34 | J73: 36 | K73: 42 | L73: 28 | N73: 0.6295557669 | O73: -1.596163361 | P73: 7.273955855 | Q73: 45.24462919 | R73: =IF($D73>$B$48,"",VLOOKUP($D73,I$4:$Q$50003,8,FALSE)) -> 6.801052368 | S73: =IF($D73>$B$48,"",VLOOKUP($D73,J$4:$Q$50003,7,FALSE)) -> 7.726102167 | T73: =IF($D73>$B$48,"",VLOOKUP($D73,K$4:$Q$50003,7,FALSE)) -> 46.25310561 | U73: =IF($D73>$B$48,"",VLOOKUP($D73,L$4:$Q$50003,6,FALSE)) -> 47.79423835 | V73: =Formulate!$E$27 -> 0.2411225373 | W73: 23.56413871
D74: 71 | E74: 0 | F74: 1 | G74: 0 | H74: 1 | I74: 34 | J74: 37 | K74: 42 | L74: 29 | N74: 1.619691441 | O74: 0.5082507091 | P74: 7.86209602 | Q74: 48.2313399 | R74: =IF($D74>$B$48,"",VLOOKUP($D74,I$4:$Q$50003,8,FALSE)) -> 6.097618396 | S74: =IF($D74>$B$48,"",VLOOKUP($D74,J$4:$Q$50003,7,FALSE)) -> 6.997509987 | T74: =IF($D74>$B$48,"",VLOOKUP($D74,K$4:$Q$50003,7,FALSE)) -> 45.7286137 | U74: =IF($D74>$B$48,"",VLOOKUP($D74,L$4:$Q$50003,6,FALSE)) -> 48.85664081 | V74: =Formulate!$E$27 -> 0.2411225373 | W74: 23.18282517
D75: 72 | E75: 1 | F75: 0 | G75: 1 | H75: 0 | I75: 35 | J75: 37 | K75: 43 | L75: 29 | N75: -1.226331143 | O75: -0.1304053767 | P75: 6.171559829 | Q75: 47.32492087 | R75: =IF($D75>$B$48,"",VLOOKUP($D75,I$4:$Q$50003,8,FALSE)) -> 6.266840729 | S75: =IF($D75>$B$48,"",VLOOKUP($D75,J$4:$Q$50003,7,FALSE)) -> 7.026524488 | T75: =IF($D75>$B$48,"",VLOOKUP($D75,K$4:$Q$50003,7,FALSE)) -> 46.15166858 | U75: =IF($D75>$B$48,"",VLOOKUP($D75,L$4:$Q$50003,6,FALSE)) -> 47.88232121 | V75: =Formulate!$E$27 -> 0.2411225373 | W75: 23.30113873
D76: 73 | E76: 1 | F76: 0 | G76: 1 | H76: 0 | I76: 36 | J76: 37 | K76: 44 | L76: 29 | N76: -0.8384559766 | O76: -0.5273182528 | P76: 6.40195751 | Q76: 46.7615983 | R76: =IF($D76>$B$48,"",VLOOKUP($D76,I$4:$Q$50003,8,FALSE)) -> 6.888677006 | S76: =IF($D76>$B$48,"",VLOOKUP($D76,J$4:$Q$50003,7,FALSE)) -> 7.023162497 | T76: =IF($D76>$B$48,"",VLOOKUP($D76,K$4:$Q$50003,7,FALSE)) -> 45.56944104 | U76: =IF($D76>$B$48,"",VLOOKUP($D76,L$4:$Q$50003,6,FALSE)) -> 47.64558332 | V76: =Formulate!$E$27 -> 0.2411225373 | W76: 23.03147038
D77: 74 | E77: 0 | F77: 1 | G77: 1 | H77: 0 | I77: 36 | J77: 38 | K77: 45 | L77: 29 | N77: 0.01067018601 | O77: -1.22709726 | P77: 6.906338086 | Q77: 45.76842994 | R77: =IF($D77>$B$48,"",VLOOKUP($D77,I$4:$Q$50003,8,FALSE)) -> 6.520764916 | S77: =IF($D77>$B$48,"",VLOOKUP($D77,J$4:$Q$50003,7,FALSE)) -> 7.536946643 | T77: =IF($D77>$B$48,"",VLOOKUP($D77,K$4:$Q$50003,7,FALSE)) -> 45.4125094 | U77: =IF($D77>$B$48,"",VLOOKUP($D77,L$4:$Q$50003,6,FALSE)) -> 47.63411387 | V77: =Formulate!$E$27 -> 0.2411225373 | W77: 22.96082828
D78: 75 | E78: 1 | F78: 0 | G78: 0 | H78: 1 | I78: 37 | J78: 38 | K78: 45 | L78: 30 | N78: -0.09039718953 | O78: 0.4384455532 | P78: 6.846304108 | Q78: 48.13226824 | R78: =IF($D78>$B$48,"",VLOOKUP($D78,I$4:$Q$50003,8,FALSE)) -> 6.72026148 | S78: =IF($D78>$B$48,"",VLOOKUP($D78,J$4:$Q$50003,7,FALSE)) -> 7.454700866 | T78: =IF($D78>$B$48,"",VLOOKUP($D78,K$4:$Q$50003,7,FALSE)) -> 45.44100225 | U78: =IF($D78>$B$48,"",VLOOKUP($D78,L$4:$Q$50003,6,FALSE)) -> 47.8411087 | V78: =Formulate!$E$27 -> 0.2411225373 | W78: 23.37384501
D79: 76 | E79: 1 | F79: 0 | G79: 1 | H79: 0 | I79: 38 | J79: 38 | K79: 46 | L79: 30 | N79: -1.171086449 | O79: -0.1369024628 | P79: 6.204375153 | Q79: 47.31569981 | R79: =IF($D79>$B$48,"",VLOOKUP($D79,I$4:$Q$50003,8,FALSE)) -> 6.640853059 | S79: =IF($D79>$B$48,"",VLOOKUP($D79,J$4:$Q$50003,7,FALSE)) -> 7.162150242 | T79: =IF($D79>$B$48,"",VLOOKUP($D79,K$4:$Q$50003,7,FALSE)) -> 46.40052075 | U79: =IF($D79>$B$48,"",VLOOKUP($D79,L$4:$Q$50003,6,FALSE)) -> 48.23784067 | V79: =Formulate!$E$27 -> 0.2411225373 | W79: 22.54662312
D80: 77 | E80: 0 | F80: 1 | G80: 0 | H80: 1 | I80: 38 | J80: 39 | K80: 46 | L80: 31 | N80: 1.160128151 | O80: 0.3904734468 | P80: 7.589115623 | Q80: 48.06418334 | R80: =IF($D80>$B$48,"",VLOOKUP($D80,I$4:$Q$50003,8,FALSE)) -> 6.611723173 | S80: =IF($D80>$B$48,"",VLOOKUP($D80,J$4:$Q$50003,7,FALSE)) -> 6.995192636 | T80: =IF($D80>$B$48,"",VLOOKUP($D80,K$4:$Q$50003,7,FALSE)) -> 47.07370817 | U80: =IF($D80>$B$48,"",VLOOKUP($D80,L$4:$Q$50003,6,FALSE)) -> 49.17995799 | V80: =Formulate!$E$27 -> 0.2411225373 | W80: 22.47601826
D81: 78 | E81: 0 | F81: 1 | G81: 0 | H81: 1 | I81: 38 | J81: 40 | K81: 46 | L81: 32 | N81: 0.6655808668 | O81: 0.0225496475 | P81: 7.295354749 | Q81: 47.54200381 | R81: =IF($D81>$B$48,"",VLOOKUP($D81,I$4:$Q$50003,8,FALSE)) -> 6.443949739 | S81: =IF($D81>$B$48,"",VLOOKUP($D81,J$4:$Q$50003,7,FALSE)) -> 7.361403823 | T81: =IF($D81>$B$48,"",VLOOKUP($D81,K$4:$Q$50003,7,FALSE)) -> 46.57630745 | U81: =IF($D81>$B$48,"",VLOOKUP($D81,L$4:$Q$50003,6,FALSE)) -> 48.85625295 | V81: =Formulate!$E$27 -> 0.2411225373 | W81: 23.3497681
D82: 79 | E82: 1 | F82: 0 | G82: 0 | H82: 1 | I82: 39 | J82: 40 | K82: 46 | L82: 33 | N82: -0.6624187552 | O82: 0.1561667268 | P82: 6.506523544 | Q82: 47.73164119 | R82: =IF($D82>$B$48,"",VLOOKUP($D82,I$4:$Q$50003,8,FALSE)) -> 6.446205296 | S82: =IF($D82>$B$48,"",VLOOKUP($D82,J$4:$Q$50003,7,FALSE)) -> 6.964675916 | T82: =IF($D82>$B$48,"",VLOOKUP($D82,K$4:$Q$50003,7,FALSE)) -> 46.76047571 | U82: =IF($D82>$B$48,"",VLOOKUP($D82,L$4:$Q$50003,6,FALSE)) -> 48.95414846 | V82: =Formulate!$E$27 -> 0.2411225373 | W82: 22.84882112
D83: 80 | E83: 1 | F83: 0 | G83: 0 | H83: 1 | I83: 40 | J83: 40 | K83: 46 | L83: 34 | N83: -1.409446801 | O83: 1.323203061 | P83: 6.062789206 | Q83: 49.38796918 | R83: =IF($D83>$B$48,"",VLOOKUP($D83,I$4:$Q$50003,8,FALSE)) -> 6.416878677 | S83: =IF($D83>$B$48,"",VLOOKUP($D83,J$4:$Q$50003,7,FALSE)) -> 8.38053188 | T83: =IF($D83>$B$48,"",VLOOKUP($D83,K$4:$Q$50003,7,FALSE)) -> 46.52232055 | U83: =IF($D83>$B$48,"",VLOOKUP($D83,L$4:$Q$50003,6,FALSE)) -> 48.7501498 | V83: =Formulate!$E$27 -> 0.2411225373 | W83: 23.07835937
D84: 81 | E84: 0 | F84: 1 | G84: 0 | H84: 1 | I84: 40 | J84: 41 | K84: 46 | L84: 35 | N84: =NORMSINV(RAND()) -> 1.14480143 | O84: 0.5549262103 | P84: 7.580011557 | Q84: 48.29758457 | R84: =IF($D84>$B$48,"",VLOOKUP($D84,I$4:$Q$50003,8,FALSE)) -> 6.54634126 | S84: =IF($D84>$B$48,"",VLOOKUP($D84,J$4:$Q$50003,7,FALSE)) -> 7.303805465 | T84: =IF($D84>$B$48,"",VLOOKUP($D84,K$4:$Q$50003,7,FALSE)) -> 46.79364387 | U84: =IF($D84>$B$48,"",VLOOKUP($D84,L$4:$Q$50003,6,FALSE)) -> 49.39964242 | V84: =Formulate!$E$27 -> 0.2411225373 | W84: 22.98973589
D85: 82 | E85: 1 | F85: 0 | G85: 0 | H85: 1 | I85: 41 | J85: 41 | K85: 46 | L85: 36 | N85: -0.5235278885 | O85: 0.5949759189 | P85: 6.589024659 | Q85: 48.35442552 | R85: =IF($D85>$B$48,"",VLOOKUP($D85,I$4:$Q$50003,8,FALSE)) -> 5.55136242 | S85: =IF($D85>$B$48,"",VLOOKUP($D85,J$4:$Q$50003,7,FALSE)) -> 7.690564023 | T85: =IF($D85>$B$48,"",VLOOKUP($D85,K$4:$Q$50003,7,FALSE)) -> 45.66035904 | U85: =IF($D85>$B$48,"",VLOOKUP($D85,L$4:$Q$50003,6,FALSE)) -> 47.70159548 | V85: =Formulate!$E$27 -> 0.2411225373 | W85: 22.76159615
D86: 83 | E86: 1 | F86: 0 | G86: 0 | H86: 1 | I86: 42 | J86: 41 | K86: 46 | L86: 37 | N86: -1.836757625 | O86: 0.4092802958 | P86: 5.808966761 | Q86: 48.09087515 | R86: =IF($D86>$B$48,"",VLOOKUP($D86,I$4:$Q$50003,8,FALSE)) -> 6.351082983 | S86: =IF($D86>$B$48,"",VLOOKUP($D86,J$4:$Q$50003,7,FALSE)) -> 7.442228774 | T86: =IF($D86>$B$48,"",VLOOKUP($D86,K$4:$Q$50003,7,FALSE)) -> 44.40422541 | U86: =IF($D86>$B$48,"",VLOOKUP($D86,L$4:$Q$50003,6,FALSE)) -> 48.67557782 | V86: =Formulate!$E$27 -> 0.2411225373 | W86: 23.04339139
D87: 84 | E87: 0 | F87: 1 | G87: 1 | H87: 0 | I87: 42 | J87: 42 | K87: 47 | L87: 37 | N87: 1.774384163 | O87: -1.88101211 | P87: 7.95398343 | Q87: 44.84035475 | R87: =IF($D87>$B$48,"",VLOOKUP($D87,I$4:$Q$50003,8,FALSE)) -> 5.740875118 | S87: =IF($D87>$B$48,"",VLOOKUP($D87,J$4:$Q$50003,7,FALSE)) -> 8.031375125 | T87: =IF($D87>$B$48,"",VLOOKUP($D87,K$4:$Q$50003,7,FALSE)) -> 45.95126534 | U87: =IF($D87>$B$48,"",VLOOKUP($D87,L$4:$Q$50003,6,FALSE)) -> 49.10923115 | V87: =Formulate!$E$27 -> 0.2411225373 | W87: 22.96676947
D88: 85 | E88: 0 | F88: 1 | G88: 0 | H88: 1 | I88: 42 | J88: 43 | K88: 47 | L88: 38 | N88: 2.415252769 | O88: 0.1967113536 | P88: 8.334659106 | Q88: 47.78918456 | R88: =IF($D88>$B$48,"",VLOOKUP($D88,I$4:$Q$50003,8,FALSE)) -> 6.657644496 | S88: =IF($D88>$B$48,"",VLOOKUP($D88,J$4:$Q$50003,7,FALSE)) -> 7.414378799 | T88: =IF($D88>$B$48,"",VLOOKUP($D88,K$4:$Q$50003,7,FALSE)) -> 46.32178247 | U88: =IF($D88>$B$48,"",VLOOKUP($D88,L$4:$Q$50003,6,FALSE)) -> 49.75457849 | V88: =Formulate!$E$27 -> 0.2411225373 | W88: 23.42593011
D89: 86 | E89: 0 | F89: 1 | G89: 1 | H89: 0 | I89: 42 | J89: 44 | K89: 48 | L89: 38 | N89: 2.084009418 | O89: -0.3406453793 | P89: 8.137900698 | Q89: 47.02653564 | R89: =IF($D89>$B$48,"",VLOOKUP($D89,I$4:$Q$50003,8,FALSE)) -> 6.296678356 | S89: =IF($D89>$B$48,"",VLOOKUP($D89,J$4:$Q$50003,7,FALSE)) -> 7.426815655 | T89: =IF($D89>$B$48,"",VLOOKUP($D89,K$4:$Q$50003,7,FALSE)) -> 46.79684803 | U89: =IF($D89>$B$48,"",VLOOKUP($D89,L$4:$Q$50003,6,FALSE)) -> 49.48133129 | V89: =Formulate!$E$27 -> 0.2411225373 | W89: 23.16300094
D90: 87 | E90: 0 | F90: 1 | G90: 1 | H90: 0 | I90: 42 | J90: 45 | K90: 49 | L90: 38 | N90: 0.8764904359 | O90: -1.613680703 | P90: 7.420634942 | Q90: 45.21976753 | R90: =IF($D90>$B$48,"",VLOOKUP($D90,I$4:$Q$50003,8,FALSE)) -> 6.610319758 | S90: =IF($D90>$B$48,"",VLOOKUP($D90,J$4:$Q$50003,7,FALSE)) -> 7.767355622 | T90: =IF($D90>$B$48,"",VLOOKUP($D90,K$4:$Q$50003,7,FALSE)) -> 45.5861954 | U90: =IF($D90>$B$48,"",VLOOKUP($D90,L$4:$Q$50003,6,FALSE)) -> 48.11574133 | V90: =Formulate!$E$27 -> 0.2411225373 | W90: 23.0508147
D91: 88 | E91: 0 | F91: 1 | G91: 0 | H91: 1 | I91: 42 | J91: 46 | K91: 49 | L91: 39 | N91: 1.261470201 | O91: 0.09907723082 | P91: 7.649312757 | Q91: 47.65061635 | R91: =IF($D91>$B$48,"",VLOOKUP($D91,I$4:$Q$50003,8,FALSE)) -> 6.456515859 | S91: =IF($D91>$B$48,"",VLOOKUP($D91,J$4:$Q$50003,7,FALSE)) -> 7.554704137 | T91: =IF($D91>$B$48,"",VLOOKUP($D91,K$4:$Q$50003,7,FALSE)) -> 45.54038009 | U91: =IF($D91>$B$48,"",VLOOKUP($D91,L$4:$Q$50003,6,FALSE)) -> 49.19064633 | V91: =Formulate!$E$27 -> 0.2411225373 | W91: 22.94897286
D92: 89 | E92: 1 | F92: 0 | G92: 0 | H92: 1 | I92: 43 | J92: 46 | K92: 49 | L92: 40 | N92: -0.3560410055 | O92: 1.003152147 | P92: 6.688511796 | Q92: 48.93373372 | R92: =IF($D92>$B$48,"",VLOOKUP($D92,I$4:$Q$50003,8,FALSE)) -> 6.224922807 | S92: =IF($D92>$B$48,"",VLOOKUP($D92,J$4:$Q$50003,7,FALSE)) -> 7.427654025 | T92: =IF($D92>$B$48,"",VLOOKUP($D92,K$4:$Q$50003,7,FALSE)) -> 45.06740346 | U92: =IF($D92>$B$48,"",VLOOKUP($D92,L$4:$Q$50003,6,FALSE)) -> 47.65306619 | V92: =Formulate!$E$27 -> 0.2411225373 | W92: 22.85728046
D93: 90 | E93: 0 | F93: 1 | G93: 0 | H93: 1 | I93: 43 | J93: 47 | K93: 49 | L93: 41 | N93: 0.4077417078 | O93: 1.174536669 | P93: 7.142198399 | Q93: 49.17697291 | R93: =IF($D93>$B$48,"",VLOOKUP($D93,I$4:$Q$50003,8,FALSE)) -> 6.778109274 | S93: =IF($D93>$B$48,"",VLOOKUP($D93,J$4:$Q$50003,7,FALSE)) -> 7.531335181 | T93: =IF($D93>$B$48,"",VLOOKUP($D93,K$4:$Q$50003,7,FALSE)) -> 46.60743199 | U93: =IF($D93>$B$48,"",VLOOKUP($D93,L$4:$Q$50003,6,FALSE)) -> 49.12419017 | V93: =Formulate!$E$27 -> 0.2411225373 | W93: 22.76040847
D94: 91 | E94: 1 | F94: 0 | G94: 0 | H94: 1 | I94: 44 | J94: 47 | K94: 49 | L94: 42 | N94: -2.499756355 | O94: 0.4238579833 | P94: 5.4151458 | Q94: 48.11156468 | R94: =IF($D94>$B$48,"",VLOOKUP($D94,I$4:$Q$50003,8,FALSE)) -> 6.832570298 | S94: =IF($D94>$B$48,"",VLOOKUP($D94,J$4:$Q$50003,7,FALSE)) -> 7.044907894 | T94: =IF($D94>$B$48,"",VLOOKUP($D94,K$4:$Q$50003,7,FALSE)) -> 46.82567215 | U94: =IF($D94>$B$48,"",VLOOKUP($D94,L$4:$Q$50003,6,FALSE)) -> 48.00371628 | V94: =Formulate!$E$27 -> 0.2411225373 | W94: 23.25934359
D95: 92 | E95: 0 | F95: 1 | G95: 1 | H95: 0 | I95: 44 | J95: 48 | K95: 50 | L95: 42 | N95: 1.092439196 | O95: -0.1771513552 | P95: 7.548908413 | Q95: 47.25857617 | R95: =IF($D95>$B$48,"",VLOOKUP($D95,I$4:$Q$50003,8,FALSE)) -> 6.492640661 | S95: =IF($D95>$B$48,"",VLOOKUP($D95,J$4:$Q$50003,7,FALSE)) -> 7.403110767 | T95: =IF($D95>$B$48,"",VLOOKUP($D95,K$4:$Q$50003,7,FALSE)) -> 46.68164737 | U95: =IF($D95>$B$48,"",VLOOKUP($D95,L$4:$Q$50003,6,FALSE)) -> 47.81663279 | V95: =Formulate!$E$27 -> 0.2411225373 | W95: 22.78346663
D96: 93 | E96: 1 | F96: 0 | G96: 0 | H96: 1 | I96: 45 | J96: 48 | K96: 50 | L96: 43 | N96: -0.6175416928 | O96: 0.3364921557 | P96: 6.5331805 | Q96: 47.98756986 | R96: =IF($D96>$B$48,"",VLOOKUP($D96,I$4:$Q$50003,8,FALSE)) -> 6.434102574 | S96: =IF($D96>$B$48,"",VLOOKUP($D96,J$4:$Q$50003,7,FALSE)) -> 7.357612712 | T96: =IF($D96>$B$48,"",VLOOKUP($D96,K$4:$Q$50003,7,FALSE)) -> 46.68245292 | U96: =IF($D96>$B$48,"",VLOOKUP($D96,L$4:$Q$50003,6,FALSE)) -> 48.25862988 | V96: =Formulate!$E$27 -> 0.2411225373 | W96: 23.34067971
D97: 94 | E97: 1 | F97: 0 | G97: 0 | H97: 1 | I97: 46 | J97: 48 | K97: 50 | L97: 44 | N97: -1.369421294 | O97: 1.828390451 | P97: 6.08656434 | Q97: 50.10496143 | R97: =IF($D97>$B$48,"",VLOOKUP($D97,I$4:$Q$50003,8,FALSE)) -> 5.869627645 | S97: =IF($D97>$B$48,"",VLOOKUP($D97,J$4:$Q$50003,7,FALSE)) -> 6.995139013 | T97: =IF($D97>$B$48,"",VLOOKUP($D97,K$4:$Q$50003,7,FALSE)) -> 47.48723332 | U97: =IF($D97>$B$48,"",VLOOKUP($D97,L$4:$Q$50003,6,FALSE)) -> 48.53139086 | V97: =Formulate!$E$27 -> 0.2411225373 | W97: 22.71721959
D98: 95 | E98: 0 | F98: 1 | G98: 1 | H98: 0 | I98: 46 | J98: 49 | K98: 51 | L98: 44 | N98: 1.032512669 | O98: -0.9429609093 | P98: 7.513312081 | Q98: 46.1716933 | R98: =IF($D98>$B$48,"",VLOOKUP($D98,I$4:$Q$50003,8,FALSE)) -> 6.762526499 | S98: =IF($D98>$B$48,"",VLOOKUP($D98,J$4:$Q$50003,7,FALSE)) -> 7.836770853 | T98: =IF($D98>$B$48,"",VLOOKUP($D98,K$4:$Q$50003,7,FALSE)) -> 46.53833905 | U98: =IF($D98>$B$48,"",VLOOKUP($D98,L$4:$Q$50003,6,FALSE)) -> 49.42083079 | V98: =Formulate!$E$27 -> 0.2411225373 | W98: 23.36768162
D99: 96 | E99: 0 | F99: 1 | G99: 0 | H99: 1 | I99: 46 | J99: 50 | K99: 51 | L99: 45 | N99: 1.262364607 | O99: 0.7098928611 | P99: 7.649844034 | Q99: 48.51752254 | R99: =IF($D99>$B$48,"",VLOOKUP($D99,I$4:$Q$50003,8,FALSE)) -> 6.7507398 | S99: =IF($D99>$B$48,"",VLOOKUP($D99,J$4:$Q$50003,7,FALSE)) -> 7.761627345 | T99: =IF($D99>$B$48,"",VLOOKUP($D99,K$4:$Q$50003,7,FALSE)) -> 45.05947024 | U99: =IF($D99>$B$48,"",VLOOKUP($D99,L$4:$Q$50003,6,FALSE)) -> 49.50881959 | V99: =Formulate!$E$27 -> 0.2411225373 | W99: 22.82795012
D100: 97 | E100: 1 | F100: 0 | G100: 1 | H100: 0 | I100: 47 | J100: 50 | K100: 52 | L100: 45 | N100: -0.9051661028 | O100: -1.512323023 | P100: 6.362331724 | Q100: 45.36362043 | R100: =IF($D100>$B$48,"",VLOOKUP($D100,I$4:$Q$50003,8,FALSE)) -> 6.323208611 | S100: =IF($D100>$B$48,"",VLOOKUP($D100,J$4:$Q$50003,7,FALSE)) -> 7.580432362 | T100: =IF($D100>$B$48,"",VLOOKUP($D100,K$4:$Q$50003,7,FALSE)) -> 46.28864044 | U100: =IF($D100>$B$48,"",VLOOKUP($D100,L$4:$Q$50003,6,FALSE)) -> 48.4785622 | V100: =Formulate!$E$27 -> 0.2411225373 | W100: 23.26548157
D101: 98 | E101: 0 | F101: 1 | G101: 0 | H101: 1 | I101: 47 | J101: 51 | K101: 52 | L101: 46 | N101: 0.6884562499 | O101: 0.6976997945 | P101: 7.308942716 | Q101: 48.50021741 | R101: =IF($D101>$B$48,"",VLOOKUP($D101,I$4:$Q$50003,8,FALSE)) -> 6.816838695 | S101: =IF($D101>$B$48,"",VLOOKUP($D101,J$4:$Q$50003,7,FALSE)) -> 7.487529258 | T101: =IF($D101>$B$48,"",VLOOKUP($D101,K$4:$Q$50003,7,FALSE)) -> 46.14813401 | U101: =IF($D101>$B$48,"",VLOOKUP($D101,L$4:$Q$50003,6,FALSE)) -> 48.2759042 | V101: =Formulate!$E$27 -> 0.2411225373 | W101: 23.14183158
D102: 99 | E102: 0 | F102: 1 | G102: 0 | H102: 1 | I102: 47 | J102: 52 | K102: 52 | L102: 47 | N102: 2.615098038 | O102: 0.6542201859 | P102: 8.45336711 | Q102: 48.43850854 | R102: =IF($D102>$B$48,"",VLOOKUP($D102,I$4:$Q$50003,8,FALSE)) -> 6.624084095 | S102: =IF($D102>$B$48,"",VLOOKUP($D102,J$4:$Q$50003,7,FALSE)) -> 7.786769224 | T102: =IF($D102>$B$48,"",VLOOKUP($D102,K$4:$Q$50003,7,FALSE)) -> 45.67338148 | U102: =IF($D102>$B$48,"",VLOOKUP($D102,L$4:$Q$50003,6,FALSE)) -> 48.14833487 | V102: =Formulate!$E$27 -> 0.2411225373 | W102: 23.16760281
D103: 100 | E103: 0 | F103: 1 | G103: 0 | H103: 1 | I103: 47 | J103: 53 | K103: 52 | L103: 48 | N103: 0.06913945495 | O103: 0.8707884184 | P103: 6.941068807 | Q103: 48.74587517 | R103: =IF($D103>$B$48,"",VLOOKUP($D103,I$4:$Q$50003,8,FALSE)) -> 5.866653513 | S103: =IF($D103>$B$48,"",VLOOKUP($D103,J$4:$Q$50003,7,FALSE)) -> 7.100358757 | T103: =IF($D103>$B$48,"",VLOOKUP($D103,K$4:$Q$50003,7,FALSE)) -> 47.11002519 | U103: =IF($D103>$B$48,"",VLOOKUP($D103,L$4:$Q$50003,6,FALSE)) -> 48.69299021 | V103: =Formulate!$E$27 -> 0.2411225373 | W103: 22.56594163
D104: 101 | E104: 0 | F104: 1 | G104: 1 | H104: 0 | I104: 47 | J104: 54 | K104: 53 | L104: 48 | N104: =NORMSINV(RAND()) -> 1.556586902 | O104: -0.6604160273 | P104: 7.824611951 | Q104: 46.57269795 | R104: =IF($D104>$B$48,"",VLOOKUP($D104,I$4:$Q$50003,8,FALSE)) -> 6.424783812 | S104: =IF($D104>$B$48,"",VLOOKUP($D104,J$4:$Q$50003,7,FALSE)) -> 7.522411716 | T104: =IF($D104>$B$48,"",VLOOKUP($D104,K$4:$Q$50003,7,FALSE)) -> 45.52389005 | U104: =IF($D104>$B$48,"",VLOOKUP($D104,L$4:$Q$50003,6,FALSE)) -> 47.80745657 | V104: =Formulate!$E$27 -> 0.2411225373 | W104: 23.05603754
D105: 102 | E105: 0 | F105: 1 | G105: 0 | H105: 1 | I105: 47 | J105: 55 | K105: 53 | L105: 49 | N105: 1.468750226 | O105: 1.132279606 | P105: 7.772437003 | Q105: 49.11699915 | R105: =IF($D105>$B$48,"",VLOOKUP($D105,I$4:$Q$50003,8,FALSE)) -> 6.792886793 | S105: =IF($D105>$B$48,"",VLOOKUP($D105,J$4:$Q$50003,7,FALSE)) -> 7.055771087 | T105: =IF($D105>$B$48,"",VLOOKUP($D105,K$4:$Q$50003,7,FALSE)) -> 45.39905761 | U105: =IF($D105>$B$48,"",VLOOKUP($D105,L$4:$Q$50003,6,FALSE)) -> 47.77050489 | V105: =Formulate!$E$27 -> 0.2411225373 | W105: 23.22425427
D106: 103 | E106: 1 | F106: 0 | G106: 1 | H106: 0 | I106: 48 | J106: 55 | K106: 54 | L106: 49 | N106: -0.5938445732 | O106: -0.8018731047 | P106: 6.547256579 | Q106: 46.37193358 | R106: =IF($D106>$B$48,"",VLOOKUP($D106,I$4:$Q$50003,8,FALSE)) -> 6.73445585 | S106: =IF($D106>$B$48,"",VLOOKUP($D106,J$4:$Q$50003,7,FALSE)) -> 7.029459639 | T106: =IF($D106>$B$48,"",VLOOKUP($D106,K$4:$Q$50003,7,FALSE)) -> 45.57378157 | U106: =IF($D106>$B$48,"",VLOOKUP($D106,L$4:$Q$50003,6,FALSE)) -> 49.17361377 | V106: =Formulate!$E$27 -> 0.2411225373 | W106: 22.51335032
D107: 104 | E107: 1 | F107: 0 | G107: 0 | H107: 1 | I107: 49 | J107: 55 | K107: 54 | L107: 50 | N107: -0.3246779382 | O107: 1.190189499 | P107: 6.707141444 | Q107: 49.19918835 | R107: =IF($D107>$B$48,"",VLOOKUP($D107,I$4:$Q$50003,8,FALSE)) -> 6.504936571 | S107: =IF($D107>$B$48,"",VLOOKUP($D107,J$4:$Q$50003,7,FALSE)) -> 7.26370347 | T107: =IF($D107>$B$48,"",VLOOKUP($D107,K$4:$Q$50003,7,FALSE)) -> 46.05472201 | U107: =IF($D107>$B$48,"",VLOOKUP($D107,L$4:$Q$50003,6,FALSE)) -> 47.64183281 | V107: =Formulate!$E$27 -> 0.2411225373 | W107: 23.24376751
D108: 105 | E108: 1 | F108: 0 | G108: 0 | H108: 1 | I108: 50 | J108: 55 | K108: 54 | L108: 51 | N108: -0.1578206025 | O108: 0.1220350549 | P108: 6.80625463 | Q108: 47.68319947 | R108: =IF($D108>$B$48,"",VLOOKUP($D108,I$4:$Q$50003,8,FALSE)) -> 6.743421359 | S108: =IF($D108>$B$48,"",VLOOKUP($D108,J$4:$Q$50003,7,FALSE)) -> 7.317207128 | T108: =IF($D108>$B$48,"",VLOOKUP($D108,K$4:$Q$50003,7,FALSE)) -> 47.37520964 | U108: =IF($D108>$B$48,"",VLOOKUP($D108,L$4:$Q$50003,6,FALSE)) -> 47.56009708 | V108: =Formulate!$E$27 -> 0.2411225373 | W108: 23.22795681
D109: 106 | E109: 1 | F109: 0 | G109: 0 | H109: 1 | I109: 51 | J109: 55 | K109: 54 | L109: 52 | N109: -0.6515598606 | O109: 1.792523301 | P109: 6.512973723 | Q109: 50.05405662 | R109: =IF($D109>$B$48,"",VLOOKUP($D109,I$4:$Q$50003,8,FALSE)) -> 6.386656913 | S109: =IF($D109>$B$48,"",VLOOKUP($D109,J$4:$Q$50003,7,FALSE)) -> 7.561029796 | T109: =IF($D109>$B$48,"",VLOOKUP($D109,K$4:$Q$50003,7,FALSE)) -> 46.67231395 | U109: =IF($D109>$B$48,"",VLOOKUP($D109,L$4:$Q$50003,6,FALSE)) -> 49.27670483 | V109: =Formulate!$E$27 -> 0.2411225373 | W109: 23.06784702
D110: 107 | E110: 1 | F110: 0 | G110: 1 | H110: 0 | I110: 52 | J110: 55 | K110: 55 | L110: 52 | N110: -1.035804124 | O110: -0.02101079743 | P110: 6.284732796 | Q110: 47.48018022 | R110: =IF($D110>$B$48,"",VLOOKUP($D110,I$4:$Q$50003,8,FALSE)) -> 6.689994876 | S110: =IF($D110>$B$48,"",VLOOKUP($D110,J$4:$Q$50003,7,FALSE)) -> 8.028442859 | T110: =IF($D110>$B$48,"",VLOOKUP($D110,K$4:$Q$50003,7,FALSE)) -> 44.64233672 | U110: =IF($D110>$B$48,"",VLOOKUP($D110,L$4:$Q$50003,6,FALSE)) -> 49.41067841 | V110: =Formulate!$E$27 -> 0.2411225373 | W110: 23.54653351
D111: 108 | E111: 0 | F111: 1 | G111: 0 | H111: 1 | I111: 52 | J111: 56 | K111: 55 | L111: 53 | N111: 0.9705029668 | O111: 0.7231951432 | P111: 7.476478345 | Q111: 48.53640194 | R111: =IF($D111>$B$48,"",VLOOKUP($D111,I$4:$Q$50003,8,FALSE)) -> 6.04993256 | S111: =IF($D111>$B$48,"",VLOOKUP($D111,J$4:$Q$50003,7,FALSE)) -> 7.39217214 | T111: =IF($D111>$B$48,"",VLOOKUP($D111,K$4:$Q$50003,7,FALSE)) -> 45.76364241 | U111: =IF($D111>$B$48,"",VLOOKUP($D111,L$4:$Q$50003,6,FALSE)) -> 48.98551813 | V111: =Formulate!$E$27 -> 0.2411225373 | W111: 22.92547115
D112: 109 | E112: 1 | F112: 0 | G112: 1 | H112: 0 | I112: 53 | J112: 56 | K112: 56 | L112: 53 | N112: -0.4222541182 | O112: -1.062953813 | P112: 6.649181235 | Q112: 46.00139217 | R112: =IF($D112>$B$48,"",VLOOKUP($D112,I$4:$Q$50003,8,FALSE)) -> 6.712180608 | S112: =IF($D112>$B$48,"",VLOOKUP($D112,J$4:$Q$50003,7,FALSE)) -> 7.409495417 | T112: =IF($D112>$B$48,"",VLOOKUP($D112,K$4:$Q$50003,7,FALSE)) -> 45.67830822 | U112: =IF($D112>$B$48,"",VLOOKUP($D112,L$4:$Q$50003,6,FALSE)) -> 51.22626452 | V112: =Formulate!$E$27 -> 0.2411225373 | W112: 23.21404796
D113: 110 | E113: 0 | F113: 1 | G113: 1 | H113: 0 | I113: 53 | J113: 57 | K113: 57 | L113: 53 | N113: 0.09361422396 | O113: -0.7677160828 | P113: 6.955606809 | Q113: 46.42041127 | R113: =IF($D113>$B$48,"",VLOOKUP($D113,I$4:$Q$50003,8,FALSE)) -> 6.005677328 | S113: =IF($D113>$B$48,"",VLOOKUP($D113,J$4:$Q$50003,7,FALSE)) -> 8.135437954 | T113: =IF($D113>$B$48,"",VLOOKUP($D113,K$4:$Q$50003,7,FALSE)) -> 46.26561186 | U113: =IF($D113>$B$48,"",VLOOKUP($D113,L$4:$Q$50003,6,FALSE)) -> 50.36246614 | V113: =Formulate!$E$27 -> 0.2411225373 | W113: 23.02112099
D114: 111 | E114: 1 | F114: 0 | G114: 1 | H114: 0 | I114: 54 | J114: 57 | K114: 58 | L114: 53 | N114: -0.1131713699 | O114: -0.636310785 | P114: 6.832776255 | Q114: 46.60690956 | R114: =IF($D114>$B$48,"",VLOOKUP($D114,I$4:$Q$50003,8,FALSE)) -> 6.252162541 | S114: =IF($D114>$B$48,"",VLOOKUP($D114,J$4:$Q$50003,7,FALSE)) -> 6.996463321 | T114: =IF($D114>$B$48,"",VLOOKUP($D114,K$4:$Q$50003,7,FALSE)) -> 46.42245224 | U114: =IF($D114>$B$48,"",VLOOKUP($D114,L$4:$Q$50003,6,FALSE)) -> 47.98720213 | V114: =Formulate!$E$27 -> 0.2411225373 | W114: 22.76432858
D115: 112 | E115: 1 | F115: 0 | G115: 0 | H115: 1 | I115: 55 | J115: 57 | K115: 58 | L115: 54 | N115: -0.3631153414 | O115: 1.141462913 | P115: 6.684309643 | Q115: 49.13003265 | R115: =IF($D115>$B$48,"",VLOOKUP($D115,I$4:$Q$50003,8,FALSE)) -> 6.646411892 | S115: =IF($D115>$B$48,"",VLOOKUP($D115,J$4:$Q$50003,7,FALSE)) -> 7.310070392 | T115: =IF($D115>$B$48,"",VLOOKUP($D115,K$4:$Q$50003,7,FALSE)) -> 46.43637523 | U115: =IF($D115>$B$48,"",VLOOKUP($D115,L$4:$Q$50003,6,FALSE)) -> 47.63650018 | V115: =Formulate!$E$27 -> 0.2411225373 | W115: 22.98485511
D116: 113 | E116: 1 | F116: 0 | G116: 0 | H116: 1 | I116: 56 | J116: 57 | K116: 58 | L116: 55 | N116: -0.7592138705 | O116: 2.185400449 | P116: 6.449027287 | Q116: 50.61165144 | R116: =IF($D116>$B$48,"",VLOOKUP($D116,I$4:$Q$50003,8,FALSE)) -> 6.543381076 | S116: =IF($D116>$B$48,"",VLOOKUP($D116,J$4:$Q$50003,7,FALSE)) -> 7.590505969 | T116: =IF($D116>$B$48,"",VLOOKUP($D116,K$4:$Q$50003,7,FALSE)) -> 47.49879793 | U116: =IF($D116>$B$48,"",VLOOKUP($D116,L$4:$Q$50003,6,FALSE)) -> 48.54035602 | V116: =Formulate!$E$27 -> 0.2411225373 | W116: 24.01443647
D117: 114 | E117: 0 | F117: 1 | G117: 1 | H117: 0 | I117: 56 | J117: 58 | K117: 59 | L117: 55 | N117: 1.508015143 | O117: -0.6452318442 | P117: 7.795760346 | Q117: 46.59424825 | R117: =IF($D117>$B$48,"",VLOOKUP($D117,I$4:$Q$50003,8,FALSE)) -> 6.844280547 | S117: =IF($D117>$B$48,"",VLOOKUP($D117,J$4:$Q$50003,7,FALSE)) -> 6.977621528 | T117: =IF($D117>$B$48,"",VLOOKUP($D117,K$4:$Q$50003,7,FALSE)) -> 46.78283319 | U117: =IF($D117>$B$48,"",VLOOKUP($D117,L$4:$Q$50003,6,FALSE)) -> 47.81195574 | V117: =Formulate!$E$27 -> 0.2411225373 | W117: 22.91907336
D118: 115 | E118: 1 | F118: 0 | G118: 0 | H118: 1 | I118: 57 | J118: 58 | K118: 59 | L118: 56 | N118: -0.1415106057 | O118: 1.605971496 | P118: 6.815942761 | Q118: 49.78929111 | R118: =IF($D118>$B$48,"",VLOOKUP($D118,I$4:$Q$50003,8,FALSE)) -> 5.617384299 | S118: =IF($D118>$B$48,"",VLOOKUP($D118,J$4:$Q$50003,7,FALSE)) -> 7.063245039 | T118: =IF($D118>$B$48,"",VLOOKUP($D118,K$4:$Q$50003,7,FALSE)) -> 45.47658015 | U118: =IF($D118>$B$48,"",VLOOKUP($D118,L$4:$Q$50003,6,FALSE)) -> 48.02833311 | V118: =Formulate!$E$27 -> 0.2411225373 | W118: 23.01863807
D119: 116 | E119: 0 | F119: 1 | G119: 0 | H119: 1 | I119: 57 | J119: 59 | K119: 59 | L119: 57 | N119: 1.611350284 | O119: 1.133393247 | P119: 7.857141376 | Q119: 49.1185797 | R119: =IF($D119>$B$48,"",VLOOKUP($D119,I$4:$Q$50003,8,FALSE)) -> 6.421537673 | S119: =IF($D119>$B$48,"",VLOOKUP($D119,J$4:$Q$50003,7,FALSE)) -> 6.973741478 | T119: =IF($D119>$B$48,"",VLOOKUP($D119,K$4:$Q$50003,7,FALSE)) -> 44.82800024 | U119: =IF($D119>$B$48,"",VLOOKUP($D119,L$4:$Q$50003,6,FALSE)) -> 49.70208273 | V119: =Formulate!$E$27 -> 0.2411225373 | W119: 22.76597944
D120: 117 | E120: 1 | F120: 0 | G120: 0 | H120: 1 | I120: 58 | J120: 59 | K120: 59 | L120: 58 | N120: -1.494321238 | O120: 0.3419157189 | P120: 6.012373827 | Q120: 47.9952673 | R120: =IF($D120>$B$48,"",VLOOKUP($D120,I$4:$Q$50003,8,FALSE)) -> 6.281988993 | S120: =IF($D120>$B$48,"",VLOOKUP($D120,J$4:$Q$50003,7,FALSE)) -> 7.606128845 | T120: =IF($D120>$B$48,"",VLOOKUP($D120,K$4:$Q$50003,7,FALSE)) -> 46.87163956 | U120: =IF($D120>$B$48,"",VLOOKUP($D120,L$4:$Q$50003,6,FALSE)) -> 49.12216694 | V120: =Formulate!$E$27 -> 0.2411225373 | W120: 23.18889002
D121: 118 | E121: 1 | F121: 0 | G121: 1 | H121: 0 | I121: 59 | J121: 59 | K121: 60 | L121: 58 | N121: -1.184523613 | O121: -1.482687291 | P121: 6.196393483 | Q121: 45.40568123 | R121: =IF($D121>$B$48,"",VLOOKUP($D121,I$4:$Q$50003,8,FALSE)) -> 6.229972245 | S121: =IF($D121>$B$48,"",VLOOKUP($D121,J$4:$Q$50003,7,FALSE)) -> 7.151659182 | T121: =IF($D121>$B$48,"",VLOOKUP($D121,K$4:$Q$50003,7,FALSE)) -> 46.53967965 | U121: =IF($D121>$B$48,"",VLOOKUP($D121,L$4:$Q$50003,6,FALSE)) -> 47.94937238 | V121: =Formulate!$E$27 -> 0.2411225373 | W121: 22.45427264
D122: 119 | E122: 1 | F122: 0 | G122: 0 | H122: 1 | I122: 60 | J122: 59 | K122: 60 | L122: 59 | N122: -1.043824842 | O122: 0.1109511367 | P122: 6.279968493 | Q122: 47.66746851 | R122: =IF($D122>$B$48,"",VLOOKUP($D122,I$4:$Q$50003,8,FALSE)) -> 6.760925013 | S122: =IF($D122>$B$48,"",VLOOKUP($D122,J$4:$Q$50003,7,FALSE)) -> 7.451374458 | T122: =IF($D122>$B$48,"",VLOOKUP($D122,K$4:$Q$50003,7,FALSE)) -> 46.68099932 | U122: =IF($D122>$B$48,"",VLOOKUP($D122,L$4:$Q$50003,6,FALSE)) -> 47.83676539 | V122: =Formulate!$E$27 -> 0.2411225373 | W122: 22.93493318
D123: 120 | E123: 1 | F123: 0 | G123: 0 | H123: 1 | I123: 61 | J123: 59 | K123: 60 | L123: 60 | N123: -0.3794686759 | O123: 0.4149608662 | P123: 6.67459577 | Q123: 48.09893736 | R123: =IF($D123>$B$48,"",VLOOKUP($D123,I$4:$Q$50003,8,FALSE)) -> 6.159086795 | S123: =IF($D123>$B$48,"",VLOOKUP($D123,J$4:$Q$50003,7,FALSE)) -> 7.379077447 | T123: =IF($D123>$B$48,"",VLOOKUP($D123,K$4:$Q$50003,7,FALSE)) -> 45.6699701 | U123: =IF($D123>$B$48,"",VLOOKUP($D123,L$4:$Q$50003,6,FALSE)) -> 49.15134061 | V123: =Formulate!$E$27 -> 0.2411225373 | W123: 22.9534654
D124: 121 | E124: 1 | F124: 0 | G124: 0 | H124: 1 | I124: 62 | J124: 59 | K124: 60 | L124: 61 | N124: =NORMSINV(RAND()) -> -0.8656635625 | O124: 0.7033897534 | P124: 6.385796216 | Q124: 48.50829294 | R124: =IF($D124>$B$48,"",VLOOKUP($D124,I$4:$Q$50003,8,FALSE)) -> 5.805501219 | S124: =IF($D124>$B$48,"",VLOOKUP($D124,J$4:$Q$50003,7,FALSE)) -> 7.599919745 | T124: =IF($D124>$B$48,"",VLOOKUP($D124,K$4:$Q$50003,7,FALSE)) -> 47.50674466 | U124: =IF($D124>$B$48,"",VLOOKUP($D124,L$4:$Q$50003,6,FALSE)) -> 47.65756509 | V124: =Formulate!$E$27 -> 0.2411225373 | W124: 22.74153656
D125: 122 | E125: 0 | F125: 1 | G125: 0 | H125: 1 | I125: 62 | J125: 60 | K125: 60 | L125: 62 | N125: 1.292149542 | O125: 1.333691876 | P125: 7.667536272 | Q125: 49.40285553 | R125: =IF($D125>$B$48,"",VLOOKUP($D125,I$4:$Q$50003,8,FALSE)) -> 6.76549599 | S125: =IF($D125>$B$48,"",VLOOKUP($D125,J$4:$Q$50003,7,FALSE)) -> 7.480482032 | T125: =IF($D125>$B$48,"",VLOOKUP($D125,K$4:$Q$50003,7,FALSE)) -> 45.20140918 | U125: =IF($D125>$B$48,"",VLOOKUP($D125,L$4:$Q$50003,6,FALSE)) -> 48.36465624 | V125: =Formulate!$E$27 -> 0.2411225373 | W125: 23.30877958
D126: 123 | E126: 1 | F126: 0 | G126: 0 | H126: 1 | I126: 63 | J126: 60 | K126: 60 | L126: 63 | N126: -1.439755961 | O126: 0.003457419511 | P126: 6.044785578 | Q126: 47.51490698 | R126: =IF($D126>$B$48,"",VLOOKUP($D126,I$4:$Q$50003,8,FALSE)) -> 6.394667806 | S126: =IF($D126>$B$48,"",VLOOKUP($D126,J$4:$Q$50003,7,FALSE)) -> 7.079889769 | T126: =IF($D126>$B$48,"",VLOOKUP($D126,K$4:$Q$50003,7,FALSE)) -> 46.15588367 | U126: =IF($D126>$B$48,"",VLOOKUP($D126,L$4:$Q$50003,6,FALSE)) -> 47.71558102 | V126: =Formulate!$E$27 -> 0.2411225373 | W126: 23.160112
D127: 124 | E127: 1 | F127: 0 | G127: 1 | H127: 0 | I127: 64 | J127: 60 | K127: 61 | L127: 63 | N127: -0.01446131281 | O127: -0.08919378435 | P127: 6.891409986 | Q127: 47.38341083 | R127: =IF($D127>$B$48,"",VLOOKUP($D127,I$4:$Q$50003,8,FALSE)) -> 6.82601245 | S127: =IF($D127>$B$48,"",VLOOKUP($D127,J$4:$Q$50003,7,FALSE)) -> 7.432292799 | T127: =IF($D127>$B$48,"",VLOOKUP($D127,K$4:$Q$50003,7,FALSE)) -> 47.33909608 | U127: =IF($D127>$B$48,"",VLOOKUP($D127,L$4:$Q$50003,6,FALSE)) -> 47.56975911 | V127: =Formulate!$E$27 -> 0.2411225373 | W127: 22.97647907
D128: 125 | E128: 1 | F128: 0 | G128: 0 | H128: 1 | I128: 65 | J128: 60 | K128: 61 | L128: 64 | N128: -1.823910288 | O128: 2.977196261 | P128: 5.816598073 | Q128: 51.73541556 | R128: =IF($D128>$B$48,"",VLOOKUP($D128,I$4:$Q$50003,8,FALSE)) -> 6.70943485 | S128: =IF($D128>$B$48,"",VLOOKUP($D128,J$4:$Q$50003,7,FALSE)) -> 7.58429713 | T128: =IF($D128>$B$48,"",VLOOKUP($D128,K$4:$Q$50003,7,FALSE)) -> 47.15650654 | U128: =IF($D128>$B$48,"",VLOOKUP($D128,L$4:$Q$50003,6,FALSE)) -> 49.11813021 | V128: =Formulate!$E$27 -> 0.2411225373 | W128: 23.41330057
D129: 126 | E129: 1 | F129: 0 | G129: 0 | H129: 1 | I129: 66 | J129: 60 | K129: 61 | L129: 65 | N129: -0.06006202008 | O129: 0.9041863277 | P129: 6.864323186 | Q129: 48.79327549 | R129: =IF($D129>$B$48,"",VLOOKUP($D129,I$4:$Q$50003,8,FALSE)) -> 6.78956248 | S129: =IF($D129>$B$48,"",VLOOKUP($D129,J$4:$Q$50003,7,FALSE)) -> 6.932801376 | T129: =IF($D129>$B$48,"",VLOOKUP($D129,K$4:$Q$50003,7,FALSE)) -> 46.67340384 | U129: =IF($D129>$B$48,"",VLOOKUP($D129,L$4:$Q$50003,6,FALSE)) -> 48.52681523 | V129: =Formulate!$E$27 -> 0.2411225373 | W129: 22.62151036
D130: 127 | E130: 1 | F130: 0 | G130: 0 | H130: 1 | I130: 67 | J130: 60 | K130: 61 | L130: 66 | N130: -1.228854757 | O130: 2.116345399 | P130: 6.170060802 | Q130: 50.51364437 | R130: =IF($D130>$B$48,"",VLOOKUP($D130,I$4:$Q$50003,8,FALSE)) -> 6.8754589 | S130: =IF($D130>$B$48,"",VLOOKUP($D130,J$4:$Q$50003,7,FALSE)) -> 7.938201605 | T130: =IF($D130>$B$48,"",VLOOKUP($D130,K$4:$Q$50003,7,FALSE)) -> 47.48328785 | U130: =IF($D130>$B$48,"",VLOOKUP($D130,L$4:$Q$50003,6,FALSE)) -> 48.93889037 | V130: =Formulate!$E$27 -> 0.2411225373 | W130: 23.53569543
D131: 128 | E131: 0 | F131: 1 | G131: 1 | H131: 0 | I131: 67 | J131: 61 | K131: 62 | L131: 66 | N131: 1.472577369 | O131: -0.489003097 | P131: 7.774710324 | Q131: 46.81597746 | R131: =IF($D131>$B$48,"",VLOOKUP($D131,I$4:$Q$50003,8,FALSE)) -> 6.601258111 | S131: =IF($D131>$B$48,"",VLOOKUP($D131,J$4:$Q$50003,7,FALSE)) -> 7.171130921 | T131: =IF($D131>$B$48,"",VLOOKUP($D131,K$4:$Q$50003,7,FALSE)) -> 43.73277121 | U131: =IF($D131>$B$48,"",VLOOKUP($D131,L$4:$Q$50003,6,FALSE)) -> 48.27024589 | V131: =Formulate!$E$27 -> 0.2411225373 | W131: 22.81828426
D132: 129 | E132: =IF(P132<$B$4,1,0) -> 0 | F132: =1-E132 -> 1 | G132: =IF(Q132<$B$7,1,0) -> 0 | H132: =1-G132 -> 1 | I132: 67 | J132: 62 | K132: 62 | L132: 67 | N132: 0.4843042406 | O132: 0.6221764707 | P132: =$B$4+N132*$B$5 -> 7.187676511 | Q132: =$B$7+O132*$B$8 -> 48.39303018 | R132: =IF($D132>$B$48,"",VLOOKUP($D132,I$4:$Q$50003,8,FALSE)) -> 6.067249782 | S132: =IF($D132>$B$48,"",VLOOKUP($D132,J$4:$Q$50003,7,FALSE)) -> 7.598419307 | T132: =IF($D132>$B$48,"",VLOOKUP($D132,K$4:$Q$50003,7,FALSE)) -> 47.45060972 | U132: =IF($D132>$B$48,"",VLOOKUP($D132,L$4:$Q$50003,6,FALSE)) -> 49.27736117 | V132: =Formulate!$E$27 -> 0.2411225373 | W132: =IF($D132>$B$48,"",(($B$12/100)*R132+($B$13/100)*S132+($B$14/100)*T132+($B$15/100)*U132+57.52*V132/100)) -> 22.95043017
D133: 130 | E133: 0 | F133: 1 | G133: 1 | H133: 0 | I133: =I132+E133 -> 67 | J133: =J132+F133 -> 63 | K133: =K132+G133 -> 63 | L133: =L132+H133 -> 67 | N133: 0.1934431047 | O133: -0.852188333 | P133: 7.014905121 | Q133: 46.30052319 | R133: =IF($D133>$B$48,"",VLOOKUP($D133,I$4:$Q$50003,8,FALSE)) -> 6.732454331 | S133: =IF($D133>$B$48,"",VLOOKUP($D133,J$4:$Q$50003,7,FALSE)) -> 7.817849567 | T133: =IF($D133>$B$48,"",VLOOKUP($D133,K$4:$Q$50003,7,FALSE)) -> 47.02434728 | U133: =IF($D133>$B$48,"",VLOOKUP($D133,L$4:$Q$50003,6,FALSE)) -> 47.52024209 | V133: =Formulate!$E$27 -> 0.2411225373 | W133: 23.30515308
D134: 131 | E134: 1 | F134: 0 | G134: 1 | H134: 0 | I134: 68 | J134: 63 | K134: 64 | L134: 67 | N134: -0.075809073 | O134: -0.06841840038 | P134: 6.854969443 | Q134: 47.4128965 | R134: =IF($D134>$B$48,"",VLOOKUP($D134,I$4:$Q$50003,8,FALSE)) -> 6.809774111 | S134: =IF($D134>$B$48,"",VLOOKUP($D134,J$4:$Q$50003,7,FALSE)) -> 7.465722788 | T134: =IF($D134>$B$48,"",VLOOKUP($D134,K$4:$Q$50003,7,FALSE)) -> 46.26133279 | U134: =IF($D134>$B$48,"",VLOOKUP($D134,L$4:$Q$50003,6,FALSE)) -> 49.39430485 | V134: =Formulate!$E$27 -> 0.2411225373 | W134: 22.92412526
D135: 132 | E135: 0 | F135: 1 | G135: 0 | H135: 1 | I135: 68 | J135: 64 | K135: 64 | L135: 68 | N135: 0.5502890661 | O135: 0.3540599892 | P135: 7.226871469 | Q135: 48.01250318 | R135: =IF($D135>$B$48,"",VLOOKUP($D135,I$4:$Q$50003,8,FALSE)) -> 6.552894836 | S135: =IF($D135>$B$48,"",VLOOKUP($D135,J$4:$Q$50003,7,FALSE)) -> 7.066502203 | T135: =IF($D135>$B$48,"",VLOOKUP($D135,K$4:$Q$50003,7,FALSE)) -> 47.33145275 | U135: =IF($D135>$B$48,"",VLOOKUP($D135,L$4:$Q$50003,6,FALSE)) -> 49.03395191 | V135: =Formulate!$E$27 -> 0.2411225373 | W135: 22.71463624
D136: 133 | E136: 0 | F136: 1 | G136: 0 | H136: 1 | I136: 68 | J136: 65 | K136: 64 | L136: 69 | N136: 0.6195319121 | O136: 0.04888650053 | P136: 7.268001689 | Q136: 47.57938265 | R136: =IF($D136>$B$48,"",VLOOKUP($D136,I$4:$Q$50003,8,FALSE)) -> 6.797028125 | S136: =IF($D136>$B$48,"",VLOOKUP($D136,J$4:$Q$50003,7,FALSE)) -> 7.923637881 | T136: =IF($D136>$B$48,"",VLOOKUP($D136,K$4:$Q$50003,7,FALSE)) -> 46.75220869 | U136: =IF($D136>$B$48,"",VLOOKUP($D136,L$4:$Q$50003,6,FALSE)) -> 50.13670837 | V136: =Formulate!$E$27 -> 0.2411225373 | W136: 23.14250232
D137: 134 | E137: 0 | F137: 1 | G137: 1 | H137: 0 | I137: 68 | J137: 66 | K137: 65 | L137: 69 | N137: 0.7785454129 | O137: -0.4430015079 | P137: 7.362455641 | Q137: 46.88126568 | R137: =IF($D137>$B$48,"",VLOOKUP($D137,I$4:$Q$50003,8,FALSE)) -> 6.387698662 | S137: =IF($D137>$B$48,"",VLOOKUP($D137,J$4:$Q$50003,7,FALSE)) -> 7.273449724 | T137: =IF($D137>$B$48,"",VLOOKUP($D137,K$4:$Q$50003,7,FALSE)) -> 45.87371811 | U137: =IF($D137>$B$48,"",VLOOKUP($D137,L$4:$Q$50003,6,FALSE)) -> 48.65617759 | V137: =Formulate!$E$27 -> 0.2411225373 | W137: 22.81881566
D138: 135 | E138: 1 | F138: 0 | G138: 1 | H138: 0 | I138: 69 | J138: 66 | K138: 66 | L138: 69 | N138: -0.02778939787 | O138: -0.3885716022 | P138: 6.88349311 | Q138: 46.95851587 | R138: =IF($D138>$B$48,"",VLOOKUP($D138,I$4:$Q$50003,8,FALSE)) -> 5.786407281 | S138: =IF($D138>$B$48,"",VLOOKUP($D138,J$4:$Q$50003,7,FALSE)) -> 7.028858945 | T138: =IF($D138>$B$48,"",VLOOKUP($D138,K$4:$Q$50003,7,FALSE)) -> 45.11139179 | U138: =IF($D138>$B$48,"",VLOOKUP($D138,L$4:$Q$50003,6,FALSE)) -> 48.25169615 | V138: =Formulate!$E$27 -> 0.2411225373 | W138: 22.68520104
D139: 136 | E139: 1 | F139: 0 | G139: 0 | H139: 1 | I139: 70 | J139: 66 | K139: 66 | L139: 70 | N139: -0.4206790301 | O139: 0.2002722171 | P139: 6.650116837 | Q139: 47.79423835 | R139: =IF($D139>$B$48,"",VLOOKUP($D139,I$4:$Q$50003,8,FALSE)) -> 6.636728896 | S139: =IF($D139>$B$48,"",VLOOKUP($D139,J$4:$Q$50003,7,FALSE)) -> 7.911164621 | T139: =IF($D139>$B$48,"",VLOOKUP($D139,K$4:$Q$50003,7,FALSE)) -> 44.89590581 | U139: =IF($D139>$B$48,"",VLOOKUP($D139,L$4:$Q$50003,6,FALSE)) -> 47.83230829 | V139: =Formulate!$E$27 -> 0.2411225373 | W139: 22.88740756
D140: 137 | E140: 1 | F140: 0 | G140: 1 | H140: 0 | I140: 71 | J140: 66 | K140: 67 | L140: 70 | N140: -1.314226266 | O140: -0.3497266214 | P140: 6.119350163 | Q140: 47.013647 | R140: =IF($D140>$B$48,"",VLOOKUP($D140,I$4:$Q$50003,8,FALSE)) -> 6.740009204 | S140: =IF($D140>$B$48,"",VLOOKUP($D140,J$4:$Q$50003,7,FALSE)) -> 7.444783015 | T140: =IF($D140>$B$48,"",VLOOKUP($D140,K$4:$Q$50003,7,FALSE)) -> 46.83487902 | U140: =IF($D140>$B$48,"",VLOOKUP($D140,L$4:$Q$50003,6,FALSE)) -> 48.17276814 | V140: =Formulate!$E$27 -> 0.2411225373 | W140: 23.28730766
D141: 138 | E141: 0 | F141: 1 | G141: 1 | H141: 0 | I141: 71 | J141: 67 | K141: 68 | L141: 70 | N141: 0.5058591053 | O141: -0.2540202672 | P141: 7.200480091 | Q141: 47.1494792 | R141: =IF($D141>$B$48,"",VLOOKUP($D141,I$4:$Q$50003,8,FALSE)) -> 6.694506005 | S141: =IF($D141>$B$48,"",VLOOKUP($D141,J$4:$Q$50003,7,FALSE)) -> 7.041543564 | T141: =IF($D141>$B$48,"",VLOOKUP($D141,K$4:$Q$50003,7,FALSE)) -> 46.1633333 | U141: =IF($D141>$B$48,"",VLOOKUP($D141,L$4:$Q$50003,6,FALSE)) -> 47.95446716 | V141: =Formulate!$E$27 -> 0.2411225373 | W141: 22.83947525
D142: 139 | E142: 1 | F142: 0 | G142: 0 | H142: 1 | I142: 72 | J142: 67 | K142: 68 | L142: 71 | N142: -1.405536821 | O142: 0.9488330586 | P142: 6.065111733 | Q142: 48.85664081 | R142: =IF($D142>$B$48,"",VLOOKUP($D142,I$4:$Q$50003,8,FALSE)) -> 6.86937747 | S142: =IF($D142>$B$48,"",VLOOKUP($D142,J$4:$Q$50003,7,FALSE)) -> 7.313469844 | T142: =IF($D142>$B$48,"",VLOOKUP($D142,K$4:$Q$50003,7,FALSE)) -> 46.98781044 | U142: =IF($D142>$B$48,"",VLOOKUP($D142,L$4:$Q$50003,6,FALSE)) -> 48.11768626 | V142: =Formulate!$E$27 -> 0.2411225373 | W142: 23.25600889
D143: 140 | E143: 1 | F143: 0 | G143: 1 | H143: 0 | I143: 73 | J143: 67 | K143: 69 | L143: 71 | N143: -0.9527706829 | O143: -0.9576416851 | P143: 6.334054624 | Q143: 46.15085746 | R143: =IF($D143>$B$48,"",VLOOKUP($D143,I$4:$Q$50003,8,FALSE)) -> 6.768361341 | S143: =IF($D143>$B$48,"",VLOOKUP($D143,J$4:$Q$50003,7,FALSE)) -> 6.938995893 | T143: =IF($D143>$B$48,"",VLOOKUP($D143,K$4:$Q$50003,7,FALSE)) -> 45.34450505 | U143: =IF($D143>$B$48,"",VLOOKUP($D143,L$4:$Q$50003,6,FALSE)) -> 48.98244914 | V143: =Formulate!$E$27 -> 0.2411225373 | W143: 22.82541744
D144: 141 | E144: 0 | F144: 1 | G144: 0 | H144: 1 | I144: 73 | J144: 68 | K144: 69 | L144: 72 | N144: =NORMSINV(RAND()) -> 0.8443759986 | O144: 0.2623347481 | P144: 7.40155898 | Q144: 47.88232121 | R144: =IF($D144>$B$48,"",VLOOKUP($D144,I$4:$Q$50003,8,FALSE)) -> 6.849109385 | S144: =IF($D144>$B$48,"",VLOOKUP($D144,J$4:$Q$50003,7,FALSE)) -> 7.184724724 | T144: =IF($D144>$B$48,"",VLOOKUP($D144,K$4:$Q$50003,7,FALSE)) -> 47.08559831 | U144: =IF($D144>$B$48,"",VLOOKUP($D144,L$4:$Q$50003,6,FALSE)) -> 50.0660906 | V144: =Formulate!$E$27 -> 0.2411225373 | W144: 22.78669504
D145: 142 | E145: 1 | F145: 0 | G145: 0 | H145: 1 | I145: 74 | J145: 68 | K145: 69 | L145: 73 | N145: -1.01092584 | O145: 0.09553099619 | P145: 6.299510486 | Q145: 47.64558332 | R145: =IF($D145>$B$48,"",VLOOKUP($D145,I$4:$Q$50003,8,FALSE)) -> 6.053468341 | S145: =IF($D145>$B$48,"",VLOOKUP($D145,J$4:$Q$50003,7,FALSE)) -> 8.082103227 | T145: =IF($D145>$B$48,"",VLOOKUP($D145,K$4:$Q$50003,7,FALSE)) -> 45.748933 | U145: =IF($D145>$B$48,"",VLOOKUP($D145,L$4:$Q$50003,6,FALSE)) -> 48.15759941 | V145: =Formulate!$E$27 -> 0.2411225373 | W145: 23.10172646
D146: 143 | E146: 1 | F146: 0 | G146: 0 | H146: 1 | I146: 75 | J146: 68 | K146: 69 | L146: 74 | N146: -0.8387524721 | O146: 0.08744970498 | P146: 6.401781392 | Q146: 47.63411387 | R146: =IF($D146>$B$48,"",VLOOKUP($D146,I$4:$Q$50003,8,FALSE)) -> 6.212212674 | S146: =IF($D146>$B$48,"",VLOOKUP($D146,J$4:$Q$50003,7,FALSE)) -> 7.511170194 | T146: =IF($D146>$B$48,"",VLOOKUP($D146,K$4:$Q$50003,7,FALSE)) -> 44.86117664 | U146: =IF($D146>$B$48,"",VLOOKUP($D146,L$4:$Q$50003,6,FALSE)) -> 48.86018418 | V146: =Formulate!$E$27 -> 0.2411225373 | W146: 23.03067535
D147: 144 | E147: 0 | F147: 1 | G147: 1 | H147: 0 | I147: 75 | J147: 69 | K147: 70 | L147: 74 | N147: 0.5237191433 | O147: -0.8855984065 | P147: 7.211088946 | Q147: 46.25310561 | R147: =IF($D147>$B$48,"",VLOOKUP($D147,I$4:$Q$50003,8,FALSE)) -> 6.22393222 | S147: =IF($D147>$B$48,"",VLOOKUP($D147,J$4:$Q$50003,7,FALSE)) -> 7.224758699 | T147: =IF($D147>$B$48,"",VLOOKUP($D147,K$4:$Q$50003,7,FALSE)) -> 47.07908036 | U147: =IF($D147>$B$48,"",VLOOKUP($D147,L$4:$Q$50003,6,FALSE)) -> 48.98889081 | V147: =Formulate!$E$27 -> 0.2411225373 | W147: 23.05248418
D148: 145 | E148: 0 | F148: 1 | G148: 0 | H148: 1 | I148: 75 | J148: 70 | K148: 70 | L148: 75 | N148: 1.224164294 | O148: 0.2332967183 | P148: 7.627153064 | Q148: 47.8411087 | R148: =IF($D148>$B$48,"",VLOOKUP($D148,I$4:$Q$50003,8,FALSE)) -> 6.513252386 | S148: =IF($D148>$B$48,"",VLOOKUP($D148,J$4:$Q$50003,7,FALSE)) -> 7.26827508 | T148: =IF($D148>$B$48,"",VLOOKUP($D148,K$4:$Q$50003,7,FALSE)) -> 45.17950402 | U148: =IF($D148>$B$48,"",VLOOKUP($D148,L$4:$Q$50003,6,FALSE)) -> 48.77555156 | V148: =Formulate!$E$27 -> 0.2411225373 | W148: 23.41319931
D149: 146 | E149: 1 | F149: 0 | G149: 0 | H149: 1 | I149: 76 | J149: 70 | K149: 70 | L149: 76 | N149: -0.07452293796 | O149: 0.512831104 | P149: 6.855733407 | Q149: 48.23784067 | R149: =IF($D149>$B$48,"",VLOOKUP($D149,I$4:$Q$50003,8,FALSE)) -> 6.36054043 | S149: =IF($D149>$B$48,"",VLOOKUP($D149,J$4:$Q$50003,7,FALSE)) -> 6.985571204 | T149: =IF($D149>$B$48,"",VLOOKUP($D149,K$4:$Q$50003,7,FALSE)) -> 47.08864827 | U149: =IF($D149>$B$48,"",VLOOKUP($D149,L$4:$Q$50003,6,FALSE)) -> 47.83860233 | V149: =Formulate!$E$27 -> 0.2411225373 | W149: 23.12062089
D150: 147 | E150: 1 | F150: 0 | G150: 1 | H150: 0 | I150: 77 | J150: 70 | K150: 71 | L150: 76 | N150: -0.6113274933 | O150: -1.25515149 | P150: 6.536871732 | Q150: 45.7286137 | R150: =IF($D150>$B$48,"",VLOOKUP($D150,I$4:$Q$50003,8,FALSE)) -> 6.437609428 | S150: =IF($D150>$B$48,"",VLOOKUP($D150,J$4:$Q$50003,7,FALSE)) -> 7.04352094 | T150: =IF($D150>$B$48,"",VLOOKUP($D150,K$4:$Q$50003,7,FALSE)) -> 46.58140358 | U150: =IF($D150>$B$48,"",VLOOKUP($D150,L$4:$Q$50003,6,FALSE)) -> 47.64991857 | V150: =Formulate!$E$27 -> 0.2411225373 | W150: 22.93223106
D151: 148 | E151: 1 | F151: 0 | G151: 1 | H151: 0 | I151: 78 | J151: 70 | K151: 72 | L151: 76 | N151: -0.4258383387 | O151: -0.9570701786 | P151: 6.64705221 | Q151: 46.15166858 | R151: =IF($D151>$B$48,"",VLOOKUP($D151,I$4:$Q$50003,8,FALSE)) -> 6.428513852 | S151: =IF($D151>$B$48,"",VLOOKUP($D151,J$4:$Q$50003,7,FALSE)) -> 7.148630432 | T151: =IF($D151>$B$48,"",VLOOKUP($D151,K$4:$Q$50003,7,FALSE)) -> 46.4326235 | U151: =IF($D151>$B$48,"",VLOOKUP($D151,L$4:$Q$50003,6,FALSE)) -> 50.69760938 | V151: =Formulate!$E$27 -> 0.2411225373 | W151: 22.67010009
D152: 149 | E152: 1 | F152: 0 | G152: 0 | H152: 1 | I152: 79 | J152: 70 | K152: 72 | L152: 77 | N152: -1.069956727 | O152: 1.17663993 | P152: 6.264446164 | Q152: 49.17995799 | R152: =IF($D152>$B$48,"",VLOOKUP($D152,I$4:$Q$50003,8,FALSE)) -> 6.792171046 | S152: =IF($D152>$B$48,"",VLOOKUP($D152,J$4:$Q$50003,7,FALSE)) -> 7.322253504 | T152: =IF($D152>$B$48,"",VLOOKUP($D152,K$4:$Q$50003,7,FALSE)) -> 47.21563456 | U152: =IF($D152>$B$48,"",VLOOKUP($D152,L$4:$Q$50003,6,FALSE)) -> 50.4677062 | V152: =Formulate!$E$27 -> 0.2411225373 | W152: 23.00378232
D153: 150 | E153: 1 | F153: 0 | G153: 0 | H153: 1 | I153: 80 | J153: 70 | K153: 72 | L153: 78 | N153: -0.7136773609 | O153: 0.9485597806 | P153: 6.476075954 | Q153: 48.85625295 | R153: =IF($D153>$B$48,"",VLOOKUP($D153,I$4:$Q$50003,8,FALSE)) -> 6.844560142 | S153: =IF($D153>$B$48,"",VLOOKUP($D153,J$4:$Q$50003,7,FALSE)) -> 7.122632385 | T153: =IF($D153>$B$48,"",VLOOKUP($D153,K$4:$Q$50003,7,FALSE)) -> 46.46754605 | U153: =IF($D153>$B$48,"",VLOOKUP($D153,L$4:$Q$50003,6,FALSE)) -> 48.49573391 | V153: =Formulate!$E$27 -> 0.2411225373 | W153: 23.07068681
D154: 151 | E154: 1 | F154: 0 | G154: 0 | H154: 1 | I154: 81 | J154: 70 | K154: 72 | L154: 79 | N154: -0.5316757448 | O154: 1.017536225 | P154: 6.584184836 | Q154: 48.95414846 | R154: =IF($D154>$B$48,"",VLOOKUP($D154,I$4:$Q$50003,8,FALSE)) -> 6.752560021 | S154: =IF($D154>$B$48,"",VLOOKUP($D154,J$4:$Q$50003,7,FALSE)) -> 7.205162311 | T154: =IF($D154>$B$48,"",VLOOKUP($D154,K$4:$Q$50003,7,FALSE)) -> 46.77483846 | U154: =IF($D154>$B$48,"",VLOOKUP($D154,L$4:$Q$50003,6,FALSE)) -> 47.90141222 | V154: =Formulate!$E$27 -> 0.2411225373 | W154: 23.68516014
D155: 152 | E155: 1 | F155: 0 | G155: 0 | H155: 1 | I155: 82 | J155: 70 | K155: 72 | L155: 80 | N155: -1.68253025 | O155: 0.8738002886 | P155: 5.900577755 | Q155: 48.7501498 | R155: =IF($D155>$B$48,"",VLOOKUP($D155,I$4:$Q$50003,8,FALSE)) -> 6.787559204 | S155: =IF($D155>$B$48,"",VLOOKUP($D155,J$4:$Q$50003,7,FALSE)) -> 6.952418218 | T155: =IF($D155>$B$48,"",VLOOKUP($D155,K$4:$Q$50003,7,FALSE)) -> 46.64382963 | U155: =IF($D155>$B$48,"",VLOOKUP($D155,L$4:$Q$50003,6,FALSE)) -> 47.51062579 | V155: =Formulate!$E$27 -> 0.2411225373 | W155: 22.85202013
D156: 153 | E156: 1 | F156: 0 | G156: 1 | H156: 0 | I156: 83 | J156: 70 | K156: 73 | L156: 80 | N156: -1.009473928 | O156: -1.367303355 | P156: 6.300372921 | Q156: 45.56944104 | R156: =IF($D156>$B$48,"",VLOOKUP($D156,I$4:$Q$50003,8,FALSE)) -> 6.279875685 | S156: =IF($D156>$B$48,"",VLOOKUP($D156,J$4:$Q$50003,7,FALSE)) -> 8.296939218 | T156: =IF($D156>$B$48,"",VLOOKUP($D156,K$4:$Q$50003,7,FALSE)) -> 47.25360799 | U156: =IF($D156>$B$48,"",VLOOKUP($D156,L$4:$Q$50003,6,FALSE)) -> 47.8176307 | V156: =Formulate!$E$27 -> 0.2411225373 | W156: 22.95045285
D157: 154 | E157: 0 | F157: 1 | G157: 1 | H157: 0 | I157: 83 | J157: 71 | K157: 74 | L157: 80 | N157: 1.029074181 | O157: -1.47787622 | P157: 7.511269621 | Q157: 45.4125094 | R157: =IF($D157>$B$48,"",VLOOKUP($D157,I$4:$Q$50003,8,FALSE)) -> 5.624740965 | S157: =IF($D157>$B$48,"",VLOOKUP($D157,J$4:$Q$50003,7,FALSE)) -> 7.387511161 | T157: =IF($D157>$B$48,"",VLOOKUP($D157,K$4:$Q$50003,7,FALSE)) -> 45.7838245 | U157: =IF($D157>$B$48,"",VLOOKUP($D157,L$4:$Q$50003,6,FALSE)) -> 48.55271057 | V157: =Formulate!$E$27 -> 0.2411225373 | W157: 22.62250659
D158: 155 | E158: 0 | F158: 1 | G158: 0 | H158: 1 | I158: 83 | J158: 72 | K158: 74 | L158: 81 | N158: 1.160331203 | O158: 1.331427943 | P158: 7.589236235 | Q158: 49.39964242 | R158: =IF($D158>$B$48,"",VLOOKUP($D158,I$4:$Q$50003,8,FALSE)) -> 6.894311168 | S158: =IF($D158>$B$48,"",VLOOKUP($D158,J$4:$Q$50003,7,FALSE)) -> 6.908376911 | T158: =IF($D158>$B$48,"",VLOOKUP($D158,K$4:$Q$50003,7,FALSE)) -> 45.38497468 | U158: =IF($D158>$B$48,"",VLOOKUP($D158,L$4:$Q$50003,6,FALSE)) -> 48.40265526 | V158: =Formulate!$E$27 -> 0.2411225373 | W158: 23.33724971
D159: 156 | E159: 1 | F159: 0 | G159: 1 | H159: 0 | I159: 84 | J159: 72 | K159: 75 | L159: 81 | N159: -0.2674745077 | O159: -1.45780037 | P159: 6.741120257 | Q159: 45.44100225 | R159: =IF($D159>$B$48,"",VLOOKUP($D159,I$4:$Q$50003,8,FALSE)) -> 5.660370496 | S159: =IF($D159>$B$48,"",VLOOKUP($D159,J$4:$Q$50003,7,FALSE)) -> 8.248086108 | T159: =IF($D159>$B$48,"",VLOOKUP($D159,K$4:$Q$50003,7,FALSE)) -> 47.26140971 | U159: =IF($D159>$B$48,"",VLOOKUP($D159,L$4:$Q$50003,6,FALSE)) -> 48.22026936 | V159: =Formulate!$E$27 -> 0.2411225373 | W159: 23.1417541
D160: 157 | E160: 1 | F160: 0 | G160: 1 | H160: 0 | I160: 85 | J160: 72 | K160: 76 | L160: 81 | N160: -0.07554868583 | O160: -0.7817307936 | P160: 6.855124113 | Q160: 46.40052075 | R160: =IF($D160>$B$48,"",VLOOKUP($D160,I$4:$Q$50003,8,FALSE)) -> 6.76080594 | S160: =IF($D160>$B$48,"",VLOOKUP($D160,J$4:$Q$50003,7,FALSE)) -> 7.703988392 | T160: =IF($D160>$B$48,"",VLOOKUP($D160,K$4:$Q$50003,7,FALSE)) -> 45.84895552 | U160: =IF($D160>$B$48,"",VLOOKUP($D160,L$4:$Q$50003,6,FALSE)) -> 49.46018237 | V160: =Formulate!$E$27 -> 0.2411225373 | W160: 23.0699278
D161: 158 | E161: 0 | F161: 1 | G161: 1 | H161: 0 | I161: 85 | J161: 73 | K161: 77 | L161: 81 | N161: 0.3719831896 | O161: -0.3074079635 | P161: 7.120957855 | Q161: 47.07370817 | R161: =IF($D161>$B$48,"",VLOOKUP($D161,I$4:$Q$50003,8,FALSE)) -> 5.95583892 | S161: =IF($D161>$B$48,"",VLOOKUP($D161,J$4:$Q$50003,7,FALSE)) -> 7.152265219 | T161: =IF($D161>$B$48,"",VLOOKUP($D161,K$4:$Q$50003,7,FALSE)) -> 46.72382775 | U161: =IF($D161>$B$48,"",VLOOKUP($D161,L$4:$Q$50003,6,FALSE)) -> 49.47861161 | V161: =Formulate!$E$27 -> 0.2411225373 | W161: 22.74015905
D162: 159 | E162: 1 | F162: 0 | G162: 1 | H162: 0 | I162: 86 | J162: 73 | K162: 78 | L162: 81 | N162: -0.2490390316 | O162: -0.6578727977 | P162: 6.752070922 | Q162: 46.57630745 | R162: =IF($D162>$B$48,"",VLOOKUP($D162,I$4:$Q$50003,8,FALSE)) -> 6.463170093 | S162: =IF($D162>$B$48,"",VLOOKUP($D162,J$4:$Q$50003,7,FALSE)) -> 7.364742813 | T162: =IF($D162>$B$48,"",VLOOKUP($D162,K$4:$Q$50003,7,FALSE)) -> 44.91407876 | U162: =IF($D162>$B$48,"",VLOOKUP($D162,L$4:$Q$50003,6,FALSE)) -> 48.15475944 | V162: =Formulate!$E$27 -> 0.2411225373 | W162: 23.01685179
D163: 160 | E163: 0 | F163: 1 | G163: 1 | H163: 0 | I163: 86 | J163: 74 | K163: 79 | L163: 81 | N163: 2.161034101 | O163: -0.5281092218 | P163: 8.183653327 | Q163: 46.76047571 | R163: =IF($D163>$B$48,"",VLOOKUP($D163,I$4:$Q$50003,8,FALSE)) -> 6.550189682 | S163: =IF($D163>$B$48,"",VLOOKUP($D163,J$4:$Q$50003,7,FALSE)) -> 7.408551161 | T163: =IF($D163>$B$48,"",VLOOKUP($D163,K$4:$Q$50003,7,FALSE)) -> 47.23261747 | U163: =IF($D163>$B$48,"",VLOOKUP($D163,L$4:$Q$50003,6,FALSE)) -> 49.01900404 | V163: =Formulate!$E$27 -> 0.2411225373 | W163: 23.20451417
D164: 161 | E164: 0 | F164: 1 | G164: 1 | H164: 0 | I164: 86 | J164: 75 | K164: 80 | L164: 81 | N164: =NORMSINV(RAND()) -> 0.856800434 | O164: -0.6959115639 | P164: 7.408939089 | Q164: 46.52232055 | R164: =IF($D164>$B$48,"",VLOOKUP($D164,I$4:$Q$50003,8,FALSE)) -> 6.665132312 | S164: =IF($D164>$B$48,"",VLOOKUP($D164,J$4:$Q$50003,7,FALSE)) -> 7.317137441 | T164: =IF($D164>$B$48,"",VLOOKUP($D164,K$4:$Q$50003,7,FALSE)) -> 45.83886677 | U164: =IF($D164>$B$48,"",VLOOKUP($D164,L$4:$Q$50003,6,FALSE)) -> 49.56956482 | V164: =Formulate!$E$27 -> 0.2411225373 | W164: 23.03721148
D165: 162 | E165: 1 | F165: 0 | G165: 1 | H165: 0 | I165: 87 | J165: 75 | K165: 81 | L165: 81 | N165: -0.3009545242 | O165: -0.5047391827 | P165: 6.721233142 | Q165: 46.79364387 | R165: =IF($D165>$B$48,"",VLOOKUP($D165,I$4:$Q$50003,8,FALSE)) -> 6.776521615 | S165: =IF($D165>$B$48,"",VLOOKUP($D165,J$4:$Q$50003,7,FALSE)) -> 7.06686863 | T165: =IF($D165>$B$48,"",VLOOKUP($D165,K$4:$Q$50003,7,FALSE)) -> 46.52969745 | U165: =IF($D165>$B$48,"",VLOOKUP($D165,L$4:$Q$50003,6,FALSE)) -> 49.99556811 | V165: =Formulate!$E$27 -> 0.2411225373 | W165: 22.99964914
D166: 163 | E166: 1 | F166: 0 | G166: 0 | H166: 1 | I166: 88 | J166: 75 | K166: 81 | L166: 82 | N166: -2.045490709 | O166: 0.1349967446 | P166: 5.684979398 | Q166: 47.70159548 | R166: =IF($D166>$B$48,"",VLOOKUP($D166,I$4:$Q$50003,8,FALSE)) -> 6.470367114 | S166: =IF($D166>$B$48,"",VLOOKUP($D166,J$4:$Q$50003,7,FALSE)) -> 7.18559488 | T166: =IF($D166>$B$48,"",VLOOKUP($D166,K$4:$Q$50003,7,FALSE)) -> 47.36734189 | U166: =IF($D166>$B$48,"",VLOOKUP($D166,L$4:$Q$50003,6,FALSE)) -> 48.15835126 | V166: =Formulate!$E$27 -> 0.2411225373 | W166: 22.96944028
D167: 164 | E167: 0 | F167: 1 | G167: 0 | H167: 1 | I167: 88 | J167: 76 | K167: 81 | L167: 83 | N167: 0.5588880412 | O167: 0.8212574313 | P167: 7.231979256 | Q167: 48.67557782 | R167: =IF($D167>$B$48,"",VLOOKUP($D167,I$4:$Q$50003,8,FALSE)) -> 6.768627626 | S167: =IF($D167>$B$48,"",VLOOKUP($D167,J$4:$Q$50003,7,FALSE)) -> 7.635489305 | T167: =IF($D167>$B$48,"",VLOOKUP($D167,K$4:$Q$50003,7,FALSE)) -> 46.5404398 | U167: =IF($D167>$B$48,"",VLOOKUP($D167,L$4:$Q$50003,6,FALSE)) -> 49.12419827 | V167: =Formulate!$E$27 -> 0.2411225373 | W167: 23.77628837
D168: 165 | E168: 0 | F168: 1 | G168: 1 | H168: 0 | I168: 88 | J168: 77 | K168: 82 | L168: 83 | N168: 1.735384275 | O168: -1.303243211 | P168: 7.930817513 | Q168: 45.66035904 | R168: =IF($D168>$B$48,"",VLOOKUP($D168,I$4:$Q$50003,8,FALSE)) -> 6.755992243 | S168: =IF($D168>$B$48,"",VLOOKUP($D168,J$4:$Q$50003,7,FALSE)) -> 7.658859686 | T168: =IF($D168>$B$48,"",VLOOKUP($D168,K$4:$Q$50003,7,FALSE)) -> 45.14504588 | U168: =IF($D168>$B$48,"",VLOOKUP($D168,L$4:$Q$50003,6,FALSE)) -> 50.11548998 | V168: =Formulate!$E$27 -> 0.2411225373 | W168: 23.05841767
D169: 166 | E169: 0 | F169: 1 | G169: 0 | H169: 1 | I169: 88 | J169: 78 | K169: 82 | L169: 84 | N169: 0.2658241298 | O169: 1.126806328 | P169: 7.057899419 | Q169: 49.10923115 | R169: =IF($D169>$B$48,"",VLOOKUP($D169,I$4:$Q$50003,8,FALSE)) -> 6.670404315 | S169: =IF($D169>$B$48,"",VLOOKUP($D169,J$4:$Q$50003,7,FALSE)) -> 8.32775555 | T169: =IF($D169>$B$48,"",VLOOKUP($D169,K$4:$Q$50003,7,FALSE)) -> 46.69080283 | U169: =IF($D169>$B$48,"",VLOOKUP($D169,L$4:$Q$50003,6,FALSE)) -> 48.7387035 | V169: =Formulate!$E$27 -> 0.2411225373 | W169: 23.35729773
D170: 167 | E170: 0 | F170: 1 | G170: 0 | H170: 1 | I170: 88 | J170: 79 | K170: 82 | L170: 85 | N170: 0.925732239 | O170: 1.581513245 | P170: 7.449884552 | Q170: 49.75457849 | R170: =IF($D170>$B$48,"",VLOOKUP($D170,I$4:$Q$50003,8,FALSE)) -> 6.47212457 | S170: =IF($D170>$B$48,"",VLOOKUP($D170,J$4:$Q$50003,7,FALSE)) -> 7.220088705 | T170: =IF($D170>$B$48,"",VLOOKUP($D170,K$4:$Q$50003,7,FALSE)) -> 46.43558161 | U170: =IF($D170>$B$48,"",VLOOKUP($D170,L$4:$Q$50003,6,FALSE)) -> 48.13116218 | V170: =Formulate!$E$27 -> 0.2411225373 | W170: 23.35717238
D171: 168 | E171: 0 | F171: 1 | G171: 1 | H171: 0 | I171: 88 | J171: 80 | K171: 83 | L171: 85 | N171: 1.422551657 | O171: -2.188305586 | P171: 7.744995072 | Q171: 44.40422541 | R171: =IF($D171>$B$48,"",VLOOKUP($D171,I$4:$Q$50003,8,FALSE)) -> 6.378190457 | S171: =IF($D171>$B$48,"",VLOOKUP($D171,J$4:$Q$50003,7,FALSE)) -> 6.919361363 | T171: =IF($D171>$B$48,"",VLOOKUP($D171,K$4:$Q$50003,7,FALSE)) -> 45.24880222 | U171: =IF($D171>$B$48,"",VLOOKUP($D171,L$4:$Q$50003,6,FALSE)) -> 48.23300721 | V171: =Formulate!$E$27 -> 0.2411225373 | W171: 22.71599038
D172: 169 | E172: 1 | F172: 0 | G172: 0 | H172: 1 | I172: 89 | J172: 80 | K172: 83 | L172: 86 | N172: -0.4622498218 | O172: 1.388985312 | P172: 6.625423805 | Q172: 49.48133129 | R172: =IF($D172>$B$48,"",VLOOKUP($D172,I$4:$Q$50003,8,FALSE)) -> 6.684669853 | S172: =IF($D172>$B$48,"",VLOOKUP($D172,J$4:$Q$50003,7,FALSE)) -> 6.976031323 | T172: =IF($D172>$B$48,"",VLOOKUP($D172,K$4:$Q$50003,7,FALSE)) -> 45.75266842 | U172: =IF($D172>$B$48,"",VLOOKUP($D172,L$4:$Q$50003,6,FALSE)) -> 48.84035158 | V172: =Formulate!$E$27 -> 0.2411225373 | W172: 22.92698795
D173: 170 | E173: 0 | F173: 1 | G173: 0 | H173: 1 | I173: 89 | J173: 81 | K173: 83 | L173: 87 | N173: 1.410323877 | O173: 0.4268008213 | P173: 7.737731777 | Q173: 48.11574133 | R173: =IF($D173>$B$48,"",VLOOKUP($D173,I$4:$Q$50003,8,FALSE)) -> 6.142664167 | S173: =IF($D173>$B$48,"",VLOOKUP($D173,J$4:$Q$50003,7,FALSE)) -> 7.237822599 | T173: =IF($D173>$B$48,"",VLOOKUP($D173,K$4:$Q$50003,7,FALSE)) -> 46.91276736 | U173: =IF($D173>$B$48,"",VLOOKUP($D173,L$4:$Q$50003,6,FALSE)) -> 48.80209953 | V173: =Formulate!$E$27 -> 0.2411225373 | W173: 22.80986723
D174: 171 | E174: 0 | F174: 1 | G174: 1 | H174: 0 | I174: 89 | J174: 82 | K174: 84 | L174: 87 | N174: 1.053630929 | O174: -1.098272802 | P174: 7.525856319 | Q174: 45.95126534 | R174: =IF($D174>$B$48,"",VLOOKUP($D174,I$4:$Q$50003,8,FALSE)) -> 6.720166909 | S174: =IF($D174>$B$48,"",VLOOKUP($D174,J$4:$Q$50003,7,FALSE)) -> 7.479587093 | T174: =IF($D174>$B$48,"",VLOOKUP($D174,K$4:$Q$50003,7,FALSE)) -> 46.64461943 | U174: =IF($D174>$B$48,"",VLOOKUP($D174,L$4:$Q$50003,6,FALSE)) -> 48.24052456 | V174: =Formulate!$E$27 -> 0.2411225373 | W174: 22.9259983
D175: 172 | E175: 0 | F175: 1 | G175: 1 | H175: 0 | I175: 89 | J175: 83 | K175: 85 | L175: 87 | N175: 0.324731945 | O175: -0.837209202 | P175: 7.092890636 | Q175: 46.32178247 | R175: =IF($D175>$B$48,"",VLOOKUP($D175,I$4:$Q$50003,8,FALSE)) -> 6.169340727 | S175: =IF($D175>$B$48,"",VLOOKUP($D175,J$4:$Q$50003,7,FALSE)) -> 7.598215992 | T175: =IF($D175>$B$48,"",VLOOKUP($D175,K$4:$Q$50003,7,FALSE)) -> 46.7217248 | U175: =IF($D175>$B$48,"",VLOOKUP($D175,L$4:$Q$50003,6,FALSE)) -> 47.57318908 | V175: =Formulate!$E$27 -> 0.2411225373 | W175: 23.55466524
D176: 173 | E176: 0 | F176: 1 | G176: 1 | H176: 0 | I176: 89 | J176: 84 | K176: 86 | L176: 87 | N176: 1.022120396 | O176: -0.5024815527 | P176: 7.507139076 | Q176: 46.79684803 | R176: =IF($D176>$B$48,"",VLOOKUP($D176,I$4:$Q$50003,8,FALSE)) -> 6.818114706 | S176: =IF($D176>$B$48,"",VLOOKUP($D176,J$4:$Q$50003,7,FALSE)) -> 7.380921471 | T176: =IF($D176>$B$48,"",VLOOKUP($D176,K$4:$Q$50003,7,FALSE)) -> 46.94420912 | U176: =IF($D176>$B$48,"",VLOOKUP($D176,L$4:$Q$50003,6,FALSE)) -> 48.64342286 | V176: =Formulate!$E$27 -> 0.2411225373 | W176: 23.44191923
D177: 174 | E177: 1 | F177: 0 | G177: 0 | H177: 1 | I177: 90 | J177: 84 | K177: 86 | L177: 88 | N177: -1.431763226 | O177: 1.184170857 | P177: 6.049533259 | Q177: 49.19064633 | R177: =IF($D177>$B$48,"",VLOOKUP($D177,I$4:$Q$50003,8,FALSE)) -> 6.8273725 | S177: =IF($D177>$B$48,"",VLOOKUP($D177,J$4:$Q$50003,7,FALSE)) -> 7.944432974 | T177: =IF($D177>$B$48,"",VLOOKUP($D177,K$4:$Q$50003,7,FALSE)) -> 47.42989516 | U177: =IF($D177>$B$48,"",VLOOKUP($D177,L$4:$Q$50003,6,FALSE)) -> 48.40201004 | V177: =Formulate!$E$27 -> 0.2411225373 | W177: 23.17875589
D178: 175 | E178: 0 | F178: 1 | G178: 1 | H178: 0 | I178: 90 | J178: 85 | K178: 87 | L178: 88 | N178: 1.004175274 | O178: -1.355498359 | P178: 7.496479681 | Q178: 45.5861954 | R178: =IF($D178>$B$48,"",VLOOKUP($D178,I$4:$Q$50003,8,FALSE)) -> 6.114722186 | S178: =IF($D178>$B$48,"",VLOOKUP($D178,J$4:$Q$50003,7,FALSE)) -> 7.61201599 | T178: =IF($D178>$B$48,"",VLOOKUP($D178,K$4:$Q$50003,7,FALSE)) -> 44.97426254 | U178: =IF($D178>$B$48,"",VLOOKUP($D178,L$4:$Q$50003,6,FALSE)) -> 47.6588103 | V178: =Formulate!$E$27 -> 0.2411225373 | W178: 23.13164357
D179: 176 | E179: 0 | F179: 1 | G179: 1 | H179: 0 | I179: 90 | J179: 86 | K179: 88 | L179: 88 | N179: 0.1979120534 | O179: -1.387779485 | P179: 7.017559675 | Q179: 45.54038009 | R179: =IF($D179>$B$48,"",VLOOKUP($D179,I$4:$Q$50003,8,FALSE)) -> 6.194997496 | S179: =IF($D179>$B$48,"",VLOOKUP($D179,J$4:$Q$50003,7,FALSE)) -> 7.39270128 | T179: =IF($D179>$B$48,"",VLOOKUP($D179,K$4:$Q$50003,7,FALSE)) -> 46.81688858 | U179: =IF($D179>$B$48,"",VLOOKUP($D179,L$4:$Q$50003,6,FALSE)) -> 49.70793517 | V179: =Formulate!$E$27 -> 0.2411225373 | W179: 23.03435871
D180: 177 | E180: 0 | F180: 1 | G180: 0 | H180: 1 | I180: 90 | J180: 87 | K180: 88 | L180: 89 | N180: 0.09434905777 | O180: 0.10080337 | P180: 6.9560433 | Q180: 47.65306619 | R180: =IF($D180>$B$48,"",VLOOKUP($D180,I$4:$Q$50003,8,FALSE)) -> 6.27818641 | S180: =IF($D180>$B$48,"",VLOOKUP($D180,J$4:$Q$50003,7,FALSE)) -> 7.217578158 | T180: =IF($D180>$B$48,"",VLOOKUP($D180,K$4:$Q$50003,7,FALSE)) -> 46.88422038 | U180: =IF($D180>$B$48,"",VLOOKUP($D180,L$4:$Q$50003,6,FALSE)) -> 48.76910303 | V180: =Formulate!$E$27 -> 0.2411225373 | W180: 22.74955864
D181: 178 | E181: 0 | F181: 1 | G181: 1 | H181: 0 | I181: 90 | J181: 88 | K181: 89 | L181: 89 | N181: 1.151864977 | O181: -1.721035289 | P181: 7.584207301 | Q181: 45.06740346 | R181: =IF($D181>$B$48,"",VLOOKUP($D181,I$4:$Q$50003,8,FALSE)) -> 6.344055508 | S181: =IF($D181>$B$48,"",VLOOKUP($D181,J$4:$Q$50003,7,FALSE)) -> 8.059454217 | T181: =IF($D181>$B$48,"",VLOOKUP($D181,K$4:$Q$50003,7,FALSE)) -> 46.41879534 | U181: =IF($D181>$B$48,"",VLOOKUP($D181,L$4:$Q$50003,6,FALSE)) -> 47.96012934 | V181: =Formulate!$E$27 -> 0.2411225373 | W181: 22.89483767
D182: 179 | E182: 0 | F182: 1 | G182: 1 | H182: 0 | I182: 90 | J182: 89 | K182: 90 | L182: 89 | N182: 0.4497249757 | O182: -0.635942679 | P182: 7.167136442 | Q182: 46.60743199 | R182: =IF($D182>$B$48,"",VLOOKUP($D182,I$4:$Q$50003,8,FALSE)) -> 6.095334921 | S182: =IF($D182>$B$48,"",VLOOKUP($D182,J$4:$Q$50003,7,FALSE)) -> 7.377173727 | T182: =IF($D182>$B$48,"",VLOOKUP($D182,K$4:$Q$50003,7,FALSE)) -> 46.07089686 | U182: =IF($D182>$B$48,"",VLOOKUP($D182,L$4:$Q$50003,6,FALSE)) -> 48.24040175 | V182: =Formulate!$E$27 -> 0.2411225373 | W182: 22.87084058
D183: 180 | E183: 0 | F183: 1 | G183: 0 | H183: 1 | I183: 90 | J183: 90 | K183: 90 | L183: 90 | N183: 1.100624387 | O183: 1.137346341 | P183: 7.553770412 | Q183: 49.12419017 | R183: =IF($D183>$B$48,"",VLOOKUP($D183,I$4:$Q$50003,8,FALSE)) -> 6.646557385 | S183: =IF($D183>$B$48,"",VLOOKUP($D183,J$4:$Q$50003,7,FALSE)) -> 7.102746461 | T183: =IF($D183>$B$48,"",VLOOKUP($D183,K$4:$Q$50003,7,FALSE)) -> 46.69698663 | U183: =IF($D183>$B$48,"",VLOOKUP($D183,L$4:$Q$50003,6,FALSE)) -> 48.98078928 | V183: =Formulate!$E$27 -> 0.2411225373 | W183: 23.32454598
D184: 181 | E184: 0 | F184: 1 | G184: 0 | H184: 1 | I184: 90 | J184: 91 | K184: 90 | L184: 91 | N184: =NORMSINV(RAND()) -> 0.4519048979 | O184: 0.3478688078 | P184: 7.168431315 | Q184: 48.00371628 | R184: =IF($D184>$B$48,"",VLOOKUP($D184,I$4:$Q$50003,8,FALSE)) -> 6.349006854 | S184: =IF($D184>$B$48,"",VLOOKUP($D184,J$4:$Q$50003,7,FALSE)) -> 7.345503975 | T184: =IF($D184>$B$48,"",VLOOKUP($D184,K$4:$Q$50003,7,FALSE)) -> 47.48640511 | U184: =IF($D184>$B$48,"",VLOOKUP($D184,L$4:$Q$50003,6,FALSE)) -> 47.7179788 | V184: =Formulate!$E$27 -> 0.2411225373 | W184: 22.92389768
D185: 182 | E185: 1 | F185: 0 | G185: 1 | H185: 0 | I185: 91 | J185: 91 | K185: 91 | L185: 91 | N185: -0.6936425254 | O185: -0.482172292 | P185: 6.487976638 | Q185: 46.82567215 | R185: =IF($D185>$B$48,"",VLOOKUP($D185,I$4:$Q$50003,8,FALSE)) -> 6.643599611 | S185: =IF($D185>$B$48,"",VLOOKUP($D185,J$4:$Q$50003,7,FALSE)) -> 7.201170751 | T185: =IF($D185>$B$48,"",VLOOKUP($D185,K$4:$Q$50003,7,FALSE)) -> 46.73171991 | U185: =IF($D185>$B$48,"",VLOOKUP($D185,L$4:$Q$50003,6,FALSE)) -> 48.78163855 | V185: =Formulate!$E$27 -> 0.2411225373 | W185: 23.00565326
D186: 183 | E186: 0 | F186: 1 | G186: 0 | H186: 1 | I186: 91 | J186: 92 | K186: 91 | L186: 92 | N186: 0.06012815697 | O186: 0.216051178 | P186: 6.935716099 | Q186: 47.81663279 | R186: =IF($D186>$B$48,"",VLOOKUP($D186,I$4:$Q$50003,8,FALSE)) -> 6.69931947 | S186: =IF($D186>$B$48,"",VLOOKUP($D186,J$4:$Q$50003,7,FALSE)) -> 7.335325707 | T186: =IF($D186>$B$48,"",VLOOKUP($D186,K$4:$Q$50003,7,FALSE)) -> 47.30520558 | U186: =IF($D186>$B$48,"",VLOOKUP($D186,L$4:$Q$50003,6,FALSE)) -> 48.61654783 | V186: =Formulate!$E$27 -> 0.2411225373 | W186: 22.84362508
D187: 184 | E187: 0 | F187: 1 | G187: 0 | H187: 1 | I187: 91 | J187: 93 | K187: 91 | L187: 93 | N187: 1.080866693 | O187: 0.5274790267 | P187: 7.542034351 | Q187: 48.25862988 | R187: =IF($D187>$B$48,"",VLOOKUP($D187,I$4:$Q$50003,8,FALSE)) -> 6.883579066 | S187: =IF($D187>$B$48,"",VLOOKUP($D187,J$4:$Q$50003,7,FALSE)) -> 7.056616097 | T187: =IF($D187>$B$48,"",VLOOKUP($D187,K$4:$Q$50003,7,FALSE)) -> 47.21557189 | U187: =IF($D187>$B$48,"",VLOOKUP($D187,L$4:$Q$50003,6,FALSE)) -> 48.48467151 | V187: =Formulate!$E$27 -> 0.2411225373 | W187: 23.10308917
D188: 185 | E188: 0 | F188: 1 | G188: 0 | H188: 1 | I188: 91 | J188: 94 | K188: 91 | L188: 94 | N188: 2.044803427 | O188: 0.7196643733 | P188: 8.114612357 | Q188: 48.53139086 | R188: =IF($D188>$B$48,"",VLOOKUP($D188,I$4:$Q$50003,8,FALSE)) -> 6.797897057 | S188: =IF($D188>$B$48,"",VLOOKUP($D188,J$4:$Q$50003,7,FALSE)) -> 7.182381449 | T188: =IF($D188>$B$48,"",VLOOKUP($D188,K$4:$Q$50003,7,FALSE)) -> 47.48327077 | U188: =IF($D188>$B$48,"",VLOOKUP($D188,L$4:$Q$50003,6,FALSE)) -> 49.39305072 | V188: =Formulate!$E$27 -> 0.2411225373 | W188: 23.12577652
D189: 186 | E189: 0 | F189: 1 | G189: 0 | H189: 1 | I189: 91 | J189: 95 | K189: 91 | L189: 95 | N189: 1.058641828 | O189: 1.346357107 | P189: 7.52883279 | Q189: 49.42083079 | R189: =IF($D189>$B$48,"",VLOOKUP($D189,I$4:$Q$50003,8,FALSE)) -> 6.592593151 | S189: =IF($D189>$B$48,"",VLOOKUP($D189,J$4:$Q$50003,7,FALSE)) -> 6.990367947 | T189: =IF($D189>$B$48,"",VLOOKUP($D189,K$4:$Q$50003,7,FALSE)) -> 47.50483208 | U189: =IF($D189>$B$48,"",VLOOKUP($D189,L$4:$Q$50003,6,FALSE)) -> 49.00190346 | V189: =Formulate!$E$27 -> 0.2411225373 | W189: 22.66901603
D190: 187 | E190: 1 | F190: 0 | G190: 0 | H190: 1 | I190: 92 | J190: 95 | K190: 91 | L190: 96 | N190: -0.1929500787 | O190: 1.408353361 | P190: 6.785387736 | Q190: 49.50881959 | R190: =IF($D190>$B$48,"",VLOOKUP($D190,I$4:$Q$50003,8,FALSE)) -> 6.73585256 | S190: =IF($D190>$B$48,"",VLOOKUP($D190,J$4:$Q$50003,7,FALSE)) -> 7.553467755 | T190: =IF($D190>$B$48,"",VLOOKUP($D190,K$4:$Q$50003,7,FALSE)) -> 46.33305214 | U190: =IF($D190>$B$48,"",VLOOKUP($D190,L$4:$Q$50003,6,FALSE)) -> 50.90883115 | V190: =Formulate!$E$27 -> 0.2411225373 | W190: 23.38420059
D191: 188 | E191: 1 | F191: 0 | G191: 0 | H191: 1 | I191: 93 | J191: 95 | K191: 91 | L191: 97 | N191: -0.3324418436 | O191: 0.6824416921 | P191: 6.702529688 | Q191: 48.4785622 | R191: =IF($D191>$B$48,"",VLOOKUP($D191,I$4:$Q$50003,8,FALSE)) -> 6.1686527 | S191: =IF($D191>$B$48,"",VLOOKUP($D191,J$4:$Q$50003,7,FALSE)) -> 7.667487363 | T191: =IF($D191>$B$48,"",VLOOKUP($D191,K$4:$Q$50003,7,FALSE)) -> 45.49525659 | U191: =IF($D191>$B$48,"",VLOOKUP($D191,L$4:$Q$50003,6,FALSE)) -> 49.29714502 | V191: =Formulate!$E$27 -> 0.2411225373 | W191: 22.71402147
D192: 189 | E192: 0 | F192: 1 | G192: 0 | H192: 1 | I192: 93 | J192: 96 | K192: 91 | L192: 98 | N192: 0.3256568709 | O192: 0.539650378 | P192: 7.093440041 | Q192: 48.2759042 | R192: =IF($D192>$B$48,"",VLOOKUP($D192,I$4:$Q$50003,8,FALSE)) -> 6.795349975 | S192: =IF($D192>$B$48,"",VLOOKUP($D192,J$4:$Q$50003,7,FALSE)) -> 7.097565571 | T192: =IF($D192>$B$48,"",VLOOKUP($D192,K$4:$Q$50003,7,FALSE)) -> 45.15741783 | U192: =IF($D192>$B$48,"",VLOOKUP($D192,L$4:$Q$50003,6,FALSE)) -> 48.22940926 | V192: =Formulate!$E$27 -> 0.2411225373 | W192: 23.20397177
D193: 190 | E193: 1 | F193: 0 | G193: 1 | H193: 0 | I193: 94 | J193: 96 | K193: 92 | L193: 98 | N193: -0.4783541557 | O193: -0.5836510793 | P193: 6.615857837 | Q193: 46.68164737 | R193: =IF($D193>$B$48,"",VLOOKUP($D193,I$4:$Q$50003,8,FALSE)) -> 6.14566639 | S193: =IF($D193>$B$48,"",VLOOKUP($D193,J$4:$Q$50003,7,FALSE)) -> 7.035312986 | T193: =IF($D193>$B$48,"",VLOOKUP($D193,K$4:$Q$50003,7,FALSE)) -> 46.58020102 | U193: =IF($D193>$B$48,"",VLOOKUP($D193,L$4:$Q$50003,6,FALSE)) -> 47.88155917 | V193: =Formulate!$E$27 -> 0.2411225373 | W193: 22.6526741
D194: 191 | E194: 0 | F194: 1 | G194: 0 | H194: 1 | I194: 94 | J194: 97 | K194: 92 | L194: 99 | N194: 0.7989584245 | O194: 0.4497659827 | P194: 7.374580961 | Q194: 48.14833487 | R194: =IF($D194>$B$48,"",VLOOKUP($D194,I$4:$Q$50003,8,FALSE)) -> 5.146855938 | S194: =IF($D194>$B$48,"",VLOOKUP($D194,J$4:$Q$50003,7,FALSE)) -> 7.841187253 | T194: =IF($D194>$B$48,"",VLOOKUP($D194,K$4:$Q$50003,7,FALSE)) -> 46.04068555 | U194: =IF($D194>$B$48,"",VLOOKUP($D194,L$4:$Q$50003,6,FALSE)) -> 47.99777101 | V194: =Formulate!$E$27 -> 0.2411225373 | W194: 23.12703936
D195: 192 | E195: 1 | F195: 0 | G195: 1 | H195: 0 | I195: 95 | J195: 97 | K195: 93 | L195: 99 | N195: -1.070063665 | O195: -0.5830834944 | P195: 6.264382643 | Q195: 46.68245292 | R195: =IF($D195>$B$48,"",VLOOKUP($D195,I$4:$Q$50003,8,FALSE)) -> 6.837438203 | S195: =IF($D195>$B$48,"",VLOOKUP($D195,J$4:$Q$50003,7,FALSE)) -> 7.20134963 | T195: =IF($D195>$B$48,"",VLOOKUP($D195,K$4:$Q$50003,7,FALSE)) -> 46.31653713 | U195: =IF($D195>$B$48,"",VLOOKUP($D195,L$4:$Q$50003,6,FALSE)) -> 48.52894669 | V195: =Formulate!$E$27 -> 0.2411225373 | W195: 23.16930039
D196: 193 | E196: =IF(P196<$B$4,1,0) -> 0 | F196: =1-E196 -> 1 | G196: =IF(Q196<$B$7,1,0) -> 1 | H196: =1-G196 -> 0 | I196: 95 | J196: 98 | K196: 94 | L196: 99 | N196: 0.3291606274 | O196: -0.01604123035 | P196: =$B$4+N196*$B$5 -> 7.095521271 | Q196: =$B$7+O196*$B$8 -> 47.48723332 | R196: =IF($D196>$B$48,"",VLOOKUP($D196,I$4:$Q$50003,8,FALSE)) -> 6.734653089 | S196: =IF($D196>$B$48,"",VLOOKUP($D196,J$4:$Q$50003,7,FALSE)) -> 6.92748258 | T196: =IF($D196>$B$48,"",VLOOKUP($D196,K$4:$Q$50003,7,FALSE)) -> 44.38560544 | U196: =IF($D196>$B$48,"",VLOOKUP($D196,L$4:$Q$50003,6,FALSE)) -> 49.5696494 | V196: =Formulate!$E$27 -> 0.2411225373 | W196: =IF($D196>$B$48,"",(($B$12/100)*R196+($B$13/100)*S196+($B$14/100)*T196+($B$15/100)*U196+57.52*V196/100)) -> 23.18905746
D197: 194 | E197: 0 | F197: 1 | G197: 1 | H197: 0 | I197: =I196+E197 -> 95 | J197: =J196+F197 -> 99 | K197: =K196+G197 -> 95 | L197: =L196+H197 -> 99 | N197: 0.6029201486 | O197: -0.6846250528 | P197: 7.258134309 | Q197: 46.53833905 | R197: =IF($D197>$B$48,"",VLOOKUP($D197,I$4:$Q$50003,8,FALSE)) -> 6.719642966 | S197: =IF($D197>$B$48,"",VLOOKUP($D197,J$4:$Q$50003,7,FALSE)) -> 7.078282616 | T197: =IF($D197>$B$48,"",VLOOKUP($D197,K$4:$Q$50003,7,FALSE)) -> 46.60299175 | U197: =IF($D197>$B$48,"",VLOOKUP($D197,L$4:$Q$50003,6,FALSE)) -> 47.68177581 | V197: =Formulate!$E$27 -> 0.2411225373 | W197: 23.24809378
D198: 195 | E198: 0 | F198: 1 | G198: 0 | H198: 1 | I198: 95 | J198: 100 | K198: 95 | L198: 100 | N198: 0.06763768841 | O198: 0.8335260705 | P198: 6.940176758 | Q198: 48.69299021 | R198: =IF($D198>$B$48,"",VLOOKUP($D198,I$4:$Q$50003,8,FALSE)) -> 6.870823364 | S198: =IF($D198>$B$48,"",VLOOKUP($D198,J$4:$Q$50003,7,FALSE)) -> 7.639773295 | T198: =IF($D198>$B$48,"",VLOOKUP($D198,K$4:$Q$50003,7,FALSE)) -> 46.49722108 | U198: =IF($D198>$B$48,"",VLOOKUP($D198,L$4:$Q$50003,6,FALSE)) -> 49.364907 | V198: =Formulate!$E$27 -> 0.2411225373 | W198: 23.20271297
D199: 196 | E199: 1 | F199: 0 | G199: 0 | H199: 1 | I199: 96 | J199: 100 | K199: 95 | L199: 101 | N199: -0.148276826 | O199: 0.209585676 | P199: 6.811923629 | Q199: 47.80745657 | R199: =IF($D199>$B$48,"",VLOOKUP($D199,I$4:$Q$50003,8,FALSE)) -> 6.798490662 | S199: =IF($D199>$B$48,"",VLOOKUP($D199,J$4:$Q$50003,7,FALSE)) -> 7.653242297 | T199: =IF($D199>$B$48,"",VLOOKUP($D199,K$4:$Q$50003,7,FALSE)) -> 46.1384894 | U199: =IF($D199>$B$48,"",VLOOKUP($D199,L$4:$Q$50003,6,FALSE)) -> 50.33980204 | V199: =Formulate!$E$27 -> 0.2411225373 | W199: 23.57027052
D200: 197 | E200: 0 | F200: 1 | G200: 0 | H200: 1 | I200: 96 | J200: 101 | K200: 95 | L200: 102 | N200: 0.308678273 | O200: 0.1835498016 | P200: 7.083354761 | Q200: 47.77050489 | R200: =IF($D200>$B$48,"",VLOOKUP($D200,I$4:$Q$50003,8,FALSE)) -> 6.834265793 | S200: =IF($D200>$B$48,"",VLOOKUP($D200,J$4:$Q$50003,7,FALSE)) -> 7.329406081 | T200: =IF($D200>$B$48,"",VLOOKUP($D200,K$4:$Q$50003,7,FALSE)) -> 45.68031575 | U200: =IF($D200>$B$48,"",VLOOKUP($D200,L$4:$Q$50003,6,FALSE)) -> 47.74339522 | V200: =Formulate!$E$27 -> 0.2411225373 | W200: 23.34558651
... 2050 more rows

Sheet Graphs
P2: Percent
P3: Min. | Q3: Actual | R3: Min.
O4: =Formulate!H8 -> Dry Matter | P4: =Q4/R4*100 ->  | Q4: =Formulate!J8 -> 87.19274807 | R4: =Formulate!I8 -> 0
O5: =Formulate!H9 -> M.E. | P5: 100 | Q5: =Formulate!J9 -> 3.2 | R5: =Formulate!I9 -> 3.2
O6: =Formulate!H10 -> Protein | P6: 100 | Q6: =Formulate!J10 -> 23 | R6: =Formulate!I10 -> 23
O7: =Formulate!H11 -> E.E. | Q7: =Formulate!J11 -> 9.519559558 | R7: =Formulate!I11 -> 0
O8: =Formulate!H12 -> C18:2 | P8: 263.1569657 | Q8: =Formulate!J12 -> 2.631569657 | R8: =Formulate!I12 -> 1
O9: =Formulate!H13 -> C.F | Q9: =Formulate!J13 -> 2.649569074 | R9: =Formulate!I13 -> 0
O10: =Formulate!H14 -> Calcium | P10: 100 | Q10: =Formulate!J14 -> 1 | R10: =Formulate!I14 -> 1
O11: =Formulate!H15 -> Total Phos. | Q11: =Formulate!J15 -> 0.691896651 | R11: =Formulate!I15 -> 0
O12: =Formulate!H16 -> Avail. Phos. | P12: 100 | Q12: =Formulate!J16 -> 0.45 | R12: =Formulate!I16 -> 0.45
O13: =Formulate!H17 -> Ca:P= | P13: 0.05 | Q13: =Formulate!J17 -> -0.05 | R13: =Formulate!I17 -> -100
O14: =Formulate!H18 -> Corn P | Q14: =Formulate!J18 -> -1.110223025e-16 | R14: =Formulate!I18 -> 0
O15: =Formulate!H19 -> 0 | Q15: =Formulate!J19 -> 0.2367138399 | R15: =Formulate!I19 -> 0
O16: =Formulate!H20 -> 0 | Q16: =Formulate!J20 -> 0.2367138399 | R16: =Formulate!I20 -> 0
O17: =Formulate!H21 -> Na | P17: 100 | Q17: =Formulate!J21 -> 0.2 | R17: =Formulate!I21 -> 0.2
O18: =Formulate!H22 -> SBM P | Q18: =Formulate!J22 -> -2.498001805e-16 | R18: =Formulate!I22 -> 0
O19: =Formulate!H23 -> 0 | Q19: =Formulate!J23 -> 0.2061574587 | R19: =Formulate!I23 -> 0
O20: =Formulate!H24 -> 0 | Q20: =Formulate!J24 -> 0.2061574587 | R20: =Formulate!I24 -> 0
O21: =Formulate!H25 -> ARG | P21: 124.2869462 | Q21: =Formulate!J25 -> 1.553586827 | R21: =Formulate!I25 -> 1.25
O22: =Formulate!H26 -> GLY | Q22: =Formulate!J26 -> 0.9474474722 | R22: =Formulate!I26 -> 0
O23: =Formulate!H27 -> SER | Q23: =Formulate!J27 -> 1.121390571 | R23: =Formulate!I27 -> 0
O24: =Formulate!H28 -> GLY & SER | P24: 208.9200696 | Q24: =Formulate!J28 -> 2.61150087 | R24: =Formulate!I28 -> 1.25
O25: =Formulate!H29 -> HIS | P25: 166.6138366 | Q25: =Formulate!J29 -> 0.5831484281 | R25: =Formulate!I29 -> 0.35
O26: =Formulate!H30 -> ILE | P26: 124.2406076 | Q26: =Formulate!J30 -> 0.9939248605 | R26: =Formulate!I30 -> 0.8
O27: =Formulate!H31 -> GLY & SER | P27: 154.6040841 | Q27: =Formulate!J31 -> 1.855249009 | R27: =Formulate!I31 -> 1.2
O28: =Formulate!H32 -> LYS | P28: 116.7287188 | Q28: =Formulate!J32 -> 1.284015907 | R28: =Formulate!I32 -> 1.1
O29: =Formulate!H33 -> MET | P29: 111.8779805 | Q29: =Formulate!J33 -> 0.5593899027 | R29: =Formulate!I33 -> 0.5
O30: =Formulate!H34 -> CYS | Q30: =Formulate!J34 -> 0.3406100973 | R30: =Formulate!I34 -> 0
O31: =Formulate!H35 -> TSAA | P31: 100 | Q31: =Formulate!J35 -> 0.9 | R31: =Formulate!I35 -> 0.9
O32: =Formulate!H36 -> PHE | P32: 159.1599195 | Q32: =Formulate!J36 -> 1.145951421 | R32: =Formulate!I36 -> 0.72
O33: =Formulate!H37 -> TYR | Q33: =Formulate!J37 -> 0.8334719346 | R33: =Formulate!I37 -> 0
O34: =Formulate!H38 -> TAAA | P34: 147.7181608 | Q34: =Formulate!J38 -> 1.979423355 | R34: =Formulate!I38 -> 1.34
O35: =Formulate!H39 -> THR | P35: 108.8214914 | Q35: =Formulate!J39 -> 0.8705719314 | R35: =Formulate!I39 -> 0.8
O36: =Formulate!H40 -> TRP | P36: 145.3517051 | Q36: =Formulate!J40 -> 0.2907034102 | R36: =Formulate!I40 -> 0.2
O37: =Formulate!H41 -> VAL | P37: 120.1273052 | Q37: =Formulate!J41 -> 1.081145747 | R37: =Formulate!I41 -> 0.9

Sheet Feed Spec
B1: WUFFF DA | G1: =NOW() -> 2013-12-13T15:41:16.470
B4: Feed: | C4: =Formulate!D4 -> Example Feed
C6: Feed Cost: | D6: =Formulate!J1 -> 23.52479092
A8: =Formulate!B6 -> Ingredient | B8: =Formulate!C6 -> Cost | C8: =Formulate!D6 -> Min. | D8: =Formulate!E6 -> Amount | E8: =Formulate!F6 -> Max. | G8: =Formulate!H6 -> Nutrient | H8: =Formulate!L6 -> Units | I8: Min. | J8: Amount | K8: Max.
B9: =Formulate!C7 -> $/cwt | C9: =Formulate!D7 -> % | D9: =Formulate!E7 -> % | E9: =Formulate!F7 -> %
A10: =Formulate!B8 -> LOW CP CORN | B10: =Formulate!C8 -> 16 | C10: =Formulate!D8 -> 0 | D10: =Formulate!E8 -> 23.67138399 | E10: =Formulate!F8 -> 100 | G10: =Formulate!H8 -> Dry Matter | H10: =Formulate!L8 -> % | I10: =Formulate!I8 -> 0 | J10: =Formulate!J8 -> 87.19274807 | K10: =Formulate!K8 -> 100
A11: =Formulate!B9 -> HIGH CP CORN | B11: =Formulate!C9 -> 16 | C11: =Formulate!D9 -> 0 | D11: =Formulate!E9 -> 23.67138399 | E11: =Formulate!F9 -> 100 | G11: =Formulate!H9 -> M.E. | H11: =Formulate!L9 -> Kcal/g | I11: =Formulate!I9 -> 3.2 | J11: =Formulate!J9 -> 3.2 | K11: =Formulate!K9 -> 100
A12: =Formulate!B10 -> LOW CP SBM | B12: =Formulate!C10 -> 28 | C12: =Formulate!D10 -> 0 | D12: =Formulate!E10 -> 20.61574587 | E12: =Formulate!F10 -> 100 | G12: =Formulate!H10 -> Protein | H12: =Formulate!L10 -> % | I12: =Formulate!I10 -> 23 | J12: =Formulate!J10 -> 23 | K12: =Formulate!K10 -> 100
A13: =Formulate!B11 -> HIGH CP SBM | B13: =Formulate!C11 -> 28 | C13: =Formulate!D11 -> 0 | D13: =Formulate!E11 -> 20.61574587 | E13: =Formulate!F11 -> 100 | G13: =Formulate!H11 -> E.E. | H13: =Formulate!L11 -> % | I13: =Formulate!I11 -> 0 | J13: =Formulate!J11 -> 9.519559558 | K13: =Formulate!K11 -> 100
A14: =Formulate!B12 -> 0 | B14: =Formulate!C12 -> 0 | C14: =Formulate!D12 -> 0 | D14: =Formulate!E12 -> 0 | E14: =Formulate!F12 -> 0 | G14: =Formulate!H12 -> C18:2 | H14: =Formulate!L12 -> % | I14: =Formulate!I12 -> 1 | J14: =Formulate!J12 -> 2.631569657 | K14: =Formulate!K12 -> 100
A15: =Formulate!B13 -> 0 | B15: =Formulate!C13 -> 0 | C15: =Formulate!D13 -> 0 | D15: =Formulate!E13 -> 0 | E15: =Formulate!F13 -> 0 | G15: =Formulate!H13 -> C.F | H15: =Formulate!L13 -> % | I15: =Formulate!I13 -> 0 | J15: =Formulate!J13 -> 2.649569074 | K15: =Formulate!K13 -> 100
A16: =Formulate!B14 -> Poultry Fat | B16: =Formulate!C14 -> 34 | C16: =Formulate!D14 -> 0 | D16: =Formulate!E14 -> 7.308219457 | E16: =Formulate!F14 -> 100 | G16: =Formulate!H14 -> Calcium | H16: =Formulate!L14 -> % | I16: =Formulate!I14 -> 1 | J16: =Formulate!J14 -> 1 | K16: =Formulate!K14 -> 100
A17: =Formulate!B15 -> 0 | B17: =Formulate!C15 -> 0 | C17: =Formulate!D15 -> 0 | D17: =Formulate!E15 -> 0 | E17: =Formulate!F15 -> 0 | G17: =Formulate!H15 -> Total Phos. | H17: =Formulate!L15 -> % | I17: =Formulate!I15 -> 0 | J17: =Formulate!J15 -> 0.691896651 | K17: =Formulate!K15 -> 100
A18: =Formulate!B16 -> 0 | B18: =Formulate!C16 -> 0 | C18: =Formulate!D16 -> 0 | D18: =Formulate!E16 -> 0 | E18: =Formulate!F16 -> 0 | G18: =Formulate!H16 -> Avail. Phos. | H18: =Formulate!L16 -> % | I18: =Formulate!I16 -> 0.45 | J18: =Formulate!J16 -> 0.45 | K18: =Formulate!K16 -> 100
A19: =Formulate!B17 -> 0 | B19: =Formulate!C17 -> 0 | C19: =Formulate!D17 -> 0 | D19: =Formulate!E17 -> 0 | E19: =Formulate!F17 -> 0 | G19: =Formulate!H17 -> Ca:P= | H19: =Formulate!L17 -> - | I19: =Formulate!I17 -> -100 | J19: =Formulate!J17 -> -0.05 | K19: =Formulate!K17 -> 100
A20: =Formulate!B18 -> 0 | B20: =Formulate!C18 -> 0 | C20: =Formulate!D18 -> 0 | D20: =Formulate!E18 -> 0 | E20: =Formulate!F18 -> 0 | G20: =Formulate!H18 -> Corn P | H20: =Formulate!L18 -> % | I20: =Formulate!I18 -> 0 | J20: =Formulate!J18 -> -1.110223025e-16 | K20: =Formulate!K18 -> 0
A21: =Formulate!B19 -> 0 | B21: =Formulate!C19 -> 0 | C21: =Formulate!D19 -> 0 | D21: =Formulate!E19 -> 0 | E21: =Formulate!F19 -> 0 | G21: =Formulate!H19 -> 0 | H21: =Formulate!L19 -> % | I21: =Formulate!I19 -> 0 | J21: =Formulate!J19 -> 0.2367138399 | K21: =Formulate!K19 -> 100
A22: =Formulate!B20 -> 0 | B22: =Formulate!C20 -> 0 | C22: =Formulate!D20 -> 0 | D22: =Formulate!E20 -> 0 | E22: =Formulate!F20 -> 0 | G22: =Formulate!H20 -> 0 | H22: =Formulate!L20 -> mg/kg | I22: =Formulate!I20 -> 0 | J22: =Formulate!J20 -> 0.2367138399 | K22: =Formulate!K20 -> 1000
A23: =Formulate!B21 -> Limestone | B23: =Formulate!C21 -> 3 | C23: =Formulate!D21 -> 0 | D23: =Formulate!E21 -> 1.399792819 | E23: =Formulate!F21 -> 100 | G23: =Formulate!H21 -> Na | H23: =Formulate!L21 -> % | I23: =Formulate!I21 -> 0.2 | J23: =Formulate!J21 -> 0.2 | K23: =Formulate!K21 -> 100
A24: =Formulate!B22 -> 0 | B24: =Formulate!C22 -> 0 | C24: =Formulate!D22 -> 0 | D24: =Formulate!E22 -> 0 | E24: =Formulate!F22 -> 0 | G24: =Formulate!H22 -> SBM P | H24: =Formulate!L22 -> mg/kg | I24: =Formulate!I22 -> 0 | J24: =Formulate!J22 -> -2.498001805e-16 | K24: =Formulate!K22 -> 0
A25: =Formulate!B23 -> Dical. Phos. | B25: =Formulate!C23 -> 20 | C25: =Formulate!D23 -> 0 | D25: =Formulate!E23 -> 1.624073004 | E25: =Formulate!F23 -> 100 | G25: =Formulate!H23 -> 0 | H25: =Formulate!L23 -> mg/g | I25: =Formulate!I23 -> 0 | J25: =Formulate!J23 -> 0.2061574587 | K25: =Formulate!K23 -> 100
A26: =Formulate!B24 -> Common Salt | B26: =Formulate!C24 -> 2.775 | C26: =Formulate!D24 -> 0 | D26: =Formulate!E24 -> 0.4525324581 | E26: =Formulate!F24 -> 100 | G26: =Formulate!H24 -> 0 | H26: =Formulate!L24 -> mg/kg | I26: =Formulate!I24 -> 0 | J26: =Formulate!J24 -> 0.2061574587 | K26: =Formulate!K24 -> 100
A27: =Formulate!B25 -> Vitamin Premix | B27: =Formulate!C25 -> 370 | C27: =Formulate!D25 -> 0.25 | D27: =Formulate!E25 -> 0.25 | E27: =Formulate!F25 -> 0.25 | G27: =Formulate!H25 -> ARG | H27: =Formulate!L25 -> % | I27: =Formulate!I25 -> 1.25 | J27: =Formulate!J25 -> 1.553586827 | K27: =Formulate!K25 -> 100
A28: =Formulate!B26 -> Mineral Premix | B28: =Formulate!C26 -> 57 | C28: =Formulate!D26 -> 0.15 | D28: =Formulate!E26 -> 0.15 | E28: =Formulate!F26 -> 0.15 | G28: =Formulate!H26 -> GLY | H28: =Formulate!L26 -> % | I28: =Formulate!I26 -> 0 | J28: =Formulate!J26 -> 0.9474474722 | K28: =Formulate!K26 -> 100
A29: =Formulate!B27 -> DL-Methionine | B29: =Formulate!C27 -> 220 | C29: =Formulate!D27 -> 0 | D29: =Formulate!E27 -> 0.2411225373 | E29: =Formulate!F27 -> 100 | G29: =Formulate!H27 -> SER | H29: =Formulate!L27 -> % | I29: =Formulate!I27 -> 0 | J29: =Formulate!J27 -> 1.121390571 | K29: =Formulate!K27 -> 100
A30: =Formulate!B28 -> 0 | B30: =Formulate!C28 -> 0 | C30: =Formulate!D28 -> 0 | D30: =Formulate!E28 -> 0 | E30: =Formulate!F28 -> 0 | G30: =Formulate!H28 -> GLY & SER | H30: =Formulate!L28 -> % | I30: =Formulate!I28 -> 1.25 | J30: =Formulate!J28 -> 2.61150087 | K30: =Formulate!K28 -> 100
A31: =Formulate!B29 -> 0 | B31: =Formulate!C29 -> 0 | C31: =Formulate!D29 -> 0 | D31: =Formulate!E29 -> 0 | E31: =Formulate!F29 -> 0 | G31: =Formulate!H29 -> HIS | H31: =Formulate!L29 -> % | I31: =Formulate!I29 -> 0.35 | J31: =Formulate!J29 -> 0.5831484281 | K31: =Formulate!K29 -> 100
A32: =Formulate!B30 -> 0 | B32: =Formulate!C30 -> 0 | C32: =Formulate!D30 -> 0 | D32: =Formulate!E30 -> 0 | E32: =Formulate!F30 -> 0 | G32: =Formulate!H30 -> ILE | H32: =Formulate!L30 -> % | I32: =Formulate!I30 -> 0.8 | J32: =Formulate!J30 -> 0.9939248605 | K32: =Formulate!K30 -> 100
A33: =Formulate!B31 -> 0 | B33: =Formulate!C31 -> 0 | C33: =Formulate!D31 -> 0 | D33: =Formulate!E31 -> 0 | E33: =Formulate!F31 -> 0 | G33: =Formulate!H31 -> GLY & SER | H33: =Formulate!L31 -> % | I33: =Formulate!I31 -> 1.2 | J33: =Formulate!J31 -> 1.855249009 | K33: =Formulate!K31 -> 100
A34: =Formulate!B32 -> 0 | B34: =Formulate!C32 -> 0 | C34: =Formulate!D32 -> 0 | D34: =Formulate!E32 -> 0 | E34: =Formulate!F32 -> 0 | G34: =Formulate!H32 -> LYS | H34: =Formulate!L32 -> % | I34: =Formulate!I32 -> 1.1 | J34: =Formulate!J32 -> 1.284015907 | K34: =Formulate!K32 -> 100
G35: =Formulate!H33 -> MET | H35: =Formulate!L33 -> % | I35: =Formulate!I33 -> 0.5 | J35: =Formulate!J33 -> 0.5593899027 | K35: =Formulate!K33 -> 100
A36: =Formulate!B34 -> TOTAL | D36: =Formulate!E34 -> 100 | G36: =Formulate!H34 -> CYS | H36: =Formulate!L34 -> % | I36: =Formulate!I34 -> 0 | J36: =Formulate!J34 -> 0.3406100973 | K36: =Formulate!K34 -> 100
G37: =Formulate!H35 -> TSAA | H37: =Formulate!L35 -> % | I37: =Formulate!I35 -> 0.9 | J37: =Formulate!J35 -> 0.9 | K37: =Formulate!K35 -> 100
G38: =Formulate!H36 -> PHE | H38: =Formulate!L36 -> % | I38: =Formulate!I36 -> 0.72 | J38: =Formulate!J36 -> 1.145951421 | K38: =Formulate!K36 -> 100
G39: =Formulate!H37 -> TYR | H39: =Formulate!L37 -> % | I39: =Formulate!I37 -> 0 | J39: =Formulate!J37 -> 0.8334719346 | K39: =Formulate!K37 -> 100
G40: =Formulate!H38 -> TAAA | H40: =Formulate!L38 -> % | I40: =Formulate!I38 -> 1.34 | J40: =Formulate!J38 -> 1.979423355 | K40: =Formulate!K38 -> 100
G41: =Formulate!H39 -> THR | H41: =Formulate!L39 -> % | I41: =Formulate!I39 -> 0.8 | J41: =Formulate!J39 -> 0.8705719314 | K41: =Formulate!K39 -> 100
G42: =Formulate!H40 -> TRP | H42: =Formulate!L40 -> % | I42: =Formulate!I40 -> 0.2 | J42: =Formulate!J40 -> 0.2907034102 | K42: =Formulate!K40 -> 100
G43: =Formulate!H41 -> VAL | H43: =Formulate!L41 -> % | I43: =Formulate!I41 -> 0.9 | J43: =Formulate!J41 -> 1.081145747 | K43: =Formulate!K41 -> 100

Sheet Mixing Sheet
B1: WUFFF DA | D1: Feed Name = | G1: ='Feed Spec'!C4 -> Example Feed
C2: =NOW() -> 2013-12-13T15:41:16.470
C3: Press Ctrl-m to Produce a New Mixing sheet
C5: Amount to Mix = | D5: 800 | E5: Units
C7: CHECK OFF EACH INGREDIENT
C8: AS IT IS ADDED TO THE MIXER
G10: Date Mixed
B11: % | C11: Ingredient | D11: =E5 -> Units | E11: / / | F11: / / | G11: / / | H11: / / | I11: / /
B12: 49.78128278 | C12: Corn, Grain | D12: =$D$5*B12*0.01 -> 398.2502622 | T12: =Formulate!E8 -> 23.67138399 | U12: =Formulate!B8 -> LOW CP CORN
B13: 20.90004326 | C13: Soybean Meal -48% | D13: =$D$5*B13*0.01 -> 167.2003461 | T13: =Formulate!E9 -> 23.67138399 | U13: =Formulate!B9 -> HIGH CP CORN
B14: 10 | C14: Barley | D14: 80 | T14: =Formulate!E10 -> 20.61574587 | U14: =Formulate!B10 -> LOW CP SBM
B15: 9.200918142 | C15: Meat Meal | D15: 73.60734513 | T15: =Formulate!E11 -> 20.61574587 | U15: =Formulate!B11 -> HIGH CP SBM
B16: 5.30555357 | C16: Poultry Fat | D16: 42.44442856 | T16: =Formulate!E12 -> 0 | U16: =Formulate!B12 -> 0
B17: 3.589983988 | C17: Gluten Meal | D17: 28.71987191 | T17: =Formulate!E13 -> 0 | U17: =Formulate!B13 -> 0
B18: 0.4450946942 | C18: Limestone | D18: 3.560757554 | T18: =Formulate!E14 -> 7.308219457 | U18: =Formulate!B14 -> Poultry Fat
B19: 0.25 | C19: Vitamin Premix | D19: 2 | T19: =Formulate!E15 -> 0 | U19: =Formulate!B15 -> 0
B20: 0.1872375069 | C20: Common Salt | D20: 1.497900055 | T20: =Formulate!E16 -> 0 | U20: =Formulate!B16 -> 0
B21: 0.1593125698 | C21: DL-Methionine | D21: 1.274500558 | T21: =Formulate!E17 -> 0 | U21: =Formulate!B17 -> 0
B22: 0.05 | C22: CuSO4 | D22: 0.4 | T22: =Formulate!E18 -> 0 | U22: =Formulate!B18 -> 0
B23: 0.05 | C23: Coccidiostat | D23: 0.4 | T23: =Formulate!E19 -> 0 | U23: =Formulate!B19 -> 0
B24: 0.05 | C24: Antibiotic | D24: 0.4 | T24: =Formulate!E20 -> 0 | U24: =Formulate!B20 -> 0
B25: 0.03057348406 | C25: Mineral Premix | D25: 0.2445878724 | T25: =Formulate!E21 -> 1.399792819 | U25: =Formulate!B21 -> Limestone
B26: 6.716861276e-15 | C26: Alfalfa Meal-20 | D26: 5.373489021e-14 | T26: =Formulate!E22 -> 0 | U26: =Formulate!B22 -> 0
B27: 5.221342463e-15 | C27: Gelatin By-Prod | D27: 4.177073971e-14 | T27: =Formulate!E23 -> 1.624073004 | U27: =Formulate!B23 -> Dical. Phos.
B28: 4.046669748e-15 | C28: Menhaden Meal | D28: 3.237335798e-14 | T28: =Formulate!E24 -> 0.4525324581 | U28: =Formulate!B24 -> Common Salt
B29: 3.454369175e-15 | C29: Choline Cl -70% | D29: 2.76349534e-14 | T29: =Formulate!E25 -> 0.25 | U29: =Formulate!B25 -> Vitamin Premix
B30: 1.697613427e-15 | C30: Soft Rock Phos. | D30: 1.358090741e-14 | T30: =Formulate!E26 -> 0.15 | U30: =Formulate!B26 -> Mineral Premix
B31: 0 | C31: Whey, Dehydrated | D31: 0 | T31: =Formulate!E27 -> 0.2411225373 | U31: =Formulate!B27 -> DL-Methionine
B32: -2.722311666e-16 | C32: Wheat Middlings | D32: -2.177849333e-15 | T32: =Formulate!E28 -> 0 | U32: =Formulate!B28 -> 0
B33: -5.663893752e-16 | C33: L-Lysine HCl | D33: -4.531115001e-15 | T33: =Formulate!E29 -> 0 | U33: =Formulate!B29 -> 0
B34: -2.43767165e-15 | C34: Poultry BP Meal | D34: -1.95013732e-14 | T34: =Formulate!E30 -> 0 | U34: =Formulate!B30 -> 0
B35: -6.344700565e-15 | C35: Wheat, Red W. | D35: -5.075760452e-14 | T35: =Formulate!E31 -> 0 | U35: =Formulate!B31 -> 0
B36: -1.222137083e-14 | C36: Defluor. Phos. | D36: -9.777096667e-14 | T36: =Formulate!E32 -> 0 | U36: =Formulate!B32 -> 0
B38: =SUM(B12:B37) -> 100 | C38: TOTAL | D38: =SUM(D12:D37) -> 800 | E38: =D11 -> Units | T38: =Formulate!E34 -> 100 | U38: =Formulate!B34 -> TOTAL

Sheet Ingredients (Poultry)
D1: WUFFF DA | M1: Instructions
G2: Dry | N2: Total | O2: Avail. | P2: Ca:P= | AA2: GLY
C3: Cost | D3: Min. | E3: Max. | F3: Weight | G3: Matter | H3: M.E. | I3: Protein | J3: E.E. | K3: C18:2 | L3: C.F | M3: Calcium | N3: Phos. | O3: Phos. | P3: 2 | Q3: K | R3: Cl | S3: Mn | T3: Na | U3: Zn | V3: Choline | W3: Folate | X3: ARG | Y3: GLY | Z3: SER | AA3: &SER | AB3: HIS | AC3: ILE | AD3: LEU | AE3: LYS | AF3: MET | AG3: CYS | AH3: TSAA | AI3: PHE | AJ3: TYR | AK3: TAAA | AL3: THR | AM3: TRP | AN3: VAL
C5: STORAGE INGREDIENT COMPOSITION MATRIX | N5: STORAGE INGREDIENT COMPOSITION MATRIX | X5: STORAGE INGREDIENT COMPOSITION MATRIX
B6: Alfalfa meal dehydrated, 17% protein | E6: 100 | F6: 1 | G6: 92 | H6: 1.2 | I6: 17.5 | J6: 2.5 | K6: 0.47 | L6: 24.1 | M6: 1.44 | N6: 0.22 | O6: 0.22 | Q6: 2.15 | R6: 0.47 | S6: 30 | T6: 0.09 | U6: 24 | V6: 1401 | W6: 4.2 | X6: 0.69 | Y6: 0.82 | Z6: 0.72 | AA6: =SUM(Y6:Z6) -> 1.54 | AB6: 0.57 | AC6: 0.67 | AD6: 1.19 | AE6: 0.73 | AF6: 0.24 | AG6: 0.19 | AH6: =SUM(AF6:AG6) -> 0.43 | AI6: 0.81 | AJ6: 0.81 | AK6: =SUM(AI6:AJ6) -> 1.62 | AL6: 0.69 | AM6: 0.23 | AN6: 0.84
B7: Alfalfa meal dehydrated, 20% protein | E7: 100 | F7: 1 | G7: 92 | H7: 1.63 | I7: 20 | J7: 3.6 | K7: 0.58 | L7: 20.1 | M7: 1.67 | N7: 0.28 | Q7: 2.15 | R7: 0.47 | S7: 42 | T7: 0.09 | U7: 25 | V7: 1419 | W7: 3.3 | X7: 0.92 | Y7: 0.97 | Z7: 0.89 | AA7: 1.86 | AB7: 0.34 | AC7: 0.88 | AD7: 1.3 | AE7: 0.87 | AF7: 0.31 | AG7: 0.25 | AH7: 0.56 | AI7: 0.85 | AJ7: 0.59 | AK7: 1.44 | AL7: 0.76 | AM7: 0.33 | AN7: 0.97
B8: Bakery waste, dehydrated | E8: 100 | F8: 1 | G8: 92 | H8: 3.86 | I8: 10.5 | J8: 11.7 | L8: 1.2 | M8: 0.13 | N8: 0.24 | O8: 0.17 | Q8: 0.35 | R8: 1.23 | S8: 65 | T8: 1.14 | U8: 15 | V8: 923 | W8: 0.2 | X8: 0.47 | Y8: 0.82 | Z8: 0.65 | AA8: 1.47 | AB8: 0.13 | AC8: 0.45 | AD8: 0.73 | AE8: 0.31 | AF8: 0.17 | AG8: 0.17 | AH8: 0.34 | AI8: 0.4 | AJ8: 0.41 | AK8: 0.81 | AL8: 0.49 | AM8: 0.1 | AN8: 0.42
B9: Barley Hordeum vulgare grain | E9: 100 | F9: 1 | G9: 89 | H9: 2.64 | I9: 11 | J9: 1.8 | K9: 0.83 | L9: 5.5 | M9: 0.03 | N9: 0.36 | Q9: 0.48 | R9: 0.15 | S9: 18 | T9: 0.04 | U9: 30 | V9: 990 | W9: 0.07 | X9: 0.52 | Y9: 0.44 | Z9: 0.46 | AA9: 0.9 | AB9: 0.27 | AC9: 0.37 | AD9: 0.76 | AE9: 0.4 | AF9: 0.18 | AG9: 0.24 | AH9: 0.42 | AI9: 0.56 | AJ9: 0.35 | AK9: 0.91 | AL9: 0.37 | AM9: 0.14 | AN9: 0.52
B10: Barley grain, Pacific coast | E10: 100 | F10: 1 | G10: 89 | H10: 2.62 | I10: 9.2 | J10: 2 | K10: 0.85 | L10: 6.4 | M10: 0.05 | N10: 0.32 | Q10: 0.53 | R10: 0.15 | S10: 16 | T10: 0.02 | U10: 15 | V10: 1034 | W10: 0.05 | X10: 0.48 | Y10: 0.36 | Z10: 0.32 | AA10: 0.68 | AB10: 0.21 | AC10: 0.4 | AD10: 0.6 | AE10: 0.29 | AF10: 0.13 | AG10: 0.18 | AH10: 0.31 | AI10: 0.48 | AJ10: 0.31 | AK10: 0.79 | AL10: 0.3 | AM10: 0.12 | AN10: 0.46
B11: Broadbean, Vicia faba seeds | E11: 100 | F11: 1 | G11: 87 | H11: 2.43 | I11: 24 | J11: 1.4 | L11: 7 | M11: 0.11 | N11: 0.54 | Q11: 1.2 | S11: 8 | T11: 0.08 | U11: 42 | V11: 1.7 | X11: 2.12 | Y11: 1.02 | Z11: 1.15 | AA11: 2.17 | AB11: 0.82 | AC11: 0.95 | AD11: 1.76 | AE11: 1.5 | AF11: 0.18 | AG11: 0.28 | AH11: 0.46 | AI11: 1 | AJ11: 0.8 | AK11: 1.8 | AL11: 0.85 | AM11: 0.2 | AN11: 1.07
B12: Bloodmeal, vat dried | E12: 100 | F12: 1 | G12: 94 | H12: 2.83 | I12: 81.1 | J12: 1.6 | L12: 0.5 | M12: 0.55 | N12: 0.42 | Q12: 0.18 | R12: 0.27 | S12: 5 | T12: 0.32 | U12: 43 | V12: 695 | W12: 0.1 | X12: 3.63 | Y12: 4.59 | Z12: 3.14 | AA12: 7.73 | AB12: 3.52 | AC12: 0.95 | AD12: 10.53 | AE12: 7.05 | AF12: 0.55 | AG12: 0.52 | AH12: 1.07 | AI12: 5.66 | AJ12: 2.07 | AK12: 7.73 | AL12: 3.15 | AM12: 1.29 | AN12: 7.28
B13: Bloodmeal, spray dried | E13: 100 | F13: 1 | G13: 93 | H13: 3.42 | I13: 88.9 | J13: 1 | K13: 0.1 | L13: 0.6 | M13: 0.41 | N13: 0.3 | Q13: 0.18 | R13: 0.27 | S13: 6 | T13: 0.33 | U13: 306 | V13: 280 | W13: 0.4 | X13: 3.62 | Y13: 3.95 | Z13: 4.25 | AA13: 8.2 | AB13: 5.33 | AC13: 0.98 | AD13: 11.32 | AE13: 7.88 | AF13: 1.09 | AG13: 1.03 | AH13: 2.12 | AI13: 5.85 | AJ13: 2.63 | AK13: 8.48 | AL13: 3.92 | AM13: 1.35 | AN13: 7.53
B14: Brewer's grains, dehydrated | E14: 100 | F14: 1 | G14: 92 | H14: 2.08 | I14: 25.3 | J14: 6.2 | K14: 2.94 | L14: 15.3 | M14: 0.29 | N14: 0.52 | Q14: 0.08 | R14: 0.12 | S14: 38 | T14: 0.26 | U14: 98 | V14: 1723 | W14: 7.1 | X14: 1.28 | Y14: 1.09 | Z14: 0.8 | AA14: 1.89 | AB14: 0.57 | AC14: 1.44 | AD14: 2.48 | AE14: 0.9 | AF14: 0.57 | AG14: 0.39 | AH14: 0.96 | AI14: 1.45 | AJ14: 1.19 | AK14: 2.64 | AL14: 0.98 | AM14: 0.34 | AN14: 1.66
B15: Buckwheat, common Fagopyrum sagittatum grain | E15: 100 | F15: 1 | G15: 88 | H15: 2.66 | I15: 10.8 | J15: 2.5 | L15: 10.5 | M15: 0.09 | N15: 0.32 | O15: 0.12 | Q15: 0.4 | R15: 0.04 | S15: 34 | T15: 0.05 | U15: 9 | V15: 440 | X15: 1.02 | Y15: 0.71 | Z15: 0.41 | AA15: 1.12 | AB15: 0.26 | AC15: 0.37 | AD15: 0.56 | AE15: 0.61 | AF15: 0.2 | AG15: 0.2 | AH15: 0.4 | AI15: 0.44 | AJ15: 0.21 | AK15: 0.65 | AL15: 0.46 | AM15: 0.19 | AN15: 0.54
B16: Canola Brasica napus-Brasica campstris a | E16: 100 | F16: 1 | G16: 93 | H16: 2 | I16: 38 | J16: 3.8 | L16: 12 | M16: 0.68 | N16: 1.17 | O16: 0.3 | Q16: 1.29 | S16: 54 | U16: 71 | V16: 6700 | W16: 2.3 | X16: 2.08 | Y16: 1.82 | Z16: 1.53 | AA16: 3.35 | AB16: 0.93 | AC16: 1.37 | AD16: 2.47 | AE16: 1.94 | AF16: 0.71 | AG16: 0.87 | AH16: 1.58 | AI16: 1.44 | AJ16: 1.09 | AK16: 2.53 | AL16: 1.53 | AM16: 0.44 | AN16: 1.76
B17: Casein dehydrated | E17: 100 | F17: 1 | G17: 93 | H17: 4.13 | I17: 87.2 | J17: 0.8 | L17: 0.2 | M17: 0.61 | N17: 1 | O17: 1 | Q17: 0.01 | S17: 4 | T17: 0.01 | U17: 33 | V17: 205 | W17: 0.5 | X17: 3.61 | Y17: 1.79 | Z17: 5.81 | AA17: 7.6 | AB17: 2.78 | AC17: 4.82 | AD17: 9 | AE17: 7.99 | AF17: 2.65 | AG17: 0.21 | AH17: 2.86 | AI17: 4.96 | AJ17: 5.37 | AK17: 10.33 | AL17: 4.29 | AM17: 1.05 | AN17: 6.46
B18: Casein precipitated dehydrated | E18: 100 | F18: 1 | G18: 92 | H18: 4.12 | I18: 85 | J18: 0.06 | L18: 0.2 | M18: 0.68 | N18: 0.82 | O18: 0.82 | Q18: 0.01 | S18: 4 | T18: 0.01 | U18: 32 | V18: 208 | W18: 0.5 | X18: 3.42 | Y18: 1.81 | Z18: 5.52 | AA18: 7.33 | AB18: 2.52 | AC18: 4.77 | AD18: 8.62 | AE18: 7.31 | AF18: 2.8 | AG18: 0.15 | AH18: 2.95 | AI18: 4.81 | AJ18: 5.17 | AK18: 9.98 | AL18: 4 | AM18: 0.98 | AN18: 5.82
B19: Cattle skim milk, dehydrated | E19: 100 | F19: 1 | G19: 93 | H19: 2.54 | I19: 36.1 | J19: 1 | L19: 0.2 | M19: 1.28 | N19: 1.02 | O19: 1.02 | Q19: 1.6 | R19: 0.9 | S19: 2 | T19: 0.51 | U19: 39 | V19: 1393 | W19: 0.62 | X19: 1.21 | Y19: 0.73 | Z19: 2.05 | AA19: 2.78 | AB19: 1.03 | AC19: 1.83 | AD19: 3.59 | AE19: 2.8 | AF19: 0.9 | AG19: 0.29 | AH19: 1.19 | AI19: 1.75 | AJ19: 1.83 | AK19: 3.58 | AL19: 1.59 | AM19: 0.5 | AN19: 2.28
B20: Coconut Cocus nucifera kernelsb | E20: 100 | F20: 1 | G20: 92 | H20: 1.53 | I20: 19.2 | J20: 2.1 | L20: 14.4 | M20: 0.17 | N20: 0.65 | Q20: 1.41 | R20: 0.03 | S20: 54 | T20: 0.04 | V20: 1089 | W20: 0.3 | X20: 1.97 | Y20: 0.82 | Z20: 0.79 | AA20: 1.61 | AB20: 0.36 | AC20: 0.63 | AD20: 1.18 | AE20: 0.5 | AF20: 0.28 | AG20: 0.28 | AH20: 0.56 | AI20: 0.88 | AJ20: 0.44 | AK20: 1.32 | AL20: 0.58 | AM20: 0.12 | AN20: 0.91
B21: Corn distillers' grains, dehydrated | E21: 100 | F21: 1 | G21: 94 | H21: 1.92 | I21: 27.8 | J21: 9.2 | L21: 12 | M21: 0.1 | N21: 0.4 | O21: 0.39 | Q21: 0.17 | R21: 0.07 | S21: 22 | T21: 0.09 | U21: 55 | V21: 1180 | W21: 0.9 | X21: 0.97 | Y21: 0.49 | Z21: 0.7 | AA21: 1.19 | AB21: 0.62 | AC21: 0.99 | AD21: 3.01 | AE21: 0.78 | AF21: 0.4 | AG21: 0.24 | AH21: 0.64 | AI21: 0.94 | AJ21: 0.84 | AK21: 1.78 | AL21: 0.49 | AM21: 0.2 | AN21: 1.18
B22: Corn distillers' grains with solubles, dehydrated | E22: 100 | F22: 1 | G22: 93 | H22: 2.48 | I22: 27.4 | J22: 9 | K22: 4.55 | L22: 9.1 | M22: 0.17 | N22: 0.72 | O22: 0.39 | Q22: 0.65 | R22: 0.17 | S22: 24 | T22: 0.48 | U22: 80 | V22: 2637 | W22: 0.9 | X22: 0.98 | Y22: 0.57 | Z22: 1.61 | AA22: 2.18 | AB22: 0.66 | AC22: 1 | AD22: 2.2 | AE22: 0.75 | AF22: 0.6 | AG22: 0.4 | AH22: 1 | AI22: 1.2 | AJ22: 0.74 | AK22: 1.94 | AL22: 0.92 | AM22: 0.19 | AN22: 1.3
B23: Corn distillers' solubles, dehydrated | E23: 100 | F23: 1 | G23: 92 | H23: 2.93 | I23: 28.5 | J23: 9 | K23: 4.55 | L23: 4 | M23: 0.35 | N23: 1.27 | O23: 1.17 | Q23: 1.75 | R23: 0.26 | S23: 74 | T23: 0.26 | U23: 85 | V23: 4842 | W23: 1.1 | X23: 1.05 | Y23: 1.1 | Z23: 1.3 | AA23: 2.4 | AB23: 0.7 | AC23: 1.25 | AD23: 2.11 | AE23: 0.9 | AF23: 0.5 | AG23: 0.4 | AH23: 0.9 | AI23: 1.3 | AJ23: 0.95 | AK23: 2.25 | AL23: 1 | AM23: 0.3 | AN23: 1.39
B24: Corn gluten, meal, 60% protein | E24: 100 | F24: 1 | G24: 90 | H24: 3.72 | I24: 62 | J24: 2.5 | L24: 1.3 | N24: 0.5 | O24: 0.14 | Q24: 0.35 | R24: 0.05 | S24: 4 | T24: 0.02 | U24: 33 | V24: 330 | W24: 0.2 | X24: 1.82 | Y24: 1.67 | Z24: 2.96 | AA24: 4.63 | AB24: 1.2 | AC24: 2.45 | AD24: 10.04 | AE24: 1.03 | AF24: 1.49 | AG24: 1.1 | AH24: 2.59 | AI24: 3.56 | AJ24: 3.07 | AK24: 6.63 | AL24: 2 | AM24: 0.36 | AN24: 2.78
B25: Corn gluten with bran | E25: 100 | F25: 1 | G25: 90 | H25: 1.75 | I25: 21 | J25: 2.5 | L25: 8 | M25: 0.4 | N25: 0.8 | Q25: 0.57 | R25: 0.22 | S25: 24 | T25: 0.15 | U25: 70 | V25: 1518 | W25: 0.3 | X25: 1.01 | Y25: 0.9 | Z25: 0.8 | AA25: 1.7 | AB25: 0.71 | AC25: 0.65 | AD25: 1.89 | AE25: 0.63 | AF25: 0.45 | AG25: 0.51 | AH25: 0.96 | AI25: 0.77 | AJ25: 0.58 | AK25: 1.35 | AL25: 0.89 | AM25: 0.1 | AN25: 0.05
B26: Corn grain | E26: 100 | F26: 1 | G26: 89 | H26: 3.35 | I26: 8.5 | J26: 3.8 | K26: 2.2 | L26: 2.2 | M26: 0.02 | N26: 0.28 | O26: 0.08 | Q26: 0.3 | R26: 0.04 | S26: 7 | T26: 0.02 | U26: 18 | V26: 620 | W26: 0.4 | X26: 0.38 | Y26: 0.33 | Z26: 0.37 | AA26: 0.7 | AB26: 0.23 | AC26: 0.29 | AD26: 1 | AE26: 0.26 | AF26: 0.18 | AG26: 0.18 | AH26: 0.36 | AI26: 0.38 | AJ26: 0.3 | AK26: 0.68 | AL26: 0.29 | AM26: 0.06 | AN26: 0.4
B27: Corn grits byproduct (hominy feed) | E27: 100 | F27: 1 | G27: 90 | H27: 2.9 | I27: 10.4 | J27: 8 | K27: 3.28 | L27: 5 | M27: 0.05 | N27: 0.52 | Q27: 0.59 | R27: 0.05 | S27: 15 | T27: 0.08 | U27: 3 | V27: 1155 | W27: 0.3 | X27: 0.47 | Y27: 0.4 | Z27: 0.5 | AA27: 0.9 | AB27: 0.2 | AC27: 0.4 | AD27: 0.84 | AE27: 0.4 | AF27: 0.13 | AG27: 0.13 | AH27: 0.26 | AI27: 0.35 | AJ27: 0.49 | AK27: 0.84 | AL27: 0.4 | AM27: 0.1 | AN27: 0.49
B28: Cotton seed meal, mechanically extracted, 41% protein | E28: 100 | F28: 1 | G28: 93 | H28: 2.32 | I28: 40.9 | J28: 3.9 | K28: 2.47 | L28: 12 | M28: 0.2 | N28: 1.05 | Q28: 1.19 | R28: 0.04 | S28: 23 | T28: 0.04 | U28: 64 | V28: 2753 | W28: 1 | X28: 4.35 | Y28: 1.69 | Z28: 1.68 | AA28: 3.37 | AB28: 1.07 | AC28: 1.31 | AD28: 2.23 | AE28: 1.59 | AF28: 0.55 | AG28: 0.59 | AH28: 1.14 | AI28: 2.2 | AJ28: 1.09 | AK28: 3.29 | AL28: 1.3 | AM28: 0.5 | AN28: 1.84
B29: Cotton seed meal, prepressed solvent extracted, 41% protein | E29: 100 | F29: 1 | G29: 90 | H29: 2.4 | I29: 41.4 | J29: 0.5 | L29: 13.6 | M29: 0.15 | N29: 0.97 | O29: 0.22 | Q29: 1.22 | R29: 0.03 | S29: 20 | T29: 0.04 | U29: 70 | V29: 2933 | W29: 2.7 | X29: 4.66 | Y29: 1.69 | Z29: 1.78 | AA29: 3.47 | AB29: 1.1 | AC29: 1.33 | AD29: 2.41 | AE29: 1.76 | AF29: 0.51 | AG29: 0.62 | AH29: 1.13 | AI29: 2.23 | AJ29: 1.14 | AK29: 3.37 | AL29: 1.34 | AM29: 0.52 | AN29: 1.82
B30: Cotton seed meal, prepressed solvent extracted, 44% protein | E30: 100 | F30: 1 | G30: 91 | H30: 1.86 | I30: 44.7 | J30: 1.6 | L30: 11.1 | M30: 0.15 | N30: 1.25 | O30: 0.37 | V30: 2685 | W30: 0.9 | X30: 4.59 | Y30: 1.7 | Z30: 1.74 | AA30: 3.44 | AB30: 1.1 | AC30: 1.33 | AD30: 2.43 | AE30: 1.71 | AF30: 0.52 | AG30: 0.62 | AH30: 1.14 | AI30: 2.22 | AJ30: 1.13 | AK30: 3.35 | AL30: 1.32 | AM30: 0.47 | AN30: 1.88
B31: Fish solubles, condensed | E31: 100 | F31: 1 | G31: 51 | H31: 1.46 | I31: 31.5 | J31: 7.8 | L31: 0.2 | M31: 0.3 | N31: 0.76 | Q31: 1.74 | R31: 2.65 | S31: 14 | T31: 2.62 | U31: 38 | V31: 3519 | W31: 0.02 | X31: 1.61 | Y31: 3.41 | Z31: 0.83 | AA31: 4.24 | AB31: 1.56 | AC31: 1.06 | AD31: 1.86 | AE31: 1.73 | AF31: 0.5 | AG31: 0.3 | AH31: 0.8 | AI31: 0.93 | AJ31: 0.4 | AK31: 1.33 | AL31: 0.86 | AM31: 0.31 | AN31: 1.16
B32: Fish solubles, dehydrated | E32: 100 | F32: 1 | G32: 92 | H32: 2.83 | I32: 63.6 | J32: 9.3 | K32: 0.12 | L32: 0.5 | M32: 1.23 | N32: 1.63 | Q32: 0.37 | S32: 50 | T32: 0.3 | U32: 76 | V32: 5507 | W32: 0.06 | X32: 2.78 | Y32: 5.89 | Z32: 2.02 | AA32: 7.91 | AB32: 2.18 | AC32: 1.95 | AD32: 3.16 | AE32: 3.28 | AF32: 1 | AG32: 0.66 | AH32: 1.66 | AI32: 1.48 | AJ32: 0.78 | AK32: 2.26 | AL32: 1.35 | AM32: 0.51 | AN32: 2.22
B33: Fish, Anchovey meal mechanically extracted | E33: 100 | F33: 1 | G33: 92 | H33: 2.58 | I33: 64.2 | J33: 5 | K33: 0.2 | L33: 1 | M33: 3.73 | N33: 2.43 | Q33: 0.69 | R33: 0.6 | S33: 10 | T33: 0.65 | U33: 103 | V33: 4408 | W33: 0.2 | X33: 3.81 | Y33: 3.68 | Z33: 2.51 | AA33: 6.19 | AB33: 1.59 | AC33: 1.59 | AD33: 4.98 | AE33: 5.07 | AF33: 1.95 | AG33: 0.65 | AH33: 2.6 | AI33: 2.75 | AJ33: 2.22 | AK33: 4.97 | AL33: 2.82 | AM33: 0.78 | AN33: 3.46
B34: Fish, Herring meal mechanically extracted | E34: 100 | F34: 1 | G34: 93 | H34: 2.19 | I34: 72.3 | J34: 10 | K34: 0.15 | L34: 0.7 | M34: 2.29 | N34: 1.7 | Q34: 1.09 | R34: 0.9 | S34: 5 | T34: 0.61 | U34: 132 | V34: 5306 | W34: 0.3 | X34: 4.21 | Y34: 4.3 | Z34: 2.75 | AA34: 7.05 | AB34: 1.74 | AC34: 1.74 | AD34: 5.46 | AE34: 5.47 | AF34: 2.16 | AG34: 0.72 | AH34: 2.88 | AI34: 2.82 | AJ34: 2.25 | AK34: 5.07 | AL34: 3.07 | AM34: 0.83 | AN34: 3.9
B35: Fish, Menhaden meal mechanically extracted | E35: 100 | F35: 1 | G35: 92 | H35: 2.82 | I35: 60.1 | J35: 9.4 | K35: 0.12 | L35: 0.7 | M35: 5.11 | N35: 2.88 | Q35: 0.65 | R35: 0.6 | S35: 33 | T35: 0.65 | U35: 147 | V35: 3056 | W35: 0.3 | X35: 3.68 | Y35: 4.46 | Z35: 2.37 | AA35: 6.83 | AB35: 1.42 | AC35: 1.42 | AD35: 4.16 | AE35: 4.51 | AF35: 1.63 | AG35: 0.57 | AH35: 2.2 | AI35: 2.21 | AJ35: 1.8 | AK35: 4.01 | AL35: 2.46 | AM35: 0.49 | AN35: 2.77
B36: Fish, White Gadidae meal mechanically extracted | E36: 100 | F36: 1 | G36: 91 | H36: 2.59 | I36: 62.6 | J36: 4.6 | K36: 0.08 | L36: 0.7 | M36: 7.31 | N36: 3.81 | Q36: 0.83 | R36: 0.5 | S36: 12 | T36: 0.78 | U36: 90 | V36: 3099 | W36: 0.3 | X36: 4.02 | Y36: 4.42 | Z36: 3.06 | AA36: 7.48 | AB36: 1.34 | AC36: 1.34 | AD36: 4.36 | AE36: 4.53 | AF36: 1.68 | AG36: 0.75 | AH36: 2.43 | AI36: 2.28 | AJ36: 1.83 | AK36: 4.11 | AL36: 2.57 | AM36: 0.67 | AN36: 3.032
B37: Gelatin by-products | E37: 100 | F37: 1 | G37: 91 | H37: 2.36 | I37: 88 | J37: 0 | M37: 0.5 | N37: 0 | X37: 7.4 | Y37: 20 | Z37: 2.8 | AA37: 22.8 | AB37: 0.85 | AC37: 0.85 | AD37: 3.1 | AE37: 3.7 | AF37: 0.68 | AG37: 0.09 | AH37: 0.77 | AI37: 1.7 | AJ37: 0.26 | AK37: 1.96 | AL37: 1.3 | AM37: 0.09 | AN37: 1.8
B38: Livers meal | E38: 100 | F38: 1 | G38: 92 | H38: 2.86 | I38: 65.6 | J38: 15 | L38: 1.4 | M38: 0.56 | N38: 1.25 | S38: 9 | V38: 11311 | W38: 5.5 | X38: 4.14 | Y38: 5.57 | Z38: 2.49 | AA38: =SUM(Y38:Z38) -> 8.06 | AB38: 1.47 | AC38: 1.47 | AD38: 5.28 | AE38: 4.8 | AF38: 1.22 | AG38: 0.89 | AH38: =SUM(AF38:AG38) -> 2.11 | AI38: 2.89 | AJ38: 1.69 | AK38: =SUM(AI38:AJ38) -> 4.58 | AL38: 2.48 | AM38: 0.59 | AN38: 4.13
B39: Meat meal rendered | E39: 100 | F39: 1 | G39: 92 | H39: 2.2 | I39: 54.4 | J39: 7.1 | K39: 0.28 | L39: 2.7 | M39: 8.27 | N39: 4.1 | Q39: 0.6 | R39: 0.91 | S39: 10 | T39: 1.15 | U39: 103 | V39: 2077 | W39: 0.3 | X39: 3.73 | Y39: 6.3 | Z39: 1.6 | AA39: 7.9 | AB39: 1.3 | AC39: 1.3 | AD39: 3.32 | AE39: 3 | AF39: 0.75 | AG39: 0.66 | AH39: 1.41 | AI39: 1.7 | AJ39: 0.84 | AK39: 2.54 | AL39: 1.74 | AM39: 0.36 | AN39: 2.3
B40: Meat with bone, meal rendered | E40: 100 | F40: 1 | G40: 93 | H40: 2.15 | I40: 50.4 | J40: 10 | K40: 0.36 | L40: 2.8 | M40: 10.3 | N40: 5.1 | Q40: 1.45 | R40: 0.69 | S40: 14 | T40: 0.7 | U40: 93 | V40: 1996 | W40: 0.3 | X40: 3.28 | Y40: 6.65 | Z40: 2.2 | AA40: 8.85 | AB40: 0.96 | AC40: 0.96 | AD40: 3.28 | AE40: 2.61 | AF40: 0.69 | AG40: 0.69 | AH40: 1.38 | AI40: 1.81 | AJ40: 1.2 | AK40: 3.01 | AL40: 1.74 | AM40: 0.27 | AN40: 2.36
B41: Millet Pearl Pennisetum glaucum grain | E41: 100 | F41: 1 | G41: 91 | H41: 2.68 | I41: 14 | J41: 4.3 | K41: 0.84 | L41: 3 | M41: 0.05 | N41: 0.32 | O41: 0.12 | Q41: 0.43 | R41: 0.14 | S41: 31 | T41: 0.04 | U41: 13 | V41: 793 | X41: 0.74 | Y41: 0.47 | Z41: 0.74 | AA41: 1.21 | AB41: 0.31 | AC41: 0.31 | AD41: 1.14 | AE41: 0.45 | AF41: 0.25 | AG41: 0.24 | AH41: 0.49 | AI41: 0.56 | AJ41: 0.35 | AK41: 0.91 | AL41: 0.48 | AM41: 0.08 | AN41: 0.49
B42: Millet, Proso Panicum miliaceam grain | E42: 100 | F42: 1 | G42: 90 | H42: 2.9 | I42: 11.6 | J42: 3.5 | L42: 6.1 | M42: 0.03 | N42: 0.3 | O42: 0.14 | Q42: 0.43 | V42: 440 | X42: 0.35 | Y42: 0.31 | Z42: 0.4 | AA42: 0.71 | AB42: 0.22 | AC42: 0.22 | AD42: 1.14 | AE42: 0.21 | AF42: 0.16 | AG42: 0.17 | AH42: 0.33 | AI42: 0.47 | AJ42: 0.34 | AK42: 0.81 | AL42: 0.29 | AM42: 0.08 | AN42: 0.44
B43: Oats Avena sativa grain | E43: 100 | F43: 1 | G43: 89 | H43: 2.55 | I43: 11.4 | J43: 4.2 | K43: 1.47 | L43: 10.8 | M43: 0.06 | N43: 0.27 | O43: 0.05 | Q43: 0.45 | R43: 0.11 | S43: 43 | T43: 0.08 | U43: 38 | V43: 946 | W43: 0.3 | X43: 0.79 | Y43: 0.5 | Z43: 0.4 | AA43: 0.9 | AB43: 0.24 | AC43: 0.24 | AD43: 0.89 | AE43: 0.5 | AF43: 0.18 | AG43: 0.22 | AH43: 0.4 | AI43: 0.59 | AJ43: 0.53 | AK43: 1.12 | AL43: 0.43 | AM43: 0.16 | AN43: 0.68
B44: Oats grain, Pacific coast | E44: 100 | F44: 1 | G44: 91 | H44: 2.61 | I44: 9 | J44: 5 | L44: 11 | M44: 0.08 | N44: 0.3 | Q44: 0.37 | R44: 0.12 | S44: 38 | T44: 0.06 | V44: 959 | W44: 0.3 | X44: 0.6 | Y44: 0.4 | Z44: 0.3 | AA44: 0.7 | AB44: 0.1 | AC44: 0.1 | AD44: 0.3 | AE44: 0.4 | AF44: 0.13 | AG44: 0.17 | AH44: 0.3 | AI44: 0.44 | AJ44: 0.2 | AK44: 0.64 | AL44: 0.2 | AM44: 0.12 | AN44: 0.51
B45: Oats hulls | E45: 100 | F45: 1 | G45: 92 | H45: 0.4 | I45: 4.6 | J45: 1.4 | L45: 28.7 | M45: 0.13 | N45: 0.1 | Q45: 0.53 | R45: 0.1 | S45: 14 | T45: 0.04 | U45: 0.1 | V45: 284 | W45: 1 | X45: 0.14 | Y45: 0.14 | Z45: 0.14 | AA45: 0.28 | AB45: 0.07 | AC45: 0.07 | AD45: 0.25 | AE45: 0.14 | AF45: 0.07 | AG45: 0.06 | AH45: 0.13 | AI45: 0.13 | AJ45: 0.14 | AK45: 0.27 | AL45: 0.13 | AM45: 0.07 | AN45: 0.2
B46: Pea Pisum spp. seeds | E46: 100 | F46: 1 | G46: 90 | H46: 2.57 | I46: 23.8 | J46: 1.3 | L46: 5.5 | M46: 0.11 | N46: 0.42 | Q46: 1.02 | R46: 0.06 | T46: 0.04 | U46: 30 | V46: 642 | W46: 0.4 | X46: 2.23 | Y46: 1 | Z46: 1.08 | AA46: 2.08 | AB46: 0.59 | AC46: 0.59 | AD46: 1.65 | AE46: 1.68 | AF46: 0.24 | AG46: 0.33 | AH46: 0.57 | AI46: 1.1 | AJ46: 0.73 | AK46: 1.83 | AL46: 0.84 | AM46: 0.18 | AN46: 1.1
B47: Peanut meal, mechanically extracted | E47: 100 | F47: 1 | G47: 90 | H47: 2.5 | I47: 42 | J47: 7.3 | K47: 1.43 | L47: 12 | M47: 0.16 | N47: 0.56 | Q47: 1.15 | R47: 0.03 | S47: 25 | T47: 0.06 | U47: 30 | V47: 1655 | W47: 0.4 | X47: 4.35 | Y47: 2.18 | Z47: 1.83 | AA47: 4.01 | AB47: 0.87 | AC47: 0.87 | AD47: 2.42 | AE47: 1.26 | AF47: 0.45 | AG47: 0.52 | AH47: 0.97 | AI47: 1.97 | AJ47: 1.47 | AK47: 3.44 | AL47: 1.01 | AM47: 0.39 | AN47: 1.53
B48: Peanut meal, solvent extracted | E48: 100 | F48: 1 | G48: 92 | H48: 2.2 | I48: 50.7 | J48: 1.2 | K48: 0.24 | L48: 10 | M48: 0.2 | N48: 0.63 | O48: 0.13 | Q48: 1.15 | R48: 0.03 | S48: 29 | T48: 0.07 | U48: 20 | V48: 2396 | W48: 0.4 | X48: 5.33 | Y48: 2.67 | Z48: 2.25 | AA48: 4.92 | AB48: 1.07 | AC48: 1.07 | AD48: 2.97 | AE48: 1.54 | AF48: 0.54 | AG48: 0.64 | AH48: 1.18 | AI48: 2.41 | AJ48: 1.8 | AK48: 4.21 | AL48: 1.24 | AM48: 0.48 | AN48: 1.87
B49: Poultry by-product meal (visera with feet and heads) | E49: 100 | F49: 1 | G49: 93 | H49: 2.95 | I49: 60 | J49: 13 | K49: 2.54 | L49: 1.5 | M49: 3 | N49: 1.7 | Q49: 0.55 | R49: 0.54 | S49: 11 | T49: 0.4 | U49: 120 | V49: 5952 | W49: 1 | X49: 3.94 | Y49: 6.17 | Z49: 2.71 | AA49: 8.88 | AB49: 1.07 | AC49: 1.07 | AD49: 3.99 | AE49: 3.1 | AF49: 0.99 | AG49: 0.98 | AH49: 1.97 | AI49: 2.29 | AJ49: 1.68 | AK49: 3.97 | AL49: 2.17 | AM49: 0.37 | AN49: 2.87
B50: Poultry feathers, meal hydrolysed | E50: 100 | F50: 1 | G50: 93 | H50: 2.36 | I50: 81 | J50: 7 | L50: 1 | M50: 0.33 | N50: 0.55 | Q50: 0.3 | R50: 0.28 | S50: 10 | T50: 0.69 | U50: 54 | V50: 891 | W50: 0.2 | X50: 5.57 | Y50: 6.13 | Z50: 8.52 | AA50: 14.65 | AB50: 0.95 | AC50: 0.95 | AD50: 6.94 | AE50: 2.28 | AF50: 0.57 | AG50: 4.34 | AH50: 4.91 | AI50: 3.94 | AJ50: 2.48 | AK50: 6.42 | AL50: 3.81 | AM50: 0.55 | AN50: 5.93
B51: Ricebran with germ | E51: 100 | F51: 1 | G51: 91 | H51: 2.98 | I51: 12.9 | J51: 13 | K51: 3.57 | L51: 11.4 | M51: 0.07 | N51: 1.5 | O51: 0.22 | Q51: 1.73 | R51: 0.07 | S51: 250 | T51: 0.07 | U51: 30 | V51: 1135 | W51: 2.2 | X51: 0.96 | Y51: 0.7 | Z51: 0.59 | AA51: 1.29 | AB51: 0.35 | AC51: 0.35 | AD51: 0.91 | AE51: 0.59 | AF51: 0.26 | AG51: 0.27 | AH51: 0.53 | AI51: 0.6 | AJ51: 0.42 | AK51: 1.02 | AL51: 0.48 | AM51: 0.12 | AN51: 0.68
B52: Rice grain, polished and broken | E52: 100 | F52: 1 | G52: 89 | H52: 2.9 | I52: 8.7 | J52: 0.7 | L52: 9.8 | M52: 0.08 | N52: 0.08 | O52: 0.03 | Q52: 0.13 | R52: 0.08 | S52: 18 | T52: 0.07 | U52: 17 | V52: 800 | W52: 0.2 | X52: 0.74 | Y52: 0.5 | Z52: 0.44 | AA52: 0.94 | AB52: 0.26 | AC52: 0.26 | AD52: 0.74 | AE52: 0.43 | AF52: 0.22 | AG52: 0.21 | AH52: 0.43 | AI52: 0.48 | AJ52: 0.33 | AK52: 0.81 | AL52: 0.36 | AM52: 0.1 | AN52: 0.54
B53: Rice polishings | E53: 100 | F53: 1 | G53: 90 | H53: 3.09 | I53: 12.2 | J53: 11 | K53: 3.58 | L53: 4.1 | M53: 0.05 | N53: 1.31 | O53: 0.14 | Q53: 1.06 | R53: 0.11 | S53: 12 | T53: 0.1 | U53: 26 | V53: 1237 | W53: 0.2 | X53: 0.78 | Y53: 0.71 | Z53: 1.36 | AA53: 2.07 | AB53: 0.24 | AC53: 0.24 | AD53: 0.8 | AE53: 0.57 | AF53: 0.22 | AG53: 0.1 | AH53: 0.32 | AI53: 0.46 | AJ53: 0.63 | AK53: 1.09 | AL53: 0.4 | AM53: 0.13 | AN53: 0.76
B54: Rye Secale cereale grain | E54: 100 | F54: 1 | G54: 88 | H54: 2.63 | I54: 12.1 | J54: 1.5 | L54: 2.2 | M54: 0.06 | N54: 0.32 | O54: 0.06 | Q54: 0.46 | R54: 0.03 | S54: 58 | T54: 0.02 | U54: 31 | V54: 419 | W54: 0.6 | X54: 0.53 | Y54: 0.49 | Z54: 0.52 | AA54: 1.01 | AB54: 0.26 | AC54: 0.26 | AD54: 0.7 | AE54: 0.42 | AF54: 0.17 | AG54: 0.19 | AH54: 0.36 | AI54: 0.56 | AJ54: 0.26 | AK54: 0.82 | AL54: 0.36 | AM54: 0.11 | AN54: 0.56
B55: Safflower seeds, meal solvent extracted | E55: 100 | F55: 1 | G55: 92 | H55: 1.19 | I55: 23.4 | J55: 1.4 | L55: 30 | M55: 0.34 | N55: 0.75 | Q55: 0.76 | S55: 18 | T55: 0.05 | U55: 41 | V55: 820 | W55: 0.5 | X55: 2.21 | Y55: 1.53 | Z55: 0.99 | AA55: 2.52 | AB55: 0.61 | AC55: 0.61 | AD55: 1.74 | AE55: 0.9 | AF55: 0.42 | AG55: 0.45 | AH55: 0.87 | AI55: 1.1 | AJ55: 0.71 | AK55: 1.81 | AL55: 0.85 | AM55: 0.37 | AN55: 1.42
B56: Safflower seeds witout hulls, meal solvent extracted | E56: 100 | F56: 1 | G56: 92 | H56: 1.92 | I56: 43 | J56: 1.3 | L56: 13.5 | M56: 0.35 | N56: 1.29 | O56: 0.39 | Q56: 1.1 | R56: 0.16 | S56: 39 | T56: 0.04 | U56: 33 | V56: 3248 | W56: 1.6 | X56: 3.65 | Y56: 2.32 | AA56: 2.32 | AB56: 1.07 | AC56: 1.07 | AD56: 2.46 | AE56: 1.27 | AF56: 0.68 | AG56: 0.7 | AH56: 1.38 | AI56: 1.75 | AJ56: 1.07 | AK56: 2.82 | AL56: 1.3 | AM56: 0.59 | AN56: 2.33
B57: Sesame seeds, meal mechanically extracted | E57: 100 | F57: 1 | G57: 93 | H57: 2.21 | I57: 43.8 | J57: 6.5 | K57: 1.9 | L57: 7 | M57: 1.99 | N57: 1.37 | O57: 0.34 | Q57: 1.2 | R57: 0.06 | S57: 48 | T57: 0.04 | U57: 100 | V57: 1536 | X57: 4.68 | Y57: 2.04 | Z57: 1.72 | AA57: 3.76 | AB57: 0.99 | AC57: 1.51 | AD57: 2.68 | AE57: 0.91 | AF57: 1.22 | AG57: 0.72 | AH57: 1.94 | AI57: 1.93 | AJ57: 1.48 | AK57: 3.41 | AL57: 1.4 | AM57: 0.62 | AN57: 1.91
B58: Sorghum grain, 8-10% protein | E58: 100 | F58: 1 | G58: 87 | H58: 3.29 | I58: 8.8 | J58: 2.9 | K58: 1.13 | L58: 2.3 | M58: 0.04 | N58: 0.3 | Q58: 0.35 | R58: 0.09 | S58: 15 | T58: 0.01 | U58: 15 | V58: 668 | W58: 0.2 | X58: 0.35 | Y58: 0.31 | Z58: 0.4 | AA58: 0.71 | AB58: 0.22 | AC58: 0.35 | AD58: 1.14 | AE58: 0.21 | AF58: 0.16 | AG58: 0.17 | AH58: 0.33 | AI58: 0.47 | AJ58: 0.34 | AK58: 0.81 | AL58: 0.29 | AM58: 0.08 | AN58: 0.44
B59: Sorghum grain, > 10% protein | E59: 100 | F59: 1 | G59: 88 | H59: 3.21 | I59: 11 | J59: 2.6 | K59: 0.82 | L59: 2.3 | M59: 0.04 | N59: 0.32 | Q59: 0.33 | R59: 0.09 | T59: 0.01 | X59: 0.35 | Y59: 0.32 | Z59: 0.45 | AA59: 0.77 | AB59: 0.23 | AC59: 0.43 | AD59: 1.37 | AE59: 0.22 | AF59: 0.15 | AG59: 0.11 | AH59: 0.26 | AI59: 0.52 | AJ59: 0.17 | AK59: 0.69 | AL59: 0.33 | AM59: 0.09 | AN59: 0.54
B60: Soybean flour by-product | E60: 100 | F60: 1 | G60: 89 | H60: 0.72 | I60: 13.3 | J60: 1.6 | L60: 33 | M60: 0.37 | N60: 0.19 | Q60: 1.5 | R60: 0.02 | S60: 29 | T60: 0.25 | V60: 640 | W60: 0.3 | X60: 0.94 | Y60: 0.4 | AA60: 0.4 | AB60: 0.18 | AC60: 0.4 | AD60: 0.57 | AE60: 0.48 | AF60: 0.1 | AG60: 0.21 | AH60: 0.31 | AI60: 0.37 | AJ60: 0.23 | AK60: 0.6 | AL60: 0.3 | AM60: 0.1 | AN60: 0.37
B61: Soybean protein concentrate, more than 70% protein | E61: 100 | F61: 1 | G61: 93 | H61: 3.5 | I61: 84.1 | J61: 0.4 | L61: 0.2 | M61: 0.02 | N61: 0.8 | O61: 0.32 | Q61: 0.18 | R61: 0.02 | S61: 1 | T61: 0.07 | U61: 23 | V61: 2 | W61: 2.5 | X61: 6.7 | Y61: 3.3 | Z61: 5.3 | AA61: 8.6 | AB61: 2.1 | AC61: 4.6 | AD61: 6.6 | AE61: 5.5 | AF61: 0.81 | AG61: 0.49 | AH61: 1.3 | AI61: 4.3 | AJ61: 3.1 | AK61: 7.4 | AL61: 3.3 | AM61: 0.81 | AN61: 4.4
B62: Soybean seeds, heat processed | E62: 100 | F62: 1 | G62: 90 | H62: 3.3 | I62: 37 | J62: 18 | K62: 8.46 | L62: 5.5 | M62: 0.25 | N62: 0.58 | Q62: 1.61 | R62: 0.03 | S62: 30 | T62: 0.03 | U62: 25 | V62: 2860 | W62: 4.2 | X62: 2.59 | Y62: 1.55 | Z62: 1.87 | AA62: 3.42 | AB62: 0.99 | AC62: 1.56 | AD62: 2.75 | AE62: 2.25 | AF62: 0.53 | AG62: 0.54 | AH62: 1.07 | AI62: 1.78 | AJ62: 1.34 | AK62: 3.12 | AL62: 1.41 | AM62: 0.51 | AN62: 1.65
B63: Soybean seeds, meal solvent extracted | E63: 100 | F63: 1 | G63: 89 | H63: 2.23 | I63: 44 | J63: 0.8 | K63: 0.4 | L63: 7 | M63: 0.29 | N63: 0.65 | O63: 0.27 | Q63: 2 | R63: 0.05 | S63: 29 | T63: 0.01 | U63: 40 | V63: 2794 | W63: 1.3 | X63: 3.14 | Y63: 1.9 | Z63: 2.29 | AA63: 4.19 | AB63: 1.17 | AC63: 1.96 | AD63: 3.39 | AE63: 2.69 | AF63: 0.62 | AG63: 0.66 | AH63: 1.28 | AI63: 2.16 | AJ63: 1.91 | AK63: 4.07 | AL63: 0.172 | AM63: 0.74 | AN63: 2.07
B64: Soybean seeds without hulls, meal solvent extracted | E64: 100 | F64: 1 | G64: 90 | H64: 2.44 | I64: 48.5 | J64: 1 | K64: 0.4 | L64: 3.9 | M64: 0.27 | N64: 0.62 | O64: 0.22 | Q64: 1.98 | R64: 0.05 | S64: 43 | T64: 0.02 | U64: 55 | V64: 2731 | W64: 1.3 | X64: 3.48 | Y64: 2.05 | Z64: 2.48 | AA64: 4.53 | AB64: 1.28 | AC64: 2.12 | AD64: 3.74 | AE64: 2.96 | AF64: 0.67 | AG64: 0.72 | AH64: 1.39 | AI64: 2.34 | AJ64: 1.95 | AK64: 4.29 | AL64: 1.87 | AM64: 0.74 | AN64: 2.22
B65: Sunflower common seeds, meal solvent extracted | E65: 100 | F65: 1 | G65: 90 | H65: 1.53 | I65: 32 | J65: 1.1 | K65: 0.6 | L65: 24 | M65: 0.21 | N65: 0.93 | O65: 0.14 | Q65: 0.96 | S65: 34 | T65: 0.2 | U65: 100 | V65: 3791 | X65: 2.3 | Z65: 1 | AA65: 1 | AB65: 0.55 | AC65: 1 | AD65: 1.6 | AE65: 1 | AF65: 0.5 | AG65: 0.5 | AH65: 1 | AI65: 1.15 | AK65: 1.15 | AL65: 1.05 | AM65: 0.45 | AN65: 1.6
B66: Sunflower seeds without hulls, meal solvent extracted | E66: 100 | F66: 1 | G66: 93 | H66: 2.32 | I66: 45.4 | J66: 2.9 | K66: 1.59 | L66: 12.2 | M66: 0.37 | N66: 1 | O66: 0.16 | Q66: 1 | R66: 0.1 | S66: 23 | T66: 0.2 | U66: 98 | V66: 2894 | X66: 2.85 | Y66: 2.03 | Z66: 1.49 | AA66: 3.52 | AB66: 0.87 | AC66: 1.43 | AD66: 2.22 | AE66: 1.24 | AF66: 0.8 | AG66: 0.64 | AH66: 1.44 | AI66: 1.66 | AJ66: 0.91 | AK66: 2.57 | AL66: 1.29 | AM66: 0.41 | AN66: 1.74
B67: Triticale Triticale hexaploide grain | E67: 100 | F67: 1 | G67: 90 | H67: 3.16 | I67: 14 | J67: 1.5 | L67: 4 | M67: 0.05 | N67: 0.3 | O67: 0.1 | Q67: 0.36 | S67: 43 | U67: 32 | V67: 462 | X67: 0.57 | Y67: 0.48 | Z67: 0.52 | AA67: 1 | AB67: 0.26 | AC67: 0.39 | AD67: 0.76 | AE67: 0.39 | AF67: 0.26 | AG67: 0.26 | AH67: 0.52 | AI67: 0.49 | AJ67: 0.32 | AK67: 0.81 | AL67: 0.36 | AM67: 0.14 | AN67: 0.51
B68: Wheat Triticum aestivium bran | E68: 100 | F68: 1 | G68: 89 | H68: 1.3 | I68: 15.7 | J68: 3 | K68: 1.7 | L68: 11 | M68: 0.14 | N68: 1.15 | O68: 0.2 | Q68: 1.19 | R68: 0.06 | S68: 113 | T68: 0.05 | U68: 100 | V68: 1232 | W68: 1.2 | X68: 1.02 | Y68: 0.81 | Z68: 0.67 | AA68: 1.48 | AB68: 0.46 | AC68: 0.47 | AD68: 0.96 | AE68: 0.61 | AF68: 0.23 | AG68: 0.32 | AH68: 0.55 | AI68: 0.61 | AJ68: 0.46 | AK68: 1.07 | AL68: 0.5 | AM68: 0.23 | AN68: 0.7
B69: Wheat red dog | E69: 100 | F69: 1 | G69: 88 | H69: 2.57 | I69: 15.3 | J69: 3.3 | L69: 2.6 | M69: 0.04 | N69: 0.49 | O69: 0.14 | Q69: 0.51 | R69: 0.14 | S69: 55 | T69: 0.04 | U69: 65 | V69: 1534 | W69: 0.8 | X69: 0.96 | Y69: 0.74 | Z69: 0.75 | AA69: 1.49 | AB69: 0.41 | AC69: 0.55 | AD69: 1.06 | AE69: 0.59 | AF69: 0.23 | AG69: 0.37 | AH69: 0.6 | AI69: 0.66 | AJ69: 0.46 | AK69: 1.12 | AL69: 0.5 | AM69: 0.1 | AN69: 0.72
B70: Wheat middlings | E70: 100 | F70: 1 | G70: 88 | H70: 2 | I70: 15 | J70: 3 | K70: 1.87 | L70: 7.5 | M70: 0.12 | N70: 0.85 | O70: 0.3 | Q70: 0.99 | R70: 0.03 | S70: 118 | T70: 0.12 | U70: 100 | V70: 1439 | W70: 0.8 | X70: 1.15 | Y70: 0.63 | Z70: 0.75 | AA70: =SUM(Y70:Z70) -> 1.38 | AB70: 0.37 | AC70: 0.58 | AD70: 1.07 | AE70: 0.69 | AF70: 0.21 | AG70: 0.32 | AH70: =SUM(AF70:AG70) -> 0.53 | AI70: 0.64 | AJ70: 0.45 | AK70: =SUM(AI70:AJ70) -> 1.09 | AL70: 0.49 | AM70: 0.2 | AN70: 0.71
B71: Wheat shorts | E71: 100 | F71: 1 | G71: 88 | H71: 2.16 | I71: 16.5 | J71: 4.6 | L71: 6.8 | M71: 0.09 | N71: 0.81 | Q71: 0.93 | R71: 0.07 | S71: 117 | T71: 0.02 | U71: 109 | V71: 1813 | W71: 1.7 | X71: 1.18 | Y71: 0.96 | Z71: 0.77 | AA71: 1.73 | AB71: 0.45 | AC71: 0.58 | AD71: 1.09 | AE71: 0.79 | AF71: 0.27 | AG71: 0.36 | AH71: 0.63 | AI71: 0.67 | AJ71: 0.47 | AK71: 1.14 | AL71: 0.6 | AM71: 0.21 | AN71: 0.83
B72: Wheat grain, hard red winter | E72: 100 | F72: 1 | G72: 87 | H72: 2.9 | I72: 14.1 | J72: 2.5 | K72: 0.59 | L72: 3 | M72: 0.05 | N72: 0.37 | O72: 0.13 | Q72: 0.45 | R72: 0.05 | S72: 32 | T72: 0.04 | U72: 34 | V72: 1090 | W72: 0.4 | X72: 0.6 | Y72: 0.59 | Z72: 0.59 | AA72: 1.18 | AB72: 0.31 | AC72: 0.44 | AD72: 0.89 | AE72: 0.37 | AF72: 0.21 | AG72: 0.3 | AH72: 0.51 | AI72: 0.6 | AJ72: 0.43 | AK72: 1.03 | AL72: 0.39 | AM72: 0.16 | AN72: 0.57
B73: Wheat grain, soft white winter | E73: 100 | F73: 1 | G73: 89 | H73: 3.12 | I73: 11.5 | J73: 2.5 | L73: 3 | M73: 0.05 | N73: 0.31 | Q73: 0.42 | R73: 0.05 | S73: 24 | T73: 0.06 | U73: 28 | V73: 1002 | W73: 0.4 | X73: 0.4 | Y73: 0.49 | Z73: 0.55 | AA73: 1.04 | AB73: 0.2 | AC73: 0.42 | AD73: 0.59 | AE73: 0.31 | AF73: 0.15 | AG73: 0.22 | AH73: 0.37 | AI73: 0.45 | AJ73: 0.39 | AK73: 0.84 | AL73: 0.32 | AM73: 0.12 | AN73: 0.44
B74: Whey Bos taurus, dehydrated | E74: 100 | F74: 1 | G74: 93 | H74: 1.9 | I74: 13 | J74: 0.8 | K74: 0.01 | L74: 0.2 | M74: 0.97 | N74: 0.76 | Q74: 1.05 | R74: 1.5 | S74: 6 | T74: 1.3 | U74: 3 | V74: 1369 | W74: 0.08 | X74: 0.34 | Y74: 0.3 | Z74: 0.32 | AA74: 0.62 | AB74: 0.18 | AC74: 0.82 | AD74: 1.19 | AE74: 0.97 | AF74: 0.19 | AG74: 0.3 | AH74: 0.49 | AI74: 0.33 | AJ74: 0.25 | AK74: 0.58 | AL74: 0.89 | AM74: 0.19 | AN74: 0.68
B75: Whey Bos taurus, low lactose dehydrated | E75: 100 | F75: 1 | G75: 91 | H75: 2.09 | I75: 16 | J75: 1 | K75: 0.01 | L75: 0.3 | M75: 1.95 | N75: 0.98 | Q75: 3 | R75: 1.03 | S75: 8 | T75: 1.5 | U75: 7 | V75: 4392 | W75: 1.4 | X75: 0.67 | Y75: 1.04 | Z75: 0.76 | AA75: 1.8 | AB75: 0.25 | AC75: 0.9 | AD75: 1.35 | AE75: 1.47 | AF75: 0.57 | AG75: 0.57 | AH75: 1.14 | AI75: 0.5 | AJ75: 0.35 | AK75: 0.85 | AL75: 0.85 | AM75: 0.23 | AN75: 0.83
B76: Yeast, Brewer's dehydrated | E76: 100 | F76: 1 | G76: 93 | H76: 1.99 | I76: 44.4 | J76: 1 | L76: 2.7 | M76: 0.12 | N76: 1.4 | Q76: 1.7 | R76: 0.12 | S76: 5 | T76: 0.07 | U76: 39 | V76: 3984 | W76: 9.9 | X76: 2.19 | Y76: 2.09 | AA76: 2.09 | AB76: 1.07 | AC76: 2.14 | AD76: 3.19 | AE76: 3.23 | AF76: 0.7 | AG76: 0.5 | AH76: 1.2 | AI76: 1.81 | AJ76: 1.49 | AK76: 3.3 | AL76: 2.06 | AM76: 0.49 | AN76: 2.32
B77: Yeast, Torula, dehydrated | E77: 100 | F77: 1 | G77: 93 | H77: 2.16 | I77: 47.2 | J77: 2.5 | K77: 0.05 | L77: 2.4 | M77: 0.58 | N77: 1.67 | Q77: 1.7 | R77: 0.12 | S77: 13 | T77: 0.07 | U77: 99 | V77: 2881 | W77: 22.4 | X77: 2.6 | Y77: 2.6 | Z77: 2.76 | AA77: 5.36 | AB77: 1.4 | AC77: 2.9 | AD77: 3.5 | AE77: 3.8 | AF77: 0.8 | AG77: 0.6 | AH77: 1.4 | AI77: 3 | AJ77: 2.1 | AK77: 5.1 | AL77: 2.6 | AM77: 0.5 | AN77: 0.29

Sheet Ingredients (Feedstuffs)
D1: WUFFF DA | M1: Instructions
G2: Dry | N2: Total | O2: Avail. | P2: Ca:P= | AA2: GLY | AO2: Dig | AP2: Dig | AQ2: Dig | AR2: Dig GLY | AS2: Dig | AT2: Dig | AU2: Dig | AV2: Dig | AW2: Dig | AX2: Dig | AY2: Dig | AZ2: Dig | BA2: Dig | BB2: Dig | BC2: Dig | BD2: Dig | BE2: Dig
C3: Cost | D3: Min. | E3: Max. | F3: Weight | G3: Matter | H3: M.E. | I3: Protein | J3: E.E. | K3: C18:2 | L3: C.F | M3: Calcium | N3: Phos. | O3: Phos. | P3: 2 | Q3: K | R3: Cl | S3: Mn | T3: Na | U3: Zn | V3: Choline | W3: Folate | X3: ARG | Y3: GLY | Z3: SER | AA3: &SER | AB3: HIS | AC3: ILE | AD3: LEU | AE3: LYS | AF3: MET | AG3: CYS | AH3: TSAA | AI3: PHE | AJ3: TYR | AK3: TAAA | AL3: THR | AM3: TRP | AN3: VAL | AO3: ARG | AP3: GLY | AQ3: SER | AR3: &SER | AS3: HIS | AT3: ILE | AU3: LEU | AV3: LYS | AW3: MET | AX3: CYS | AY3: TSAA | AZ3: PHE | BA3: TYR | BB3: TAAA | BC3: THR | BD3: TRP | BE3: VAL
C5: STORAGE INGREDIENT COMPOSITION MATRIX | N5: STORAGE INGREDIENT COMPOSITION MATRIX | X5: STORAGE INGREDIENT COMPOSITION MATRIX
B6: Alfalfa meal, dehy | E6: 100 | F6: 1 | G6: 93 | H6: 1.63 | I6: 20 | J6: 3.5 | L6: 20 | M6: 1.5 | N6: 0.27 | O6: 0.27 | P6: =O6-(1/P$3*M6) -> -0.48 | Q6: 2.5 | R6: 0.47 | S6: 40 | T6: 0.08 | U6: 23 | V6: 1614 | W6: 2600 | X6: 0.98 | AB6: 0.42 | AC6: 0.98 | AD6: 1.5 | AE6: 0.87 | AF6: 0.33 | AG6: 0.23 | AH6: 0.56 | AI6: 1.04 | AL6: 0.88 | AM6: 0.46 | AN6: 1.19
B7: Alfalfa meal, dehy | E7: 100 | F7: 1 | G7: 93 | H7: 1.48 | I7: 17 | J7: 3 | L7: 24 | M7: 1.3 | N7: 0.23 | O7: 0.23 | P7: -0.42 | Q7: 2.4 | R7: 0.47 | S7: 35 | T7: 0.08 | U7: 21 | V7: 1515 | W7: 2000 | X7: 0.75 | AB7: 0.35 | AC7: 0.84 | AD7: 1.3 | AE7: 0.73 | AF7: 0.28 | AG7: 0.18 | AH7: 0.46 | AI7: 0.91 | AL7: 0.75 | AM7: 0.45 | AN7: 1.04 | AO7: 0.615 | AS7: 0.259 | AT7: 0.6468 | AU7: 1.04 | AV7: 0.4307 | AW7: 0.2044 | AX7: 0.072 | AZ7: 0.7098 | BC7: 0.5325 | BE7: 0.78
B8: Alfalfa meal, dehy | E8: 100 | F8: 1 | G8: 93 | H8: 1.32 | I8: 15 | J8: 2.3 | L8: 26 | M8: 1.2 | N8: 0.22 | O8: 0.22 | P8: -0.38 | Q8: 2.3 | R8: 0.49 | S8: 30 | T8: 0.07 | U8: 21 | V8: 1548 | W8: 1540 | X8: 0.58 | AB8: 0.3 | AC8: 0.68 | AD8: 1.1 | AE8: 0.6 | AF8: 0.23 | AG8: 0.17 | AH8: 0.4 | AI8: 0.66 | AL8: 0.6 | AM8: 0.38 | AN8: 0.84
B9: Alfalfa meal, suncured | E9: 100 | F9: 1 | G9: 91 | H9: 0.77 | I9: 15 | J9: 1.7 | L9: 29 | M9: 1.4 | N9: 0.2 | O9: 0.2 | P9: -0.5 | Q9: 2.1 | R9: 0.49 | S9: 30 | T9: 0.06 | U9: 20 | V9: 1500 | W9: 1300 | X9: 0.58 | AB9: 0.22 | AC9: 0.6 | AD9: 1.1 | AE9: 0.6 | AF9: 0.2 | AG9: 0.17 | AH9: 0.37 | AI9: 0.58 | AL9: 0.6 | AM9: 0.38 | AN9: 0.6
B10: Bakery meal | E10: 100 | F10: 1 | G10: 91 | H10: 3.61 | I10: 10 | J10: 11.5 | L10: 3 | M10: 0.1 | N10: 0.25 | O10: 0.18 | P10: 0.13 | Q10: 0.1 | R10: 1.25 | S10: 60 | T10: 1.14 | U10: 15 | V10: 1230 | W10: 150 | X10: 0.4 | AB10: 0.2 | AC10: 0.36 | AD10: 0.8 | AE10: 0.3 | AF10: 0.16 | AG10: 0.16 | AH10: 0.32 | AI10: 0.4 | AL10: 0.28 | AM10: 0.09 | AN10: 0.4 | AO10: 0.336 | AS10: 0.164 | AT10: 0.3024 | AU10: 0.688 | AV10: 0.192 | AW10: 0.136 | AX10: 0.128 | AZ10: 0.344 | BC10: 0.2016 | BE10: 0.324
B11: Bakery meal, low ash/fiber | E11: 100 | F11: 1 | G11: 91 | H11: 3.87 | I11: 10 | J11: 11.5 | L11: 1.5 | M11: 0.1 | N11: 0.25 | O11: 0.18 | P11: 0.13 | Q11: 0.1 | R11: 1.25 | S11: 60 | T11: 1.14 | U11: 15 | V11: 1230 | W11: 150 | X11: 0.4 | AB11: 0.2 | AC11: 0.36 | AD11: 0.8 | AE11: 0.3 | AF11: 0.16 | AG11: 0.16 | AH11: 0.32 | AI11: 0.4 | AL11: 0.28 | AM11: 0.09 | AN11: 0.4
B12: Barley grain | E12: 100 | F12: 1 | G12: 89 | H12: 2.75 | I12: 11.5 | J12: 1.9 | L12: 5 | M12: 0.08 | N12: 0.42 | O12: 0.15 | P12: 0.11 | Q12: 0.56 | R12: 0.14 | S12: 16 | T12: 0.3 | U12: 30 | V12: 1027 | W12: 397 | X12: 0.5 | AB12: 0.23 | AC12: 0.42 | AD12: 0.8 | AE12: 0.53 | AF12: 0.18 | AG12: 0.25 | AH12: 0.43 | AI12: 0.62 | AL12: 0.36 | AM12: 0.17 | AN12: 0.62 | AO12: 0.425 | AS12: 0.2001 | AT12: 0.3444 | AU12: 0.688 | AV12: 0.4134 | AW12: 0.1422 | AX12: 0.2025 | AZ12: 0.5456 | BC12: 0.2772 | BE12: 0.5022
B13: Barley grain, Western | E13: 100 | F13: 1 | G13: 91 | H13: 2.76 | I13: 10.6 | J13: 2.2 | L13: 6.3 | M13: 0.04 | N13: 0.35 | O13: 0.12 | P13: 0.1 | Q13: 0.56 | R13: 0.14 | S13: 16 | T13: 0.02 | U13: 20 | V13: 930 | W13: 300 | X13: 0.45 | AB13: 0.3 | AC13: 0.4 | AD13: 0.7 | AE13: 0.39 | AF13: 0.18 | AG13: 0.22 | AH13: 0.4 | AI13: 0.47 | AL13: 0.29 | AM13: 0.15 | AN13: 0.46
B14: Barley malt,dehy | E14: 100 | F14: 1 | G14: 91 | I14: 13.7 | J14: 1.9 | L14: 3.3 | M14: 0.06 | N14: 0.46 | P14: -0.03 | Q14: 0.43 | S14: 19 | T14: 0.08 | U14: 40 | V14: 895 | X14: 0.4 | AB14: 0.3 | AC14: 0.6 | AD14: 0.7 | AE14: 0.5 | AF14: 0.2 | AH14: 0.2 | AI14: 0.6 | AL14: 0.4 | AM14: 0.2 | AN14: 0.7
B15: Beans, broad (vicia faba) | E15: 100 | F15: 1 | G15: 89 | H15: 2.42 | I15: 25.7 | J15: 1.4 | L15: 8.2 | M15: 0.14 | N15: 0.54 | O15: 0.2 | P15: 0.13 | Q15: 1.2 | R15: 0.04 | S15: 8 | T15: 0.08 | U15: 42 | V15: 1670 | X15: 2.2 | AB15: 0.6 | AC15: 1 | AD15: 1.6 | AE15: 1.52 | AF15: 0.25 | AG15: 0.14 | AH15: 0.39 | AI15: 0.98 | AL15: 0.98 | AM15: 0.24 | AN15: 1.22
B16: Beet pulp, dried | E16: 100 | F16: 1 | G16: 91 | H16: 0.66 | I16: 8 | J16: 0.5 | L16: 21 | M16: 0.6 | N16: 0.1 | P16: -0.3 | Q16: 0.21 | S16: 35 | T16: 0.19 | U16: 1 | V16: 800 | X16: 0.3 | AB16: 0.2 | AC16: 0.3 | AD16: 0.6 | AE16: 0.6 | AF16: 0.01 | AG16: 0.01 | AH16: 0.02 | AI16: 0.3 | AL16: 0.4 | AM16: 0.1 | AN16: 0.4
B17: Blood meal, animal | E17: 100 | F17: 1 | G17: 89 | H17: 3.22 | I17: 80 | J17: 1 | L17: 1 | M17: 0.28 | N17: 0.22 | O17: 0.22 | P17: 0.08 | Q17: 0.9 | R17: 0.28 | S17: 5 | T17: 0.31 | U17: 300 | V17: 990 | W17: 80 | X17: 2.35 | AB17: 3.05 | AC17: 0.8 | AD17: 10.3 | AE17: 6.9 | AF17: 1 | AG17: 1.4 | AH17: 2.4 | AI17: 5.1 | AL17: 3.8 | AM17: 1 | AN17: 5.2 | AO17: 2.0445 | AS17: 2.562 | AT17: 0.624 | AU17: 9.167 | AV17: 5.934 | AW17: 0.91 | AX17: 1.064 | AZ17: 4.488 | BC17: 3.306 | BE17: 4.524
B18: Brewers dried grain | E18: 100 | F18: 1 | G18: 93 | H18: 2.25 | I18: 27.9 | J18: 7.4 | L18: 11.7 | M18: 0.3 | N18: 0.66 | O18: 0.2 | P18: 0.05 | Q18: 0.08 | R18: 0.12 | S18: 38 | T18: 0.26 | U18: 100 | V18: 2110 | W18: 220 | X18: 1.3 | AB18: 0.47 | AC18: 2 | AD18: 3.2 | AE18: 0.9 | AF18: 0.6 | AG18: 0.4 | AH18: 1 | AI18: 1.82 | AL18: 1 | AM18: 0.4 | AN18: 1.69
B19: Brewers dried yeast | E19: 100 | F19: 1 | G19: 93 | H19: 2.49 | I19: 45 | J19: 0.4 | L19: 1.5 | M19: 0.1 | N19: 1.4 | O19: 0.45 | P19: 0.4 | Q19: 1.72 | S19: 6 | T19: 0.07 | U19: 39 | V19: 4800 | W19: 9000 | X19: 2.2 | AB19: 1.3 | AC19: 2.2 | AD19: 3.2 | AE19: 3.4 | AF19: 1 | AG19: 0.5 | AH19: 1.5 | AI19: 1.86 | AL19: 2.5 | AM19: 0.8 | AN19: 2.37
B20: Buckwheat, grain | E20: 100 | F20: 1 | G20: 88 | H20: 2.64 | I20: 11 | J20: 2.5 | L20: 11 | M20: 0.1 | N20: 0.3 | O20: 0.1 | P20: 0.05 | Q20: 0.45 | R20: 0.04 | S20: 34 | T20: 0.05 | U20: 9 | V20: 440 | X20: 0.8 | AB20: 0.26 | AC20: 0.35 | AD20: 0.53 | AE20: 0.6 | AF20: 0.18 | AG20: 0.2 | AH20: 0.38 | AI20: 0.44 | AL20: 0.44 | AM20: 0.18 | AN20: 0.53
B21: Buttermilk, dried | E21: 100 | F21: 1 | G21: 89 | H21: 2.75 | I21: 2 | J21: 5 | L21: 0.3 | M21: 1.3 | N21: 0.9 | O21: 0.9 | P21: 0.25 | Q21: 1 | R21: 0.7 | S21: 4 | T21: 0.95 | V21: 1808 | W21: 400 | X21: 1.1 | AB21: 0.9 | AC21: 2.7 | AD21: 3.4 | AE21: 2.4 | AF21: 0.7 | AG21: 0.23 | AH21: 0.93 | AI21: 1.5 | AL21: 1.6 | AM21: 0.5 | AN21: 2.8
B22: Canola meal | E22: 100 | F22: 1 | G22: 91 | H22: 2.11 | I22: 38 | J22: 3.8 | L22: 11.1 | M22: 0.68 | N22: 1.17 | O22: 0.3 | P22: -0.04 | Q22: 1.29 | S22: 54 | U22: 65 | V22: 6700 | W22: 2300 | X22: 2.3 | AB22: 1.1 | AC22: 1.51 | AD22: 2.6 | AE22: 2.3 | AF22: 0.7 | AG22: 0.47 | AH22: 1.17 | AI22: 1.5 | AL22: 1.71 | AM22: 0.44 | AN22: 1.94 | AO22: 2.07 | AS22: 0.935 | AT22: 1.2533 | AU22: 2.262 | AV22: 1.84 | AW22: 0.63 | AX22: 0.3525 | AZ22: 1.305 | BC22: 1.3338 | BE22: 1.5908
B23: Casein dried | E23: 100 | F23: 1 | G23: 90 | H23: 4.12 | I23: 80 | J23: 0.5 | L23: 0.2 | M23: 0.6 | N23: 1 | O23: 1 | P23: 0.7 | S23: 4 | T23: 0.01 | U23: 30 | V23: 209 | W23: 400 | X23: 3.4 | AB23: 2.5 | AC23: 5.7 | AD23: 8.7 | AE23: 7 | AF23: 2.7 | AG23: 0.3 | AH23: 3 | AI23: 4.6 | AL23: 3.8 | AM23: 1 | AN23: 6.8 | AO23: 3.298 | AS23: 2.4 | AT23: 5.586 | AU23: 0.783 | AV23: 6.79 | AW23: 2.673 | AX23: 0.252 | AZ23: 4.554 | BC23: 3.724 | BE23: 6.664
B24: Cassava tubers, meal | E24: 100 | F24: 1 | G24: 87 | H24: 2.92 | I24: 2.4 | J24: 0.3 | L24: 7.6 | M24: 0.15 | N24: 0.08 | P24: -0.075 | Q24: 0.23
B25: Cattle manure, dried | E25: 100 | F25: 1 | G25: 90 | I25: 16.6 | L25: 0 | M25: 1.6 | N25: 0.75 | P25: -0.8 | Q25: 0.72 | S25: 88 | T25: 0.36 | U25: 111 | X25: 0.14 | AB25: 0.09 | AC25: 0.21 | AE25: 0.33 | AF25: 0.06 | AH25: 0.06 | AI25: 0.06 | AL25: 0.21 | AN25: 2.9
B26: Citrus pulp, dried | E26: 100 | F26: 1 | G26: 91 | H26: 1.32 | I26: 6 | J26: 3.7 | L26: 12.2 | M26: 1.4 | N26: 0.1 | P26: -0.7 | Q26: 1 | S26: 6 | T26: 0.1 | U26: 10 | V26: 748 | X26: 0.28 | AE26: 0.2 | AF26: 0.08 | AG26: 0.11 | AH26: 0.19 | AM26: 0.06 | AN26: 0 | AO26: 0.238 | AV26: 0.116 | AW26: 0.0664 | AX26: 0.0528
B27: Coconut meal, mech. | E27: 100 | F27: 1 | G27: 93 | H27: 1.52 | I27: 22 | J27: 6 | L27: 12 | M27: 0.17 | N27: 0.6 | P27: -0.085 | Q27: 0.6 | R27: 0.03 | T27: 0.06 | V27: 1100 | X27: 2.3 | AB27: 0.3 | AC27: 1 | AD27: 1.49 | AE27: 0.54 | AF27: 0.33 | AG27: 0.2 | AH27: 0.53 | AI27: 0.8 | AL27: 0.6 | AM27: 0.2 | AN27: 1 | AO27: 2.047 | AS27: 0.282 | AT27: 0.88 | AU27: 1.3857 | AV27: 0.4374 | AW27: 0.3003 | AX27: 0.17 | AZ27: 0.728 | BC27: 0.504 | BE27: 0.88
B28: Corn, yellow, grain | E28: 100 | F28: 1 | G28: 87 | H28: 3.39 | I28: 7.9 | J28: 3.5 | L28: 1.9 | M28: 0.01 | N28: 0.25 | O28: 0.09 | P28: 0.085 | Q28: 0.3 | R28: 0.04 | S28: 6 | T28: 0.02 | U28: 15 | V28: 1100 | W28: 116 | X28: 0.4 | AB28: 2.25 | AC28: 0.29 | AD28: 1 | AE28: 0.24 | AF28: 0.18 | AG28: 0.18 | AH28: 0.36 | AI28: 0.42 | AL28: 0.29 | AM28: 0.07 | AN28: 0.42
B29: Corn, high oil, grain | E29: 100 | F29: 1 | G29: 87 | H29: 3.56 | I29: 8.4 | J29: 6 | L29: 2 | M29: 0.01 | N29: 0.26 | O29: 0.09 | P29: 0.085 | Q29: 0.31 | R29: 0.05 | S29: 6 | T29: 0.01 | U29: 19 | W29: 112 | X29: 0.43 | AB29: 0.27 | AC29: 0.31 | AD29: 1.06 | AE29: 0.28 | AF29: 0.2 | AG29: 0.19 | AH29: 0.39 | AI29: 0.42 | AL29: 0.31 | AM29: 0.07 | AN29: 0.42
B30: Corn, dent, yellow, ears ground | E30: 100 | F30: 1 | G30: 88 | H30: 2.84 | I30: 7.5 | J30: 3 | L30: 10 | M30: 0.04 | N30: 0.2 | O30: 0.07 | P30: 0.05 | Q30: 0.53 | V30: 350 | X30: 0.3 | AD30: 1 | AE30: 0.16 | AF30: 0.14 | AG30: 0.13 | AH30: 0.27 | AM30: 0.05
B31: Corn cobs, meal | E31: 100 | F31: 1 | G31: 89 | H31: 0.53 | I31: 2.3 | J31: 0.4 | L31: 35 | M31: 0.11 | N31: 0.04 | P31: -0.055 | Q31: 0.76 | S31: 6
B32: Corn fermented extracts cond. | E32: 100 | F32: 1 | G32: 53 | H32: 1.54 | I32: 23 | M32: 0.14 | N32: 1.8 | P32: -0.07 | Q32: 2.3 | S32: 24 | T32: 0.1 | U32: 66 | V32: 2794 | X32: 1.12 | AB32: 0.72 | AC32: 0.76 | AD32: 2 | AE32: 0.87 | AF32: 0.5 | AG32: 0.8 | AH32: 1.3 | AI32: 0.88 | AL32: 0.96 | AM32: 0.05 | AN32: 1.26
B33: Corn germ meal, wet milled | E33: 100 | F33: 1 | G33: 90 | H33: 1.7 | I33: 20 | J33: 1 | L33: 12 | M33: 0.3 | N33: 0.5 | O33: 0.15 | P33: 0 | Q33: 0.3 | S33: 4 | T33: 0.04 | U33: 100 | V33: 2000 | W33: 200 | X33: 1.3 | AB33: 0.7 | AC33: 0.7 | AD33: 1.7 | AE33: 0.9 | AF33: 0.6 | AG33: 0.4 | AH33: 1 | AI33: 0.9 | AL33: 1.1 | AM33: 0.2 | AN33: 1.2
B34: Corn germ meal, dry milled | E34: 100 | F34: 1 | G34: 91 | I34: 17.7 | J34: 0.9 | L34: 10.9 | M34: 0.03 | N34: 0.5 | O34: 0.15 | P34: 0.135 | Q34: 0.3 | S34: 17 | T34: 0.04 | U34: 75 | V34: 1936 | X34: 1.4 | AB34: 0.6 | AC34: 0.6 | AD34: 1.3 | AE34: 1.1 | AF34: 0.43 | AG34: 0.4 | AH34: 0.83 | AI34: 0.9 | AL34: 0.9 | AM34: 0.25 | AN34: 1.1
B35: Corn gluten feed | E35: 100 | F35: 1 | G35: 88 | H35: 1.75 | I35: 21 | J35: 2 | L35: 10 | M35: 0.2 | N35: 0.9 | O35: 0.22 | P35: 0.12 | Q35: 1.3 | R35: 0.22 | S35: 24 | T35: 0.15 | U35: 80 | V35: 2420 | W35: 200 | X35: 1 | AB35: 0.7 | AC35: 0.6 | AD35: 1.9 | AE35: 0.6 | AF35: 0.5 | AG35: 0.5 | AH35: 1 | AI35: 0.8 | AL35: 0.9 | AM35: 0.1 | AN35: 1.04 | AO35: 0.87 | AS35: 0.574 | AT35: 0.486 | AU35: 1.691 | AV35: 0.432 | AW35: 0.42 | AX35: 0.325 | AZ35: 0.696 | BC35: 0.675 | BE35: 0.8632
B36: Corn gluten meal, 41% | E36: 100 | F36: 1 | G36: 90 | H36: 3.31 | I36: 42 | J36: 2 | L36: 4 | M36: 0.16 | N36: 0.4 | O36: 0.25 | P36: 0.17 | Q36: 0.03 | R36: 0.08 | S36: 7 | T36: 0.1 | V36: 330 | W36: 220 | X36: 1.4 | AB36: 0.9 | AC36: 2.3 | AD36: 6.6 | AE36: 0.8 | AF36: 1 | AG36: 0.6 | AH36: 1.6 | AI36: 2.9 | AL36: 1.4 | AM36: 0.2 | AN36: 2.2
B37: Corn gluten meal, 60% | E37: 100 | F37: 1 | G37: 90 | H37: 3.74 | I37: 60 | J37: 2 | L37: 2.5 | M37: 0.02 | N37: 0.5 | O37: 0.18 | P37: 0.17 | Q37: 0.45 | R37: 0.05 | S37: 4 | T37: 0.03 | U37: 41 | V37: 2200 | W37: 230 | X37: 1.9 | AB37: 1.2 | AC37: 2.3 | AD37: 9.4 | AE37: 1 | AF37: 1.9 | AG37: 1.1 | AH37: 3 | AI37: 3.8 | AL37: 2 | AM37: 0.3 | AN37: 2.7 | AO37: 1.824 | AS37: 1.128 | AT37: 2.185 | AU37: 9.212 | AV37: 0.88 | AW37: 1.843 | AX37: 0.946 | AZ37: 3.686 | BC37: 1.84 | BE37: 2.565
B38: Corn distillers dried grains | E38: 100 | F38: 1 | G38: 94 | H38: 2 | I38: 27 | J38: 9 | L38: 13 | M38: 0.09 | N38: 0.41 | O38: 0.17 | P38: =O38-(1/P$3*M38) -> 0.125 | Q38: 0.16 | R38: 0.07 | S38: 23 | T38: 0.47 | U38: 55 | V38: 1850 | X38: 1 | AB38: 0.6 | AC38: 0.93 | AD38: 2.6 | AE38: 0.9 | AF38: 0.45 | AG38: 0.32 | AH38: 0.77 | AI38: 0.6 | AL38: 0.3 | AM38: 0.21 | AN38: 1.2
B39: Corn distillers dried grains with solubles | E39: 100 | F39: 1 | G39: 93 | H39: 2.59 | I39: 27 | J39: 8 | L39: 8.5 | M39: 0.35 | N39: 0.95 | O39: 0.4 | P39: 0.225 | Q39: 1 | R39: 0.17 | S39: 30 | T39: 0.8 | U39: 85 | V39: 3400 | W39: 880 | X39: 1 | AB39: 0.6 | AC39: 1 | AD39: 2.7 | AE39: 0.6 | AF39: 0.6 | AG39: 0.4 | AH39: 1 | AI39: 1.2 | AL39: 0.95 | AM39: 0.2 | AN39: 1.33 | AO39: 0.63 | AS39: 0.45 | AT39: 0.84 | AU39: 2.403 | AV39: 0.39 | AW39: 0.504 | AX39: 0.308 | AZ39: 1.056 | BC39: 0.684 | BE39: 1.0773
B40: Corn distillers dried solubles | E40: 100 | F40: 1 | G40: 92 | H40: 2.81 | I40: 27 | J40: 9 | L40: 4 | M40: 0.35 | N40: 1.3 | O40: 1.2 | P40: 1.025 | Q40: 1.74 | R40: 0.25 | S40: 74 | T40: 0.3 | U40: 85 | V40: 4818 | W40: 1100 | X40: 1 | AB40: 0.6 | AC40: 1.2 | AD40: 2.1 | AE40: 0.9 | AF40: 0.6 | AG40: 0.6 | AH40: 1.2 | AI40: 1.5 | AL40: 1 | AM40: 0.2 | AN40: 1.6
B41: Cottonseed meal, 41% pre-press solvent | E41: 100 | F41: 1 | G41: 90 | H41: 1.94 | I41: 41 | J41: 1.5 | L41: 12.7 | M41: 0.17 | N41: 1 | O41: 0.32 | P41: 0.235 | Q41: 1.22 | R41: 0.04 | S41: 20 | T41: 0.04 | U41: 62 | V41: 2933 | W41: 2662 | X41: 4.59 | AB41: 1.1 | AC41: 1.33 | AD41: 2.4 | AE41: 1.65 | AF41: 0.52 | AG41: 0.64 | AH41: 1.16 | AI41: 2.22 | AL41: 1.32 | AM41: 0.47 | AN41: 1.88 | AO41: 3.9933 | AS41: 0.759 | AT41: 0.9975 | AU41: 1.848 | AV41: 1.1055 | AW41: 0.3796 | AX41: 0.4672 | AZ41: 1.9092 | BC41: 0.9372 | BE41: 1.4664
B42: Cottonseed meal, 41% mech. extd | E42: 100 | F42: 1 | G42: 91 | H42: 2.1 | I42: 41 | J42: 3.9 | L42: 12.6 | M42: 0.17 | N42: 0.97 | O42: 0.32 | P42: 0.235 | Q42: 1.2 | R42: 0.04 | S42: 22 | T42: 0.04 | U42: 60 | V42: 2807 | W42: 2728 | X42: 4.33 | AB42: 1.07 | AC42: 1.31 | AD42: 2.5 | AE42: 1.52 | AF42: 0.55 | AG42: 0.59 | AH42: 1.14 | AI42: 2.2 | AL42: 1.3 | AM42: 0.5 | AN42: 1.84
B43: Cottenseed meal, 41% direct solvent | E43: 100 | F43: 1 | G43: 90 | H43: 2.01 | I43: 41 | J43: 2.1 | L43: 11.3 | M43: 0.16 | N43: 1 | O43: 0.32 | P43: 0.24 | Q43: 1.16 | R43: 0.04 | S43: 21 | T43: 0.04 | U43: 60 | V43: 2706 | W43: 2794 | X43: 4.66 | AB43: 1.1 | AC43: 1.33 | AD43: 2.4 | AE43: 1.7 | AF43: 0.51 | AG43: 0.62 | AH43: 1.13 | AI43: 2.23 | AL43: 1.34 | AM43: 0.52 | AN43: 1.82
B44: Cottenseed hulls | E44: 100 | F44: 1 | G44: 90 | I44: 4 | J44: 4.4 | L44: 43 | M44: 0.14 | N44: 0.09 | P44: -0.07 | Q44: 0.87 | T44: 0.02
B45: Crab meal | E45: 100 | F45: 1 | G45: 95 | H45: 1.49 | I45: 30 | J45: 2.2 | L45: 10.5 | M45: 18 | N45: 1.5 | O45: 1.5 | P45: -7.5 | Q45: 0.45 | R45: 1.5 | S45: 133 | T45: 0.85 | U45: 1.2 | V45: 2024 | X45: 1.7 | AB45: 0.5 | AC45: 1.2 | AD45: 1.6 | AE45: 1.4 | AF45: 0.5 | AG45: 0.2 | AH45: 0.7 | AI45: 1.2 | AL45: 1.2 | AM45: 0.3 | AN45: 1.5
B46: Distillers dried grains w/solubles | E46: 100 | F46: 1 | G46: 91 | H46: 2.4 | I46: 29 | J46: 8.4 | L46: 7.8 | M46: 0.27 | N46: 0.78 | O46: 0.35 | P46: 0.215 | Q46: 0.86 | R46: 0.18 | S46: 40 | T46: 0.6 | U46: 70 | V46: 4005 | W46: 880 | X46: 1.12 | AB46: 0.81 | AC46: 1.93 | AD46: 2.34 | AE46: 0.81 | AF46: 0.46 | AG46: 0.52 | AH46: 0.98 | AI46: 1.93 | AL46: 1.12 | AM46: 0.2 | AN46: 1.83
B47: Fat, animal | E47: 100 | F47: 1 | G47: 99 | H47: 7.92 | J47: 98 | P47: 0
B48: Fat, yellow grease | E48: 100 | F48: 1 | G48: 99 | H48: 8.25 | J48: 98 | P48: 0
B49: Fat, vegetable | E49: 100 | F49: 1 | G49: 99 | H49: 8.8 | J49: 99 | P49: 0
B50: Feather meal, poultry | E50: 100 | F50: 1 | G50: 93 | H50: 2.88 | I50: 85 | J50: 2.5 | L50: 1.5 | M50: 0.2 | N50: 0.7 | O50: 0.7 | P50: 0.6 | Q50: 0.3 | R50: 0.28 | S50: 9 | T50: 0.7 | U50: 55 | V50: 880 | W50: 220 | X50: 3.92 | AB50: 0.28 | AC50: 2.66 | AD50: 7.8 | AE50: 1.05 | AF50: 0.55 | AG50: 3 | AH50: 3.55 | AI50: 2.66 | AL50: 2.8 | AM50: 0.4 | AN50: 4.55 | AO50: 3.2536 | AS50: 0.2016 | AT50: 2.261 | AU50: 6.396 | AV50: 0.693 | AW50: 0.418 | AX50: 1.77 | AZ50: 2.261 | BC50: 2.044 | BE50: 3.731
B51: Fish meal, AAFCO | E51: 100 | F51: 1 | G51: 88 | H51: 2.6 | I51: 59 | J51: 5.6 | L51: 1 | M51: 5.5 | N51: 3.3 | O51: 3.3 | P51: 0.55 | Q51: 0.39 | S51: 23 | T51: 1.07 | U51: 100 | V51: 3510 | X51: 3.73 | AB51: 1.53 | AC51: 3.64 | AD51: 4.69 | AE51: 5.17 | AF51: 1.72 | AG51: 0.57 | AH51: 2.29 | AI51: 2.68 | AL51: 2.49 | AM51: 0.67 | AN51: 3.26
B52: Fish meal, herring, Atlantic | E52: 100 | F52: 1 | G52: 93 | H52: 3.19 | I52: 72 | J52: 10 | L52: 1 | M52: 2 | N52: 1 | O52: 1 | P52: 0 | Q52: 1.5 | R52: 0.9 | S52: 5 | T52: 0.73 | U52: 100 | V52: 5240 | W52: 520 | X52: 5.64 | AB52: 1.91 | AC52: 3 | AD52: 5.1 | AE52: 5.7 | AF52: 2.2 | AG52: 0.72 | AH52: 2.92 | AI52: 2.56 | AL52: 2.88 | AM52: 0.8 | AN52: 5.7
B53: Fish meal, menhaden | E53: 100 | F53: 1 | G53: 92 | H53: 2.95 | I53: 62 | J53: 9.2 | L53: 1 | M53: 4.8 | N53: 3 | O53: 3 | P53: 0.6 | Q53: 0.96 | R53: 0.8 | S53: 40 | T53: 0.68 | U53: 92 | V53: 3080 | W53: 1000 | X53: 3.65 | AB53: 1.52 | AC53: 2.4 | AD53: 4.4 | AE53: 4.7 | AF53: 1.7 | AG53: 0.5 | AH53: 2.2 | AI53: 2.28 | AL53: 2.75 | AM53: 0.5 | AN53: 2.8 | AO53: 3.358 | AS53: 1.3984 | AT53: 2.208 | AU53: 4.048 | AV53: 4.136 | AW53: 1.564 | AX53: 0.365 | BC53: 2.695 | BE53: 2.548
B54: Fish meal, anchovy, Peruvian | E54: 100 | F54: 1 | G54: 91 | H54: 2.82 | I54: 65 | J54: 10 | L54: 1 | M54: 4 | N54: 2.85 | O54: 2.85 | P54: 0.85 | Q54: 0.9 | R54: 0.6 | S54: 9 | T54: 0.88 | U54: 100 | V54: 5100 | W54: 220 | X54: 3.38 | AB54: 1.5 | AC54: 3 | AD54: 5 | AE54: 4.9 | AF54: 1.9 | AG54: 0.6 | AH54: 2.5 | AI54: 2.39 | AL54: 2.7 | AM54: 0.75 | AN54: 3.4
B55: Fish meal, red fish | E55: 100 | F55: 1 | G55: 92 | H55: 2.97 | I55: 57 | J55: 8 | L55: 1 | M55: 7.7 | N55: 3.8 | O55: 3.8 | P55: -0.05 | Q55: 0.3 | S55: 8 | T55: 0.1 | U55: 88 | V55: 3429 | X55: 4.1 | AB55: 1.3 | AC55: 3.5 | AD55: 4.9 | AE55: 6.6 | AF55: 1.8 | AG55: 0.4 | AH55: 2.2 | AI55: 2.5 | AL55: 2.6 | AM55: 0.6 | AN55: 3.33
B56: Fish meal, sardine | E56: 100 | F56: 1 | G56: 92 | H56: 2.86 | I56: 65 | J56: 5.5 | L56: 1 | M56: 4.5 | N56: 2.7 | O56: 2.7 | P56: 0.45 | Q56: 0.3 | S56: 25 | T56: 0.18 | U56: 105 | V56: 3880 | X56: 2.7 | AB56: 1.8 | AC56: 3.3 | AD56: 3.8 | AE56: 5.9 | AF56: 2 | AG56: 0.8 | AH56: 2.8 | AI56: 2 | AL56: 2.6 | AM56: 0.5 | AN56: 3.4
